{"text_format":"3","workbook":"xlsx","n_sheets":8,"sheets":["Spec","BOQ","ADJ","Sheet8","Sheet6","Sheet1","Sheet 1","Sheet2"],"not_rendered":{"images":1,"external_links":9,"defined_names":221,"comments":3},"read":"whole","date_system":"1900"}

{"sheet":"Spec","index":0,"n_rows":41,"n_cols":19,"rows_kept":41,"hidden":true,"merged":[[1,1,1,2],[1,3,1,4],[1,7,1,8],[1,9,1,10],[2,1,2,2],[2,3,2,4],[2,7,2,8],[2,9,2,10],[3,1,3,2],[3,3,3,4],[3,7,3,8],[3,9,3,10],[4,1,4,2],[4,3,4,4],[4,7,4,8],[4,9,4,10],[5,1,5,2],[5,3,5,4],[5,7,5,8],[5,9,5,10],[6,1,6,2],[6,3,6,4],[6,7,6,8],[6,9,6,10],[7,1,7,2],[7,3,7,4],[7,7,7,8],[7,9,7,10],[8,1,8,2],[8,3,8,4],[8,7,8,8],[8,9,8,10],[9,1,9,2],[9,3,9,4],[9,7,9,8],[9,9,9,10],[10,1,10,2],[10,3,10,4],[10,7,10,8],[10,9,10,10],[11,1,11,2],[11,3,11,4],[11,7,11,8],[11,9,11,10],[12,1,12,2],[12,3,12,4],[12,7,12,8],[12,9,12,10],[13,1,13,2],[13,3,13,4],[13,7,13,8],[13,9,13,10],[14,1,14,2],[14,3,14,4],[14,7,14,8],[14,9,14,10],[15,1,15,2],[15,3,15,4],[15,7,15,8],[15,9,15,10],[16,1,16,2],[16,3,16,4],[16,7,16,8],[16,9,16,10],[17,1,17,2],[17,3,17,4],[17,7,17,8],[17,9,17,10],[18,1,18,2],[18,3,18,4],[18,7,18,8],[18,9,18,10],[19,1,19,2],[19,3,19,4],[19,7,19,8],[19,9,19,10],[20,1,20,2],[20,3,20,4],[20,7,20,8],[20,9,20,10],[21,1,21,2],[21,3,21,4],[21,7,21,8],[21,9,21,10],[22,1,22,2],[22,3,22,4],[22,7,22,8],[22,9,22,10],[23,1,23,2],[23,3,23,4],[23,7,23,8],[23,9,23,10],[24,1,24,10],[25,1,25,2],[25,3,25,4],[25,5,25,6],[25,7,25,8],[25,9,25,10],[26,1,26,2],[26,3,26,4],[26,5,26,6],[26,7,26,8],[26,9,26,10],[27,1,27,2],[27,3,27,4],[27,5,27,6],[27,7,27,8],[27,9,27,10],[28,1,28,2],[28,3,28,4],[28,5,28,6],[28,7,28,8],[28,9,28,10],[29,1,29,2],[29,3,29,4],[29,5,29,6],[29,7,29,8],[29,9,29,10],[30,1,30,2],[30,3,30,4],[30,5,30,6],[30,7,30,8],[30,9,30,10],[31,9,31,10],[32,1,32,2],[33,1,33,2],[33,9,33,10],[34,1,34,2],[34,9,34,10],[35,1,35,2],[35,9,35,10],[36,1,36,2],[36,9,36,10],[37,1,37,2],[37,9,37,10],[38,1,38,2],[38,9,38,10],[39,1,39,2],[39,9,39,10],[40,1,40,2],[40,9,40,10],[41,1,41,2],[42,1,42,2],[42,9,42,10]]}
[]
[null,"Items",null,"Current Equipment Qty",null,"Price","Actual Spares Qty Required ","Replacement of Equipment Risk Factor",null,"Final Costing"]
[null,"Tema Server",null,25,null,{"v":33800,"d":"33,800.00"},5,{"v":0.15,"d":"15%"},null,{"$f":"F3*G3","v":{"v":169000,"d":"169,000.00"}},{"$nulls":3},{"$f":"G3=BOQ!E48","v":true},{"$nulls":4},{"$f":"F3*G3","v":{"v":169000,"d":"169,000.00"}}]
[null,"LONWorks Wiegand (A08)",null,116,null,{"v":8420.66,"d":"8,420.66"},{"$f":"H4*D4/3","v":{"v":5.8,"d":"6"}},{"v":0.15,"d":"15%"},null,{"$f":"F4*G4","v":{"v":48839.827999999994,"d":"48,839.83"}},{"$nulls":3},{"$f":"G4=BOQ!E49","v":false},{"$nulls":4},{"v":48839.827999999994,"d":"48,839.83"}]
[null,"Power Supply (A08)",null,116,null,{"v":4500.33,"d":"4,500.33"},{"$f":"H5*D5/3","v":{"v":5.8,"d":"6"}},{"v":0.15,"d":"15%"},null,{"$f":"F5*G5","v":{"v":26101.913999999997,"d":"26,101.91"}},{"$nulls":3},{"$f":"G5=BOQ!E50","v":false},{"$nulls":4},{"v":26101.913999999997,"d":"26,101.91"}]
[null,"Tema Power Supply",null,25,null,{"v":7688.44,"d":"7,688.44"},{"v":1.25,"d":"1"},{"v":0.15,"d":"15%"},null,{"v":9610.55,"d":"9,610.55"},{"$nulls":3},{"$f":"G6=BOQ!E51","v":false},{"$nulls":4},{"v":9610.55,"d":"9,610.55"}]
[null,"Reader",null,315,null,{"v":14999,"d":"14,999.00"},20,{"v":0.2,"d":"20%"},null,{"v":299980,"d":"299,980.00"},{"$nulls":3},{"$f":"G7=BOQ!E52","v":true},{"$nulls":4},{"v":299980,"d":"299,980.00"}]
[null,"Rainshield",null,315,null,{"v":9500,"d":"9,500.00"},20,{"v":0.15,"d":"15%"},null,{"v":190000,"d":"190,000.00"},{"$nulls":3},{"$f":"G8=BOQ!E53","v":true},{"$nulls":4},{"v":190000,"d":"190,000.00"}]
[null,"POE Switch",null,20,null,{"v":11700,"d":"11,700.00"},5,{"v":0.2,"d":"20%"},null,{"v":58500,"d":"58,500.00"},{"$nulls":3},{"$f":"G9=BOQ!E54","v":true},{"$nulls":4},{"v":58500,"d":"58,500.00"}]
[null,"DIN Relay",null,72,null,{"v":330,"d":"330.00"},11,{"v":0.15,"d":"15%"},null,{"v":3630,"d":"3,630.00"},{"$nulls":3},{"$f":"G10=BOQ!E55","v":true},{"$nulls":4},{"v":3630,"d":"3,630.00"}]
[null,"MAME UPGRADE 100K Licence",null,315,null,{"v":10999,"d":"10,999.00"},20,{"v":0.15,"d":"15%"},null,{"v":219980,"d":"219,980.00"},{"$nulls":3},{"$f":"G11=BOQ!E56","v":true},{"$nulls":4},{"v":219980,"d":"219,980.00"}]
[null,"MP300 2Geth - ODU ",null,18,null,{"v":39700.35,"d":"39,700.35"},1,{"v":0.15,"d":"15%"},null,{"v":39700.35,"d":"39,700.35"},{"$nulls":3},{"$f":"G12=BOQ!E57","v":true},{"$nulls":4},{"v":39700.35,"d":"39,700.35"}]
[null,"Mylar Cable 500m",null,140,null,{"v":2700,"d":"2,700.00"},20,{"v":0.55,"d":"55%"},null,{"v":54000,"d":"54,000.00"},{"$nulls":3},{"$f":"G13=BOQ!E58","v":true},{"$nulls":4},{"v":54000,"d":"54,000.00"}]
[null,"CAT 6 - 500m",null,140,null,{"v":2500,"d":"2,500.00"},20,{"v":0.55,"d":"55%"},null,{"v":50000,"d":"50,000.00"},{"$nulls":3},{"$f":"G14=BOQ!E59","v":true},{"$nulls":4},{"v":50000,"d":"50,000.00"}]
[null,"Media Convetors",null,10,null,{"v":9340.55,"d":"9,340.55"},{"v":1.8333333333333333,"d":"2"},{"v":0.55,"d":"55%"},null,{"v":17124.341666666664,"d":"17,124.34"},{"$nulls":3},{"$f":"G15=BOQ!E60","v":false},{"$nulls":4},{"v":17124.341666666664,"d":"17,124.34"}]
[null,"Radio Links - 17000GHZ",null,10,null,{"v":26000,"d":"26,000.00"},8,{"v":0.55,"d":"55%"},null,{"v":208000,"d":"208,000.00"},{"$nulls":3},{"$f":"G16=BOQ!E61","v":true},{"$nulls":4},{"v":208000,"d":"208,000.00"}]
[null,"Boom Gates",null,16,null,{"v":24765.99,"d":"24,765.99"},10,{"v":0.15,"d":"15%"},null,{"v":247659.90000000002,"d":"247,659.90"},{"$nulls":3},{"$f":"G17=BOQ!E62","v":true},{"$nulls":4},{"v":247659.90000000002,"d":"247,659.90"}]
[null,"Ground Loops",null,500,null,47.23,500,{"v":0.3,"d":"30%"},null,{"v":23615,"d":"23,615.00"},{"$nulls":3},{"$f":"G18=BOQ!E63","v":true},{"$nulls":4},{"v":23615,"d":"23,615.00"}]
[null,"Boom Logics",null,16,null,{"v":2500,"d":"2,500.00"},20,{"v":0.35,"d":"35%"},null,{"v":50000,"d":"50,000.00"},{"$nulls":3},{"$f":"G19=BOQ!E64","v":true},{"$nulls":4},{"v":50000,"d":"50,000.00"}]
[null,"Gibic",null,12,null,{"v":14768.01,"d":"14,768.01"},{"v":1.8,"d":"2"},{"v":0.45,"d":"45%"},null,{"v":26582.418,"d":"26,582.42"},{"$nulls":3},{"$f":"G20=BOQ!E65","v":false},{"$nulls":4},{"v":26582.418,"d":"26,582.42"}]
[null,"RJ45",null,2000,null,20.45,500,{"v":0.65,"d":"65%"},null,{"v":10225,"d":"10,225.00"},{"$nulls":3},{"$f":"G21=BOQ!E66","v":true},{"$nulls":4},{"v":10225,"d":"10,225.00"}]
[null,"Gooseneck reader",null,315,null,{"v":8700.33,"d":"8,700.33"},20,{"v":0.25,"d":"25%"},null,{"v":174006.6,"d":"174,006.60"},{"$nulls":3},{"$f":"G22=BOQ!E67","v":true},{"$nulls":4},{"$f":"F22*G22","v":{"v":174006.6,"d":"174,006.60"}}]
[null,"Vehicle Tag Box",null,18,null,{"v":9500.33,"d":"9,500.33"},10,{"v":0.15,"d":"15%"},null,{"v":95003.3,"d":"95,003.30"},{"$nulls":3},{"$f":"G23=BOQ!E68","v":true},{"$nulls":4},{"$f":"F23*G23","v":{"v":95003.3,"d":"95,003.30"}}]
[{"$nulls":9},{"$f":"SUM(J3:K23)","v":{"v":2021559.201666667,"d":"2,021,559.20"}},{"$nulls":3},{"$f":"G24=BOQ!E69","v":true}]
[null,"LABOUR"]
[null,"Description",null,"Resource",null,"Monthly",{"$nulls":3},"Total 1yr - Costing"]
[null,"Database Administrator",null,1,null,{"v":35000,"d":"35,000.00"},{"$nulls":3},{"$f":"F27*12","v":{"v":420000,"d":" 420,000.00 "}}]
[null,"Supervisor",null,1,null,{"v":25000,"d":"25,000.00"},{"$nulls":3},{"$f":"F28*12","v":{"v":300000,"d":" 300,000.00 "}},null,null,{"$f":"F28/20","v":{"v":1250,"d":"1,250.00"}},{"$f":"M28/8","v":156.25}]
[null,"Instrument Technician",null,4,null,{"$f":"55*180*4","v":{"v":39600,"d":"39,600.00"}},{"$nulls":3},{"$f":"F29*12","v":{"v":475200,"d":" 475,200.00 "}},null,null,{"$f":"F29/20","v":{"v":1980,"d":"1,980.00"}},{"$f":"M29/8","v":{"v":247.5,"d":"247.50"}},null,{"$f":"559200/4","v":139800},{"$f":"P29/20","v":6990},{"$f":"Q29/8","v":873.75}]
[null,"Site Working Vehicle",null,1,null,{"v":15000,"d":"15,000.00"},{"$nulls":3},{"$f":"F30*12","v":{"v":180000,"d":" 180,000.00 "}}]
[null,"Staff Transportation",null,1,null,{"v":15000,"d":"15,000.00"},{"$nulls":3},{"$f":"F31*12","v":{"v":180000,"d":" 180,000.00 "}},null,null,{"$f":"(151800/12)*1.08","v":13662}]
[{"$nulls":9},{"$f":"SUM(J27:K31)","v":{"v":1555200,"d":" 1,555,200.00 "}}]
[]
[]
[null,"Safety Induction",{"$nulls":7},{"$f":"7300","v":{"v":7300,"d":"7,300.00"}}]
[{"$nulls":8},"3 Years"]
[]
[null,"PLA Bonus",{"$nulls":6},{"$f":"16*12*2*34","v":13056},{"$f":"I38","v":{"v":13056,"d":"13,056.00"}}]
[]
[null,"Total 12 months Cost",{"$nulls":7},{"$f":"J36+J32+J24+J38","v":{"v":3589815.201666667,"d":"3,589,815.20"}}]
[null,"Monthly Cost",{"$nulls":7},{"$f":"J40/12","v":{"v":299151.2668055556,"d":"299151.27"}},{"$nulls":3},{"$f":"J40-BOQ!G71","v":{"v":3589815.201666667,"d":"3,589,815.20"}}]

{"sheet":"BOQ","index":1,"n_rows":71,"n_cols":7,"rows_kept":71,"merged":[[4,1,4,2],[7,3,7,6],[13,10,13,11],[14,10,14,11],[15,10,15,11],[16,10,16,11],[23,10,23,11],[47,9,47,10],[47,11,47,12],[48,9,48,10],[48,11,48,12],[49,9,49,10],[49,11,49,12],[50,9,50,10],[50,11,50,12],[51,9,51,10],[51,11,51,12],[52,9,52,10],[52,11,52,12],[53,9,53,10],[53,11,53,12],[54,9,54,10],[54,11,54,12],[55,9,55,10],[55,11,55,12],[56,9,56,10],[56,11,56,12],[57,9,57,10],[57,11,57,12],[58,9,58,10],[58,11,58,12],[59,9,59,10],[59,11,59,12],[60,9,60,10],[60,11,60,12],[61,9,61,10],[61,11,61,12],[62,9,62,10],[62,11,62,12],[63,9,63,10],[63,11,63,12],[64,9,64,10],[64,11,64,12],[65,9,65,10],[65,11,65,12],[66,9,66,10],[66,11,66,12],[67,9,67,10],[67,11,67,12],[68,9,68,10],[68,11,68,12]]}
[]
[]
[null,"Project:","KUSILE POWER STATION"]
[null,"Package Name:","BIOMETRICS MAINTENANCE"]
[null,"BILL OF QUANTITIES"]
[]
[]
[]
[null,"ITEM NO","DESCRIPTION","UNIT","QTY","RATE","AMOUNT "]
[null,"."]
[null,{"v":1,"d":"1.00"},"Preliminary and General"]
[]
[null,{"v":1.1,"d":"1.10"},"Fixed Preliminaries"]
[]
[null,"1.1.1","Health & Safety related costs including PPE","SUM",1,0,{"$f":"F15*E15","v":0}]
[]
[null,"1.1.2","PLA Bonus Provision","SUM",1,0,{"$f":"F17*E17","v":0}]
[]
[null,"1.1.3","Contractual requirements - Insurances, SD&L, etc.","SUM",{"v":1,"d":"1.00"},0,{"$f":"F19*E19","v":0}]
[]
[null,"1.1.4","Site Establishment of facilities  and Equipments","SUM",{"v":1,"d":"1.00"},0,{"$f":"F21*E21","v":0}]
[]
[null,"1.1.5","Site De-establishment","SUM",{"v":1,"d":"1.00"},0,{"$f":"F23*E23","v":0}]
[]
[null,null,"Total Fixed Preliminaries",{"$nulls":3},{"$f":"SUM(G15:G24)","v":0}]
[]
[null,{"v":1.2,"d":"1.20"},"Time related Preliminaries"]
[]
[null,"1.2.1","Supervision for duration of construction","Month",12,0,{"$f":"E29*F29","v":0}]
[]
[null,"1.2.2","Provision of Instrument Technicians ","Month",12,0,{"$f":"E31*F31","v":0}]
[]
[null,"1.2.3","Provision of Database Administrator","Month",12,0,{"$f":"E33*F33","v":0}]
[]
[null,"1.2.4"," Staff & Site transportation ","Month",12,0,{"$f":"E35*F35","v":0}]
[]
[null,"1.2.5","Operation and maintenance of facilities and equipments on site","Sum",1,0,{"$f":"E37*F37","v":0}]
[]
[null,"1.2.6","Partnership Agreement Bonus (maximum of 5 employees)","Year",1,0,{"$f":"E39*F39","v":0}]
[]
[]
[null,null,"Total Time Related Preliminaries",{"$nulls":3},{"$f":"SUM(G28:G41)","v":0}]
[]
[null,null,"Total Preliminary and General",{"$nulls":3},{"$f":"G25+G42","v":0}]
[]
[null,{"v":2,"d":"2.00"},"MAIN WORKS"]
[]
[null,"2.01","Tema Server","No",5,0,{"$f":"E48*F48","v":0}]
[null,"2.02","LONWorks Wiegand (A08)","No",6,0,0]
[null,"2.03","Power Supply (A08)","No",6,0,0]
[null,"2.04","Tema Power Supply","No",1,0,0]
[null,2.05,"Reader","No",20,0,0]
[null,2.06,"Rainshield","No",20,0,0]
[null,{"$f":"B53+0.01","v":2.07},"POE Switch","No",5,0,0]
[null,{"$f":"B54+0.01","v":{"v":2.0799999999999996,"d":"2.08"}},"DIN Relay","No",11,0,0]
[null,{"v":2.0899999999999994,"d":"2.09"},"MAME UPGRADE 100K","No",20,0,0]
[null,{"v":2.099999999999999,"d":"2.10"},"MP300 2Geth - ODU ","No",1,0,0]
[null,{"v":2.109999999999999,"d":"2.11"},"Mylar Cable 500m","No",20,0,0]
[null,{"v":2.1199999999999988,"d":"2.12"},"CAT 6 - 500m","No",20,0,0]
[null,{"v":2.1299999999999986,"d":"2.13"},"Media Convetors","No",2,0,0]
[null,{"v":2.1399999999999983,"d":"2.14"},"Radio Links - 17000GHZ","No",8,0,0]
[null,{"v":2.149999999999998,"d":"2.15"},"Boom Gates","No",10,0,{"$f":"E62*F62","v":0}]
[null,{"v":2.159999999999998,"d":"2.16"},"Ground Loops","No",500,0,0]
[null,{"v":2.1699999999999977,"d":"2.17"},"Boom Logics","No",20,0,0]
[null,{"v":2.1799999999999975,"d":"2.18"},"Gibic","No",{"$f":"F65*B65/3","v":0},0,0]
[null,{"v":2.1899999999999973,"d":"2.19"},"RJ45","No",500,0,0]
[null,{"v":2.199999999999997,"d":"2.20"},"Gooseneck reader","No",20,0,0]
[null,{"v":2.209999999999997,"d":"2.21"},"Vehicle Tag Box","No",10,0,0]
[null,null,"MAIN WORKS",{"$nulls":3},{"$f":"SUM(G48:G68)","v":0}]
[]
[null,null,"TOTAL ESTIMATED AMOUNT EX. VAT",{"$nulls":3},{"$f":"G69+G44","v":0}]

{"sheet":"ADJ","index":2,"n_rows":23,"n_cols":10,"rows_kept":23,"hidden":true}
[]
[]
[{"$nulls":3},{"v":68400,"d":"R68,400.00"}]
[]
[{"$nulls":3},{"v":85900,"d":"R85,900.00"}]
[]
[{"$nulls":3},{"v":32000,"d":"R32,000.00"}]
[]
[]
[null,"CPA CALCULATIONS"]
[]
[null,"Table B1 - CPI headline index numbers (Dec 2016=10)"]
[{"$nulls":5},"Jan'23","Jan'23","Jan'23","Jan'23","Jan'23"]
[null,"CPA COMPONENT","BASE DATE","PROPORTION","BASE INDEX","Contractual Req","Site Establishment","Jan'24","Jan'24","Jan'24"]
[null," STATS SA table B - CPI","2020-07-01",0.85,{"v":93.7,"d":"93.70"},{"v":100.2,"d":"100.20"},{"v":100.2,"d":"100.20"},{"v":100.2,"d":"100.20"},{"v":100.2,"d":"100.20"},{"v":100.2,"d":"100.20"}]
[null,"FIXED",null,0.15]
[{"$nulls":3},"CPA FACTOR",null,{"$f":"D16+((F15/E15)*D15)-1","v":{"v":0.05896478121664894,"d":"0.059"}},{"$f":"D16+((F15/E15)*D15)-1","v":{"v":0.05896478121664894,"d":"0.059"}},{"$f":"D16+((H15/E15)*D15)-1","v":{"v":0.05896478121664894,"d":"0.059"}},{"$f":"D16+((I15/E15)*D15)-1","v":{"v":0.05896478121664894,"d":"0.059"}},{"$f":"D16+((J15/E15)*D15)-1","v":{"v":0.05896478121664894,"d":"0.059"}}]
[null,"AMOUNT SUBJECT TO CPA",{"$nulls":3},{"v":68400,"d":"R 68,400.00"},{"v":85900,"d":"R 85,900.00"},32000,{"v":60000,"d":"R60,000.00"},{"v":42000,"d":"R42,000.00"}]
[]
[null,"CPA AMOUNT (UPDATED)",{"$nulls":3},{"$f":"(F18*F17)","v":{"v":4033.191035218788,"d":"R 4,033.19"}},{"$f":"(G18*G17)","v":{"v":5065.074706510144,"d":"R 5,065.07"}},{"$f":"(H18*H17)","v":{"v":1886.8729989327662,"d":"R1,886.87"}},{"$f":"(I18*I17)","v":{"v":3537.8868729989367,"d":"R3,537.89"}},{"$f":"(J18*J17)","v":{"v":2476.5208110992558,"d":"R2,476.52"}}]
[null,"CUMMULATIVE CPA AMOUNT"]
[{"$nulls":5},{"$f":"F18+F20","v":{"v":72433.19103521878,"d":"R72,433.19"}},{"$f":"G18+G20","v":{"v":90965.07470651015,"d":"R90,965.07"}},{"$f":"H18+H20","v":{"v":33886.87299893277,"d":"R33,886.87"}},{"$f":"J18+I20","v":{"v":45537.88687299893,"d":"R45,537.89"}},{"$f":"J18+J20","v":{"v":44476.52081109925,"d":"R44,476.52"}}]
[{"$nulls":5},72433.19,90965.07,33886.87,45537.89,44476.52]

{"sheet":"Sheet8","index":3,"n_rows":68,"n_cols":10,"rows_kept":68,"hidden":true,"merged":[[6,5,6,6]]}
[]
["Project:","KUSILE POWER STATION"]
["Enquiry No."]
["Package Name:","BIOMETRICS MAINTENANCE"]
["Tenderer's Name:"]
[]
[{"$nulls":5},"CPA"]
["ITEM NO","DESCRIPTION","UNIT","QTY","2021 RATE","CPA","Rate",null,null,{"v":1993713.41,"d":"R1,993,713.41"}]
["."]
[{"v":1,"d":"1.00"},"Preliminary and General"]
[]
[{"v":1.1,"d":"1.10"},"Fixed Preliminaries"]
[]
["1.1.1","Contractual requirements - Insurances, SD&L, etc.","SUM",0,68400,3520,{"$f":"F14+E14","v":{"v":71920,"d":"R71,920.00"}},null,{"v":71920,"d":"R71,920.00"},{"$f":"E14/J8","v":{"v":0.034307839660866805,"d":"0.03"}}]
[]
["1.1.2","Site Establishment of facilities  and Equipments","SUM",0,85900,4539,{"$f":"F16+E16","v":{"v":90439,"d":"R90,439.00"}},null,90439,{"$f":"E16/J8","v":{"v":0.043085430217375126,"d":"4%"}}]
[]
["1.1.3","Health & Safety related costs including PPE","SUM",0,25000,1017,{"$f":"F18+E18","v":{"v":26017,"d":"R26,017.00"}},null,26017,{"$f":"E18/J8","v":{"v":0.012539415080726172,"d":"1%"}}]
[]
["1.1.4","Site De-establishment","SUM",0,32000,1982,{"$f":"F20+E20","v":{"v":33982,"d":"R33,982.00"}},null,33982,{"$f":"E20/J8","v":{"v":0.0160504513033295,"d":"2%"}}]
[]
[null,"Total Fixed Preliminaries",{"$nulls":4},{"$f":"SUM(G14:G21)","v":{"v":222358,"d":"R222,358.00"}}]
[]
[{"v":1.2,"d":"1.20"},"Time related Preliminaries"]
[]
["1.2.1","Operation and maintenance of facilities and equipments on site","Sum",0,60000,3842,{"$f":"F26+E26","v":{"v":63842,"d":"R63,842.00"}},null,63842]
[]
["1.2.2","Supervision for duration of construction","Sum",{"v":1,"d":"1.00"},129600,8460,{"$f":"F28+E28","v":{"v":138060,"d":"R138,060.00"}},null,138060]
[]
["1.2.3","Staff transportation and site transpor (6 Passangers)","Sum",{"v":1,"d":"1.00"},151680,8424,{"$f":"F30+E30","v":{"v":160104,"d":"R160,104.00"}},null,160104]
[]
["1.2.4","Provision of Instrument Technicians (4 OFF)","Sum",{"v":1,"d":"1.00"},595200,48200,{"$f":"F32+E32","v":{"v":643400,"d":"R643,400.00"}}]
[]
["1.2.4","Provision of Database Administrator","Sum",{"v":1,"d":"1.00"},84000,6779,{"$f":"F34+E34","v":{"v":90779,"d":"R90,779.00"}}]
[]
["1.2.6","Partnership Agreement Bonus (maximum of 5 employees)","Years",0,420000,31899,{"$f":"F36+E36","v":{"v":451899,"d":"R451,899.00"}}]
[]
[null,"Total Time Related Preliminaries",{"$nulls":4},{"$f":"SUM(G25:G37)","v":{"v":1548084,"d":"R1,548,084.00"}}]
[]
[null,"Total Preliminary and General",{"$nulls":4},{"$f":"G22+G38","v":{"v":1770442,"d":"R1,770,442.00"}}]
[]
[{"v":2,"d":"2.00"},"MAIN WORKS"]
[]
["2.01","Tema Server","No",{"v":4,"d":"4.00"},21890,1166,{"$f":"F44+E44","v":{"v":23056,"d":"R23,056.00"}}]
["2.02","LONWorks Wiegand (A08)","No",{"v":15,"d":"15.00"},2080,{"$f":"E45*0.08","v":166.4},{"$f":"F45+E45","v":{"v":2246.4,"d":"R2,246.40"}}]
["2.03","Power Supply (A08)","No",{"v":15,"d":"15.00"},650,{"$f":"E46*0.08","v":52},{"v":702,"d":"R702.00"}]
["2.04","Tema Power Supply","No",{"v":3,"d":"3.00"},7890,631.2,{"v":8521.2,"d":"R8,521.20"}]
["2.05","Battery 12 VDC Relay","No",{"v":46,"d":"46.00"},302.8,24.224,{"v":327.024,"d":"R327.02"}]
["2.06","Reader","No",{"v":58,"d":"58.00"},14.9,1.192,{"v":16.092,"d":"R16.09"}]
["2.07","Rainshield","No",{"v":16,"d":"16.00"},890.2,71.21600000000001,{"v":961.416,"d":"R961.42"}]
["2.08","POE Switch","No",{"v":4,"d":"4.00"},6890,551.2,{"v":7441.2,"d":"R7,441.20"}]
["2.09","DIN Relay","No",{"v":11,"d":"11.00"},498,39.84,{"v":537.84,"d":"R537.84"}]
["2.10","MAME UPGRADE 100K","No",{"v":58,"d":"58.00"},1256,100.48,{"v":1356.48,"d":"R1,356.48"}]
["2.11","MP300 2Geth - ODU ","No",{"v":3,"d":"3.00"},96110,7688.8,{"v":103798.8,"d":"R103,798.80"}]
["2.14","Mylar Cable 500m","No",{"v":26,"d":"26.00"},1298,103.84,{"v":1401.84,"d":"R1,401.84"}]
["2.15","CAT 6 - 500m","No",{"v":26,"d":"26.00"},1090,87.2,{"v":1177.2,"d":"R1,177.20"}]
["2.25","Media Convetors","No",{"v":2,"d":"2.00"},921.7,73.736,{"v":995.436,"d":"R995.44"}]
["2.26","Radio Links - 17000GHZ","No",{"v":2,"d":"2.00"},98790,7903.2,{"v":106693.2,"d":"R106,693.20"}]
["2.27","Boom Gates","No",{"v":4,"d":"4.00"},28900,2312,{"v":31212,"d":"R31,212.00"}]
["2.28","Ground Loops","No",{"v":50,"d":"50.00"},320.8,25.664,{"v":346.464,"d":"R346.46"}]
["2.29","Boom Logics","No",{"v":2,"d":"2.00"},1098,87.84,{"v":1185.84,"d":"R1,185.84"}]
["2.30","Gibic","No",{"v":2,"d":"2.00"},209.1,16.728,{"v":225.828,"d":"R225.83"}]
["2.31","RJ45","No",{"v":433,"d":"433.00"},5,0.4,{"v":5.4,"d":"R5.40"}]
["2.32","Extended Memory Card","No",{"v":26,"d":"26.00"},623.9,49.912,{"v":673.812,"d":"R673.81"}]
["2.33","Vehicle Tag Box","No",{"v":3,"d":"3.00"},1090.1,87.208,{"v":1177.308,"d":"R1,177.31"}]
[null,"MAIN WORKS",{"$nulls":4},{"$f":"SUM(G44:G65)","v":{"v":294058.77999999997,"d":"R294,058.78"}}]
[]
[null,"TOTAL TENDER AMOUNT EXCLUDING VAT",{"$nulls":4},{"$f":"G66+G40","v":{"v":2064500.78,"d":"R2,064,500.78"}}]

{"sheet":"Sheet6","index":4,"n_rows":22,"n_cols":11,"rows_kept":22,"hidden":true,"merged":[[0,0,0,8],[5,2,5,10],[6,2,6,10]]}
["Cost Price Adjustment"]
[]
[{"$nulls":3},{"$f":"Sheet8!E44","v":21890}]
[]
[]
[null,null,"CPA Calculation"]
[null,null,"Approved Inspection Authority services (AIAs)-ORIGINAL BASE TO DECEMBER 2021"]
[null,null,"Components","Weighting %","Table","Months Prior (Base Month)","Final Index Month","Base Index","Ruling Index","Factor","CPA Amount"]
[null,"A","Fixed Portion",{"v":0,"d":"0.00%"}]
[]
[null,"B","Variable ",{"v":1,"d":"100.00%"},"CPI SEIFSA table D-2 ","2021/03","2022-08-31",{"v":95.4,"d":"95.40"},{"v":103.1,"d":"103.10"},{"$f":"IF(H11>0,ROUND(((I11-H11)/H11)*D11,6),\"\")","v":{"v":0.080713,"d":"8.07%"}}]
[]
[]
[null,null,"Total",{"v":1,"d":"100.00%"},{"$nulls":5},{"v":0.082979,"d":"8.30%"},{"v":0,"d":"0.00"}]
[{"$nulls":9},"Base Amount x Factor",{"$f":"D3*J11","v":{"v":1766.80757,"d":"1,766.81"}}]
[{"$nulls":9},"Control =Zero",{"$f":"K15+D3","v":{"v":23656.80757,"d":"23,656.81"}}]
[]
["Total CPA Amount","X",{"v":0,"d":"0.00"}]
["Less previous claim",null,{"v":0,"d":"0.00"}]
["Updated CPA Due",null,{"v":0,"d":"0.00"}]
["Total Claimed by Supplier","Y",{"v":0,"d":"0.00"}]
["Difference","Z",{"v":0,"d":"0.00"},"ACCEPT THEIR CLAIM NO CREDIT NOTE"]

{"sheet":"Sheet1","index":5,"n_rows":1039,"n_cols":10,"rows_kept":1039,"hidden":true,"merged":[[3,0,3,1],[4,0,4,1],[5,0,5,1],[1020,6,1020,9]]}
[]
["KUSILE Power Station"]
["BUDGET ESTIMATE "]
["Package:",null,"P37A"]
["Department:",null,"Maintenance"]
["Project:",null,"P37A C&I, Electrical and Mechanical Workshop Off-Shelf Tools & Equipment "]
[]
[]
["Item No","Description","Category","Building","Specification","Brand","Installation","QTY","RATE","AMOUNT"]
[]
[1,"\"D\" Shackle","Tools","Section 42 Workshop","750kg",null,"No",2,{"v":7.4,"d":"7.40"},{"$f":"I11*H11","v":{"v":14.8,"d":"14.80"}}]
[2,"\"D\" Shackle","Tools","Section 42 Workshop","1.5 Ton",null,"No",5,11.65,58.25]
[3,"\"D\" Shackle","Tools","Section 42 Workshop","2 Ton",null,"No",8,{"v":16.5,"d":"16.50"},{"v":132,"d":"132.00"}]
[4,"\"D\" Shackle","Tools","Section 42 Workshop","3 Ton",null,"No",3,{"v":23,"d":"23.00"},{"v":69,"d":"69.00"}]
[5,"\"D\" Shackle","Tools","Section 42 Workshop","3.25 Ton",null,"No",2,{"v":23,"d":"23.00"},{"v":46,"d":"46.00"}]
[6,"\"D\" Shackle","Tools","Section 42 Workshop","3.75 Ton",null,"No",2,{"v":23,"d":"23.00"},{"v":46,"d":"46.00"}]
[7,"\"D\" Shackle","Tools","Section 42 Workshop","4.75 Ton",null,"No",3,{"v":37,"d":"37.00"},{"v":111,"d":"111.00"}]
[8,"\"D\" Shackle","Tools","Section 42 Workshop","7 Ton",null,"No",2,{"v":96,"d":"96.00"},{"v":192,"d":"192.00"}]
[9,"\"D\" Shackle","Tools","Section 42 Workshop","9 Ton",null,"No",2,{"v":105,"d":"105.00"},{"v":210,"d":"210.00"}]
[10,"\"D\" Shackle","Tools","Section 42 Workshop","10 Ton",null,"No",2,{"v":153,"d":"153.00"},{"v":306,"d":"306.00"}]
[11,"\"D\" Shackle","Tools","Section 42 Workshop","13 Ton",null,"No",2,{"v":190,"d":"190.00"},{"v":380,"d":"380.00"}]
[12,"\"D\" Shackle","Tools","Section 42 Workshop","200 Ton",null,"No",2,{"v":1650,"d":"1,650.00"},{"v":3300,"d":"3,300.00"}]
[13,"\"D\" Shackle","Tools","Batch Plant Workshop","750kg",null,"No",2,{"v":7.4,"d":"7.40"},{"v":14.8,"d":"14.80"}]
[14,"\"D\" Shackle","Tools","Batch Plant Workshop","1.5 Ton",null,"No",5,11.65,58.25]
[15,"\"D\" Shackle","Tools","Batch Plant Workshop","2 Ton",null,"No",8,{"v":16.5,"d":"16.50"},{"v":132,"d":"132.00"}]
[16,"\"D\" Shackle","Tools","Batch Plant Workshop","3 Ton",null,"No",4,{"v":23,"d":"23.00"},{"v":92,"d":"92.00"}]
[17,"\"D\" Shackle","Tools","Batch Plant Workshop","3.25 Ton",null,"No",4,{"v":23,"d":"23.00"},{"v":92,"d":"92.00"}]
[18,"\"D\" Shackle","Tools","Batch Plant Workshop","3.75 Ton",null,"No",2,{"v":23,"d":"23.00"},{"v":46,"d":"46.00"}]
[19,"\"D\" Shackle","Tools","Batch Plant Workshop","4.75 Ton",null,"No",3,{"v":37,"d":"37.00"},{"v":111,"d":"111.00"}]
[20,"\"D\" Shackle","Tools","Batch Plant Workshop","7 Ton",null,"No",2,{"v":96,"d":"96.00"},{"v":192,"d":"192.00"}]
[21,"\"D\" Shackle","Tools","Batch Plant Workshop","9 Ton",null,"No",2,{"v":105,"d":"105.00"},{"v":210,"d":"210.00"}]
[22,"\"D\" Shackle","Tools","Batch Plant Workshop","10 Ton",null,"No",2,{"v":153,"d":"153.00"},{"v":306,"d":"306.00"}]
[23,"\"D\" Shackle","Tools","Batch Plant Workshop","13 Ton",null,"No",2,{"v":190,"d":"190.00"},{"v":380,"d":"380.00"}]
[24,"\"D\" Shackle","Tools","Batch Plant Workshop","200 Ton",null,"No",2,{"$f":"I22","v":{"v":1650,"d":"1,650.00"}},{"v":3300,"d":"3,300.00"}]
[25,"0 - 150mm outside micrometer","Tools","Section 42 Workshop","Type: Standard\nRange: 0 -150mm\nGraduation: 0.01mm, 0,001mm\nAccuracy: ±2µm\nFlatness: 0.6µm\nMeasuring Faces: Carbide\nParallelism: (2+R/100)µm, R = max. range (mm)","Mitutoyo","No",2,{"$f":"250*14","v":{"v":3500,"d":"3,500.00"}},{"v":7000,"d":"7,000.00"}]
[26,"0 - 150mm outside micrometer","Tools","Batch Plant Workshop","Type: Standard\nRange: 0 -150mm\nGraduation: 0.01mm, 0,001mm\nAccuracy: ±2µm\nFlatness: 0.6µm\nMeasuring Faces: Carbide\nParallelism: (2+R/100)µm, R = max. range (mm)","Mitutoyo","No",2,{"$f":"250*14","v":{"v":3500,"d":"3,500.00"}},{"v":7000,"d":"7,000.00"}]
[27,"0 - 25mm Outside micrometer","Tools","Section 42 Workshop","Baked enamel finished frame\nCarbide measuring faces\nEquipped with ratchet stop for constant measuring force\nMaximum measuring range up to 25mm\n0.01mm of graduation\nAccuracy of ±2µm","Mitutoyo","No",3,{"$f":"68.64*18","v":{"v":1235.52,"d":"1,235.52"}},{"v":3706.56,"d":"3,706.56"}]
[28,"0 - 25mm Outside micrometer","Tools","Batch Plant Workshop","Baked enamel finished frame\nCarbide measuring faces\nEquipped with ratchet stop for constant measuring force\nMaximum measuring range up to 25mm\n0.01mm of graduation\nAccuracy of ±2µm","Mitutoyo","No",3,{"$f":"1430/1.15","v":{"v":1243.4782608695652,"d":"1,243.48"}},{"v":3730.434782608696,"d":"3,730.43"}]
[29,"11 drawer roller cabinet","Tools","Section 42 Workshop","Height: 1435 mm\nWidth: 705 mm\nDepth: 485 mm\nQty lengthwise dividers: 16x Piece\nQty crosswise dividers: 4x Piece\nWeight: 123 kg\nNumber of drawers: 11 Piece","GEDORE","No",4,{"v":22002.41,"d":"22,002.41"},{"v":88009.64,"d":"88,009.64"}]
[30,"11 drawer roller cabinet","Tools","Batch Plant Workshop","Height: 1435 mm\nWidth: 705 mm\nDepth: 485 mm\nQty lengthwise dividers: 16x Piece\nQty crosswise dividers: 4x Piece\nWeight: 123 kg\nNumber of drawers: 11 Piece","GEDORE","No",4,{"v":22002.41,"d":"22,002.41"},{"v":88009.64,"d":"88,009.64"}]
[31,"12mm boring bar iso insert type tpmr","Tools","Section 42 Workshop",null,null,"No",6,{"v":365,"d":"365.00"},{"v":2190,"d":"2,190.00"}]
[32,"16mm boring bar iso insert type tpmr","Tools","Section 42 Workshop",null,null,"No",6,{"v":45.6,"d":"45.60"},{"v":273.6,"d":"273.60"}]
[33,"2 Legged Chain sling","Tools","Section 42 Workshop","1 Ton",null,"No",2,{"v":385,"d":"385.00"},{"v":770,"d":"770.00"}]
[34,"2 Legged Chain sling","Tools","Batch Plant Workshop","1 Ton",null,"No",2,{"v":385,"d":"385.00"},{"v":770,"d":"770.00"}]
[35,"2 Legged Steel sling","Tools","Section 42 Workshop","500kg",null,null,2,{"v":385,"d":"385.00"},{"v":770,"d":"770.00"}]
[36,"2 Legged Steel sling","Tools","Batch Plant Workshop","500kg",null,"No",2,{"v":385,"d":"385.00"},{"v":770,"d":"770.00"}]
[37,"200mm scriber","Tools","Batch Plant Workshop","LIS-31800, LIS31800; Features and Benefits: Ideal for marking most metal and softer material surfaces. Comes with straight and 90 degree points to mark in even the tightest places Heat-treated carbon steel ",null,"No",10,37.41,{"v":374.09999999999997,"d":"374.10"}]
[38,"2020 left hand turning tool iso insert type tpmr (Lathe cutting tool insert)","Tools","Section 42 Workshop",{"$nulls":3},6,283.43,{"v":1700.58,"d":"1,700.58"}]
[39,"2020 right turning tool iso insert type tpmr","Tools","Section 42 Workshop",{"$nulls":3},6,283.43,{"v":1700.58,"d":"1,700.58"}]
[40,"20mm boring bar iso insert type tpmr","Tools","Section 42 Workshop",{"$nulls":3},6,{"v":59.9,"d":"59.90"},{"v":359.4,"d":"359.40"}]
[41,"20mm internal thread cutting boring bar top clamp","Tools","Section 42 Workshop",{"$nulls":3},6,{"v":59.9,"d":"59.90"},{"v":359.4,"d":"359.40"}]
[42,"25 - 50mm inside micrometer","Tools","Section 42 Workshop","Interchangeable rod type\nGraduation: 0.01mm\nTravel of head: 7mm\nwith 2 rods\n","Mitutoyo",null,2,{"v":1690,"d":"1,690.00"},{"v":3380,"d":"3,380.00"}]
[43,"25 - 50mm inside micrometer","Tools","Batch Plant Workshop","Interchangeable rod type\nGraduation: 0.01mm\nTravel of head: 7mm\nwith 2 rods\n","Mitutoyo","No",2,{"v":1690,"d":"1,690.00"},{"v":3380,"d":"3,380.00"}]
[44,"25 - 50mm outside micrometer","Tools","Section 42 Workshop","Type: Standard\nRange: 25 -50mm\nGraduation: 0.01mm\nAccuracy: ±2µm\nFlatness: 0.6µm\nMeasuring Faces: Carbide\nParallelism: (2+R/100)µm, R = max. range (mm)","Mitutoyo",null,3,{"$f":"1640/1.15","v":{"v":1426.0869565217392,"d":"1,426.09"}},{"v":4278.260869565218,"d":"4,278.26"}]
[45,"25 - 50mm outside micrometer","Tools","Batch Plant Workshop","Type: Standard\nRange: 25 -50mm\nGraduation: 0.01mm\nAccuracy: ±2µm\nFlatness: 0.6µm\nMeasuring Faces: Carbide\nParallelism: (2+R/100)µm, R = max. range (mm)","Mitutoyo","No",3,{"v":1690,"d":"1,690.00"},{"v":5070,"d":"5,070.00"}]
[46,"2525 left hand turning tool iso insert type tpmr","Tools","Section 42 Workshop",{"$nulls":3},6,{"v":259,"d":"259.00"},{"v":1554,"d":"1,554.00"}]
[47,"2525 right turning tool iso insert type tpmr","Tools","Section 42 Workshop",{"$nulls":3},6,{"v":259,"d":"259.00"},{"v":1554,"d":"1,554.00"}]
[48,"25mm boring bar iso insert type tpmr","Tools","Section 42 Workshop",{"$nulls":3},6,{"v":259,"d":"259.00"},{"v":1554,"d":"1,554.00"}]
[49,"300mm hacksaw blade ","Tools","Batch Plant Workshop","Hacksaw blade 18,24 and 32 TPI - pack of 10. For 435mm Hacksaw","GEDORE","No",100,{"$f":"(200/50)/1.15","v":{"v":3.4782608695652177,"d":"3.48"}},{"v":347.82608695652175,"d":"347.83"}]
[50,"300mm steel ruler","Tools","Batch Plant Workshop","Stainless steel ruler 300mm","GEDORE","No",12,{"$f":"37","v":{"v":37,"d":"37.00"}},{"v":444,"d":"444.00"}]
[51,"4 Legged Chain sling","Tools","Section 42 Workshop","3,36 Ton",null,"No",2,{"v":2635,"d":"2,635.00"},{"v":5270,"d":"5,270.00"}]
[52,"4 Legged Chain sling","Tools","Section 42 Workshop","6.62 Ton",null,"No",2,{"v":2200,"d":"2,200.00"},{"v":4400,"d":"4,400.00"}]
[53,"4 Legged Chain sling","Tools","Section 42 Workshop","7.5Ton",null,"No",2,{"v":2045,"d":"2,045.00"},{"v":4090,"d":"4,090.00"}]
[54,"4 Legged Chain sling","Tools","Batch Plant Workshop","3,36 Ton",null,"No",2,{"v":825,"d":"825.00"},{"v":1650,"d":"1,650.00"}]
[55,"4 Legged Chain sling","Tools","Batch Plant Workshop","6.62 Ton",null,"No",2,{"v":2200,"d":"2,200.00"},{"v":4400,"d":"4,400.00"}]
[56,"4 Legged Chain sling","Tools","Batch Plant Workshop","7.5Ton",null,"No",2,{"v":2045,"d":"2,045.00"},{"v":4090,"d":"4,090.00"}]
[57,"4 Legged Steel sling","Tools","Section 42 Workshop","4.5 Ton",null,"No",2,{"v":820,"d":"820.00"},{"v":1640,"d":"1,640.00"}]
[58,"4 Legged Steel sling","Tools","Section 42 Workshop","11 Ton",null,"No",2,{"v":5300,"d":"5,300.00"},{"v":10600,"d":"10,600.00"}]
[59,"4 Legged Steel sling","Tools","Section 42 Workshop","16.8Ton",null,"No",4,{"v":8720,"d":"8,720.00"},{"v":34880,"d":"34,880.00"}]
[60,"4 Legged Steel sling","Tools","Batch Plant Workshop","4.5 Ton",null,"No",2,{"v":820,"d":"820.00"},{"v":1640,"d":"1,640.00"}]
[61,"4 Legged Steel sling","Tools","Batch Plant Workshop","11 Ton",null,"No",2,{"v":5300,"d":"5,300.00"},{"v":10600,"d":"10,600.00"}]
[62,"4 Legged Steel sling","Tools","Batch Plant Workshop","16.8Ton",null,"No",2,{"v":8720,"d":"8,720.00"},{"v":17440,"d":"17,440.00"}]
[63,"5 compartment Sheet metal Electrician Toolbox","Tools","Section 42 Workshop","Strong structure , Smooth operating hinges. Round carrying plastic handle and lockable with required tools inside.",null,"No",10,{"v":683,"d":"683.00"},{"v":6830,"d":"6,830.00"}]
[64,"50 - 200mm inside micrometer","Tools","Section 42 Workshop","Type: Standard\nRange: 50 -200mm\nGraduation: 0.01mm\nAccuracy: ±(6+L/50)µm*\nFlatness: 0.6µm\nHead adjustment range: 13mm\n","Mitutoyo","No",2,{"v":3289,"d":"3,289.00"},{"v":6578,"d":"6,578.00"}]
[65,"50 - 200mm inside micrometer","Tools","Batch Plant Workshop","Type: Standard\nRange: 50 -200mm\nGraduation: 0.01mm\nAccuracy: ±(6+L/50)µm*\nFlatness: 0.6µm\nHead adjustment range: 13mm\n","Mitutoyo","No",2,{"v":3289,"d":"3,289.00"},{"$f":"I75*H75","v":{"v":6578,"d":"6,578.00"}}]
[66,"5m steel  measuring tape","Tools","Batch Plant Workshop","5m nylon measuring tape with belt clip.","3M","No",10,{"v":89,"d":"89.00"},{"v":890,"d":"890.00"}]
[67,"90 degree countersink 25mm dia x 10mm shank","Tools","Section 42 Workshop",null,null,"No",6,{"v":482.8,"d":"482.80"},{"v":2896.8,"d":"2,896.80"}]
[68,"90 degree countersink 25mm dia x 10mm shank","Tools","Batch Plant Workshop",null,null,"No",2,{"v":482.8,"d":"482.80"},{"v":965.6,"d":"965.60"}]
[69,"adjustable hacksaw 300mm","Tools","Section 42 Workshop",null,null,"No",3,{"v":286,"d":"286.00"},{"v":858,"d":"858.00"}]
[70,"adjustable hacksaw 300mm","Tools","Batch Plant Workshop",null,null,"No",2,{"v":286,"d":"286.00"},{"v":572,"d":"572.00"}]
[71,"Adjustable Wrenches","Tools","Batch Plant Workshop","18 inche","GEDORE","No",3,{"v":347,"d":"347.00"},{"v":1041,"d":"1,041.00"}]
[72,"Adjustable Wrenches","Tools","Batch Plant Workshop","24 inche","GEDORE","No",3,498.06,{"v":1494.18,"d":"1,494.18"}]
[73,"Adjustable Wrenches","Tools","Section 42 Workshop","18 inch,WRENCH,ADJUSTABLE SHIFTER,H/DUTY,450MM","GEDORE","No",2,{"v":347,"d":"347.00"},{"v":694,"d":"694.00"}]
[74,"Adjustable Wrenches","Tools","Section 42 Workshop","24 inche, WRENCH,ADJUSTABLE SHIFTER,H/DUTY,600MM","GEDORE","No",2,498.06,996.12]
[75,"Adjustable Wrenches","Tools","ERI Turbo Gen Services (TGS) Workshop 2","18 inche, WRENCH,ADJUSTABLE SHIFTER,H/DUTY,450MM","GEDORE","No",2,{"v":347,"d":"347.00"},{"v":694,"d":"694.00"}]
[76,"Adjustable Wrenches","Tools","ERI Turbo Gen Services (TGS) Workshop 3","24 inche, WRENCH,ADJUSTABLE SHIFTER,H/DUTY,600MM","GEDORE","No",2,498.06,996.12]
[77,"Adjustable Wrenches","Tools","ERI Turbo Gen Services (TGS) Workshop 1","18 inche, WRENCH,ADJUSTABLE SHIFTER,H/DUTY,450MM","GEDORE","No",1,{"v":347,"d":"347.00"},{"v":347,"d":"347.00"}]
[78,"Adjustable Wrenches","Tools","ERI Turbo Gen Services (TGS) Workshop 2","24 inche, WRENCH,ADJUSTABLE SHIFTER,H/DUTY,600MM","GEDORE","No",1,498.06,498.06]
[79,"Adjustable Wrenches","Tools","Section 42 Workshop","18 inche, WRENCH,ADJUSTABLE SHIFTER,H/DUTY,450MM","GEDORE","No",2,{"v":347,"d":"347.00"},{"v":694,"d":"694.00"}]
[80,"Adjustable Wrenches","Tools","Section 42 Workshop","24 inche, WRENCH,ADJUSTABLE SHIFTER,H/DUTY,600MM","GEDORE","No",2,498.06,996.12]
[81,"Adjustable Wrenches","Tools","Mill Maintenance Workshop","18 inche, WRENCH,ADJUSTABLE SHIFTER,H/DUTY,450MM","GEDORE","No",2,{"v":347,"d":"347.00"},{"v":694,"d":"694.00"}]
[82,"Adjustable Wrenches","Tools","Mill Maintenance Workshop","24 inche, WRENCH,ADJUSTABLE SHIFTER,H/DUTY,600MM","GEDORE","No",2,498.06,996.12]
[83,"Adjustable Wrenches","Tools","Welding Workshop","18 inche, WRENCH,ADJUSTABLE SHIFTER,H/DUTY,450MM","GEDORE","No",1,{"v":347,"d":"347.00"},{"v":347,"d":"347.00"}]
[84,"Adjustable Wrenches","Tools","Welding Workshop","24 inche, WRENCH,ADJUSTABLE SHIFTER,H/DUTY,600MM","GEDORE","No",1,498.06,498.06]
[85,"Adjustable Wrenches","Tools","Batch Plant Workshop","18 inche,WRENCH,ADJUSTABLE SHIFTER,H/DUTY,450MM","GEDORE","No",2,{"v":347,"d":"347.00"},{"v":694,"d":"694.00"}]
[86,"Adjustable Wrenches","Tools","Batch Plant Workshop","24 inche, WRENCH,ADJUSTABLE SHIFTER,H/DUTY,600MM","GEDORE","No",2,498.06,996.12]
[87,"Allen Keys - imperial set long arm 9 piece","Tools","Section 42 Workshop",null,null,"No",6,{"v":326.6,"d":"326.60"},{"v":1959.6000000000001,"d":"1,959.60"}]
[88,"Allen Keys - imperial set long arm 9 piece","Tools","Batch Plant Workshop",null,null,"No",3,{"v":326.6,"d":"326.60"},{"v":979.8000000000001,"d":"979.80"}]
[89,"Allen Keys - metric set long arm 9 piece","Tools","Section 42 Workshop",null,null,"No",6,{"v":326.6,"d":"326.60"},{"v":1959.6000000000001,"d":"1,959.60"}]
[90,"Allen Keys - metric set long arm 9 piece","Tools","Batch Plant Workshop",null,null,"No",3,{"v":326.6,"d":"326.60"},{"v":979.8000000000001,"d":"979.80"}]
[91,"Allen Keys Imperial","Tools","Batch Plant Workshop","Imperial set, 1/16, 5/64, 3/32, 1/8, 5/32, 3/16, 7/32, 1/4, 5/16, 3/8\".  - 1/2\" square","Off the shelf ","No",14,{"v":181,"d":"181.00"},{"v":2534,"d":"2,534.00"}]
[92,"Allen Keys Metric","Tools","Batch Plant Workshop","Metric, 1.5mm, 2mm, 2.5mm, 3mm, 4mm, 5mm, 6mm, 8mm, 10mm.  - 1/2\" square","Off the shelf ","No",14,{"v":181,"d":"181.00"},{"v":2534,"d":"2,534.00"}]
[93,"Angle Grinder","Tools","Section 42 Workshop","2400W 230V 50 Hz 6000 rpm with spindle lock Blade size 230x22,2mm","Bosch","No",2,{"$f":"2310/1.15","v":{"v":2008.6956521739132,"d":"2,008.70"}},{"v":4017.3913043478265,"d":"4,017.39"}]
[94,"Angle Grinder","Tools","ERI Turbo Gen Services (TGS) Workshop 4","2400W 230V 50 Hz 6000 rpm with spindle lock Blade size 230x22,2mm",null,"No",2,{"v":2008.6956521739132,"d":"2,008.70"},{"v":4017.3913043478265,"d":"4,017.39"}]
[95,"Angle Grinder","Tools","ERI Turbo Gen Services (TGS) Workshop 3","2400W 230V 50 Hz 6000 rpm with spindle lock Blade size 230x22,2mm",null,"No",2,{"v":2008.6956521739132,"d":"2,008.70"},{"v":4017.3913043478265,"d":"4,017.39"}]
[96,"Angle Grinder","Tools","Section 42 Workshop","2400W 230V 50 Hz 6000 rpm with spindle lock Blade size 230x22,2mm",null,"No",2,{"v":2008.6956521739132,"d":"2,008.70"},{"v":4017.3913043478265,"d":"4,017.39"}]
[97,"Angle Grinder","Tools","Mill Maintenance Workshop","2400W 230V 50 Hz 6000 rpm with spindle lock Blade size 230x22,2mm","Bosch","No",2,{"v":2008.6956521739132,"d":"2,008.70"},{"v":4017.3913043478265,"d":"4,017.39"}]
[98,"Angle Grinder","Tools","Welding Workshop","2400W 230V 50 Hz 6000 rpm with spindle lock Blade size 230x22,2mm",null,"No",6,{"v":2008.6956521739132,"d":"2,008.70"},{"v":12052.17391304348,"d":"12,052.17"}]
[99,"Angle Grinder","Tools","Batch Plant Workshop","2400W 230V 50 Hz 6000 rpm with spindle lock Blade size 230x22,2mm","Bosch","No",2,{"v":2008.6956521739132,"d":"2,008.70"},{"v":4017.3913043478265,"d":"4,017.39"}]
[100,"Angle Grinder - Air. ","Tools","Section 42 Workshop","Lever type throttle, Disc dia 178mm, Speed 7000rpm, Air pressure 630kPa, Motor 1 HP, Air hose 13mm","Bosch","No",2,{"v":1200,"d":"1,200.00"},{"v":2400,"d":"2,400.00"}]
[101,"Angle Grinder - Air. ","Tools","Welding Workshop","Lever type throttle, Disc dia 178mm, Speed 7000rpm, Air pressure 630kPa, Motor 1 HP, Air hose 13mm","Bosch","No",2,{"v":1200,"d":"1,200.00"},{"v":2400,"d":"2,400.00"}]
[102,"Angle Grinder - Air. ","Tools","Batch Plant Workshop","Lever type throttle, Disc dia 178mm, Speed 7000rpm, Air pressure 630kPa, Motor 1 HP, Air hose 13mm","Bosch","No",2,{"v":1200,"d":"1,200.00"},{"v":2400,"d":"2,400.00"}]
[103,"Angle Grinder - baby","Tools","Section 42 Workshop","900W 230V 50 Hz 11000 rpm with spindle lock Blade size 115x22,2mm"," ","No",2,{"v":1114,"d":"1,114.00"},{"v":2228,"d":"2,228.00"}]
[104,"Angle Grinder - baby","Tools","Welding Workshop","900W 230V 50 Hz 11000 rpm with spindle lock Blade size 115x22,2mm","Bosch","No",2,{"v":1114,"d":"1,114.00"},{"v":2228,"d":"2,228.00"}]
[105,"Angle Grinder - baby","Tools","Batch Plant Workshop","900W 230V 50 Hz 11000 rpm with spindle lock Blade size 115x22,2mm"," ","No",2,{"v":1114,"d":"1,114.00"},{"v":2228,"d":"2,228.00"}]
[106,"Angle iron rolling machine hydraulic","Tools","Welding Workshop","BPRC/602/F/E",null,"No",1,{"v":2850,"d":"2,850.00"},{"v":2850,"d":"2,850.00"}]
[107,"Auma actuator test kit","Tools","Section 18 Auxiliary Bay Unit 1","Enquire with Auma",null,"No",1,{"$f":"3680/1.15","v":{"v":3200.0000000000005,"d":"3,200.00"}},{"v":3200.0000000000005,"d":"3,200.00"}]
[108,"BA Tap and Die Set in Wooden Box\n\n","Tools","Section 18 Auxiliary Bay Unit 2","BA 0 - 10 sizes 0, 1, 2, 3, 4, 5, 6, 7, 8, 9, 10 - Each set contains 2 Taps per size (Plug and Bottom Lead) with the corresponding Die, appropriate Tap wrench and Die Stock. ","HELLERMANN TYTON","No",6,{"v":3879.9,"d":"3,879.90"},{"v":23279.4,"d":"23,279.40"}]
[109,"Baby Angle Grinder and blades ","Tools","Section 18 Auxiliary Bay Unit 3","900W 230V 50 Hz 11000 rpm with spindle lock Blade size 115x22,2mm","MIKITA","No",8,{"v":444,"d":"444.00"},{"v":3552,"d":"3,552.00"}]
[110,"Beam  Clamp","Tools","Section 42 Workshop","2 Ton",null,"No",2,{"v":759,"d":"759.00"},{"v":1518,"d":"1,518.00"}]
[111,"Beam  Clamp","Tools","Section 42 Workshop","3 Ton",null,"No",10,{"v":835,"d":"835.00"},{"v":8350,"d":"8,350.00"}]
[112,"Beam  Clamp","Tools","Section 42 Workshop","5 Ton",null,"No",10,{"v":835,"d":"835.00"},{"v":8350,"d":"8,350.00"}]
[113,"Beam  Clamp","Tools","Section 42 Workshop","5 Ton",null,"No",4,{"v":444,"d":"444.00"},{"v":1776,"d":"1,776.00"}]
[114,"Beam  Clamp","Tools","Batch Plant Workshop","2 Ton",null,"No",2,{"v":759,"d":"759.00"},{"v":1518,"d":"1,518.00"}]
[115,"Beam  Clamp","Tools","Batch Plant Workshop","3 Ton",null,"No",12,{"v":835,"d":"835.00"},{"v":10020,"d":"10,020.00"}]
[116,"Beam  Clamp","Tools","Batch Plant Workshop","5 Ton",null,"No",12,{"v":835,"d":"835.00"},{"v":10020,"d":"10,020.00"}]
[117,"Beam  Clamp","Tools","Batch Plant Workshop","5 Ton",null,"No",4,{"v":835,"d":"835.00"},{"v":3340,"d":"3,340.00"}]
[118,"Bearing fitment kit","Tools","16m level Workshop","Kit consist of 36 impact rings, 3 impact sleeves and a deadblow hammer all included in a carry case","SFK","No",4,{"v":7613,"d":"7,613.00"},{"v":30452,"d":"30,452.00"}]
[119,"Bearing fitment kit","Tools","Section 42 Workshop","Kit consist of 36 impact rings, 3 impact sleeves and a deadblow hammer all included in a carry case",null,"No",3,{"v":7613,"d":"7,613.00"},{"v":22839,"d":"22,839.00"}]
[120,"Bearing fitment kit","Tools","ERI Turbo Gen Services (TGS) Workshop 4","Kit consist of 36 impact rings, 3 impact sleeves and a deadblow hammer all included in a carry case",null,"No",1,{"v":7613,"d":"7,613.00"},{"v":7613,"d":"7,613.00"}]
[121,"Bearing fitment kit","Tools","Section 42 Workshop","Kit consist of 36 impact rings, 3 impact sleeves and a deadblow hammer all included in a carry case",null,"No",1,{"v":7613,"d":"7,613.00"},{"v":7613,"d":"7,613.00"}]
[122,"Bearing fitment kit","Tools","Mill Maintenance Workshop","Kit consist of 36 impact rings, 3 impact sleeves and a deadblow hammer all included in a carry case",null,"No",1,{"v":7613,"d":"7,613.00"},{"v":7613,"d":"7,613.00"}]
[123,"Bearing fitment kit","Tools","Batch Plant Workshop","Kit consist of 36 impact rings, 3 impact sleeves and a deadblow hammer all included in a carry case",null,"No",3,{"v":7613,"d":"7,613.00"},{"v":22839,"d":"22,839.00"}]
[124,"Bearing heater","Tools","Section 42 Workshop","380 Vac, power 12.8kW, Max dia of work piece 560mm & Max width of work piece 210mm, Max Temp 240/400 deg C. Include induction yokes 23, 30, 40, 50, 60 and 70mm",null,"No",2,{"v":36900,"d":"36,900.00"},{"v":73800,"d":"73,800.00"}]
[125,"Bearing heater","Tools","Section 42 Workshop","240 Vdc Bearing size inner dia 20 - 100mm, width 50mm Temp control 0 -200 deg C",null,"No",2,{"v":36900,"d":"36,900.00"},{"v":73800,"d":"73,800.00"}]
[126,"Bearing heater","Tools","Batch Plant Workshop","380 Vac, power 12.8kW, Max dia of work piece 560mm & Max width of work piece 210mm, Max Temp 240/400 deg C. Include induction yokes 23, 30, 40, 50, 60 and 70mm",null,"No",2,{"v":36900,"d":"36,900.00"},{"v":73800,"d":"73,800.00"}]
[127,"Bearing heater","Tools","Batch Plant Workshop","240 Vdc Bearing size inner dia 20 - 100mm, width 50mm Temp control 0 -200 deg C",null,"No",1,{"v":36900,"d":"36,900.00"},{"v":36900,"d":"36,900.00"}]
[128,"Bearing puller sets Large","Tools","Section 42 Workshop","240 Vdc Bearing size inner dia 20 - 100mm, width 50mm Temp control 0 -200 deg C",null,"No",2,{"v":8200,"d":"8,200.00"},{"v":16400,"d":"16,400.00"}]
[129,"Bearing puller sets Large","Tools","ERI Turbo Gen Services (TGS) Workshop 5","240 Vdc Bearing size inner dia 20 - 100mm, width 50mm Temp control 0 -200 deg C","GEDORE","No",2,{"v":7800.5,"d":"7,800.50"},{"$f":"I139*H139","v":{"v":15601,"d":"15,601.00"}}]
[130,"Bearing puller sets Large","Tools","Batch Plant Workshop","240 Vdc Bearing size inner dia 20 - 100mm, width 50mm Temp control 0 -200 deg C",null,"No",1,{"v":8200,"d":"8,200.00"},{"v":8200,"d":"8,200.00"}]
[131,"Bearing puller sets Medium","Tools","Section 42 Workshop","40 - 220mm, BEARING PULLER,3 LEGGES,TMMP30-230,40 TO 230MM",null,"No",2,{"v":4500,"d":"4,500.00"},{"v":9000,"d":"9,000.00"}]
[132,"Bearing puller sets Medium","Tools","ERI Turbo Gen Services (TGS) Workshop 6","40 - 220mm, BEARING PULLER,3 LEGGES,TMMP30-230,40 TO 230MM","GEDORE","No",2,{"v":3777.77,"d":"3,777.77"},{"v":7555.54,"d":"7,555.54"}]
[133,"Bearing puller sets Medium","Tools","Batch Plant Workshop","40 - 220mm, BEARING PULLER,3 LEGGES,TMMP30-230,40 TO 230MM",null,"No",1,{"v":4500,"d":"4,500.00"},{"v":4500,"d":"4,500.00"}]
[134,"Bearing puller Small","Tools","Batch Plant Workshop","24 - 100mm","SFK","No",4,{"v":1120,"d":"1,120.00"},{"v":4480,"d":"4,480.00"}]
[135,"Bearing puller Small","Tools","Section 42 Workshop","24 - 100mm, BEARING PULLER,2 LEGGED,TMMP2-170,25 TO 170MM",null,"No",2,{"v":1120,"d":"1,120.00"},{"v":2240,"d":"2,240.00"}]
[136,"Bearing puller Small","Tools","ERI Turbo Gen Services (TGS) Workshop 7","24 - 100mm, BEARING PULLER,2 LEGGED,TMMP2-170,25 TO 170MM",null,"No",2,{"v":1120,"d":"1,120.00"},{"v":2240,"d":"2,240.00"}]
[137,"Bearing puller Small","Tools","Batch Plant Workshop","24 - 100mm, BEARING PULLER,2 LEGGED,TMMP2-170,25 TO 170MM",null,"No",1,{"v":1120,"d":"1,120.00"},{"v":1120,"d":"1,120.00"}]
[138,"Bench Vice","Tools","Section 18 Auxiliary Bay Unit 1","Jaw width 150mm, Opening 175mm",null,"Installation Required",2,{"v":2006,"d":"2,006.00"},{"v":4012,"d":"4,012.00"}]
[139,"Bench Vice","Tools","Section 42 Workshop","Jaw width 150mm, Opening 175mm, VICE,ENGINEERSV BENCH,ALL STEEL,EV150,JAW WIDTH 150MM,OPENING 190MM",null,"Installation Required",12,{"v":2006,"d":"2,006.00"},{"v":24072,"d":"24,072.00"}]
[140,"Bench Vice","Tools","ERI Turbo Gen Services (TGS) Workshop 5","Jaw width 150mm, Opening 175mm, VICE,ENGINEERSV BENCH,ALL STEEL,EV150,JAW WIDTH 150MM,OPENING 190MM",null,"Installation Required",6,{"v":2006,"d":"2,006.00"},{"v":12036,"d":"12,036.00"}]
[141,"Bench Vice","Tools","ERI Turbo Gen Services (TGS) Workshop 8","Jaw width 150mm, Opening 175mm, VICE,ENGINEERSV BENCH,ALL STEEL,EV150,JAW WIDTH 150MM,OPENING 190MM",null,"Required",4,{"v":2006,"d":"2,006.00"},{"v":8024,"d":"8,024.00"}]
[142,"Bench Vice","Tools","Section 42 Workshop","Jaw width 150mm, Opening 175mm, VICE,ENGINEERSV BENCH,ALL STEEL,EV150,JAW WIDTH 150MM,OPENING 190MM",null,null,4,{"v":2006,"d":"2,006.00"},{"v":8024,"d":"8,024.00"}]
[143,"Bench Vice","Tools","Section 42 Workshop","Jaw width 150mm, Opening 175mm, VICE,ENGINEERSV BENCH,ALL STEEL,EV150,JAW WIDTH 150MM,OPENING 190MM",null,null,2,{"v":2006,"d":"2,006.00"},{"v":4012,"d":"4,012.00"}]
[144,"Bench Vice","Tools","Mill Maintenance Workshop","Jaw width 150mm, Opening 175mm, VICE,ENGINEERSV BENCH,ALL STEEL,EV150,JAW WIDTH 150MM,OPENING 190MM",null,"No",4,{"v":2006,"d":"2,006.00"},{"v":8024,"d":"8,024.00"}]
[145,"Bench Vice","Tools","Welding Workshop","Jaw width 150mm, Opening 175mm, VICE,ENGINEERSV BENCH,ALL STEEL,EV150,JAW WIDTH 150MM,OPENING 190MM",null,"Required",8,{"v":2006,"d":"2,006.00"},{"v":16048,"d":"16,048.00"}]
[146,"Bolt cutter.","Tools","Batch Plant Workshop","30\" Overall Length Capacity for high-tensile steel bolts, and chain","RACO/ L-STONE","No",3,{"v":448,"d":"448.00"},{"v":1344,"d":"1,344.00"}]
[147,"Bolt cutter.","Tools","Section 42 Workshop","30\" Overall Length Capacity for high-tensile steel bolts, and chain",null,"No",1,{"v":1250,"d":"1,250.00"},{"v":1250,"d":"1,250.00"}]
[148,"Bolt cutter.","Tools","ERI Turbo Gen Services (TGS) Workshop 7","30\" Overall Length Capacity for high-tensile steel bolts, and chain",null,"No",1,{"v":1250,"d":"1,250.00"},{"v":1250,"d":"1,250.00"}]
[149,"Bolt cutter.","Tools","ERI Turbo Gen Services (TGS) Workshop 9","30\" Overall Length Capacity for high-tensile steel bolts, and chain",null,"No",1,{"v":1250,"d":"1,250.00"},{"v":1250,"d":"1,250.00"}]
[150,"Bolt cutter.","Tools","Section 42 Workshop","30\" Overall Length Capacity for high-tensile steel bolts, and chain",null,"No",1,{"v":1250,"d":"1,250.00"},{"v":1250,"d":"1,250.00"}]
[151,"Bolt cutter.","Tools","Mill Maintenance Workshop","30\" Overall Length Capacity for high-tensile steel bolts, and chain",null,"No",1,{"v":1250,"d":"1,250.00"},{"v":1250,"d":"1,250.00"}]
[152,"Bolt cutter.","Tools","Batch Plant Workshop","30\" Overall Length Capacity for high-tensile steel bolts, and chain",null,"No",1,{"v":1250,"d":"1,250.00"},{"v":1250,"d":"1,250.00"}]
[153,"bore micrometer set 25 - 600mm","Tools","Section 42 Workshop",null,"Mitutoyo","No",4,{"$f":"1140/1.15","v":{"v":991.304347826087,"d":"991.30"}},{"v":3965.217391304348,"d":"3,965.22"}]
[154,"bore micrometer set 25 - 600mm","Tools","Batch Plant Workshop",null,"Mitutoyo","No",2,{"$f":"1140/1.15","v":{"v":991.304347826087,"d":"991.30"}},{"v":1982.608695652174,"d":"1,982.61"}]
[155,"borescope","Tools","Section 42 Workshop","Capture JPEG images or AVI video to memory card\n17mm diameter camera with 704 x 576 pixels (PAL)\nDetachable wireless 3.5\" TFT colour display\nCamera head and tube is IP67 water-proof\nFocus distance up to 250mm\n50 degree viewing angle\n2 adjustable bright LED's \nLED lighting capability up to 1.5m\n1m flex and stay gooseneck (extendable)\nHook, magnet and mirror attachments\nMust c/w case, mini camera on 1m tube, attachments, hand grip, LCD monitor, USB cable, video out cable, 2GB SD card, charger, batteries and operating manual",null,"No",1,{"v":4557.9,"d":"4,557.90"},{"v":4557.9,"d":"4,557.90"}]
[156,"borescope","Tools","Batch Plant Workshop","Capture JPEG images or AVI video to memory card\n17mm diameter camera with 704 x 576 pixels (PAL)\nDetachable wireless 3.5\" TFT colour display\nCamera head and tube is IP67 water-proof\nFocus distance up to 250mm\n50 degree viewing angle\n2 adjustable bright LED's \nLED lighting capability up to 1.5m\n1m flex and stay gooseneck (extendable)\nHook, magnet and mirror attachments\nMust c/w case, mini camera on 1m tube, attachments, hand grip, LCD monitor, USB cable, video out cable, 2GB SD card, charger, batteries and operating manual",null,"No",1,{"v":4557.9,"d":"4,557.90"},{"v":4557.9,"d":"4,557.90"}]
[157,"Bow Shackle","Tools","Section 42 Workshop","500 kg",null,"No",4,{"v":6.5,"d":"6.50"},{"v":26,"d":"26.00"}]
[158,"Bow Shackle","Tools","Section 42 Workshop","1 Ton",null,"No",10,{"v":9.8,"d":"9.80"},{"v":98,"d":"98.00"}]
[159,"Bow Shackle","Tools","Section 42 Workshop","1.5 Ton",null,"No",10,{"v":11,"d":"11.00"},{"v":110,"d":"110.00"}]
[160,"Bow Shackle","Tools","Section 42 Workshop","2 Ton",null,"No",10,{"v":14,"d":"14.00"},{"v":140,"d":"140.00"}]
[161,"Bow Shackle","Tools","Section 42 Workshop","3.25 Ton",null,"No",10,{"v":25,"d":"25.00"},{"v":250,"d":"250.00"}]
[162,"Bow Shackle","Tools","Section 42 Workshop","4.75 Ton",null,"No",10,{"v":36,"d":"36.00"},{"v":360,"d":"360.00"}]
[163,"Bow Shackle","Tools","Section 42 Workshop","6,5 Ton",null,"No",2,{"v":53,"d":"53.00"},{"v":106,"d":"106.00"}]
[164,"Bow Shackle","Tools","Section 42 Workshop","6.5 Ton",null,"No",10,{"v":53,"d":"53.00"},{"v":530,"d":"530.00"}]
[165,"Bow Shackle","Tools","Section 42 Workshop","6.5 Ton",null,"No",2,{"v":53,"d":"53.00"},{"v":106,"d":"106.00"}]
[166,"Bow Shackle","Tools","Section 42 Workshop","6.5 Ton",null,"No",2,{"v":53,"d":"53.00"},{"v":106,"d":"106.00"}]
[167,"Bow Shackle","Tools","Section 42 Workshop","9.5 Ton",null,"No",10,{"v":120,"d":"120.00"},{"v":1200,"d":"1,200.00"}]
[168,"Bow Shackle","Tools","Section 42 Workshop","12.5 Ton",null,"No",8,{"v":160,"d":"160.00"},{"v":1280,"d":"1,280.00"}]
[169,"Bow Shackle","Tools","Section 42 Workshop","17 Ton",null,"No",8,{"v":295,"d":"295.00"},{"v":2360,"d":"2,360.00"}]
[170,"Bow Shackle","Tools","Section 42 Workshop","25 Ton",null,"No",10,{"v":510,"d":"510.00"},{"v":5100,"d":"5,100.00"}]
[171,"Bow Shackle","Tools","Section 42 Workshop","35 Ton",null,"No",4,{"v":1020,"d":"1,020.00"},{"v":4080,"d":"4,080.00"}]
[172,"Bow Shackle","Tools","Section 42 Workshop","55 Ton",null,"No",6,{"v":2450,"d":"2,450.00"},{"v":14700,"d":"14,700.00"}]
[173,"Bow Shackle","Tools","Section 42 Workshop","85 Ton",null,"No",8,{"v":6020,"d":"6,020.00"},{"v":48160,"d":"48,160.00"}]
[174,"Bow Shackle","Tools","Batch Plant Workshop","500 kg",null,"No",4,{"v":6.5,"d":"6.50"},{"v":26,"d":"26.00"}]
[175,"Bow Shackle","Tools","Batch Plant Workshop","1 Ton",null,"No",10,{"v":9.8,"d":"9.80"},{"v":98,"d":"98.00"}]
[176,"Bow Shackle","Tools","Batch Plant Workshop","1.5 Ton",null,"No",10,{"v":11,"d":"11.00"},{"v":110,"d":"110.00"}]
[177,"Bow Shackle","Tools","Batch Plant Workshop","2 Ton",null,"No",10,{"v":14,"d":"14.00"},{"v":140,"d":"140.00"}]
[178,"Bow Shackle","Tools","Batch Plant Workshop","3.25 Ton",null,"No",10,{"v":25,"d":"25.00"},{"v":250,"d":"250.00"}]
[179,"Bow Shackle","Tools","Batch Plant Workshop","4.75 Ton",null,"No",10,{"v":36,"d":"36.00"},{"v":360,"d":"360.00"}]
[180,"Bow Shackle","Tools","Batch Plant Workshop","6,3 Ton",null,"No",2,{"v":53,"d":"53.00"},{"v":106,"d":"106.00"}]
[181,"Bow Shackle","Tools","Batch Plant Workshop","6.5 Ton",null,"No",10,{"v":53,"d":"53.00"},{"v":530,"d":"530.00"}]
[182,"Bow Shackle","Tools","Batch Plant Workshop","6.5 Ton",null,"No",2,{"v":53,"d":"53.00"},{"v":106,"d":"106.00"}]
[183,"Bow Shackle","Tools","Batch Plant Workshop","6.5 Ton",null,"No",2,{"v":53,"d":"53.00"},{"v":106,"d":"106.00"}]
[184,"Bow Shackle","Tools","Batch Plant Workshop","9.5 Ton",null,"No",10,{"v":120,"d":"120.00"},{"v":1200,"d":"1,200.00"}]
[185,"Bow Shackle","Tools","Batch Plant Workshop","12.5 Ton",null,"No",4,{"v":160,"d":"160.00"},{"v":640,"d":"640.00"}]
[186,"Bow Shackle","Tools","Batch Plant Workshop","17 Ton",null,"No",8,{"v":295,"d":"295.00"},{"v":2360,"d":"2,360.00"}]
[187,"Bow Shackle","Tools","Batch Plant Workshop","25 Ton",null,"No",14,{"v":510,"d":"510.00"},{"v":7140,"d":"7,140.00"}]
[188,"Bow Shackle","Tools","Batch Plant Workshop","35 Ton",null,"No",4,{"v":1020,"d":"1,020.00"},{"v":4080,"d":"4,080.00"}]
[189,"Bow Shackle","Tools","Batch Plant Workshop","55 Ton",null,"No",12,{"v":2450,"d":"2,450.00"},{"v":29400,"d":"29,400.00"}]
[190,"Bow Shackle","Tools","Batch Plant Workshop","85 Ton",null,"No",8,{"v":6020,"d":"6,020.00"},{"v":48160,"d":"48,160.00"}]
[191,"Cable Cutter large","Tools","Batch Plant Workshop","Armoured Cable Ratchet Cable Cutter - 58mm O.D. Compact ratchet cable cutter, designed to cut 3 by 120mm2 armoured cable maximum.  Typical maximum O.D. of cable that the tool will cut is 58mm.  It will easily cut normal copper or aluminium cable.  The hand","HELLERMANN TYTON","No",3,{"v":4709,"d":"4,709.00"},{"v":14127,"d":"14,127.00"}]
[192,"Cable Cutter medium","Tools","Batch Plant Workshop","Large cable cutter for annealed copper and aluminium conductors up to 500mm2.  ‘Parrot beak’ blades. Length: 805mm,  Weight: 2.8kg","HELLERMANN TYTON","No",5,{"v":2259,"d":"2,259.00"},{"v":11295,"d":"11,295.00"}]
[193,"Cable Cutter small","Tools","Batch Plant Workshop","Ratchet operated cable cutter.  Compact cutter for cutting annealed copper and aluminium conductors up to 300mm2 (maximum 32mm outside diameter.) Small size enables cutting in tight spots.  Ratchet reduces hand effort. Length: 260mm.  Weight: 680g",null,"No",6,{"v":1565,"d":"1,565.00"},{"$f":"I203*H203","v":{"v":9390,"d":"9,390.00"}}]
[194,"Calibration and test unit with linear adaptor","Tools","Section 42 Workshop","Test bench for torque testing of valve and damper actuators",null,"No",1,{"$f":"26890/1.15","v":{"v":23382.608695652176,"d":"23,382.61"}},{"v":23382.608695652176,"d":"23,382.61"}]
[195,"centre drills -1","Tools","Section 42 Workshop","Drill Dia: 1.191 mm",null,"No",6,{"$f":"60.66/1.15","v":{"v":52.74782608695652,"d":"52.75"}},{"v":316.4869565217391,"d":"316.49"}]
[196,"centre drills -2","Tools","Section 42 Workshop","Drill Dia: 1.984 mm",null,"No",6,{"$f":"60.66/1.15","v":{"v":52.74782608695652,"d":"52.75"}},{"v":316.4869565217391,"d":"316.49"}]
[197,"centre drills -3","Tools","Section 42 Workshop","Drill Dia: 2.778 mm",null,"No",6,{"$f":"83.35/1.15","v":{"v":72.47826086956522,"d":"72.48"}},{"v":434.8695652173913,"d":"434.87"}]
[198,"centre drills -4","Tools","Section 42 Workshop","Drill Dia: 3.175 mm",null,"No",6,{"v":31.5,"d":"31.50"},{"v":189,"d":"189.00"}]
[199,"centre drills -5","Tools","Section 42 Workshop","Drill Dia: 4.763 mm",null,"No",6,{"$f":"121/1.15","v":{"v":105.21739130434783,"d":"105.22"}},{"v":631.304347826087,"d":"631.30"}]
[200,"centre drills -6","Tools","Section 42 Workshop","Drill Dia: 5.556 mm",null,"No",6,{"$f":"121/1.15","v":{"v":105.21739130434783,"d":"105.22"}},{"v":631.304347826087,"d":"631.30"}]
[201,"Chain Block","Tools","Section 42 Workshop","500kg",null,"No",5,{"v":2212,"d":"2,212.00"},{"v":11060,"d":"11,060.00"}]
[202,"Chain Block","Tools","Section 42 Workshop","1 Ton",null,"No",5,{"v":2415,"d":"2,415.00"},{"v":12075,"d":"12,075.00"}]
[203,"Chain Block","Tools","Section 42 Workshop","2 Ton",null,"No",10,{"v":4335,"d":"4,335.00"},{"v":43350,"d":"43,350.00"}]
[204,"Chain Block","Tools","Section 42 Workshop","3 Ton",null,"No",10,{"v":5351,"d":"5,351.00"},{"v":53510,"d":"53,510.00"}]
[205,"Chain Block","Tools","Section 42 Workshop","5 Ton",null,"No",5,{"v":8385,"d":"8,385.00"},{"v":41925,"d":"41,925.00"}]
[206,"Chain Block","Tools","Batch Plant Workshop","500kg",null,"No",5,{"v":2212,"d":"2,212.00"},{"v":11060,"d":"11,060.00"}]
[207,"Chain Block","Tools","Batch Plant Workshop","1 Ton",null,"No",5,{"v":2415,"d":"2,415.00"},{"v":12075,"d":"12,075.00"}]
[208,"Chain Block","Tools","Batch Plant Workshop","2 Ton",null,"No",10,{"v":4335,"d":"4,335.00"},{"v":43350,"d":"43,350.00"}]
[209,"Chain Block","Tools","Batch Plant Workshop","3 Ton",null,"No",10,{"v":5351,"d":"5,351.00"},{"v":53510,"d":"53,510.00"}]
[210,"Chain Block","Tools","Batch Plant Workshop","5 Ton",null,"No",10,{"v":8385,"d":"8,385.00"},{"v":83850,"d":"83,850.00"}]
[211,"Circlip Plier set - inside bend","Tools","Batch Plant Workshop","With bent tips Size 140mm/5.1/2\", Capacity 12-25mm, Size 180mm/7\" Capacity 19-60mm, ","HELLERMANN TYTON","No",12,106.43,{"v":1277.16,"d":"1,277.16"}]
[212,"Circlip Plier set - inside bend","Tools","Section 42 Workshop","With bent tips Size 140mm/5.1/2\", Capacity 12-25mm, Size 180mm/7\" Capacity 19-60mm, ","GEDORE","No",3,{"v":564.6,"d":"564.60"},{"v":1693.8000000000002,"d":"1,693.80"}]
[213,"Circlip Plier set - inside bend","Tools","Batch Plant Workshop","With bent tips Size 140mm/5.1/2\", Capacity 12-25mm, Size 180mm/7\" Capacity 19-60mm, ","GEDORE","No",3,{"$f":"I221","v":106.43},319.29]
[214,"Circlip Pliers set - inside straight","Tools","Batch Plant Workshop","With straight, accurately ground tips, Size 140mm/5.1/2\", Capacity 12-25mm, Size 180mm/7\", Capacity 19-60mm, Size 220mm/8.1/4\", Capacity 40-100mm and Size 300mm/12\", Capacity 85-140mm.","HELLERMANN TYTON","No",12,{"v":95,"d":"95.00"},{"v":1140,"d":"1,140.00"}]
[215,"Circlip Pliers set - inside straight","Tools","Section 42 Workshop","With straight, accurately ground tips, Size 140mm/5.1/2\", Capacity 12-25mm, Size 180mm/7\", Capacity 19-60mm, Size 220mm/8.1/4\", Capacity 40-100mm and Size 300mm/12\", Capacity 85-140mm.","GEDORE","No",3,{"v":237,"d":"237.00"},{"v":711,"d":"711.00"}]
[216,"Circlip Pliers set - inside straight","Tools","Batch Plant Workshop","With straight, accurately ground tips, Size 140mm/5.1/2\", Capacity 12-25mm, Size 180mm/7\", Capacity 19-60mm, Size 220mm/8.1/4\", Capacity 40-100mm and Size 300mm/12\", Capacity 85-140mm.","GEDORE","No",3,{"v":237,"d":"237.00"},{"v":711,"d":"711.00"}]
[217,"Circlip Pliers set - outside bend","Tools","Section 42 Workshop","Straight points with leaf springs,  Size 140mm/5.1/2\", Capacity 12-25mm, Size 180mm/7\", Capacity 19-60mm, Size 220mm/8.1/4\", Capacity 40-100mm and Size 300mm/12\", Capacity 85-140mm.","GEDORE","No",12,{"v":750.4,"d":"750.40"},{"v":9004.8,"d":"9,004.80"}]
[218,"Circlip Pliers set - outside ","Tools","Section 42 Workshop","Straight points with leaf springs,  Size 140mm/5.1/2\", Capacity 12-25mm, Size 180mm/7\", Capacity 19-60mm, Size 220mm/8.1/4\", Capacity 40-100mm and Size 300mm/12\", Capacity 85-140mm.","GEDORE",null,3,{"v":750.4,"d":"750.40"},{"v":2251.2,"d":"2,251.20"}]
[219,"Circlip Pliers set - outside","Tools","Batch Plant Workshop","Straight points with leaf springs,  Size 140mm/5.1/2\", Capacity 12-25mm, Size 180mm/7\", Capacity 19-60mm, Size 220mm/8.1/4\", Capacity 40-100mm and Size 300mm/12\", Capacity 85-140mm.","GEDORE","No",3,{"v":750.4,"d":"750.40"},{"v":2251.2,"d":"2,251.20"}]
[220,"Circlip Pliers set - outside bend","Tools","Batch Plant Workshop","Leaf springs and bent tips , Size 140mm/5.1/2\", Capacity 10-25mm, Size 180mm/7\", Capacity 19-60mm","GEDORE","No",12,{"v":750.4,"d":"750.40"},{"v":9004.8,"d":"9,004.80"}]
[221,"Circlip Pliers set - outside bend","Tools","Section 42 Workshop","Leaf springs and bent tips , Size 140mm/5.1/2\", Capacity 10-25mm, Size 180mm/7\", Capacity 19-60mm","GEDORE",null,3,{"v":750.4,"d":"750.40"},{"v":2251.2,"d":"2,251.20"}]
[222,"Circlip Pliers set - outside bend","Tools","Batch Plant Workshop","Leaf springs and bent tips , Size 140mm/5.1/2\", Capacity 10-25mm, Size 180mm/7\", Capacity 19-60mm","GEDORE","No",3,{"v":750.4,"d":"750.40"},{"v":2251.2,"d":"2,251.20"}]
[223,"Clamp on  tester","Tools","16 M Level Workshop","0 - 600 Amp, 0 - 1000 V ,Detachable screen ,Jaw Opening 42mm","FLUKE","No",2,{"v":5239,"d":"5,239.00"},{"v":10478,"d":"10,478.00"}]
[224,"Clamp on  tester","Tools","Section 19 Auxiliary Bay Unit 2","0 - 600 Amp, 0-1000V detatchable,Jaw Opening 42mm","FLUKE","No",4,{"v":5239,"d":"5,239.00"},{"v":20956,"d":"20,956.00"}]
[225,"Clamp on  tester","Tools","Section 42: Workshop and Stores building","0 - 600 Amp, 0-1000V detatchable,Jaw Opening 42mm","FLUKE","No",4,{"v":5239,"d":"5,239.00"},{"v":20956,"d":"20,956.00"}]
[226,"Clamp on  tester","Tools","Batch Plant Workshop","0 - 600 Amp, 0-1000V detatchable,Jaw Opening 42mm","FLUKE","No",3,{"v":5239,"d":"5,239.00"},{"v":15717,"d":"15,717.00"}]
[227,"Clamp ready v-blocks in pairs","Tools","Section 42 Workshop",{"$nulls":3},6,{"$f":"1250","v":{"v":1250,"d":"1,250.00"}},{"v":7500,"d":"7,500.00"}]
[228,"Clamp ready v-blocks in pairs","Tools","Batch Plant Workshop",null,null,"No",0,{"$f":"1250","v":{"v":1250,"d":"1,250.00"}},0]
[229,"Club hammer 14lb","Tools","Section 42 Workshop","Forged head DIN 6475\nNearly unbreakable fibreglass handle\nwith plastic grip and secured head","GEDORE","No",4,{"$f":"289/1.15","v":{"v":251.30434782608697,"d":"251.30"}},{"v":1005.2173913043479,"d":"1,005.22"}]
[230,"Club hammer 14lb","Tools","Batch Plant Workshop","Forged head DIN 6475\nNearly unbreakable fibreglass handle\nwith plastic grip and secured head","GEDORE","No",2,{"$f":"289/1.15","v":{"v":251.30434782608697,"d":"251.30"}},{"v":502.60869565217394,"d":"502.61"}]
[231,"Club hammer 4lb","Tools","Section 42 Workshop","Forged head DIN 6475\nNearly unbreakable fibreglass handle\nwith plastic grip and secured head","GEDORE","No",3,{"v":251.30434782608697,"d":"251.30"},{"v":753.9130434782609,"d":"753.91"}]
[232,"Club hammer 4lb","Tools","Batch Plant Workshop","Forged head DIN 6475\nNearly unbreakable fibreglass handle\nwith plastic grip and secured head","GEDORE","No",3,{"v":251.30434782608697,"d":"251.30"},{"v":753.9130434782609,"d":"753.91"}]
[233,"Combination fin comb",null,"Batch Plant Workshop","SUPERCOMB FIN COMB SET OF 6 (Fin Straightening Comb Set Of 6)","Off the shelf ","No",12,{"v":340,"d":"340.00"},{"v":4080,"d":"4,080.00"}]
[234,"Combination Plier set","Tools","Batch Plant Workshop","For heavy, continuous use. Good lever action for easy cutting. Induction-hardened precision cutting edges, hardness approx. 64HRC. To cut wire types, incl. piono wire. DIN ISO 5746","GEDORE","No",15,{"v":1500,"d":"1,500.00"},{"v":22500,"d":"22,500.00"}]
[235,"combination set with 300mm rule","Tools","Section 42 Workshop","C/W fixed angles of 45° and 90° \nBuilt-in spirit level and adjusting nut. ",null,"No",2,{"v":230,"d":"230.00"},{"v":460,"d":"460.00"}]
[236,"combination set with 300mm rule","Tools","Batch Plant Workshop","C/W fixed angles of 45° and 90° \nBuilt-in spirit level and adjusting nut. ",null,"No",2,{"v":230,"d":"230.00"},{"v":460,"d":"460.00"}]
[237,"Combination spanner set  size 6-5 - 32","Tools","Batch Plant Workshop","Chrome Vanadium steel - 31CrV3. Chrome plated, polished rings. Rings - thin walled with deep offset, UD profile. Same on each end. Sizes 5mm - 32 mm","GEDORE","No",12,{"v":3317,"d":"3,317.00"},{"v":39804,"d":"39,804.00"}]
[238,"combination spanners Set 36 - 50mm","Tools","Section 42 Workshop","With same size each end\nvanadium steel 31CrV3\nHot forged\nJaw exactly ground to spanner size\nMade Acc. to DIN 837 Form B, ISO 3318, ISO 1085","GEDORE","No",4,{"v":6667.89,"d":"6,667.89"},{"v":26671.56,"d":"26,671.56"}]
[239,"combination spanners Set 36 - 50mm","Tools","Batch Plant Workshop","With same size each end\nvanadium steel 31CrV3\nHot forged\nJaw exactly ground to spanner size\nMade Acc. to DIN 837 Form B, ISO 3318, ISO 1085","GEDORE","No",4,{"v":6667.89,"d":"6,667.89"},{"v":26671.56,"d":"26,671.56"}]
[240,"Comparator","Tools","Section 18 Auxiliary Bay Unit 1","700 Bar max,  1,8 m safety hose, with gauge adaptor  and fitting set (18 fittings) or Tek Know PC705 Pressure Calibrator. Range 0 - 700 Bar (Preferred Option)",null,null,2,{"v":32300,"d":"32,300.00"},{"v":64600,"d":"64,600.00"}]
[241,"Comparator ","Tools","Section 18 Auxiliary Bay Unit 1","P5515 Hydraulic Pressure Comparator",null,"litres",5,{"v":32300,"d":"32,300.00"},{"v":161500,"d":"161,500.00"}]
[242,"Copper hammer","Tools","Batch Plant Workshop","5lb Copper Hammer, 2\" face, 14\" Super grip Fiberglass handle.","THOR","No",6,{"v":1504,"d":"1,504.00"},{"v":9024,"d":"9,024.00"}]
[243,"Cordless drill with carry case","Tools","Batch Plant Workshop","13mm chuck, variable speed, keyless chuck, 18V ","Off the shelf ","No",6,{"v":5220,"d":"5,220.00"},{"v":31320,"d":"31,320.00"}]
[244,"Cordless drill with carry case","Tools","Section 42 Workshop","13mm chuck, variable speed, keyless chuck, 18V ",null,"No",2,{"v":5220,"d":"5,220.00"},{"v":10440,"d":"10,440.00"}]
[245,"Cordless drill with carry case","Tools","Batch Plant Workshop","13mm chuck, variable speed, keyless chuck, 18V ",null,"No",2,{"v":5220,"d":"5,220.00"},{"v":10440,"d":"10,440.00"}]
[246,"Crimper - Die-less Bootlace Ferrule Crimper, 4 - 16mm2","Tools","Batch Plant Workshop","Bootlace Ferrule sizes, 4 - 16mm2 with ratchet control","HELLERMANN  TYTON","No",10,{"v":482,"d":"482.00"},{"v":4820,"d":"4,820.00"}]
[247,"Crimper - Die-less Bootlace Ferrule Crimper,, 16 - 35mm2","Tools","Batch Plant Workshop","Bootlace Ferrule sizes, 16 - 35mm2 with ratchet control","HELLERMANN  TYTON","No",10,{"v":1790,"d":"1,790.00"},{"v":17900,"d":"17,900.00"}]
[248,"Crimper for pre-insulated terminals","Tools","Batch Plant Workshop","High precision ratchet style crimping tool for red, blue and yellow pre-insulated terminals. • Super high leverage ergonomic handles, • Jaws are hardened and polished to achieve optimum crimp, • Ratchet operation ensures correct crimp and reduced hand eff","HELLERMANN  TYTON","No",10,{"v":340,"d":"340.00"},{"v":3400,"d":"3,400.00"}]
[249,"Crimper for un-isolated lugs Heavy duty","Tools","Batch Plant Workshop","Robust ratchet crimper for copper lugs and un-insulated terminals 1.5 - 16mm2.  A ratchet operation ensures a correct crimp","HELLERMANN  TYTON","No",4,{"v":340,"d":"340.00"},{"v":1360,"d":"1,360.00"}]
[250,"Crimper, Copper Lugs  6 - 120mm2 ",null,"Batch Plant Workshop","Copper Lugs  6 - 120mm2. Hexagonal copper lug crimper with crimp range 6 - 120mm2.  Dies are self- contained and rotating, so they cannot be misplaced.  Tool has over-centre action to ensure complete crimp.","HELLERMANN  TYTON","No",4,{"v":1790,"d":"1,790.00"},{"v":7160,"d":"7,160.00"}]
[251,"Crimper, Copper Lugs  6 - 120mm2 ","Tools","Section 18 Auxiliary Bay Unit 1","Copper Lugs  6 - 120mm2. Hexagonal copper lug crimper with crimp range 6 - 120mm2.  Dies are self- contained and rotating, so they cannot be misplaced.  Tool has over-centre action to ensure complete crimp.","HELLERMAN","No",2,{"v":1790,"d":"1,790.00"},{"v":3580,"d":"3,580.00"}]
[252,"Crow / tommey bars - diff sizes","Tools","Batch Plant Workshop","Tommy bar - 450x19mm, 600x19mm & 600x24mm. Pry bar 600mm","GEDORE","No",4,{"$f":"(130+165+165+546)/1.15","v":{"v":874.7826086956522,"d":"874.78"}},{"v":3499.130434782609,"d":"3,499.13"}]
[253,"Crow / tommey bars - diff sizes","Tools","Section 42 Workshop","Tommy bar - 450x19mm, 600x19mm & 600x24mm. Pry bar 600mm","GEDORE","No",4,{"$f":"325+464+585","v":{"v":1374,"d":"1,374.00"}},{"v":5496,"d":"5,496.00"}]
[254,"Crow / tommey bars - diff sizes","Tools","ERI Turbo Gen Services (TGS) Workshop 8","Tommy bar - 450x19mm, 600x19mm & 600x24mm. Pry bar 600mm","GEDORE","No",2,{"$f":"140+220+300+200","v":{"v":860,"d":"860.00"}},{"v":1720,"d":"1,720.00"}]
[255,"Crow / tommey bars - diff sizes","Tools","Section 42 Workshop","Tommy bar - 450x19mm, 600x19mm & 600x24mm. Pry bar 600mm",null,"No",2,{"v":860,"d":"860.00"},{"v":1720,"d":"1,720.00"}]
[256,"Crow / tommey bars - diff sizes","Tools","Mill Maintenance Workshop","Tommy bar - 450x19mm, 600x19mm & 600x24mm. Pry bar 600mm","GEDORE","No",2,{"v":860,"d":"860.00"},{"v":1720,"d":"1,720.00"}]
[257,"Crow / tommey bars - diff sizes","Tools","Welding Workshop","Tommy bar - 450x19mm, 600x19mm & 600x24mm. Pry bar 600mm",null,"No",2,{"v":860,"d":"860.00"},{"$f":"I267*H267","v":{"v":1720,"d":"1,720.00"}}]
[258,"Crow / tommey bars - diff sizes","Tools","Batch Plant Workshop","Tommy bar - 450x19mm, 600x19mm & 600x24mm. Pry bar 600mm","GEDORE","No",4,{"$f":"325+464+585","v":{"v":1374,"d":"1,374.00"}},{"v":5496,"d":"5,496.00"}]
[259,"Current Source ","Tools ","Section 18 Auxiliary Bay Unit 1","370 series clamp meter","FLUKE","No",2,{"$f":"8980/1.15","v":{"v":7808.695652173914,"d":"7,808.70"}},{"v":15617.391304347828,"d":"15,617.39"}]
[260,"double ended scriber 180mm","Tools","Section 42 Workshop",null,null,"No",2,{"v":61.8,"d":"61.80"},{"v":123.6,"d":"123.60"}]
[261,"double ended scriber 180mm","Tools","Batch Plant Workshop",null,null,"No",2,{"v":61.8,"d":"61.80"},{"v":123.6,"d":"123.60"}]
[262,"Drill  800 W 13mm chuck and hammer action","Tools","Batch Plant Workshop","800 W 13mm chuck, variable speed, forward reverse direction. ","Off the shelf ","No",6,{"v":2100,"d":"2,100.00"},{"v":12600,"d":"12,600.00"}]
[263,"Drill, Reversible,  Air with key chuck. Complete set","Tools","Section 42 Workshop","Chuck size 13mm, Speed 800rpm, air pressure 630kPa, Air hose 10mm.",null,"No",1,{"v":2370,"d":"2,370.00"},{"v":2370,"d":"2,370.00"}]
[264,"Drill, Reversible,  Air with key chuck. Complete set","Tools","Batch Plant Workshop","Chuck size 13mm, Speed 800rpm, air pressure 630kPa, Air hose 10mm.",null,"No",1,{"v":2370,"d":"2,370.00"},{"v":2370,"d":"2,370.00"}]
[265,"Drilling Machine Hand - Large","Tools","Batch Plant Workshop","1200 W 20mm chuck, variable speed, forward reverse direction. ","Off the shelf ","No",2,{"v":2725,"d":"2,725.00"},{"v":5450,"d":"5,450.00"}]
[266,"Drilling Machine Hand - Large","Tools","Section 42 Workshop","Drilling machine 1200 W 20mm chuck, variable speed, forward reverse direction, 220v",null,null,2,{"v":2725,"d":"2,725.00"},{"v":5450,"d":"5,450.00"}]
[267,"Drilling Machine Hand - Large","Tools","Mill Maintenance Workshop","Drilling machine 1200 W 20mm chuck, variable speed, forward reverse direction, 220v",null,"No",2,{"v":2725,"d":"2,725.00"},{"v":5450,"d":"5,450.00"}]
[268,"Druk Pressure Calibrator","Tools","Section 18 Auxiliary Bay Unit 1","3. Druck PV411A Multi-Function Pressure Generator:\nMulti-function \"4 In 1\" hand pump.\nPneumatic pressures to 600 psi (40 bar).\nHydraulic pressures to 10,000 psi (700 bar).\nGenerates vacuum to 95%.\nVacuum priming for Hydraulic systems.\nExcellent low pressure Control.\nAdjustable overpressure protection.\nPressure connections: 1/4 in NPT female.\nReservoir connection: 1/4 BSP female.\nDimensions: 10.2 in x 5.3 in x 3.7 in.\nWeight: 2.5 lb\n","FLUKE","No",1,{"$f":"1289*15","v":{"v":19335,"d":"19,335.00"}},{"v":19335,"d":"19,335.00"}]
[269,"Drum lifter chain with  hook","Tools","Section 42 Workshop","300kg\nChain size: 6mm-34mm\n",null,"No",2,{"v":1450,"d":"1,450.00"},{"v":2900,"d":"2,900.00"}]
[270,"Drum lifter chain with  hook","Tools","Batch Plant Workshop","300kg\nChain size: 6mm-34mm\n",null,"No",2,{"v":1450,"d":"1,450.00"},{"v":2900,"d":"2,900.00"}]
[271,"Earth leakage tester","Tools","Section 19 Auxiliary Bay Unit 2","ELCB trip ratings Range - 10mA-15mA-20mA-25mA-30mA-35mA, Basic Accuracy ± 1.75mA at 220V AC",null,"No",4,{"v":300,"d":"300.00"},{"v":1200,"d":"1,200.00"}]
[272,"Earth leakage tester","Tools","Section 42: Workshop and Stores building","ELCB trip ratings Range - 10mA-15mA-20mA-25mA-30mA-35mA, Basic Accuracy ± 1.75mA at 220V AC",null,"No",4,{"v":300,"d":"300.00"},{"v":1200,"d":"1,200.00"}]
[273,"Earth leakage tester","Tools","Batch Plant Workshop","ELCB trip ratings Range - 10mA-15mA-20mA-25mA-30mA-35mA, Basic Accuracy ± 1.75mA at 220V AC",null,"No",4,{"v":300,"d":"300.00"},{"v":1200,"d":"1,200.00"}]
[274,"Earth leakage tester 3 phase.","Tools","Section 19 Auxiliary Bay Unit 2","Indicates Phase Presence, Indicates Phase Rotation, TEST for Disconnection Sensitivity, TEST for Disconnection Time, Select One of 3 Phase to test ELCB, Measure Voltage Phase to Earth, Over Temperature Protection, Phase Polarity Trip Indicator. Tech Spec ",null,"No",4,{"v":11000,"d":"11,000.00"},{"v":44000,"d":"44,000.00"}]
[275,"Earth leakage tester 3 phase.","Tools","Section 42: Workshop and Stores building","Indicates Phase Presence, Indicates Phase Rotation, TEST for Disconnection Sensitivity, TEST for Disconnection Time, Select One of 3 Phase to test ELCB, Measure Voltage Phase to Earth, Over Temperature Protection, Phase Polarity Trip Indicator. Tech Spec ",null,"No",4,{"v":11000,"d":"11,000.00"},{"v":44000,"d":"44,000.00"}]
[276,"Earth leakage tester 3 phase.","Tools","Batch Plant Workshop","Indicates Phase Presence, Indicates Phase Rotation, TEST for Disconnection Sensitivity, TEST for Disconnection Time, Select One of 3 Phase to test ELCB, Measure Voltage Phase to Earth, Over Temperature Protection, Phase Polarity Trip Indicator. Tech Spec ",null,"No",4,{"v":11000,"d":"11,000.00"},{"v":44000,"d":"44,000.00"}]
[277,"easy read dial gauge plunger type","Tools","Section 42 Workshop","Oxford 0.01 x 10mm travel",null,"No",4,685.87,{"v":2743.48,"d":"2,743.48"}]
[278,"easy read dial gauge plunger type","Tools","Batch Plant Workshop","Oxford 0.01 x 10mm travel",null,"No",2,685.87,{"v":1371.74,"d":"1,371.74"}]
[279,"Easy Read Dial test indicator","Tools","Section 42 Workshop","Oxford 0.01 x 0.8mm travel",null,"No",4,685.87,{"v":2743.48,"d":"2,743.48"}]
[280,"Easy Read Dial test indicator","Tools","Batch Plant Workshop","Oxford 0.01 x 0.8mm travel",null,"No",2,685.87,{"v":1371.74,"d":"1,371.74"}]
[281,"economy digital caliper 150mm senator","Tools","Section 42 Workshop",null,"Mitutoyo",null,1,{"$f":"4650/1.15","v":{"v":4043.4782608695655,"d":"4,043.48"}},{"v":4043.4782608695655,"d":"4,043.48"}]
[282,"economy digital caliper 150mm senator","Tools","Batch Plant Workshop",null,"Mitutoyo","No",1,{"$f":"4650/1.15","v":{"v":4043.4782608695655,"d":"4,043.48"}},{"v":4043.4782608695655,"d":"4,043.48"}]
[283,"Electronic Test gauge 0 to 10 MPA","Tools","Section 18 Auxiliary Bay Unit 1","0 to 10 MPA - 4digit resolution or better \"Wika\"","\"Wika\"",null,2,{"v":6165,"d":"6,165.00"},{"v":12330,"d":"12,330.00"}]
[284,"Electronic Test gauge 0 to 1000 kPA","Tools","Section 18 Auxiliary Bay Unit 1"," 0 to 1000 kPA - 4digit resolution or better \"Wika\"","\"Wika\"",null,2,{"v":6165,"d":"6,165.00"},{"v":12330,"d":"12,330.00"}]
[285,"Electronic Test gauge 0 to 20 MPA","Tools","Section 18 Auxiliary Bay Unit 1","0 to 20 MPA - 4digit resolution or better \"Wika\"","\"Wika\"",null,2,{"v":1447.84,"d":"1,447.84"},{"v":2895.68,"d":"2,895.68"}]
[286,"Electronic Test gauge 0 to 250 kPA","Tools","Section 18 Auxiliary Bay Unit 1","0 to 250 kPA - 4digit resolution or better \"Wika\"","\"Wika\"",null,2,{"v":1447.84,"d":"1,447.84"},{"v":2895.68,"d":"2,895.68"}]
[287,"Electronic Test gauge 0 to 40 MPA","Tools","Section 18 Auxiliary Bay Unit 1","0 to 40 MPA - 4digit resolution or better \"Wika\"","\"Wika\"",null,2,{"v":6165,"d":"6,165.00"},{"v":12330,"d":"12,330.00"}]
[288,"Electronic Test gauge 0 to 500 kPA","Tools","Section 18 Auxiliary Bay Unit 1","0 to 500 kPA - 4digit resolution or better \"Wika\"","\"Wika\"",null,2,{"v":1447.84,"d":"1,447.84"},{"v":2895.68,"d":"2,895.68"}]
[289,"Electronic Test gauge 0 to 750 kPA","Tools","Section 18 Auxiliary Bay Unit 1","0 to 750 kPA - 4digit resolution or better \"Wika\"","\"Wika\"",null,2,{"v":1447.84,"d":"1,447.84"},{"v":2895.68,"d":"2,895.68"}]
[290,"Electronic Test gauge -100 to 0 kPA","Tools","Section 18 Auxiliary Bay Unit 1"," -100 to 0 kPA - 4digit resolution or better \"Wika\"","\"Wika\"",null,2,{"v":1447.84,"d":"1,447.84"},{"v":2895.68,"d":"2,895.68"}]
[291,"Endless Round Sling 1.5m","Tools","Section 42 Workshop","5 Ton",null,"No",2,{"v":1450.45,"d":"1,450.45"},{"v":2900.9,"d":"2,900.90"}]
[292,"Endless Round Sling 1.5m","Tools","Batch Plant Workshop","5 Ton",null,"No",2,{"v":1450.45,"d":"1,450.45"},{"v":2900.9,"d":"2,900.90"}]
[293,"Endless Round Sling 1m","Tools","Section 42 Workshop","1 Ton",null,"No",5,26.15,130.75]
[294,"Endless Round Sling 1m","Tools","Batch Plant Workshop","1 Ton",null,"No",5,26.15,130.75]
[295,"Endless Round Sling 2.5m","Tools","Section 42 Workshop","1 Ton",null,"No",5,{"v":48.6,"d":"48.60"},{"v":243,"d":"243.00"}]
[296,"Endless Round Sling 2.5m","Tools","Section 42 Workshop","2 Ton",null,"No",2,{"v":95,"d":"95.00"},{"v":190,"d":"190.00"}]
[297,"Endless Round Sling 2.5m","Tools","Section 42 Workshop","8 Ton",null,"No",2,{"v":445,"d":"445.00"},{"v":890,"d":"890.00"}]
[298,"Endless Round Sling 2.5m","Tools","Section 42 Workshop","20 Ton",null,"No",2,{"v":745,"d":"745.00"},{"v":1490,"d":"1,490.00"}]
[299,"Endless Round Sling 2.5m","Tools","Batch Plant Workshop","1 Ton",null,"No",5,60.75,303.75]
[300,"Endless Round Sling 2.5m","Tools","Batch Plant Workshop","2 Ton",null,"No",2,{"v":95,"d":"95.00"},{"v":190,"d":"190.00"}]
[301,"Endless Round Sling 2.5m","Tools","Batch Plant Workshop","8 Ton",null,"No",2,{"v":445,"d":"445.00"},{"v":890,"d":"890.00"}]
[302,"Endless Round Sling 2.5m","Tools","Batch Plant Workshop","20 Ton",null,"No",2,{"v":745,"d":"745.00"},{"v":1490,"d":"1,490.00"}]
[303,"Endless Round Sling 2m","Tools","Section 42 Workshop","1 Ton",null,"No",5,60.75,303.75]
[304,"Endless Round Sling 2m","Tools","Section 42 Workshop","2 Ton",null,"No",5,{"v":95,"d":"95.00"},{"v":475,"d":"475.00"}]
[305,"Endless Round Sling 2m","Tools","Batch Plant Workshop","1 Ton",null,"No",5,60.75,303.75]
[306,"Endless Round Sling 2m","Tools","Batch Plant Workshop","2 Ton",null,"No",5,{"v":95,"d":"95.00"},{"v":475,"d":"475.00"}]
[307,"Endless Round Sling 3m","Tools","Section 42 Workshop","2 Ton",null,"No",5,{"v":115,"d":"115.00"},{"v":575,"d":"575.00"}]
[308,"Endless Round Sling 3m","Tools","Batch Plant Workshop","2 Ton",null,"No",5,{"v":115,"d":"115.00"},{"v":575,"d":"575.00"}]
[309,"Endless Round Sling 4m","Tools","Section 42 Workshop","2 Ton",null,"No",2,{"v":150,"d":"150.00"},{"v":300,"d":"300.00"}]
[310,"Endless Round Sling 4m","Tools","Section 42 Workshop","8 Ton",null,"No",2,{"v":423,"d":"423.00"},{"v":846,"d":"846.00"}]
[311,"Endless Round Sling 4m","Tools","Batch Plant Workshop","2 Ton",null,"No",2,{"v":150,"d":"150.00"},{"v":300,"d":"300.00"}]
[312,"Endless Round Sling 4m","Tools","Batch Plant Workshop","8 Ton",null,"No",2,{"$f":"I320","v":{"v":423,"d":"423.00"}},{"v":846,"d":"846.00"}]
[313,"Endless Round Sling 500mm","Tools","Section 42 Workshop","1 Ton",null,"No",5,{"v":21.5,"d":"21.50"},{"v":107.5,"d":"107.50"}]
[314,"Endless Round Sling 500mm","Tools","Batch Plant Workshop","1 Ton",null,"No",5,{"v":21.5,"d":"21.50"},{"v":107.5,"d":"107.50"}]
[315,"Endless Round Sling 6m","Tools","Section 42 Workshop","2 Ton",null,"No",4,{"v":225,"d":"225.00"},{"v":900,"d":"900.00"}]
[316,"Endless Round Sling 6m","Tools","Batch Plant Workshop","2 Ton",null,"No",2,{"v":225,"d":"225.00"},{"v":450,"d":"450.00"}]
[317,"Endless Round Sling 8m","Tools","Section 42 Workshop","8 Ton",null,"No",3,{"v":860,"d":"860.00"},{"v":2580,"d":"2,580.00"}]
[318,"Endless Round Sling 8m","Tools","Batch Plant Workshop","8 Ton",null,"No",3,{"v":880,"d":"880.00"},{"v":2640,"d":"2,640.00"}]
[319,"engineers ball pein hammer 2lb","Tools","Section 42 Workshop","Hardened and tempered steel to EN 10083.\nEnamelled, face and ball ground.\nAsh shaf.","GEDORE",null,4,592.76,{"v":2371.04,"d":"2,371.04"}]
[320,"engineers ball pein hammer 2lb","Tools","Batch Plant Workshop","Hardened and tempered steel to EN 10083.\nEnamelled, face and ball ground.\nAsh shaf.","GEDORE","No",4,592.76,{"v":2371.04,"d":"2,371.04"}]
[321,"engineers second cut file set 8 piece x 225mm","Tools","Section 42 Workshop",{"$nulls":3},3,{"$f":"776/1.15","v":{"v":674.7826086956522,"d":"674.78"}},{"$f":"I331*H331","v":{"v":2024.3478260869567,"d":"2,024.35"}}]
[322,"engineers second cut file set 8 piece x 225mm","Tools","Batch Plant Workshop",null,null,"No",3,{"$f":"776/1.15","v":{"v":674.7826086956522,"d":"674.78"}},{"v":2024.3478260869567,"d":"2,024.35"}]
[323,"engraver kit","Tools","Section 42 Workshop","Rated power input 35 W \nVoltage 230 V \nWeight 0,31 kg \nLength 17 cm \nStrokes per minute 6000 \nSound pressure 86 dB(A) \nSound power 97 dB(A) \nVibration 7,7 m/s²",null,"No",4,{"v":544,"d":"544.00"},{"v":2176,"d":"2,176.00"}]
[324,"engraver kit","Tools","Batch Plant Workshop","Rated power input 35 W \nVoltage 230 V \nWeight 0,31 kg \nLength 17 cm \nStrokes per minute 6000 \nSound pressure 86 dB(A) \nSound power 97 dB(A) \nVibration 7,7 m/s²",null,"No",2,{"v":544,"d":"544.00"},{"v":1088,"d":"1,088.00"}]
[325,"Ex Intrinsically Safe True RMS Digital Multimeter","Tools","Section 18 Auxiliary Bay Unit 1","Fluke 28 II Ex Intrinsically Safe True-rms Digital Multimeter","FLUKE","No",1,{"v":12960,"d":"12,960.00"},{"v":12960,"d":"12,960.00"}]
[326,"Extension reels","Tools","Batch Plant Workshop","20m ,2.5mm electrical extension cable on reel","Schneider Electric","No",12,{"v":499,"d":"499.00"},{"v":5988,"d":"5,988.00"}]
[327,"Extension reels","Tools","Section 42 Workshop","20m electrical extension cable on reel, REEL,EXTENSION WITH CABLE AND D PLUG,30M",null,"No",10,{"v":899,"d":"899.00"},{"v":8990,"d":"8,990.00"}]
[328,"Extension reels","Tools","ERI Turbo Gen Services (TGS) Workshop 9","20m electrical extension cable on reel, REEL,EXTENSION WITH CABLE AND D PLUG,30M",null,"No",3,{"v":899,"d":"899.00"},{"v":2697,"d":"2,697.00"}]
[329,"Extension reels","Tools","ERI Turbo Gen Services (TGS) Workshop 10","20m electrical extension cable on reel, REEL,EXTENSION WITH CABLE AND D PLUG,30M",null,"No",3,{"v":899,"d":"899.00"},{"v":2697,"d":"2,697.00"}]
[330,"Extension reels","Tools","Section 42 Workshop","20m electrical extension cable on reel, REEL,EXTENSION WITH CABLE AND D PLUG,30M",null,"No",3,{"v":899,"d":"899.00"},{"v":2697,"d":"2,697.00"}]
[331,"Extension reels","Tools","Mill Maintenance Workshop","20m electrical extension cable on reel, REEL,EXTENSION WITH CABLE AND D PLUG,30M",null,"No",3,{"v":899,"d":"899.00"},{"v":2697,"d":"2,697.00"}]
[332,"Extension reels","Tools","Welding Workshop","20m electrical extension cable on reel, REEL,EXTENSION WITH CABLE AND D PLUG,30M",null,"No",3,{"v":899,"d":"899.00"},{"v":2697,"d":"2,697.00"}]
[333,"Extension reels","Tools","Batch Plant Workshop","20m electrical extension cable on reel, REEL,EXTENSION WITH CABLE AND D PLUG,30M",null,"No",10,{"v":899,"d":"899.00"},{"v":8990,"d":"8,990.00"}]
[334,"extraction fans","Tools","Section 42 Workshop","Extraction fan\n230 volt \n3600 m3 per hour air flow\nWeight 14kg\nDimensions 44cm, 37cm, 40cm\nWith 10 meters of flexible ducting",null,"No",6,{"v":4199,"d":"4,199.00"},{"v":25194,"d":"25,194.00"}]
[335,"extraction fans","Tools","Batch Plant Workshop","Extraction fan\n230 volt \n3600 m3 per hour air flow\nWeight 14kg\nDimensions 44cm, 37cm, 40cm\nWith 10 meters of flexible ducting",null,"No",2,{"v":4199,"d":"4,199.00"},{"v":8398,"d":"8,398.00"}]
[336,"Eye Bolt 64mm","Tools","Section 42 Workshop","14.5 Ton",null,"No",2,{"v":815.5,"d":"815.50"},{"v":1631,"d":"1,631.00"}]
[337,"Eye Bolt 64mm","Tools","Batch Plant Workshop","14.5 Ton",null,"No",2,{"v":815.5,"d":"815.50"},{"v":1631,"d":"1,631.00"}]
[338,"Eye Bolts 100mm","Tools","Section 42 Workshop","30 Ton",null,"No",2,{"v":2450,"d":"2,450.00"},{"v":4900,"d":"4,900.00"}]
[339,"Eye Bolts 100mm","Tools","Batch Plant Workshop","30 Ton",null,"No",2,{"v":2450,"d":"2,450.00"},{"v":4900,"d":"4,900.00"}]
[340,"Eye Bolts 10mm","Tools","Section 42 Workshop","640 Kg",null,"No",4,{"v":14,"d":"14.00"},{"v":56,"d":"56.00"}]
[341,"Eye Bolts 10mm","Tools","Section 42 Workshop","1 Ton",null,"No",4,{"v":18.5,"d":"18.50"},{"v":74,"d":"74.00"}]
[342,"Eye Bolts 10mm","Tools","Section 42 Workshop","700kg",null,"No",3,16.25,{"$f":"I353*H352","v":80.25}]
[343,"Eye Bolts 10mm","Tools","Section 42 Workshop","1800kg",null,"No",5,26.75,{"$f":"I354*H353","v":{"v":70,"d":"70.00"}}]
[344,"Eye Bolts 10mm","Tools","Batch Plant Workshop","640 Kg",null,"No",4,{"v":14,"d":"14.00"},{"$f":"I354*H354","v":{"v":56,"d":"56.00"}}]
[345,"Eye Bolts 10mm","Tools","Batch Plant Workshop","1 Ton",null,"No",4,{"v":18.5,"d":"18.50"},{"v":74,"d":"74.00"}]
[346,"Eye Bolts 10mm","Tools","Batch Plant Workshop","700kg",null,"No",2,{"$f":"I352","v":16.25},{"v":32.5,"d":"32.50"}]
[347,"Eye Bolts 10mm","Tools","Batch Plant Workshop","1800kg",null,"No",5,26.75,133.75]
[348,"Eye Bolts 12mm","Tools","Section 42 Workshop","1.2Ton",null,"No",2,22.75,{"v":45.5,"d":"45.50"}]
[349,"Eye Bolts 12mm","Tools","Batch Plant Workshop","1.2Ton",null,"No",2,22.75,{"v":45.5,"d":"45.50"}]
[350,"Eye Bolts 16mm","Tools","Section 42 Workshop","1 Ton",null,"No",2,{"$f":"21.55","v":21.55},{"v":43.1,"d":"43.10"}]
[351,"Eye Bolts 16mm","Tools","Section 42 Workshop","1.6Ton",null,"No",8,{"v":23.6,"d":"23.60"},{"v":188.8,"d":"188.80"}]
[352,"Eye Bolts 16mm","Tools","Batch Plant Workshop","1 Ton",null,"No",2,{"$f":"21.55","v":21.55},{"v":43.1,"d":"43.10"}]
[353,"Eye Bolts 16mm","Tools","Batch Plant Workshop","1.6Ton",null,"No",4,{"v":23.6,"d":"23.60"},{"v":94.4,"d":"94.40"}]
[354,"Eye Bolts 18mm","Tools","Section 42 Workshop","4Ton",null,"No",2,84.25,{"v":168.5,"d":"168.50"}]
[355,"Eye Bolts 18mm","Tools","Section 42 Workshop","950kg",null,"No",2,{"v":24.5,"d":"24.50"},{"v":49,"d":"49.00"}]
[356,"Eye Bolts 18mm","Tools","Section 42 Workshop","2.5Ton",null,"No",4,{"v":38.5,"d":"38.50"},{"v":154,"d":"154.00"}]
[357,"Eye Bolts 18mm","Tools","Batch Plant Workshop","4Ton",null,"No",2,{"$f":"I364","v":84.25},{"v":168.5,"d":"168.50"}]
[358,"Eye Bolts 18mm","Tools","Batch Plant Workshop","950kg",null,"No",2,{"v":24.5,"d":"24.50"},{"v":49,"d":"49.00"}]
[359,"Eye Bolts 18mm","Tools","Batch Plant Workshop","2.5Ton",null,"No",2,{"$f":"I366","v":{"v":38.5,"d":"38.50"}},{"v":77,"d":"77.00"}]
[360,"Eye Bolts 20mm","Tools","Section 42 Workshop","2.5Ton",null,"No",5,{"$f":"I376","v":38.25},191.25]
[361,"Eye Bolts 20mm","Tools","Section 42 Workshop","1.5 Ton",null,"No",2,20.95,{"v":41.9,"d":"41.90"}]
[362,"Eye Bolts 20mm","Tools","Section 42 Workshop","3.2 Ton",null,"No",2,{"$f":"I378","v":{"v":52.1,"d":"52.10"}},{"v":104.2,"d":"104.20"}]
[363,"Eye Bolts 20mm","Tools","Section 42 Workshop","3.6 Ton",null,"No",2,{"$f":"I379","v":{"v":52.1,"d":"52.10"}},{"v":104.2,"d":"104.20"}]
[364,"Eye Bolts 20mm","Tools","Section 42 Workshop","4.3 Ton",null,"No",2,{"v":58.5,"d":"58.50"},{"v":117,"d":"117.00"}]
[365,"Eye Bolts 20mm","Tools","Section 42 Workshop","5 Ton",null,"No",2,{"$f":"I381","v":64.25},{"v":128.5,"d":"128.50"}]
[366,"Eye Bolts 20mm","Tools","Batch Plant Workshop","2.5Ton",null,"No",5,38.25,191.25]
[367,"Eye Bolts 20mm","Tools","Batch Plant Workshop","1.5 Ton",null,"No",2,20.95,{"v":41.9,"d":"41.90"}]
[368,"Eye Bolts 20mm","Tools","Batch Plant Workshop","3.2 Ton",null,"No",2,{"v":52.1,"d":"52.10"},{"v":104.2,"d":"104.20"}]
[369,"Eye Bolts 20mm","Tools","Batch Plant Workshop","3.6 Ton",null,"No",2,{"v":52.1,"d":"52.10"},{"v":104.2,"d":"104.20"}]
[370,"Eye Bolts 20mm","Tools","Batch Plant Workshop","4.3 Ton",null,"No",2,{"v":58.5,"d":"58.50"},{"v":117,"d":"117.00"}]
[371,"Eye Bolts 20mm","Tools","Batch Plant Workshop","5 Ton",null,"No",2,64.25,{"v":128.5,"d":"128.50"}]
[372,"Eye Bolts 22mm","Tools","Section 42 Workshop","5 Ton",null,"No",2,{"v":112,"d":"112.00"},{"v":224,"d":"224.00"}]
[373,"Eye Bolts 22mm","Tools","Batch Plant Workshop","5 Ton",null,"No",2,{"v":112,"d":"112.00"},{"v":224,"d":"224.00"}]
[374,"Eye Bolts 24mm","Tools","Section 42 Workshop","5 Ton",null,"No",2,78.45,{"v":156.9,"d":"156.90"}]
[375,"Eye Bolts 24mm","Tools","Batch Plant Workshop","5 Ton",null,"No",2,78.45,{"v":156.9,"d":"156.90"}]
[376,"Eye Bolts 27mm","Tools","Section 42 Workshop","5 Ton",null,"No",2,{"v":85.5,"d":"85.50"},{"v":171,"d":"171.00"}]
[377,"Eye Bolts 27mm","Tools","Section 42 Workshop","8.5 Ton",null,"No",2,{"v":142.5,"d":"142.50"},{"v":285,"d":"285.00"}]
[378,"Eye Bolts 27mm","Tools","Batch Plant Workshop","5 Ton",null,"No",2,{"v":85.5,"d":"85.50"},{"v":171,"d":"171.00"}]
[379,"Eye Bolts 27mm","Tools","Batch Plant Workshop","8.5 Ton",null,"No",2,{"$f":"I387","v":{"v":142.5,"d":"142.50"}},{"v":285,"d":"285.00"}]
[380,"Eye Bolts 30mm","Tools","Section 42 Workshop","8.5 Ton",null,"No",2,{"v":197.5,"d":"197.50"},{"v":395,"d":"395.00"}]
[381,"Eye Bolts 30mm","Tools","Section 42 Workshop","8Ton",null,"No",2,{"v":197.5,"d":"197.50"},{"v":395,"d":"395.00"}]
[382,"Eye Bolts 30mm","Tools","Batch Plant Workshop","8.5 Ton",null,"No",2,{"v":197.5,"d":"197.50"},{"v":395,"d":"395.00"}]
[383,"Eye Bolts 30mm","Tools","Batch Plant Workshop","8Ton",null,"No",2,{"v":197.5,"d":"197.50"},{"v":395,"d":"395.00"}]
[384,"Eye Bolts 33mm","Tools","Section 42 Workshop","8Ton",null,"No",4,{"v":197.5,"d":"197.50"},{"v":790,"d":"790.00"}]
[385,"Eye Bolts 33mm","Tools","Batch Plant Workshop","8Ton",null,"No",4,{"v":197.5,"d":"197.50"},{"v":790,"d":"790.00"}]
[386,"Eye Bolts 36mm","Tools","Section 42 Workshop","8Ton",null,"No",5,{"$f":"I400","v":{"v":216.5,"d":"216.50"}},{"v":1082.5,"d":"1,082.50"}]
[387,"Eye Bolts 36mm","Tools","Section 42 Workshop","3.4 Ton",null,"No",2,{"v":91.4,"d":"91.40"},{"v":182.8,"d":"182.80"}]
[388,"Eye Bolts 36mm","Tools","Section 42 Workshop","6.3 Ton",null,"No",4,162.37,649.48]
[389,"Eye Bolts 36mm","Tools","Section 42 Workshop","8 Ton",null,"No",5,{"v":216.5,"d":"216.50"},{"v":1082.5,"d":"1,082.50"}]
[390,"Eye Bolts 36mm","Tools","Batch Plant Workshop","8Ton",null,"No",4,{"v":216.5,"d":"216.50"},{"v":866,"d":"866.00"}]
[391,"Eye Bolts 36mm","Tools","Batch Plant Workshop","3.4 Ton",null,"No",2,{"v":134.5,"d":"134.50"},{"v":269,"d":"269.00"}]
[392,"Eye Bolts 36mm","Tools","Batch Plant Workshop","6.3 Ton",null,"No",4,{"$f":"I398","v":162.37},649.48]
[393,"Eye Bolts 36mm","Tools","Batch Plant Workshop","8 Ton",null,"No",5,{"v":216.5,"d":"216.50"},{"v":1082.5,"d":"1,082.50"}]
[394,"Eye Bolts 42mm","Tools","Section 42 Workshop","8 Ton",null,"No",2,{"v":216.5,"d":"216.50"},{"v":433,"d":"433.00"}]
[395,"Eye Bolts 42mm","Tools","Section 42 Workshop","10 Ton",null,"No",2,{"v":236.5,"d":"236.50"},{"v":473,"d":"473.00"}]
[396,"Eye Bolts 42mm","Tools","Section 42 Workshop","11.5 Ton",null,"No",2,{"v":248.9,"d":"248.90"},{"$f":"I407*H406","v":{"v":576.4,"d":"576.40"}}]
[397,"Eye Bolts 42mm","Tools","Section 42 Workshop","16 Ton",null,"No",4,{"v":288.2,"d":"288.20"},{"$f":"I408*H407","v":{"v":1640,"d":"1,640.00"}}]
[398,"Eye Bolts 42mm","Tools","Batch Plant Workshop","8 Ton",null,"No",2,{"v":410,"d":"410.00"},{"$f":"I408*H408","v":{"v":820,"d":"820.00"}}]
[399,"Eye Bolts 42mm","Tools","Batch Plant Workshop","10 Ton",null,"No",2,{"v":236.5,"d":"236.50"},{"v":473,"d":"473.00"}]
[400,"Eye Bolts 42mm","Tools","Batch Plant Workshop","11.5 Ton",null,"No",2,{"v":278,"d":"278.00"},{"v":556,"d":"556.00"}]
[401,"Eye Bolts 42mm","Tools","Batch Plant Workshop","16 Ton",null,"No",2,{"v":460,"d":"460.00"},{"v":920,"d":"920.00"}]
[402,"Eye Bolts 45mm","Tools","Section 42 Workshop","25 Ton",null,"No",2,{"v":670.3,"d":"670.30"},{"v":1340.6,"d":"1,340.60"}]
[403,"Eye Bolts 45mm","Tools","Batch Plant Workshop","25 Ton",null,"No",2,{"v":670.3,"d":"670.30"},{"v":1340.6,"d":"1,340.60"}]
[404,"Eye Bolts 48mm","Tools","Section 42 Workshop","10 Ton",null,"No",2,{"v":478,"d":"478.00"},{"v":956,"d":"956.00"}]
[405,"Eye Bolts 48mm","Tools","Batch Plant Workshop","10 Ton",null,"No",2,{"v":478,"d":"478.00"},{"v":956,"d":"956.00"}]
[406,"Eye Bolts 80mm","Tools","Section 42 Workshop","10 Ton",null,"No",2,1250,{"v":2500,"d":"2,500.00"}]
[407,"Eye Bolts 80mm","Tools","Batch Plant Workshop","10 Ton",null,"No",2,1250,{"v":2500,"d":"2,500.00"}]
[408,"Eye Bolts 8mm","Tools","Section 42 Workshop","400 Kg",null,"No",5,9.82,{"v":49.1,"d":"49.10"}]
[409,"Eye Bolts 8mm","Tools","Batch Plant Workshop","400 Kg",null,"No",5,9.82,{"v":49.1,"d":"49.10"}]
[410,"Fall Arrestor","Tools","Section 42 Workshop","140 kg",null,"No",5,4.81,{"v":24.049999999999997,"d":"24.05"}]
[411,"Fall Arrestor","Tools","Batch Plant Workshop","140 kg",null,"No",2,4.81,9.62]
[412,"feeler gauge 13 blade x 100mm","Tools","Section 42 Workshop",null,null,"No",4,{"v":135.6,"d":"135.60"},{"v":542.4,"d":"542.40"}]
[413,"feeler gauge 13 blade x 100mm","Tools","Batch Plant Workshop",null,null,"No",2,{"v":135.6,"d":"135.60"},{"v":271.2,"d":"271.20"}]
[414,"Fiber optic splicing tool","Tools","Section 18 Auxiliary Bay Unit 1","• Arc Fusion splicer, \n• 6.9 a h lithium ion battery\n• High precision Y16 Fiber cleaver\n• clauss strippers\n• spare electrodes\n• 12V D c car adaptor\nincluded in a sturdy, padded, Fiber types Singlemode and multimode, 100μm to 140μm, Fiber cleaved length 16",null,"No",2,{"v":2763,"d":"2,763.00"},{"v":5526,"d":"5,526.00"}]
[415,"Fibre optic line tester","Tools","Section 18 Auxiliary Bay Unit 1","MicrOTDR Optical fault locator or AFL Noyes M200",null,"No",2,{"v":74435.25,"d":"74,435.25"},{"v":148870.5,"d":"148,870.50"}]
[416,"Fish tape","Tools","Batch Plant Workshop","50m Steel fish tape",null,"No",6,{"v":520,"d":"520.00"},{"v":3120,"d":"3,120.00"}]
[417,"Rechargeable flashlight","Tools","Section 42 Workshop","2 hours continuous on time, 51,700 Peak Beam Candlepower, 1/4 turn, cam action focus, spot-to-flood, 5-Cell (1/2-D) Nickel-Cadmium battery pack. Rechargeable up to 1000 times, adjustable light beam (Spot to Flood)  Charger operates on A/C or D/C current, 230/12V",null,"No",4,{"v":1833,"d":"1,833.00"},{"v":7332,"d":"7,332.00"}]
[418,"Rechargeable flashlight","Tools","ERI Turbo Gen Services (TGS) Workshop 11","2 hours continuous on time, 51,700 Peak Beam Candlepower, 1/4 turn, cam action focus, spot-to-flood, 5-Cell (1/2-D) Nickel-Cadmium battery pack. Rechargeable up to 1000 times, adjustable light beam (Spot to Flood)  Charger operates on A/C or D/C current, 230/12V",null,"No",2,{"v":1833,"d":"1,833.00"},{"v":3666,"d":"3,666.00"}]
[419,"Rechargeable flashlight","Tools","Welding Workshop","2 hours continuous on time, 51,700 Peak Beam Candlepower, 1/4 turn, cam action focus, spot-to-flood, 5-Cell (1/2-D) Nickel-Cadmium battery pack. Rechargeable up to 1000 times, adjustable light beam (Spot to Flood)  Charger operates on A/C or D/C current,230/12V",null,"No",2,{"v":1833,"d":"1,833.00"},{"v":3666,"d":"3,666.00"}]
[420,"Flash light and charger","Tools","Batch Plant Workshop","2 hours continuous on time, 51,700 Peak Beam Candlepower, 1/4 turn, cam action focus, spot-to-flood, 5-Cell (1/2-D) Nickel-Cadmium battery pack. Rechargeable up to 1000 times, adjustable light beam (Spot to Flood)  Charger operates on A/C or D/C current, 230/12V",null,"No",4,{"v":1833,"d":"1,833.00"},{"v":7332,"d":"7,332.00"}]
[421,"Flat file 2nd cut set with handle","Tools","Batch Plant Workshop","250mm/8 flat 2nd cut file with handle","GEDORE","No",12,{"v":320.4,"d":"320.40"},{"v":3844.7999999999997,"d":"3,844.80"}]
[422,"Flat file bastard with handle","Tools","Batch Plant Workshop","250mm/8 flat 2nd cut file with handle","GEDORE","No",12,{"$f":"362","v":{"v":362,"d":"362.00"}},{"v":4344,"d":"4,344.00"}]
[423,"Flat file smooth with handle","Tools","Batch Plant Workshop","250mm/8 flat 2nd cut file with handle","GEDORE","No",12,{"$f":"362","v":{"v":362,"d":"362.00"}},{"v":4344,"d":"4,344.00"}]
[424,"Floor crane","Tools","ERI Turbo Gen Services (TGS) Workshop 10","3 Ton Hydra pneumatic floor crane, EXTRA HEAVY DUTY,3 TON,LIFTING HEIGHT - 3.55M",null,"No",1,{"v":4944.5,"d":"4,944.50"},{"v":4944.5,"d":"4,944.50"}]
[425,"Floor crane","Tools","Section 42 Workshop","3 Ton Hydra pneumatic floor crane, EXTRA HEAVY DUTY,3 TON,LIFTING HEIGHT - 3.55M",null,"No",2,{"v":4944.5,"d":"4,944.50"},{"v":9889,"d":"9,889.00"}]
[426,"Folding Barricade","Tools","Section 42 Workshop","Type: Folding barricade\nHeight: 940mm\nMax. Width: 3.5m\nMaterial: Aluminium/Steel\nColour: Safety yellow/Black",null,"No",12,{"v":10160,"d":"10,160.00"},{"v":121920,"d":"121,920.00"}]
[427,"Folding Barricade","Tools","Batch Plant Workshop","Type: Folding barricade\nHeight: 940mm\nMax. Width: 3.5m\nMaterial: Aluminium/Steel\nColour: Safety yellow/Black",null,"No",8,{"v":10160,"d":"10,160.00"},{"v":81280,"d":"81,280.00"}]
[428,"Freeze seal kit","Tools","Section 42 Workshop","Pipe freeze kit\nForm an ice pack that can withstand 483bar\nForm dry ice with a temperature of minus (-79C°).\nKit c/w 10 sets of freeze heads for 10mm to 60mm  lines, two high pressure spiral hoses with injectors, T-distributor, locking nut, hex head screwdriver. ",null,"No",3,{"$f":"16567/1.15","v":{"v":14406.08695652174,"d":"14,406.09"}},{"v":43218.260869565216,"d":"43,218.26"}]
[429,"Freeze seal kit","Tools","Batch Plant Workshop","Pipe freeze kit\nForm an ice pack that can withstand 483bar\nForm dry ice with a temperature of minus (-79C°).\nKit c/w 10 sets of freeze heads for 10mm to 60mm  lines, two high pressure spiral hoses with injectors, T-distributor, locking nut, hex head screwdriver. ",null,"No",1,{"$f":"16567/1.15","v":{"v":14406.08695652174,"d":"14,406.09"}},{"v":14406.08695652174,"d":"14,406.09"}]
[430,"Gas Welding / Cutting equipment set","Tools","Welding Workshop","Complete set with trolley and large bottles",null,"No",3,{"v":3800,"d":"3,800.00"},{"v":11400,"d":"11,400.00"}]
[431,"G-Clamps","Tools","Section 42 Workshop","G Clamp forged\n50mm 119-2\nExtra heavy duty ","Record","No",2,{"v":154,"d":"154.00"},{"v":308,"d":"308.00"}]
[432,"G-Clamps","Tools","Section 42 Workshop","G Clamp forged\n100mm 121-4\nExtra heavy duty ","Record","No",2,{"v":425,"d":"425.00"},{"v":850,"d":"850.00"}]
[433,"G-Clamps","Tools","Section 42 Workshop","G Clamp forged\n150mm 121-6\nExtra heavy duty ","Record","No",2,{"v":648,"d":"648.00"},{"v":1296,"d":"1,296.00"}]
[434,"G-Clamps","Tools","Section 42 Workshop","G Clamp forged\n200mm 121-8\nExtra heavy duty ","Record","No",2,{"v":774,"d":"774.00"},{"v":1548,"d":"1,548.00"}]
[435,"G-Clamps","Tools","Section 42 Workshop","G Clamp forged\n250mm 121-10\nExtra heavy duty ","Record","No",2,{"v":1380,"d":"1,380.00"},{"v":2760,"d":"2,760.00"}]
[436,"G-Clamps","Tools","Section 42 Workshop","G Clamp forged\n300mm 121-12\nExtra heavy duty ","Record","No",2,{"v":1782,"d":"1,782.00"},{"v":3564,"d":"3,564.00"}]
[437,"G-Clamps","Tools","Batch Plant Workshop","G Clamp forged\n50mm 119-2\nExtra heavy duty ","Record","No",2,{"v":154,"d":"154.00"},{"v":308,"d":"308.00"}]
[438,"G-Clamps","Tools","Batch Plant Workshop","G Clamp forged\n100mm 121-4\nExtra heavy duty ","Record","No",2,{"v":425,"d":"425.00"},{"v":850,"d":"850.00"}]
[439,"G-Clamps","Tools","Batch Plant Workshop","G Clamp forged\n150mm 121-6\nExtra heavy duty ","Record","No",2,{"v":648,"d":"648.00"},{"v":1296,"d":"1,296.00"}]
[440,"G-Clamps","Tools","Batch Plant Workshop","G Clamp forged\n200mm 121-8\nExtra heavy duty ","Record","No",2,{"v":774,"d":"774.00"},{"v":1548,"d":"1,548.00"}]
[441,"G-Clamps","Tools","Batch Plant Workshop","G Clamp forged\n250mm 121-10\nExtra heavy duty ","Record","No",2,{"v":1380,"d":"1,380.00"},{"v":2760,"d":"2,760.00"}]
[442,"G-Clamps","Tools","Batch Plant Workshop","G Clamp forged\n300mm 121-12\nExtra heavy duty ","Record","No",2,{"v":1782,"d":"1,782.00"},{"v":3564,"d":"3,564.00"}]
[443,"general purpose tinsnips 200mm","Tools","Section 42 Workshop",null,null,"No",2,{"v":200,"d":"200.00"},{"v":400,"d":"400.00"}]
[444,"general purpose tinsnips 200mm","Tools","Batch Plant Workshop",null,null,"No",2,{"v":200,"d":"200.00"},{"v":400,"d":"400.00"}]
[445,"Grease pump small - hand tipe ","Tools","Batch Plant Workshop","5kg mini greaser complete with drum, 1,5m hose, coupler and following plate.Pressure of up to 320 Bar (32 MPa). Suitable for up to a No. 2 grease. \n",null,"No",10,{"v":2162,"d":"2,162.00"},{"v":21620,"d":"21,620.00"}]
[446,"Grease pump small - hand tipe ","Tools","Section 42 Workshop","5kg mini greaser complete with drum, 1,5m hose, coupler and following plate.Pressure of up to 320 Bar (32 MPa). Suitable for up to a No. 2 grease. \n",null,"No",3,{"v":2162,"d":"2,162.00"},{"v":6486,"d":"6,486.00"}]
[447,"Grease pump small - hand tipe ","Tools","ERI Turbo Gen Services (TGS) Workshop 11","5kg mini greaser complete with drum, 1,5m hose, coupler and following plate.Pressure of up to 320 Bar (32 MPa). Suitable for up to a No. 2 grease. \n",null,"No",1,{"v":2162,"d":"2,162.00"},{"v":2162,"d":"2,162.00"}]
[448,"Grease pump small - hand tipe ","Tools","Mill Maintenance Workshop","5kg mini greaser complete with drum, 1,5m hose, coupler and following plate.Pressure of up to 320 Bar (32 MPa). Suitable for up to a No. 2 grease. \n",null,"No",null,{"v":2162,"d":"2,162.00"},0]
[449,"Grease pump small - hand tipe ","Tools","Batch Plant Workshop","5kg mini greaser complete with drum, 1,5m hose, coupler and following plate.Pressure of up to 320 Bar (32 MPa). Suitable for up to a No. 2 grease. \n",null,"No",3,{"v":2162,"d":"2,162.00"},{"v":6486,"d":"6,486.00"}]
[450,"Grease pump small - hand type ","Tools","Section 42 Workshop","5kg mini greaser complete with drum, 1,5m hose, coupler and following plate.Pressure of up to 320 Bar (32 MPa). Suitable for up to a No. 2 grease. \n",null,"No",1,{"v":2162,"d":"2,162.00"},{"v":2162,"d":"2,162.00"}]
[451,"Grinder,  Air Die, Heavy duty","Tools","Welding Workshop","Collet size 6 & 3mm, Speed 2000rpm, Air press 630kPa, Motor power 0.9 HP, Air hose 10mm",null,"No",4,{"v":425,"d":"425.00"},{"v":1700,"d":"1,700.00"}]
[452,"Grommet sling","Tools","Section 42 Workshop","38 Ton",null,"No",4,null,0]
[453,"Grommet sling","Tools","Section 42 Workshop","55.3 Ton",null,"No",8,null,0]
[454,"Grommet sling","Tools","Section 42 Workshop","104 Ton",null,"No",2,null,0]
[455,"Hack Saw","Tools","Batch Plant Workshop","Hi-Tension Hack Saw Frame Cast aluminium handle and end pieces with permanent blade pins, blade storage.","GEDORE","No",20,{"v":250,"d":"250.00"},{"v":5000,"d":"5,000.00"}]
[456,"Hack Saw","Tools","Section 42 Workshop","Hi-Tension Hack Saw Frame Cast aluminium handle and end pieces with permanent blade pins, blade storage.",null,"No",2,{"v":250,"d":"250.00"},{"v":500,"d":"500.00"}]
[457,"Hack Saw","Tools","ERI Turbo Gen Services (TGS) Workshop 12","Hi-Tension Hack Saw Frame Cast aluminium handle and end pieces with permanent blade pins, blade storage.",null,"No",2,{"v":250,"d":"250.00"},{"v":500,"d":"500.00"}]
[458,"Hack Saw","Tools","Section 42 Workshop","Hi-Tension Hack Saw Frame Cast aluminium handle and end pieces with permanent blade pins, blade storage.",null,"No",2,{"v":250,"d":"250.00"},{"v":500,"d":"500.00"}]
[459,"Hack Saw","Tools","Mill Maintenance Workshop","Hi-Tension Hack Saw Frame Cast aluminium handle and end pieces with permanent blade pins, blade storage.",null,"No",2,{"v":250,"d":"250.00"},{"v":500,"d":"500.00"}]
[460,"Hack Saw","Tools","Welding Workshop","Hi-Tension Hack Saw Frame Cast aluminium handle and end pieces with permanent blade pins, blade storage.",null,"No",2,{"v":250,"d":"250.00"},{"v":500,"d":"500.00"}]
[461,"Hack Saw","Tools","Batch Plant Workshop","Hi-Tension Hack Saw Frame Cast aluminium handle and end pieces with permanent blade pins, blade storage.",null,"No",4,{"v":250,"d":"250.00"},{"v":1000,"d":"1,000.00"}]
[462,"Hack Saw Frame Standard","Tools","Section 42 Workshop","standard junior pattern 260mm\nOverall Length 280mm\nOverall Width 80\nOverall Depth 5\n",null,"No",3,{"v":185,"d":"185.00"},{"$f":"I472*H472","v":{"v":555,"d":"555.00"}}]
[463,"Hack Saw Frame Standard","Tools","Batch Plant Workshop","standard junior pattern 260mm\nOverall Length 280mm\nOverall Width 80\nOverall Depth 5\n",null,"No",3,{"v":185,"d":"185.00"},{"v":555,"d":"555.00"}]
[464,"Half round file 2nd cut with handle","Tools","Batch Plant Workshop","250mm/8 flat 2nd cut file with handle","GEDORE","No",10,{"v":79,"d":"79.00"},{"v":790,"d":"790.00"}]
[465,"Half round file bastard with handle","Tools","Batch Plant Workshop","250mm/8 flat 2nd cut file with handle","GEDORE","No",10,{"v":79,"d":"79.00"},{"v":790,"d":"790.00"}]
[466,"Half round file smooth with handle","Tools","Batch Plant Workshop","250mm/8 flat 2nd cut file with handle","GEDORE","No",10,{"v":79,"d":"79.00"},{"v":790,"d":"790.00"}]
[467,"Hand Pump Hydraulic P Series","Tools","Section 42 Workshop","P59, 400 to 1131 cm3 reservoir, two speed, single acting cylinder",null,"No",3,{"v":7890,"d":"7,890.00"},{"v":23670,"d":"23,670.00"}]
[468,"Hand Pump Hydraulic P Series","Tools","Section 42 Workshop","P460D, 9.5 litre reservoir, two speed, single acting cylinder",null,"No",3,{"v":7890,"d":"7,890.00"},{"v":23670,"d":"23,670.00"}]
[469,"Hand Pump Hydraulic P Series","Tools","Section 42 Workshop","P460D, 9.5 litre reservoir, two speed, double acting cylinder",null,"No",3,{"v":7890,"d":"7,890.00"},{"v":23670,"d":"23,670.00"}]
[470,"Hand Pump Hydraulic P Series","Tools","Batch Plant Workshop","P59, 400 to 1131 cm3 reservoir, two speed, single acting cylinder",null,"No",1,{"v":7890,"d":"7,890.00"},{"v":7890,"d":"7,890.00"}]
[471,"Hand Pump Hydraulic P Series","Tools","Batch Plant Workshop","P460D, 9.5 litre reservoir, two speed, single acting cylinder",null,"No",1,{"v":7890,"d":"7,890.00"},{"v":7890,"d":"7,890.00"}]
[472,"Hand Pump Hydraulic P Series","Tools","Batch Plant Workshop","P460D, 9.5 litre reservoir, two speed, double acting cylinder",null,"No",1,{"v":7890,"d":"7,890.00"},{"v":7890,"d":"7,890.00"}]
[473,"Hand-held infrared thermometer","Tools","16 M Level Workshop","Target spot of 70mm at 1 metre distance.","HELLERMAN","No",4,{"v":1650,"d":"1,650.00"},{"v":6600,"d":"6,600.00"}]
[474,"Heatgun","Tools","Batch Plant Workshop","Air volume 250/350/500 l/min, Air temperature 50/350/550°C, Rated input 1,600 watts ","MIKITA","No",10,{"v":395,"d":"395.00"},{"v":3950,"d":"3,950.00"}]
[475,"Heatgun","Tools ","Section 18 Auxiliary Bay Unit 1","MICRO-THERM™ MJ-600",null,"No",2,{"$f":"24.62*15","v":{"v":369.3,"d":"369.30"}},{"v":738.6,"d":"738.60"}]
[476,"Heavy Duty Combination Hammer and Impact drill","Tools","Section 42 Workshop","Drilling with high torque in wood and steel \nHammer drilling in concrete, masonry and natural stone with drill bits 1/2\" - 6\" in diameter\nDrilling holes for heavy-duty anchors 3/4\" - 1 3/4\" in diameter",null,"No",2,{"v":3409.2,"d":"3,409.20"},{"v":6818.4,"d":"6,818.40"}]
[477,"Heavy Duty Combination Hammer and Impact drill","Tools","Batch Plant Workshop","Drilling with high torque in wood and steel \nHammer drilling in concrete, masonry and natural stone with drill bits 1/2\" - 6\" in diameter\nDrilling holes for heavy-duty anchors 3/4\" - 1 3/4\" in diameter",null,"No",2,{"v":3409.2,"d":"3,409.20"},{"v":6818.4,"d":"6,818.40"}]
[478,"Heavy duty hand winches","Tools","Section 42 Workshop","Gear Ratio: 392/1, Rope Capacity: 103m, Working Length: 73m, Rope Diameter: 26mm, SWL: 8 ton ",null,"No",2,{"$f":"891/1.15","v":{"v":774.7826086956522,"d":"774.78"}},{"v":1549.5652173913045,"d":"1,549.57"}]
[479,"Heavy duty hand winches","Tools","Batch Plant Workshop","Gear Ratio: 392/1, Rope Capacity: 103m, Working Length: 73m, Rope Diameter: 26mm, SWL: 8 ton ",null,"No",2,{"$f":"891/1.15","v":{"v":774.7826086956522,"d":"774.78"}},{"v":1549.5652173913045,"d":"1,549.57"}]
[480,"heavy duty snipe nose pliers 160mm","Tools","Section 42 Workshop",null,null,"No",4,{"v":196.3,"d":"196.30"},{"v":785.2,"d":"785.20"}]
[481,"heavy duty snipe nose pliers 160mm","Tools","Batch Plant Workshop",null,null,"No",2,{"v":196.3,"d":"196.30"},{"v":392.6,"d":"392.60"}]
[482,"Heavy duty winches","Tools","Section 42 Workshop","Air winch\nCapacity: 5 ton\nSpeed: 10 m/min\nnet weight: 750 Kg\n",null,"No",2,{"v":45895,"d":"45,895.00"},{"v":91790,"d":"91,790.00"}]
[483,"Heavy duty winches","Tools","Batch Plant Workshop","Air winch\nCapacity: 5 ton\nSpeed: 10 m/min\nnet weight: 750 Kg\n",null,"No",2,{"v":45895,"d":"45,895.00"},{"v":91790,"d":"91,790.00"}]
[484,"Hilti Drill for Concrete","Tools","Section 42 Workshop","(TE-Y (SDS Max) chuck, 1700 W, 380 rpm, 10.2 kg, 8.5 m/s2), with Active Torque Control, with Active Vibration Reduction and Theft Protection System Hammer drilling in concrete, masonry and natural stone in the 22 to 150 mm diameter range Drilling through-",null,"No",1,{"v":2176,"d":"2,176.00"},{"v":2176,"d":"2,176.00"}]
[485,"Hilti Drill for Concrete","Tools","Batch Plant Workshop","(TE-Y (SDS Max) chuck, 1700 W, 380 rpm, 10.2 kg, 8.5 m/s2), with Active Torque Control, with Active Vibration Reduction and Theft Protection System Hammer drilling in concrete, masonry and natural stone in the 22 to 150 mm diameter range Drilling through-",null,"No",1,{"v":2176,"d":"2,176.00"},{"v":2176,"d":"2,176.00"}]
[486,"Hole punches Complete set.","Tools","Batch Plant Workshop","Standard Round Industrial Hole Punch Set Included 3/4 7/8 1 1 1/8 1 1/4 and 1 1/2 Inches Ball Bearing Punches and Dies Draw Studs Metal Case 15 Pieces\nFunctionPunch 10, 14 and 16 Gauge Mild Steel, Manual Operation  Item Punch Driver Set  Number of Pieces15","GEDORE","No",12,349.15,{"v":4189.799999999999,"d":"4,189.80"}]
[487,"Hollow pinch sets 12 pc","Tools","Section 42 Workshop","Heat Treated Carbon Steel Construction\nPrecision Ground Flute and Cutting Edge\nNon-Slip Knurled Handle Grip\n12-pc. Hollow Punches: 2-20 mm\nComplete with Organizer Storage Pouch","Gedore/Kennedy","No",4,349.15,{"v":1396.6,"d":"1,396.60"}]
[488,"Hollow pinch sets 12 pc","Tools","Batch Plant Workshop","Heat Treated Carbon Steel Construction\nPrecision Ground Flute and Cutting Edge\nNon-Slip Knurled Handle Grip\n12-pc. Hollow Punches: 2-20 mm\nComplete with Organizer Storage Pouch","Gedore/Kennedy","No",2,349.15,{"v":698.3,"d":"698.30"}]
[489,"hss ground flute jobber drill set 1mm - 13mm","Tools","Section 42 Workshop",{"$nulls":3},6,{"v":1360,"d":"1,360.00"},{"v":8160,"d":"8,160.00"}]
[490,"hss ground flute jobber drill set 1mm - 13mm","Tools","Batch Plant Workshop",null,null,"No",3,{"v":1360,"d":"1,360.00"},{"v":4080,"d":"4,080.00"}]
[491,"Hydraulic Punches","Tools","Section 42 Workshop","20 ton",null,null,6,{"$f":"2984/1.15","v":{"v":2594.7826086956525,"d":"2594.78"}},{"v":15568.695652173916,"d":"15,568.70"}]
[492,"Hydraulic Punches","Tools","Batch Plant Workshop","20 ton",null,"No",1,{"$f":"2984/1.15","v":{"v":2594.7826086956525,"d":"2594.78"}},{"v":2594.7826086956525,"d":"2,594.78"}]
[493,"Hydraulic Cable Cutter ","Tools","Batch Plant Workshop","Hydraulic Return cable cutters were designed for the cutting of LV & HV cables . They feature a maximum operating pressure of 720/72 (bar/Mpa) or 10443 psi, holding capacity of 203.6 kN (20.8 t) and can handle a maximum cable diameter of 240 mm  cables.",null,"No",2,{"v":1456.7,"d":"1,456.70"},{"v":2913.4,"d":"2,913.40"}]
[494,"Hydraulic Jack 100 ton","Tools","Section 42 Workshop","Capacity: 100ton\nMax. handle effort: 42Kg\nStroke: 144mm\nMax. Height:443mm",null,"No",1,{"v":2000,"d":"2,000.00"},{"v":2000,"d":"2,000.00"}]
[495,"Hydraulic Jack 100 ton","Tools","Batch Plant Workshop","Capacity: 100ton\nMax. handle effort: 42Kg\nStroke: 144mm\nMax. Height:443mm",null,"No",1,{"v":2000,"d":"2,000.00"},{"v":2000,"d":"2,000.00"}]
[496,"Hydraulic Jack 12 ton","Tools","Section 42 Workshop","Capacity: 12ton\nExtended screw: 78mm\nStroke: 147mm\nMax. Height:463mm",null,"No",1,{"v":495,"d":"495.00"},{"v":495,"d":"495.00"}]
[497,"Hydraulic Jack 12 ton","Tools","Batch Plant Workshop","Capacity: 12ton\nExtended screw: 78mm\nStroke: 147mm\nMax. Height:463mm",null,"No",1,{"v":495,"d":"495.00"},{"v":495,"d":"495.00"}]
[498,"Hydraulic Jack 2 ton","Tools","Section 42 Workshop","Capacity: 2 ton\nExtended screw: 50mm\nStroke: 112.5mm\nMax. Height: 325mm",null,"No",1,{"v":145,"d":"145.00"},{"v":145,"d":"145.00"}]
[499,"Hydraulic Jack 2 ton","Tools","Batch Plant Workshop","Capacity: 2 ton\nExtended screw: 50mm\nStroke: 112.5mm\nMax. Height: 325mm",null,"No",1,{"v":145,"d":"145.00"},{"v":145,"d":"145.00"}]
[500,"Hydraulic Jack 22 ton","Tools","Section 42 Workshop","Capacity: 22ton\nMax. handle effort: 33Kg\nStroke: 160mm\nMax. Height:425mm",null,"No",1,{"v":895,"d":"895.00"},{"v":895,"d":"895.00"}]
[501,"Hydraulic Jack 22 ton","Tools","Batch Plant Workshop","Capacity: 22ton\nMax. handle effort: 33Kg\nStroke: 160mm\nMax. Height:425mm",null,"No",1,{"v":895,"d":"895.00"},{"v":895,"d":"895.00"}]
[502,"Hydraulic Jack 3 ton","Tools","Section 42 Workshop","Capacity: 3 ton\nExtended screw: 60mm\nStroke: 112.5mm\nMax. Height:360mm",null,"No",1,{"v":265,"d":"265.00"},{"v":265,"d":"265.00"}]
[503,"Hydraulic Jack 3 ton","Tools","Batch Plant Workshop","Capacity: 3 ton\nExtended screw: 60mm\nStroke: 112.5mm\nMax. Height:360mm",null,"No",1,{"v":265,"d":"265.00"},{"v":265,"d":"265.00"}]
[504,"Hydraulic Jack 35 ton","Tools","Section 42 Workshop","Capacity: 35ton\nMax. handle effort: 31Kg\nStroke: 160mm\nMax. Height:435mm",null,"No",1,{"v":1395,"d":"1,395.00"},{"v":1395,"d":"1,395.00"}]
[505,"Hydraulic Jack 35 ton","Tools","Batch Plant Workshop","Capacity: 35ton\nMax. handle effort: 31Kg\nStroke: 160mm\nMax. Height:435mm",null,"No",1,{"v":1395,"d":"1,395.00"},{"v":1395,"d":"1,395.00"}]
[506,"Hydraulic Jack 5 ton","Tools","Section 42 Workshop","Capacity: 5 ton\nExtended screw: 69mm\nStroke: 119mm\nMax. Height:385mm",null,"No",1,{"v":265,"d":"265.00"},{"v":265,"d":"265.00"}]
[507,"Hydraulic Jack 5 ton","Tools","Batch Plant Workshop","Capacity: 5 ton\nExtended screw: 69mm\nStroke: 119mm\nMax. Height:385mm",null,"No",1,{"v":265,"d":"265.00"},{"v":265,"d":"265.00"}]
[508,"Hydraulic Jack 55 ton","Tools","Section 42 Workshop","Capacity: 55ton\nMax. handle effort: 33Kg\nStroke: 160mm\nMax. Height:469mm",null,"No",1,{"v":1395,"d":"1,395.00"},{"v":1395,"d":"1,395.00"}]
[509,"Hydraulic Jack 55 ton","Tools","Batch Plant Workshop","Capacity: 55ton\nMax. handle effort: 33Kg\nStroke: 160mm\nMax. Height:469mm",null,"No",1,{"v":1395,"d":"1,395.00"},{"v":1395,"d":"1,395.00"}]
[510,"Hydraulic Jack 8 ton","Tools","Section 42 Workshop","Capacity: 8 ton\nExtended screw: 69mm\nStroke: 119mm\nMax. Height:385mm",null,"No",1,{"v":395,"d":"395.00"},{"v":395,"d":"395.00"}]
[511,"Hydraulic Jack 8 ton","Tools","Batch Plant Workshop","Capacity: 8 ton\nExtended screw: 69mm\nStroke: 119mm\nMax. Height:385mm",null,"No",1,{"v":395,"d":"395.00"},{"v":395,"d":"395.00"}]
[512,"hydraulic nut splitter","Tools","Section 42 Workshop","Hexagon nut range: 70 - 80mm\nBolt range: M45 - M52\nCapacity: 103 ton\n",null,"No",1,{"v":536,"d":"536.00"},{"v":536,"d":"536.00"}]
[513,"hydraulic nut splitter","Tools","Section 42 Workshop","Hexagon nut range: 70 - 85mm\nBolt range: M45 - M56\nCapacity: 103 ton\n",null,"No",1,{"v":536,"d":"536.00"},{"v":536,"d":"536.00"}]
[514,"hydraulic nut splitter","Tools","Section 42 Workshop","Hexagon nut range: 70 - 95mm\nBolt range: M45 - M64\nCapacity: 103 ton\n",null,"No",1,{"v":2150,"d":"2,150.00"},{"v":2150,"d":"2,150.00"}]
[515,"hydraulic nut splitter","Tools","Section 42 Workshop","Hexagon nut range: 70 - 105mm\nBolt range: M45 - M72\nCapacity: 103 ton\n",null,"No",1,{"v":2150,"d":"2,150.00"},{"v":2150,"d":"2,150.00"}]
[516,"hydraulic nut splitter","Tools","Section 42 Workshop","Hexagon nut range: 110 - 115mm\nBolt range: M76 - M80\nCapacity: 193 ton\n",null,"No",1,{"v":2150,"d":"2,150.00"},{"v":2150,"d":"2,150.00"}]
[517,"hydraulic nut splitter","Tools","Section 42 Workshop","Hexagon nut range: 110 - 130mm\nBolt range: M76 - M90\nCapacity: 193 ton\n",null,"No",1,{"v":2150,"d":"2,150.00"},{"v":2150,"d":"2,150.00"}]
[518,"hydraulic nut splitter","Tools","Batch Plant Workshop","Hexagon nut range: 70 - 80mm\nBolt range: M45 - M52\nCapacity: 103 ton\n",null,"No",1,{"v":2150,"d":"2,150.00"},{"v":2150,"d":"2,150.00"}]
[519,"hydraulic nut splitter","Tools","Batch Plant Workshop","Hexagon nut range: 70 - 85mm\nBolt range: M45 - M56\nCapacity: 103 ton\n",null,"No",1,{"v":2150,"d":"2,150.00"},{"v":2150,"d":"2,150.00"}]
[520,"hydraulic nut splitter","Tools","Batch Plant Workshop","Hexagon nut range: 70 - 95mm\nBolt range: M45 - M64\nCapacity: 103 ton\n",null,"No",1,{"v":2150,"d":"2,150.00"},{"v":2150,"d":"2,150.00"}]
[521,"hydraulic nut splitter","Tools","Batch Plant Workshop","Hexagon nut range: 70 - 105mm\nBolt range: M45 - M72\nCapacity: 103 ton\n",null,"No",1,{"v":807,"d":"807.00"},{"v":807,"d":"807.00"}]
[522,"hydraulic nut splitter","Tools","Batch Plant Workshop","Hexagon nut range: 110 - 115mm\nBolt range: M76 - M80\nCapacity: 193 ton\n",null,"No",1,{"v":807,"d":"807.00"},{"v":807,"d":"807.00"}]
[523,"hydraulic nut splitter","Tools","Batch Plant Workshop","Hexagon nut range: 110 - 130mm\nBolt range: M76 - M90\nCapacity: 193 ton\n",null,"No",1,{"v":807,"d":"807.00"},{"v":807,"d":"807.00"}]
[524,"Impact socket set ","Tools","Section 42 Workshop","3/4\" sizes 17, 19, 21, 22, 24, 26, 27, 29, 30, 32, 35, 36, 38 up to 80mm, with drive extension bar",null,"No",1,{"v":4417,"d":"4,417.00"},{"v":4417,"d":"4,417.00"}]
[525,"Impact socket set ","Tools","Batch Plant Workshop","3/4\" sizes 17, 19, 21, 22, 24, 26, 27, 29, 30, 32, 35, 36, 38 up to 80mm, with drive extension bar",null,"No",1,{"v":4417,"d":"4,417.00"},{"v":4417,"d":"4,417.00"}]
[526,"Impact Wrench ","Tools","Section 42 Workshop","Maximum Tightening torque: 360Nm. Tip Style: 1/2 inch Square Drive Input Power: 480 Watts Amperage: 4.2 Amps No-Load Speed (RPM): 1,900/min. Impact rate (IPM): 2,100/min. Switch Type: Rocker",null,"No",1,{"v":8450,"d":"8,450.00"},{"$f":"I536*H536","v":{"v":8450,"d":"8,450.00"}}]
[527,"Impact Wrench ","Tools","Batch Plant Workshop","Maximum Tightening torque: 360Nm. Tip Style: 1/2 inch Square Drive Input Power: 480 Watts Amperage: 4.2 Amps No-Load Speed (RPM): 1,900/min. Impact rate (IPM): 2,100/min. Switch Type: Rocker",null,"No",1,{"v":8450,"d":"8,450.00"},{"v":8450,"d":"8,450.00"}]
[528,"Impact Wrench - air - Heavy duty","Tools","Section 42 Workshop","Square drive 3/4\", torque range 200 -1600Nm, Air pressure 600kPa",null,"No",1,{"v":9999,"d":"9,999.00"},{"v":9999,"d":"9,999.00"}]
[529,"Impact Wrench - air - Heavy duty","Tools","Batch Plant Workshop","Square drive 3/4\", torque range 200 -1600Nm, Air pressure 600kPa",null,"No",1,{"v":9999,"d":"9,999.00"},{"v":9999,"d":"9,999.00"}]
[530,"Impact Wrench - air General Duty","Tools","Section 42 Workshop","Square drive 1/2\", torque range 180 -400Nm, Air pressure 600kPa",null,"No",1,{"v":4045,"d":"4,045.00"},{"v":4045,"d":"4,045.00"}]
[531,"Impact Wrench - air General Duty","Tools","Batch Plant Workshop","Square drive 1/2\", torque range 180 -400Nm, Air pressure 600kPa",null,"No",1,{"v":4045,"d":"4,045.00"},{"v":4045,"d":"4,045.00"}]
[532,"industrial drill chuck arbor no 2 morse taper","Tools","Section 42 Workshop","Length: 112 mm\nMT3 Spindle to MT2 Arbor Morse taper adapter",null,"No",6,{"$f":"202/1.15","v":{"v":175.6521739130435,"d":"175.65"}},{"v":1053.913043478261,"d":"1,053.91"}]
[533,"industrial drill chuck arbor no 2 morse taper","Tools","Batch Plant Workshop","Length: 112 mm\nMT3 Spindle to MT2 Arbor Morse taper adapter",null,"No",2,{"$f":"202/1.15","v":{"v":175.6521739130435,"d":"175.65"}},{"v":351.304347826087,"d":"351.30"}]
[534,"industrial keyless drill chuck 13mm capacity","Tools","Section 42 Workshop","Self tightening\nDiameter: 33 mm\nTotal length: 70 mm\nMount: 33JT",null,"No",6,{"v":379.4,"d":"379.40"},{"v":2276.3999999999996,"d":"2,276.40"}]
[535,"industrial keyless drill chuck 13mm capacity","Tools","Batch Plant Workshop","Self tightening\nDiameter: 33 mm\nTotal length: 70 mm\nMount: 33JT",null,"No",3,{"v":379.4,"d":"379.40"},{"v":1138.1999999999998,"d":"1,138.20"}]
[536,"inserted pin punch set 6 piece","Tools","Section 42 Workshop",null,null,"No",4,{"$f":"427/1.15","v":{"v":371.304347826087,"d":"371.30"}},{"v":1485.217391304348,"d":"1,485.22"}]
[537,"inserted pin punch set 6 piece","Tools","Batch Plant Workshop",null,null,"No",4,{"$f":"427/1.15","v":{"v":371.304347826087,"d":"371.30"}},{"v":1485.217391304348,"d":"1,485.22"}]
[538,"insulated non sparking Set of tube Spanner","Tools","Section 18 Auxiliary Bay Unit 1","Kd26R tubular Box Spanner Set. In tubular steel, harden. Chrome plate, with stepped tommy bar, chrome Vanadium steel 31CrV3, hardened. Chrome plated. Insulated safety screwdrivers up to 1000V / 1500V","GEDORE","No",1,{"$f":"1850/1.15","v":{"v":1608.6956521739132,"d":"1,608.70"}},{"v":1608.6956521739132,"d":"1,608.70"}]
[539,"insulated non sparking Shifting Spanner 150mm","Tools","Section 18 Auxiliary Bay Unit 1","Chrome Vanadium steel - 31CrV3.swedish pattern - Jaw set at 15 degrees .blackened finish. Ground head. Insulated safety screwdrivers up to 1000V / 1500V","GEDORE","No",1,{"$f":"4449.5/1.15","v":{"v":3869.130434782609,"d":"3,869.13"}},{"v":3869.130434782609,"d":"3,869.13"}]
[540,"insulated non sparking Shifting Spanner 200mm","Tools","Section 18 Auxiliary Bay Unit 1","Chrome Vanadium steel - 31CrV3.swedish pattern - Jaw set at 15 degrees .blackened finish. Ground head. Insulated safety screwdrivers up to 1000V / 1500V","GEDORE","No",1,{"$f":"4449.5/1.15","v":{"v":3869.130434782609,"d":"3,869.13"}},{"v":3869.130434782609,"d":"3,869.13"}]
[541,"insulated non sparking Shifting Spanner 250mm","Tools","Section 18 Auxiliary Bay Unit 1","Chrome Vanadium steel - 31CrV3.swedish pattern - Jaw set at 15 degrees .blackened finish. Ground head.Insulated safety screwdrivers up to 1000V / 1500V","GEDORE","No",1,{"$f":"4449.5/1.15","v":{"v":3869.130434782609,"d":"3,869.13"}},{"v":3869.130434782609,"d":"3,869.13"}]
[542,"insulated non sparking Torque wrench","Tools","Section 18 Auxiliary Bay Unit 1","Torque Range 50 - 225 Nm,1/2 in square drive. Insulated safety screwdrivers up to 1000V / 1500V","GEDORE","No",1,{"$f":"3489/1.15","v":{"v":3033.913043478261,"d":"3,033.91"}},{"v":3033.913043478261,"d":"3,033.91"}]
[543,"insulated non sparking Torque wrench","Tools","Section 18 Auxiliary Bay Unit 1","Torque Range 12 - 68 Nm,1/2 in square drive. Insulated safety screwdrivers up to 1000V / 1500V","GEDORE","No",1,{"$f":"3489/1.15","v":{"v":3033.913043478261,"d":"3,033.91"}},{"v":3033.913043478261,"d":"3,033.91"}]
[544,"Insulation and continuity tester with leads","Tools","16 M Level Workshop","1000 MΩ 250 - 1 kV Domestic and industrial systems, site maintenance and service departments, transformers, motors, generators, switchgear, panel building, domestic appliances, power tools etc., fixed electrical wiring systems ","MEGGER","No",1,{"v":9087,"d":"9,087.00"},{"v":9087,"d":"9,087.00"}]
[545,"Insulation and continuity tester with leads","Tools","Section 19 Auxiliary Bay Unit 2","1000 MΩ 250V - 1kV Domestic and industrial systems, site maintenance and service departments, transformers, motors, generators, switchgear, panel building, domestic appliances, power tools etc., fixed electrical wiring systems ","FLUKE","No",2,{"$f":"12290/1.15","v":{"v":10686.956521739132,"d":"10,686.96"}},{"v":21373.913043478264,"d":"21,373.91"}]
[546,"Insulation and continuity tester with leads","Tools","Section 42: Workshop and Stores building","1000 MΩ 250V - 1kV Domestic and industrial systems, site maintenance and service departments, transformers, motors, generators, switchgear, panel building, domestic appliances, power tools etc., fixed electrical wiring systems ","FLUKE","No",2,{"$f":"10290/1.15","v":{"v":8947.826086956522,"d":"8,947.83"}},{"v":17895.652173913044,"d":"17,895.65"}]
[547,"Insulation and continuity tester with leads","Tools","Batch Plant Workshop","1000 MΩ 250V - 1kV Domestic and industrial systems, site maintenance and service departments, transformers, motors, generators, switchgear, panel building, domestic appliances, power tools etc., fixed electrical wiring systems ","FLUKE","No",1,{"$f":"12290/1.15","v":{"v":10686.956521739132,"d":"10,686.96"}},{"v":10686.956521739132,"d":"10,686.96"}]
[548,"Insulation and continuity tester with leads","Tools","Batch Plant Workshop","1000 MΩ 250 - 1 kV Domestic and industrial systems, site maintenance and service departments, transformers, motors, generators, switchgear, panel building, domestic appliances, power tools etc., fixed electrical wiring systems ","Off the shelf ","No",1,{"$f":"2292/1.15","v":{"v":1993.0434782608697,"d":"1,993.04"}},{"v":1993.0434782608697,"d":"1,993.04"}]
[549,"Inverter welding machines","Tools","Welding Workshop",{"$f":"I559=8500/1.15","v":false},null,"No",4,{"$f":"9500/1.15","v":{"v":8260.869565217392,"d":"8,260.87"}},{"v":33043.47826086957,"d":"33,043.48"}]
[550,"IR & Contact Thermometer","Tools","Section 42 Workshop","Temperature range: -40 to 650°C\nAccuracy: 1%\nResponse time: <500ms\nLaser sighting: Single point laser < 1mw class2\nDistance to spot: 30:1\nProbe(included): Type K bead thermocoupe\nEmissivity Adjustment: Material tablr & numerically from 0.01 to 1.00\nStorage memories: 20 measurements\nHi/Lo Alarms: Audible & Visual (2 colour flashing backlight)\nLCD: Dot matrix\nPower Requirements: 2 x AA/LR6 batteries\nDimensions & weight: 254 mm x 191 mm - 965g\n",null,"No",5,{"v":249,"d":"249.00"},{"v":1245,"d":"1,245.00"}]
[551,"IR & Contact Thermometer","Tools","Batch Plant Workshop","Temperature range: -40 to 650°C\nAccuracy: 1%\nResponse time: <500ms\nLaser sighting: Single point laser < 1mw class2\nDistance to spot: 30:1\nProbe(included): Type K bead thermocoupe\nEmissivity Adjustment: Material tablr & numerically from 0.01 to 1.00\nStorage memories: 20 measurements\nHi/Lo Alarms: Audible & Visual (2 colour flashing backlight)\nLCD: Dot matrix\nPower Requirements: 2 x AA/LR6 batteries\nDimensions & weight: 254 mm x 191 mm - 965g\n",null,"No",5,{"v":249,"d":"249.00"},{"v":1245,"d":"1,245.00"}]
[552,"IR Thermometer","Tools","Section 42 Workshop","Temperature range: -40 to 650°C\nAccuracy: 1%\nResponse time: <500ms\nLaser sighting: Single point laser < 1mw class2\nDistance to spot: 30:1\nProbe(included): Type K bead thermocoupe\nEmissivity Adjustment: Material tablr & numerically from 0.01 to 1.00\nStorage memories: 20 measurements\nHi/Lo Alarms: Audible & Visual (2 colour flashing backlight)\nLCD: Dot matrix\nPower Requirements: 2 x AA/LR6 batteries\nDimensions & weight: 254 mm x 191 mm - 965g\n","FLUKE","No",3,{"$f":"3150/1.15","v":{"v":2739.130434782609,"d":"2,739.13"}},{"v":8217.391304347828,"d":"8,217.39"}]
[553,"IR Thermometer","Tools","Batch Plant Workshop","Temperature range: -40 to 650°C\nAccuracy: 1%\nResponse time: <500ms\nLaser sighting: Single point laser < 1mw class2\nDistance to spot: 30:1\nProbe(included): Type K bead thermocoupe\nEmissivity Adjustment: Material tablr & numerically from 0.01 to 1.00\nStorage memories: 20 measurements\nHi/Lo Alarms: Audible & Visual (2 colour flashing backlight)\nLCD: Dot matrix\nPower Requirements: 2 x AA/LR6 batteries\nDimensions & weight: 254 mm x 191 mm - 965g\n","FLUKE","No",2,{"$f":"9490","v":{"v":9490,"d":"9,490.00"}},{"v":18980,"d":"18,980.00"}]
[554,"jenny caliper","Tools","Section 42 Workshop","Outside spring joint caliper 200mm",null,"No",2,{"$f":"198/1.15","v":{"v":172.17391304347828,"d":"172.17"}},{"v":344.34782608695656,"d":"344.35"}]
[555,"jenny caliper","Tools","Batch Plant Workshop","Outside spring joint caliper 200mm",null,"No",2,{"$f":"198/1.15","v":{"v":172.17391304347828,"d":"172.17"}},{"v":344.34782608695656,"d":"344.35"}]
[556,"Jig Clamp horizontal ","Tools","Batch Plant Workshop","Horizontal 500 1bs",null,"No",10,{"v":580,"d":"580.00"},{"v":5800,"d":"5,800.00"}]
[557,"Jig clamp sliding","Tools","Batch Plant Workshop","Sliding 300 1bs Force",null,"No",10,{"$f":"450","v":{"v":450,"d":"450.00"}},{"v":4500,"d":"4,500.00"}]
[558,"Jig clamp Vertical","Tools","Batch Plant Workshop","Vertical 2001bs force",null,"No",10,{"v":345.4,"d":"345.40"},{"v":3454,"d":"3,454.00"}]
[559,"Jigsaw","Tools","Batch Plant Workshop","JIG SAW STROKE LENGTH 26MM ORBITAL ACTION BARREL BODY VAR. 720W. 800 -2800 strokes / minute","MIKITA","No",12,{"v":1795,"d":"1,795.00"},{"v":21540,"d":"21,540.00"}]
[560,"Jofra","Tools","Section 18 Auxiliary Bay Unit 1","Jofra 650SE Dry Block Calibrator",null,"No",1,{"v":289.9,"d":"289.90"},{"v":289.9,"d":"289.90"}]
[561,"Junior Hacksaw","Tools","Batch Plant Workshop",null,"GEDORE","No",12,{"$f":"289/1.15","v":{"v":251.30434782608697,"d":"251.30"}},{"v":3015.6521739130435,"d":"3,015.65"}]
[562,"Keyway cutting set","Tools","Section 42 Workshop","No.80 Metric Set\nKeway sizes:10,12,14\nBore sizes: 32,34,35,36,38,40,44,45,46,48,50",null,"No",1,{"v":1895,"d":"1,895.00"},{"v":1895,"d":"1,895.00"}]
[563,"Keyway cutting set","Tools","Batch Plant Workshop","No.80 Metric Set\nKeway sizes:10,12,14\nBore sizes: 32,34,35,36,38,40,44,45,46,48,50",null,"No",1,{"v":1895,"d":"1,895.00"},{"v":1895,"d":"1,895.00"}]
[564,"Label Maker",null,"Batch Plant Workshop","Electronic label maker, handheld labelling machine. PC connectability to import data logos and images, Thermal Transfer Printing on Dl plastic tape 6. 9, 12.19mm x 7m tape cassettes. ABC keyboard for easy navigation, prints 529 characters and unto 5-lines,","DYMO LABELPOINT 350","No",3,{"v":1350,"d":"1,350.00"},{"v":4050,"d":"4,050.00"}]
[565,"Label Maker","Tools","Section 42 Workshop","Electronic label maker, handheld labelling machine. PC connectability to import data logos and images, Thermal Transfer Printing on Dl plastic tape 6. 9, 12.19mm x 7m tape cassettes. ABC keyboard for easy navigation, prints 529 characters and unto 5-lines,",null,"No",1,{"v":1350,"d":"1,350.00"},{"v":1350,"d":"1,350.00"}]
[566,"Label Maker",null,"Mill Maintenance Workshop","Electronic label maker, handheld labelling machine. PC connectability to import data logos and images, Thermal Transfer Printing on Dl plastic tape 6. 9, 12.19mm x 7m tape cassettes. ABC keyboard for easy navigation, prints 529 characters and up to 5-lines,",null,"No",1,{"$f":"3300/1.15","v":{"v":2869.5652173913045,"d":"2,869.57"}},{"v":2869.5652173913045,"d":"2,869.57"}]
[567,"Label Maker","Tools","Batch Plant Workshop","Electronic label maker, handheld labelling machine. PC connectability to import data logos and images, Thermal Transfer Printing on Dl plastic tape 6. 9, 12.19mm x 7m tape cassettes. ABC keyboard for easy navigation, prints 529 characters and up to 5-lines,",null,"No",1,{"v":1350,"d":"1,350.00"},{"v":1350,"d":"1,350.00"}]
[568,"Ladder 2.4m","Tools","Batch Plant Workshop","Ladder, 2.4 m, heavy duty, Working load 135 kg, High shear strength rivets, non-slip & non-scuff feet, rust, rot and splinter proof & heavy duty locking bars","ISAACSON LADDERS","No",8,{"v":1999.5,"d":"1,999.50"},{"v":15996,"d":"15,996.00"}]
[569,"Ladder 2.4m","Tools","Section 42 Workshop","Ladder, 2.4 m, heavy duty, Working load 135 kg, High shear strength rivets, non-slip & non-scuff feet, rust, rot and splinter proof & heavy duty locking bars",null,"No",2,{"v":1999.5,"d":"1,999.50"},{"v":3999,"d":"3,999.00"}]
[570,"Ladder 2.4m","Tools","ERI Turbo Gen Services (TGS) Workshop 12","Ladder, 2.4 m, heavy duty, Working load 135 kg, High shear strength rivets, non-slip & non-scuff feet, rust, rot and splinter proof & heavy duty locking bars",null,"No",1,{"v":1999.5,"d":"1,999.50"},{"v":1999.5,"d":"1,999.50"}]
[571,"Ladder 2.4m","Tools","Section 42 Workshop","Ladder, 2.4 m, heavy duty, Working load 135 kg, High shear strength rivets, non-slip & non-scuff feet, rust, rot and splinter proof & heavy duty locking bars",null,"No",1,{"v":1399.5,"d":"1,399.50"},{"v":1399.5,"d":"1,399.50"}]
[572,"Ladder 2.4m","Tools","Mill Maintenance Workshop","Ladder, 2.4 m, heavy duty, Working load 135 kg, High shear strength rivets, non-slip & non-scuff feet, rust, rot and splinter proof & heavy duty locking bars",null,"No",1,{"v":1399.5,"d":"1,399.50"},{"v":1399.5,"d":"1,399.50"}]
[573,"Ladder 2.4m","Tools","Batch Plant Workshop","Ladder, 2.4 m, heavy duty, Working load 135 kg, High shear strength rivets, non-slip & non-scuff feet, rust, rot and splinter proof & heavy duty locking bars",null,"No",2,{"v":1399.5,"d":"1,399.50"},{"v":2799,"d":"2,799.00"}]
[574,"Ladder 4.8m","Tools","Batch Plant Workshop","Ladder, 4.8 m, heavy duty, Working load 135 kg, High shear strength rivets, non-slip & non-scuff feet, rust, rot and splinter proof & heavy duty locking bars","ISAACSON LADDERS","No",6,{"v":1653.5,"d":"1,653.50"},{"v":9921,"d":"9,921.00"}]
[575,"Ladder 4.8m","Tools","Section 42 Workshop","Ladder, 4.8 m, heavy duty, Working load 135 kg, High shear strength rivets, non-slip & non-scuff feet, rust, rot and splinter proof & heavy duty locking bars",null,"No",2,{"v":1653.5,"d":"1,653.50"},{"v":3307,"d":"3,307.00"}]
[576,"Ladder 4.8m","Tools","ERI Turbo Gen Services (TGS) Workshop 13","Ladder, 4.8 m, heavy duty, Working load 135 kg, High shear strength rivets, non-slip & non-scuff feet, rust, rot and splinter proof & heavy duty locking bars",null,"No",1,{"v":1653.5,"d":"1,653.50"},{"v":1653.5,"d":"1,653.50"}]
[577,"Ladder 4.8m","Tools","Section 42 Workshop","Ladder, 4.8 m, heavy duty, Working load 135 kg, High shear strength rivets, non-slip & non-scuff feet, rust, rot and splinter proof & heavy duty locking bars",null,"No",1,{"v":1653.5,"d":"1,653.50"},{"v":1653.5,"d":"1,653.50"}]
[578,"Ladder 4.8m","Tools","Batch Plant Workshop","Ladder, 4.8 m, heavy duty, Working load 135 kg, High shear strength rivets, non-slip & non-scuff feet, rust, rot and splinter proof & heavy duty locking bars",null,"No",1,{"v":1653.5,"d":"1,653.50"},{"v":1653.5,"d":"1,653.50"}]
[579,"Ladder 9m","Tools","Section 42 Workshop","Heavy duty extension Ladder, closed height 4.8m and extended height 9m. Non-slip PVC feet. Pole rung and safety chain fitted",null,"No",2,{"v":3299,"d":"3,299.00"},{"v":6598,"d":"6,598.00"}]
[580,"Ladder 9m","Tools","ERI Turbo Gen Services (TGS) Workshop 14","Heavy duty extension Ladder, closed height 4.8m and extended height 9m. Non-slip PVC feet. Pole rung and safety chain fitted",null,"No",1,{"v":3299,"d":"3,299.00"},{"v":3299,"d":"3,299.00"}]
[581,"Ladder 9m","Tools","Section 42 Workshop","Heavy duty extension Ladder, closed height 4.8m and extended height 9m. Non-slip PVC feet. Pole rung and safety chain fitted",null,"No",1,{"v":3299,"d":"3,299.00"},{"v":3299,"d":"3,299.00"}]
[582,"Ladder 9m","Tools","Batch Plant Workshop","Heavy duty extension Ladder, closed height 4.8m and extended height 9m. Non-slip PVC feet. Pole rung and safety chain fitted",null,"No",1,{"v":3299,"d":"3,299.00"},{"v":3299,"d":"3,299.00"}]
[583,"LAP MASTER","Tools","Section 42 Workshop","Floor standing machine, Model Type: 40, Condition Rings: 3,  Ring ID : 465mm, Plate Diameter: 1016, Working Height: 965mm, Standard RPM: 60, RPM Range: 0 - 70, Drive Motor Lapper: 5.6kW, Drive Motor polisher: 7.5kW,  L: 1072mm, W: 1397mm, H:1473mm, , shipping weight: 1851kg",null,"No",4,{"$f":"10890/1.15","v":{"v":9469.565217391306,"d":"9,469.57"}},{"v":37878.26086956522,"d":"37,878.26"}]
[584,"Laser alignment system","Tools","Section 42 Workshop","Specifications: System Programs - Horizontal shaft alignment, Softfoot, Measurement distance, Up to 33 feet [10 m] Temperature range 32–122°F [0–50°C] Relative humidity 10–95% Max.displayed error  +1% +1 digit Carrying case WxHxD: 16\"x12\"x4\" [420x320x110 m",null,"No",2,{"$f":"37809.4/1.15","v":{"v":32877.739130434784,"d":"32,877.74"}},{"v":65755.47826086957,"d":"65,755.48"}]
[585,"Laser alignment system","Tools","Section 42 Workshop","Specifications: System Programs - Horizontal shaft alignment, Softfoot, Measurement distance, Up to 33 feet [10 m] Temperature range 32–122°F [0–50°C] Relative humidity 10–95% Max.displayed error  +1% +1 digit Carrying case WxHxD: 16\"x12\"x4\" [420x320x110 m",null,"No",1,{"$f":"37809.4/1.15","v":{"v":32877.739130434784,"d":"32,877.74"}},{"v":32877.739130434784,"d":"32,877.74"}]
[586,"Laser alignment system","Tools","Batch Plant Workshop","Specifications: System Programs - Horizontal shaft alignment, Softfoot, Measurement distance, Up to 33 feet [10 m] Temperature range 32–122°F [0–50°C] Relative humidity 10–95% Max.displayed error  +1% +1 digit Carrying case WxHxD: 16\"x12\"x4\" [420x320x110 m",null,"No",1,{"$f":"37809.4/1.15","v":{"v":32877.739130434784,"d":"32,877.74"}},{"v":32877.739130434784,"d":"32,877.74"}]
[587,"Laser Cutter","Tools","Welding Workshop","Bystar 3015, 4.4kW",null,"No",2,{"v":42560,"d":"42,560.00"},{"v":85120,"d":"85,120.00"}]
[588,"Led light","Tools","Batch Plant Workshop","220Vac with 20m cable",null,"No",12,null,0]
[589,"Led light","Tools","Section 42 Workshop","220Vac with 20m cable, LEAD LIGHT,USC0160,220VOLT,C/W 5M CABLE",null,"No",15,{"v":862.5,"d":"862.50"},{"v":12937.5,"d":"12,937.50"}]
[590,"Led light","Tools","ERI Turbo Gen Services (TGS) Workshop 13","220Vac with 20m cable, LEAD LIGHT,USC0160,220VOLT,C/W 5M CABLE",null,"No",2,{"v":862.5,"d":"862.50"},{"$f":"I600*H600","v":{"v":1725,"d":"1,725.00"}}]
[591,"Led light","Tools","ERI Turbo Gen Services (TGS) Workshop 15","220Vac with 20m cable, LEAD LIGHT,USC0160,220VOLT,C/W 5M CABLE",null,"No",2,{"v":862.5,"d":"862.50"},{"v":1725,"d":"1,725.00"}]
[592,"Led light","Tools","Section 42 Workshop","220Vac with 20m cable, LEAD LIGHT,USC0160,220VOLT,C/W 5M CABLE",null,"No",2,{"v":862.5,"d":"862.50"},{"v":1725,"d":"1,725.00"}]
[593,"Led light","Tools","Mill Maintenance Workshop","220Vac with 20m cable, LEAD LIGHT,USC0160,220VOLT,C/W 5M CABLE",null,"No",2,{"v":862.5,"d":"862.50"},{"v":1725,"d":"1,725.00"}]
[594,"Led light","Tools","Welding Workshop","220Vac with 20m cable, LEAD LIGHT,USC0160,220VOLT,C/W 5M CABLE",null,"No",2,{"v":862.5,"d":"862.50"},{"v":1725,"d":"1,725.00"}]
[595,"Led light","Tools","Batch Plant Workshop","220Vac with 20m cable, LEAD LIGHT,USC0160,220VOLT,C/W 5M CABLE",null,"No",15,{"v":862.5,"d":"862.50"},{"v":12937.5,"d":"12,937.50"}]
[596,"Letter set punches","Tools","Batch Plant Workshop","6mm print height. 27 letter. To label finished parts such sign, tools etc. Made from hardened steel, with harden handle and tempered striking head in plastic set",null,"No",10,{"$f":"292/1.15","v":{"v":253.9130434782609,"d":"253.91"}},{"v":2539.130434782609,"d":"2,539.13"}]
[597,"Links & Reducers, Low Clearance Predator Series","Tools","Section 42 Workshop","39 024 Nm Max Torque, 700bar",null,"No",1,{"v":1649,"d":"1,649.00"},{"v":1649,"d":"1,649.00"}]
[598,"Links & Reducers, Low Clearance Predator Series","Tools","Section 42 Workshop","39 024 Nm Max Torque, 700bar",null,"No",1,{"v":1649,"d":"1,649.00"},{"v":1649,"d":"1,649.00"}]
[599,"Links & Reducers, Low Clearance Predator Series","Tools","Batch Plant Workshop","39 024 Nm Max Torque, 700bar",null,"No",1,{"v":1649,"d":"1,649.00"},{"v":1649,"d":"1,649.00"}]
[600,"Links & Reducers, Low Clearance Predator Series","Tools","Batch Plant Workshop","39 024 Nm Max Torque, 700bar",null,"No",1,{"v":1649,"d":"1,649.00"},{"v":1649,"d":"1,649.00"}]
[601,"Locking Collar Cylinder RC Series","Tools","Section 42 Workshop","1220 tons Cylinder Cap, 250mm Stroke ",null,"No",2,597.68,{"v":1195.36,"d":"1,195.36"}]
[602,"Locking Collar Cylinder RC Series","Tools","Section 42 Workshop","962 tons Cylinder Cap, 150mm Stroke ",null,"No",2,597.68,{"v":1195.36,"d":"1,195.36"}]
[603,"locking tape measure 10m","Tools","Section 42 Workshop",null,"Stanley","No",4,290.43,{"v":1161.72,"d":"1,161.72"}]
[604,"locking tape measure 10m","Tools","Batch Plant Workshop",null,"Stanley","No",4,290.43,{"v":1161.72,"d":"1,161.72"}]
[605,"Long jaw caliper 0(20) - 1000mm","Tools","Section 42 Workshop","With inside & outside measurement scale\nAccuracy +/- 0.15mm\nWith fine adjustment","Mitutoyo","No",2,{"v":718,"d":"718.00"},{"v":1436,"d":"1,436.00"}]
[606,"Long jaw caliper 0(20) - 1000mm","Tools","Batch Plant Workshop","With inside & outside measurement scale\nAccuracy +/- 0.15mm\nWith fine adjustment","Mitutoyo","No",1,{"v":718,"d":"718.00"},{"v":718,"d":"718.00"}]
[607,"Magnetic Base Drill","Tools","Section 42 Workshop","Lightweight at 14.6kg - ideal for use on site on in a workshop\nMagnet Footprint of 165mm x 80mm\n750kgs magnetic adhesion\nHeight 510mm / Width 180mm Exc. bottle / Length 265mm\nCuts holes up to 40mm diameter x 50mm deep\n19.05mm (3/4\") Spindle Bore\n1100 watt motor - 110V full load 11 amps / 230V full load 5 amps\n350 - 600 rpm no load\nFeed capstan may be reversed for easy positioning in tight areas\nVariable speed - the right speed for the right diameter\nAutomatic coolant bottle\nSupplied with chuck adaptor and 13mm twist drill chuck\nSupplied with secure carrying case\nClutch and electronic overload Safety Features\n\n",null,"No",2,{"v":14295,"d":"14,295.00"},{"v":28590,"d":"28,590.00"}]
[608,"Magnetic Base Drill","Tools","Batch Plant Workshop","Lightweight at 14.6kg - ideal for use on site on in a workshop\nMagnet Footprint of 165mm x 80mm\n750kgs magnetic adhesion\nHeight 510mm / Width 180mm Exc. bottle / Length 265mm\nCuts holes up to 40mm diameter x 50mm deep\n19.05mm (3/4\") Spindle Bore\n1100 watt motor - 110V full load 11 amps / 230V full load 5 amps\n350 - 600 rpm no load\nFeed capstan may be reversed for easy positioning in tight areas\nVariable speed - the right speed for the right diameter\nAutomatic coolant bottle\nSupplied with chuck adaptor and 13mm twist drill chuck\nSupplied with secure carrying case\nClutch and electronic overload Safety Features\n\n",null,"No",1,{"$f":"I617","v":{"v":14295,"d":"14,295.00"}},{"v":14295,"d":"14,295.00"}]
[609,"Manifold gauge set","Tools","Batch Plant Workshop","R-410A side wheel manifold with gauges and hoses ","Off the shelf ","No",3,{"v":1984.4,"d":"1,984.40"},{"v":5953.200000000001,"d":"5,953.20"}]
[610,"Mechanical tension meter","Tools","Section 42 Workshop","• Includes flexible type sensor \n• 40 Memory Registers for Belt Constants\n• Max Frequency of 5000 Hz\n• Auto Microphone Gain Control\n• Variable Frequency Range Filters","Gates","No",2,{"$f":"33270/1.15","v":{"v":28930.4347826087,"d":"28,930.43"}},{"v":57860.8695652174,"d":"57,860.87"}]
[611,"Mechanical tension meter","Tools","Batch Plant Workshop","• Includes flexible type sensor \n• 40 Memory Registers for Belt Constants\n• Max Frequency of 5000 Hz\n• Auto Microphone Gain Control\n• Variable Frequency Range Filters","Gates","No",1,{"$f":"33270/1.15","v":{"v":28930.4347826087,"d":"28,930.43"}},{"v":28930.4347826087,"d":"28,930.43"}]
[612,"Metric Tap and Die Set in Wooden Box\n\n","Tools","Batch Plant Workshop","6 - 24 mm coarse, M6, M8, M10, M12, M14, M16, M18, M20, M22, M24 - Each set contains 2 Taps per size (Plug and Bottom Lead) with the corresponding Die, appropriate Tap wrench and Die Stock.","GEDORE","No",10,{"$f":"4449/1.15","v":{"v":3868.6956521739135,"d":"3,868.70"}},{"v":38686.956521739135,"d":"38,686.96"}]
[613,"Metric Tap and Die Set in Wooden Box\n\n","Tools","Section 42 Workshop","6 - 24 mm coarse, M6, M8, M10, M12, M14, M16, M18, M20, M22, M24 - Each set contains 2 Taps per size (Plug and Bottom Lead) with the corresponding Die, appropriate Tap wrench and Die Stock. (BSW, BSF, UNC, UNF up to 1inch, BSPF, BSPT up to 2 inch & Metric",null,"No",4,{"$f":"4449/1.15","v":{"v":3868.6956521739135,"d":"3,868.70"}},{"v":15474.782608695654,"d":"15,474.78"}]
[614,"Metric Tap and Die Set in Wooden Box\n\n","Tools","ERI Turbo Gen Services (TGS) Workshop 14","6 - 24 mm coarse, M6, M8, M10, M12, M14, M16, M18, M20, M22, M24 - Each set contains 2 Taps per size (Plug and Bottom Lead) with the corresponding Die, appropriate Tap wrench and Die Stock.",null,"No",2,{"v":3868.6956521739135,"d":"3,868.70"},{"v":7737.391304347827,"d":"7,737.39"}]
[615,"Metric Tap and Die Set in Wooden Box\n\n","Tools","Section 42 Workshop","6 - 24 mm coarse, M6, M8, M10, M12, M14, M16, M18, M20, M22, M24 - Each set contains 2 Taps per size (Plug and Bottom Lead) with the corresponding Die, appropriate Tap wrench and Die Stock.",null,"No",2,{"v":3868.6956521739135,"d":"3,868.70"},{"v":7737.391304347827,"d":"7,737.39"}]
[616,"Metric Tap and Die Set in Wooden Box\n\n","Tools","Mill Maintenance Workshop","6 - 24 mm coarse, M6, M8, M10, M12, M14, M16, M18, M20, M22, M24 - Each set contains 2 Taps per size (Plug and Bottom Lead) with the corresponding Die, appropriate Tap wrench and Die Stock.",null,"No",2,{"v":3868.6956521739135,"d":"3,868.70"},{"v":7737.391304347827,"d":"7,737.39"}]
[617,"Metric Tap and Die Set in Wooden Box\n\n","Tools","Batch Plant Workshop","6 - 24 mm coarse, M6, M8, M10, M12, M14, M16, M18, M20, M22, M24 - Each set contains 2 Taps per size (Plug and Bottom Lead) with the corresponding Die, appropriate Tap wrench and Die Stock. (BSW, BSF, UNC, UNF up to 1inch, BSPF, BSPT up to 2 inch & Metric",null,"No",4,{"v":3868.6956521739135,"d":"3,868.70"},{"v":15474.782608695654,"d":"15,474.78"}]
[618,"Microwave leakage tester","Tools","Section 19 Auxiliary Bay Unit 2","Supply: 9V alkaline battery. Warning Value: 5mW/cm2. Frequency of Operation: Calibrated to 2450MHz. Accuracy: ± 1d","FLUKE","No",2,{"v":4650,"d":"4,650.00"},{"v":9300,"d":"9,300.00"}]
[619,"Microwave leakage tester","Tools","Section 42: Workshop and Stores building","Supply: 9V alkaline battery. Warning Value: 5mW/cm2. Frequency of Operation: Calibrated to 2450MHz. Accuracy: ± 1d","FLUKE","No",2,{"v":4650,"d":"4,650.00"},{"v":9300,"d":"9,300.00"}]
[620,"Microwave leakage tester","Tools","Batch Plant Workshop","Supply: 9V alkaline battery. Warning Value: 5mW/cm2. Frequency of Operation: Calibrated to 2450MHz. Accuracy: ± 1d","FLUKE","No",1,{"v":4650,"d":"4,650.00"},{"v":4650,"d":"4,650.00"}]
[621,"milliamp source","Tools","Section 18 Auxiliary Bay Unit 1","HT ITALIA HT8051 Multifunction Process Calibrator 4-20mA / 0-10V",null,"No",2,{"v":5600,"d":"5,600.00"},{"v":11200,"d":"11,200.00"}]
[622,"modular deburring tool universal handle and blade set /b10","Tools","Section 42 Workshop",null,null,"No",6,{"$f":"3250.1","v":{"v":3250.1,"d":"3,250.10"}},{"v":19500.6,"d":"19,500.60"}]
[623,"modular deburring tool universal handle and blade set /b10","Tools","Batch Plant Workshop",null,null,"No",3,{"$f":"3250.1","v":{"v":3250.1,"d":"3,250.10"}},{"v":9750.3,"d":"9,750.30"}]
[624,"Monkey Wrench ","Tools","Section 42 Workshop","Size (In.) 18\"  Jaw Opening 4 3/8\"",null,"No",2,348.49,696.98]
[625,"Monkey Wrench ","Tools","ERI Turbo Gen Services (TGS) Workshop 16","Size (In.) 18\"  Jaw Opening 4 3/8\"",null,"No",2,348.49,696.98]
[626,"Monkey Wrench ","Tools","ERI Turbo Gen Services (TGS) Workshop 16","Size (In.) 18\"  Jaw Opening 4 3/8\"",null,"No",2,348.49,696.98]
[627,"Monkey Wrench ","Tools","Section 42 Workshop","Size (In.) 18\"  Jaw Opening 4 3/8\"",null,"No",2,348.49,696.98]
[628,"Monkey Wrench ","Tools","Mill Maintenance Workshop","Size (In.) 18\"  Jaw Opening 4 3/8\"",null,"No",2,348.49,696.98]
[629,"Monkey Wrench ","Tools","Welding Workshop","Size (In.) 18\"  Jaw Opening 4 3/8\"",null,"No",2,348.49,696.98]
[630,"Monkey Wrench ","Tools","Batch Plant Workshop","Size (In.) 18\"  Jaw Opening 4 3/8\"",null,"No",2,348.49,696.98]
[631,"Monkey Wrench set ","Tools","Batch Plant Workshop","Size (In.) 6,8,10,12, and 18\"  Jaw Opening 4 3/8\"","GEDORE","No",8,{"v":1840,"d":"1,840.00"},{"v":14720,"d":"14,720.00"}]
[632,"Multi pipe bender ","Tools","Section 18 Auxiliary Bay Unit 1","All metal multi-purpose tube bender for 3/16 in., 1/4 in. 5/16 in. and 3/8 in. (4, 6, 8,10 and 12mm) O.D. tubing",null,"No",1,{"v":438,"d":"438.00"},{"v":438,"d":"438.00"}]
[633,"Multimeter with leads","Tools","16 M Level Workshop","Fluke -1000 V  True RMS Multimeter - Approved for use in Eskom","FLUKE","No",2,{"v":4650,"d":"4,650.00"},{"v":9300,"d":"9,300.00"}]
[634,"Multimeter with leads","Tools","Section 19 Auxiliary Bay Unit 2","Fluke -1000 V  True RMS Multimeter - Approved for use in Eskom","FLUKE","No",4,{"v":4650,"d":"4,650.00"},{"v":18600,"d":"18,600.00"}]
[635,"Multimeter with leads","Tools","Section 42: Workshop and Stores building","Fluke -1000 V  True RMS Multimeter - Approved for use in Eskom","FLUKE","No",4,{"v":4650,"d":"4,650.00"},{"v":18600,"d":"18,600.00"}]
[636,"Multimeter with leads","Tools","Batch Plant Workshop","Fluke -1000 V  True RMS Multimeter - Approved for use in Eskom","FLUKE","No",2,{"v":4650,"d":"4,650.00"},{"v":9300,"d":"9,300.00"}]
[637,"needle file set 12 piece x 160mm","Tools","Section 42 Workshop",null,null,"No",3,{"v":270,"d":"270.00"},{"v":810,"d":"810.00"}]
[638,"needle file set 12 piece x 160mm","Tools","Batch Plant Workshop",null,null,"No",3,{"v":270,"d":"270.00"},{"v":810,"d":"810.00"}]
[639,"Number set punches","Tools","Batch Plant Workshop","6mm print height. 9 numbers. To label finished parts such sign, tools etc. Made from hardened steel, with harden handle and tempered striking head in plastic set","GEDORE","No",10,{"v":109,"d":"109.00"},{"v":1090,"d":"1,090.00"}]
[640,"Nut Splitters Hydraulic","Tools","Section 42 Workshop","25 ton capacity",null,"No",5,{"$f":"I524","v":{"v":2150,"d":"2,150.00"}},{"v":10750,"d":"10,750.00"}]
[641,"Nut Splitters Hydraulic","Tools","Batch Plant Workshop","25 ton capacity",null,"No",1,{"$f":"I525","v":{"v":2150,"d":"2,150.00"}},{"v":2150,"d":"2,150.00"}]
[642,"nylon faced hammer 32mm face dia","Tools","Section 42 Workshop",null,null,"No",3,{"v":293,"d":"293.00"},{"v":879,"d":"879.00"}]
[643,"nylon faced hammer 32mm face dia","Tools","Batch Plant Workshop",null,null,"No",3,{"v":293,"d":"293.00"},{"v":879,"d":"879.00"}]
[644,"Oblong lifting ring","Tools","Section 42 Workshop","10 Ton",null,"No",2,{"v":245,"d":"245.00"},{"v":490,"d":"490.00"}]
[645,"Oblong lifting ring","Tools","Section 42 Workshop","15 Ton",null,"No",8,{"v":320,"d":"320.00"},{"v":2560,"d":"2,560.00"}]
[646,"Oblong lifting ring","Tools","Section 42 Workshop","20 Ton",null,"No",6,{"v":630,"d":"630.00"},{"v":3780,"d":"3,780.00"}]
[647,"Oblong lifting ring","Tools","Batch Plant Workshop","10 Ton",null,"No",2,{"v":245,"d":"245.00"},{"v":490,"d":"490.00"}]
[648,"Oblong lifting ring","Tools","Batch Plant Workshop","15 Ton",null,"No",2,{"v":320,"d":"320.00"},{"v":640,"d":"640.00"}]
[649,"Oblong lifting ring","Tools","Batch Plant Workshop","20 Ton",null,"No",2,{"v":630,"d":"630.00"},{"v":1260,"d":"1,260.00"}]
[650,"Oil drum Pump for transformer topping","Tools","Batch Plant Workshop","Barrel pump suitable for 200L or 220L barrels, transferring diesel oil.",null,"No",2,{"$f":"1063/1.15","v":{"v":924.3478260869566,"d":"924.35"}},{"v":1848.6956521739132,"d":"1,848.70"}]
[651,"Pallet Trolley - Low profile","Tools","Section 42 Workshop","Capacity (kg) 2000, Lowered fork height h1(mm) 65, Total lift height h2(mm) 160, Fork length L(mm) 1000, Width over the forks W(mm) 685, Hand operated hydraulic jack, Fork wheel B(mm) D 64",null,"No",1,{"$f":"3595/1.15","v":{"v":3126.0869565217395,"d":"3,126.09"}},{"v":3126.0869565217395,"d":"3,126.09"}]
[652,"Pancake Cylinder Locking Collar  RC Series","Tools","Section 42 Workshop","620 tons Cylinder Cap, 50mm Stroke ",null,"No",2,{"v":18950,"d":"18,950.00"},{"v":37900,"d":"37,900.00"}]
[653,"Pedestal drilling machine - normal","Tools","Section 18 Auxiliary Bay Unit 1","Drill capacity 14mm steel, 700W variable speed 450 - 4000 rpm, Depth of feed 60mm, chuck size 24mm",null,"No",2,{"$f":"4449.3/1.15","v":{"v":3868.956521739131,"d":"3,868.96"}},{"v":7737.913043478262,"d":"7,737.91"}]
[654,"Pedestal grinder","Tools","Section 18 Auxiliary Bay Unit 1","220v 300W, two grinding discs, speed 2950rpm, disc size 150x20#36 and 150x40#80",null,"No",2,{"$f":"2400/1.15","v":{"v":2086.9565217391305,"d":"2,086.96"}},{"$f":"I664*H664","v":{"v":4173.913043478261,"d":"4,173.91"}}]
[655,"Pipe bender - big size up to 3\"","Tools ","Section 18 Auxiliary Bay Unit 1","pipe bender 6,8,10 and 12\" \"Wika\"",null,"No",2,{"v":498.5,"d":"498.50"},{"v":997,"d":"997.00"}]
[656,"Pipe Cutter ","Tools","Section 18 Auxiliary Bay Unit 1","Heavy Duty Tube Cutter for 1/8\" to 1 1/8\" (4 to 28mm) O.D. Cutter includes retractable reamer/file and spare carbide cutting wheel. Carbide wheel cuts hard and soft copper, aluminium, brass, thin wall steel and stainless steel.","IMPERIAL EASTMAN","No",1,{"v":498.5,"d":"498.50"},{"v":498.5,"d":"498.50"}]
[657,"Pipe Flange Hydraulic Spreaders","Tools","Section 42 Workshop","10 ton",null,"No",5,{"v":3459,"d":"3,459.00"},{"v":17295,"d":"17,295.00"}]
[658,"Pipe Flange Hydraulic Spreaders","Tools","Batch Plant Workshop","10 ton",null,"No",1,{"v":3459,"d":"3,459.00"},{"v":3459,"d":"3,459.00"}]
[659,"Plier - 140mm Round nose ","Tools","Batch Plant Workshop","Serrated gripping surfaces. Short Jaw. DIN ISO 5745",null,"No",12,{"v":263,"d":"263.00"},{"v":3156,"d":"3,156.00"}]
[660,"Plier - 200mm Long nose ","Tools","Batch Plant Workshop","Flat- round taped jaws, Straight gripping faces, serrated. induction-hardened precision cutting edges, hardness approx. 64HRC. DIN ISO 5745","GEDORE","No",12,{"v":368.3,"d":"368.30"},{"v":4419.6,"d":"4,419.60"}]
[661,"Pliers V Jaw  - Tongue and Groove (Water pump Pliers)","Tools","Batch Plant Workshop","16 Inch,  Capacity: 4.25\" Adjustments: 8 ","GEDORE","No",8,{"v":450,"d":"450.00"},{"v":3600,"d":"3,600.00"}]
[662,"Pliers V Jaw  - Tongue and Groove (Water pump Pliers)","Tools","Section 42 Workshop","16 Inch,  Capacity: 4.25\" Adjustments: 8, PLIER,WATERPUMP,CURVED JAW,400MM (16\")",null,"No",2,{"v":450,"d":"450.00"},{"v":900,"d":"900.00"}]
[663,"Pliers V Jaw  - Tongue and Groove (Water pump Pliers)","Tools","ERI Turbo Gen Services (TGS) Workshop 17","16 Inch,  Capacity: 4.25\" Adjustments: 8, PLIER,WATERPUMP,CURVED JAW,400MM (16\")",null,"No",2,{"v":450,"d":"450.00"},{"v":900,"d":"900.00"}]
[664,"Pliers V Jaw  - Tongue and Groove (Water pump Pliers)","Tools","ERI Turbo Gen Services (TGS) Workshop 17","16 Inch,  Capacity: 4.25\" Adjustments: 8, PLIER,WATERPUMP,CURVED JAW,400MM (16\")",null,"No",2,{"v":450,"d":"450.00"},{"v":900,"d":"900.00"}]
[665,"Pliers V Jaw  - Tongue and Groove (Water pump Pliers)","Tools","Section 42 Workshop","16 Inch,  Capacity: 4.25\" Adjustments: 8, PLIER,WATERPUMP,CURVED JAW,400MM (16\")",null,"No",2,{"v":450,"d":"450.00"},{"v":900,"d":"900.00"}]
[666,"Pliers V Jaw  - Tongue and Groove (Water pump Pliers)","Tools","Mill Maintenance Workshop","16 Inch,  Capacity: 4.25\" Adjustments: 8, PLIER,WATERPUMP,CURVED JAW,400MM (16\")","Gedore","No",2,{"v":450,"d":"450.00"},{"v":900,"d":"900.00"}]
[667,"Pliers V Jaw  - Tongue and Groove (Water pump Pliers)","Tools","Welding Workshop","16 Inch,  Capacity: 4.25\" Adjustments: 8, PLIER,WATERPUMP,CURVED JAW,400MM (16\")",null,"No",2,{"v":450,"d":"450.00"},{"v":900,"d":"900.00"}]
[668,"Pliers V Jaw  - Tongue and Groove (Water pump Pliers)","Tools","Batch Plant Workshop","16 Inch,  Capacity: 4.25\" Adjustments: 8, PLIER,WATERPUMP,CURVED JAW,400MM (16\")",null,"No",2,{"v":450,"d":"450.00"},{"v":900,"d":"900.00"}]
[669,"Pop rivet Gun","Tools","Batch Plant Workshop","Swivel head professional rivet tool. Ideal \nfor the tradesman and heavy use DIYer. Rivet head swivels 360° for riveting at any angle. Improved handle leverage allows for easy use. Includes nose piece wrench. Fastens metal,",null,"No",8,{"v":1650.35,"d":"1,650.35"},{"v":13202.8,"d":"13,202.80"}]
[670,"Portable Compressor and 100m Hose","Tools","Section 18 Auxiliary Bay Unit 1","l/MIN = 653\nCFM = 22,9\nHP = 5,5\nkW = 4\nRPM = 1400\nVOLT = 400/3/50\nBAR = 11\nLXWXH (mm) = 1575x60x1150\nKG = 157, and Braid, Compressed Air Hose\n\n",null,"No",1,{"$f":"3999.9/1.15","v":{"v":3478.1739130434785,"d":"3,478.17"}},{"v":3478.1739130434785,"d":"3,478.17"}]
[671,"Portable cordless drill","Tools","Batch Plant Workshop","Torque: 28 Nm/10 Nm, Drill diameter in: Steel: 16 mm/8 mm \n Soft wood: 40 mm/25 mm, Idle revolution: 0 - 900 / 0 - 2.600 /min ",null,"No",12,{"v":3095,"d":"3,095.00"},{"v":37140,"d":"37,140.00"}]
[672,"Portable High Tonnage Jacks","Tools","Section 42 Workshop","Jack\n100 ton RR 37\" Ret, Elect\nStroke: 686mm\nRetracted Height: 940mm",null,"No",1,{"$f":"33500/1.15","v":{"v":29130.4347826087,"d":"29,130.43"}},{"v":29130.4347826087,"d":"29,130.43"}]
[673,"Portable High Tonnage Jacks","Tools","Batch Plant Workshop","Jack\n100 ton RR 37\" Ret, Elect\nStroke: 686mm\nRetracted Height: 940mm",null,"No",1,{"$f":"33500/1.15","v":{"v":29130.4347826087,"d":"29,130.43"}},{"v":29130.4347826087,"d":"29,130.43"}]
[674,"Pressure calibrator 0-20 bar","Tools","Section 18 Auxiliary Bay Unit 1","Range 0 - 2000 kPa  \"Wika\"","Wika","No",2,{"$f":"5943/1.15","v":{"v":5167.826086956522,"d":"5,167.83"}},{"v":10335.652173913044,"d":"10,335.65"}]
[675,"protractor type depth and angle gauge","Tools","Section 42 Workshop",null,null,"No",2,{"v":220,"d":"220.00"},{"v":440,"d":"440.00"}]
[676,"protractor type depth and angle gauge","Tools","Batch Plant Workshop",null,null,"No",2,{"v":220,"d":"220.00"},{"v":440,"d":"440.00"}]
[677,"Pull lift 1.5 ton","Tools","Section 42 Workshop","Lever hoist - Capacity (tons) 1.5, Standard Lift (m) 1.5, Net Weight (kg) 9.7, Minimum Distance Between Hooks (mm) 335, Pull on lever to Lift Full Load (kg) 18, Chain Thickness (mm) 7.1",null,"No",2,{"v":1655,"d":"1,655.00"},{"v":3310,"d":"3,310.00"}]
[678,"Pull lift 1.5 ton","Tools","Section 42 Workshop","Lever hoist - Capacity (tons) 1.5, Standard Lift (m) 1.5, Net Weight (kg) 9.7, Minimum Distance Between Hooks (mm) 335, Pull on lever to Lift Full Load (kg) 18, Chain Thickness (mm) 7.1",null,"No",2,{"v":1655,"d":"1,655.00"},{"v":3310,"d":"3,310.00"}]
[679,"Pull lift 1.5 ton","Tools","Batch Plant Workshop","Lever hoist - Capacity (tons) 1.5, Standard Lift (m) 1.5, Net Weight (kg) 9.7, Minimum Distance Between Hooks (mm) 335, Pull on lever to Lift Full Load (kg) 18, Chain Thickness (mm) 7.1",null,"No",1,{"v":1655,"d":"1,655.00"},{"v":1655,"d":"1,655.00"}]
[680,"Pull lift 3 ton","Tools","Section 42 Workshop","Lever hoist - Capacity (tons) 3, Standard Lift (m) 1.5, Net Weight (kg) 17.5, Minimum Distance Between Hooks (mm) 550, Pull on lever to Lift Full Load (kg) 39, Chain Thickness (mm) 9",null,"No",4,{"v":1911.5,"d":"1,911.50"},{"v":7646,"d":"7,646.00"}]
[681,"Pull lift 3 ton","Tools","Batch Plant Workshop","Lever hoist - Capacity (tons) 3, Standard Lift (m) 1.5, Net Weight (kg) 17.5, Minimum Distance Between Hooks (mm) 550, Pull on lever to Lift Full Load (kg) 39, Chain Thickness (mm) 9",null,"No",1,{"v":1911.5,"d":"1,911.50"},{"v":1911.5,"d":"1,911.50"}]
[682,"Pull lift 6 ton","Tools","Section 42 Workshop","Lever hoist - Capacity (tons) 6, Standard Lift (m) 1.5, Net Weight (kg) 26.7, Minimum Distance Between Hooks (mm) 550, Pull on lever to Lift Full Load (kg) 39, Chain Thickness (mm) 9",null,"No",2,{"v":2339,"d":"2,339.00"},{"v":4678,"d":"4,678.00"}]
[683,"Pull lift 6 ton","Tools","Section 42 Workshop","Lever hoist - Capacity (tons) 6, Standard Lift (m) 1.5, Net Weight (kg) 26.7, Minimum Distance Between Hooks (mm) 550, Pull on lever to Lift Full Load (kg) 39, Chain Thickness (mm) 9",null,"No",2,{"v":2339,"d":"2,339.00"},{"v":4678,"d":"4,678.00"}]
[684,"Pull lift 6 ton","Tools","Batch Plant Workshop","Lever hoist - Capacity (tons) 6, Standard Lift (m) 1.5, Net Weight (kg) 26.7, Minimum Distance Between Hooks (mm) 550, Pull on lever to Lift Full Load (kg) 39, Chain Thickness (mm) 9",null,"No",1,{"v":2339,"d":"2,339.00"},{"v":2339,"d":"2,339.00"}]
[685,"Pull lift 750Kg","Tools","Section 42 Workshop","Lever hoist - Capacity (Kg) 750, Standard Lift (m) 1.5, Net Weight (kg) 9.7, Minimum Distance Between Hooks (mm) 335, Pull on lever to Lift Full Load (kg) 18, Chain Thickness (mm) 7.1",null,"No",6,{"v":828.9,"d":"828.90"},{"v":4973.4,"d":"4,973.40"}]
[686,"Pull lift 750Kg","Tools","Batch Plant Workshop","Lever hoist - Capacity (Kg) 750, Standard Lift (m) 1.5, Net Weight (kg) 9.7, Minimum Distance Between Hooks (mm) 335, Pull on lever to Lift Full Load (kg) 18, Chain Thickness (mm) 7.1",null,"No",1,{"v":828.9,"d":"828.90"},{"v":828.9,"d":"828.90"}]
[687,"Pump Pliers","Tools","Batch Plant Workshop","Universal plier Chrome - Vanadium steel 31CrV3. Chrome plated. 7 position notch. Pinch protector. Induction hardened teeth.","GEDORE","No",12,{"$f":"629/1.15","v":{"v":546.9565217391305,"d":"546.96"}},{"v":6563.478260869566,"d":"6,563.48"}]
[688,"Rachet pipe threader","Tools","Section 42 Workshop","Steel die sizes: 3/8\" - 2\"\n28 in. ratchet handle ",null,"No",2,{"$f":"3114/1.15","v":{"v":2707.826086956522,"d":"2,707.83"}},{"v":5415.652173913044,"d":"5,415.65"}]
[689,"Rachet pipe threader","Tools","Batch Plant Workshop","Steel die sizes: 3/8\" - 2\"\n28 in. ratchet handle ",null,"No",1,{"$f":"3114/1.15","v":{"v":2707.826086956522,"d":"2,707.83"}},{"v":2707.826086956522,"d":"2,707.83"}]
[690,"Radiation dose rate monitor","Tools","Section 18 Auxiliary Bay Unit 1","The dose rate range covers 6 decades from 50nSv/h to 10mSv/h.",null,"No",2,{"$f":"11197/1.15","v":{"v":9736.521739130436,"d":"9,736.52"}},{"v":19473.04347826087,"d":"19,473.04"}]
[691,"Ratchet Wrench medium","Tools","Batch Plant Workshop","Air conditioning ratchet wrench 9/16 & 1/2in ","Off the shelf ","No",8,{"v":495,"d":"495.00"},{"v":3960,"d":"3,960.00"}]
[692,"Ratchet Wrench small",null,"Batch Plant Workshop","Refrigeration Ratchet Wrench 1/4, 3/8, 3/16 And 5/16in","Off the shelf ","No",8,{"$f":"879/1.15","v":{"v":764.3478260869566,"d":"764.35"}},{"v":6114.782608695653,"d":"6,114.78"}]
[693,"Refrigerant cylinder (Refillable gas cylinders)",null,"Batch Plant Workshop","Empty refrigerant cylinder","Off the shelf ","No",6,{"v":600,"d":"600.00"},{"v":3600,"d":"3,600.00"}]
[694,"Resistance box","Tools","Section 18 Auxiliary Bay Unit 1","Calibration / Substitution, 8 Decade-Thumb Wheel Resistance Box",null,"No",2,{"$f":"5242/1.15","v":{"v":4558.260869565218,"d":"4,558.26"}},{"v":9116.521739130436,"d":"9,116.52"}]
[695,"retractable trimming knife 160mm","Tools","Section 42 Workshop","Die cast metal body retractable\nfixed blade\nPatented wedge action blade locking design\nC/w 3 blades stored in the handle","Stanley","No",3,{"v":150,"d":"150.00"},{"v":450,"d":"450.00"}]
[696,"retractable trimming knife 160mm","Tools","Batch Plant Workshop","Die cast metal body retractable\nfixed blade\nPatented wedge action blade locking design\nC/w 3 blades stored in the handle","Stanley","No",3,{"v":150,"d":"150.00"},{"v":450,"d":"450.00"}]
[697,"Ring flat spanner set - 6mm -32mm","Tools","Batch Plant Workshop","6mm - 32mm","GEDORE","No",14,{"$f":"(79/1.15)","v":{"v":68.69565217391305,"d":"68.70"}},{"v":961.7391304347826,"d":"961.74"}]
[698,"Ring flat spanner set - 6mm -32mm","Tools","Section 42 Workshop","6mm - 32mm\nMade Acc. to DIN 837 Form B, ISO 3318, ISO 1085\nvanadium steel 31CrV3, chrome-plated","Gedore","No",8,{"$f":"1432/1.15","v":{"v":1245.217391304348,"d":"1,245.22"}},{"v":9961.739130434784,"d":"9,961.74"}]
[699,"Ring flat spanner set - 6mm -32mm","Tools","ERI Turbo Gen Services (TGS) Workshop 18","6mm - 32mm\nMade Acc. to DIN 837 Form B, ISO 3318, ISO 1085\nvanadium steel 31CrV3, chrome-plated","Gedore","No",2,{"$f":"1432/1.15","v":{"v":1245.217391304348,"d":"1,245.22"}},{"v":2490.434782608696,"d":"2,490.43"}]
[700,"Ring flat spanner set - 6mm -32mm","Tools","Section 42 Workshop","6mm - 32mm\nMade Acc. to DIN 837 Form B, ISO 3318, ISO 1085\nvanadium steel 31CrV3, chrome-plated","Gedore","No",2,{"v":1245.217391304348,"d":"1,245.22"},{"v":2490.434782608696,"d":"2,490.43"}]
[701,"Ring flat spanner set - 6mm -32mm","Tools","Mill Maintenance Workshop","6mm - 32mm\nMade Acc. to DIN 837 Form B, ISO 3318, ISO 1085\nvanadium steel 31CrV3, chrome-plated","Gedore","No",2,{"v":1245.217391304348,"d":"1,245.22"},{"v":2490.434782608696,"d":"2,490.43"}]
[702,"Ring flat spanner set - 6mm -32mm","Tools","Welding Workshop","6mm - 32mm\nMade Acc. to DIN 837 Form B, ISO 3318, ISO 1085\nvanadium steel 31CrV3, chrome-plated","Gedore","No",2,{"v":1245.217391304348,"d":"1,245.22"},{"v":2490.434782608696,"d":"2,490.43"}]
[703,"Ring flat spanner set - 6mm -32mm","Tools","Batch Plant Workshop","6mm - 32mm\nMade Acc. to DIN 837 Form B, ISO 3318, ISO 1085\nvanadium steel 31CrV3, chrome-plated","Gedore","No",4,{"v":1245.217391304348,"d":"1,245.22"},{"v":4980.869565217392,"d":"4,980.87"}]
[704,"Ring flat spanner set - 6mm -36mm","Tools","Section 42 Workshop","6mm - 32mm\nMade Acc. to DIN 837 Form B, ISO 3318, ISO 1085\nvanadium steel 31CrV3, chrome-plated","Gedore","No",12,{"v":1245.217391304348,"d":"1,245.22"},{"v":14942.608695652176,"d":"14,942.61"}]
[705,"round aluminium oxide sharpening stone fine 100 x 13","Tools","Section 42 Workshop",null,null,"No",3,{"$f":"102/1.15","v":{"v":88.69565217391305,"d":"88.70"}},{"v":266.0869565217391,"d":"266.09"}]
[706,"round aluminium oxide sharpening stone fine 100 x 13","Tools","Batch Plant Workshop",null,null,"No",3,{"$f":"102/1.15","v":{"v":88.69565217391305,"d":"88.70"}},{"v":266.0869565217391,"d":"266.09"}]
[707,"Round file 2nd cut with handle","Tools","Batch Plant Workshop","250mm/8 flat 2nd cut file with handle","GEDORE","No",10,{"$f":"201/1.15","v":{"v":174.7826086956522,"d":"174.78"}},{"v":1747.826086956522,"d":"1,747.83"}]
[708,"Round file bastard with handle","Tools","Batch Plant Workshop","250mm/8 flat 2nd cut file with handle","GEDORE","No",10,{"$f":"201/1.15","v":{"v":174.7826086956522,"d":"174.78"}},{"v":1747.826086956522,"d":"1,747.83"}]
[709,"Round file smooth with handle","Tools","Batch Plant Workshop","250mm/8 flat 2nd cut file with handle","GEDORE","No",10,{"v":174.7826086956522,"d":"174.78"},{"v":1747.826086956522,"d":"1,747.83"}]
[710,"Rubber Mallet","Tools","Batch Plant Workshop","Solid rubber head. Wooden handle. &  Does not mark materials when hammered. \n","3M","No",12,450.69,{"v":5408.28,"d":"5,408.28"}]
[711,"Safety Harnesses","Tools","Section 42 Workshop","Safety Harness Double Lanyard,HARNESS,BODY,FULL,C/W FRONT D-RING,BACK D-RING AND THREE D-RINGS ON THE WAIST BELT FOR WORK POSITIONING,1.5M DOUBLE SHOCK ABSORBING LANYARD WITH LARGE SCAFFOLD/SNAP HOOK,COMPLIES WITH SANS50361 & SANS50358",null,"No",3,450.69,{"v":1352.07,"d":"1,352.07"}]
[712,"Safety Harnesses","Safety equipment","ERI Turbo Gen Services (TGS) Workshop 19","Safety Harness Double Lanyard,HARNESS,BODY,FULL,C/W FRONT D-RING,BACK D-RING AND THREE D-RINGS ON THE WAIST BELT FOR WORK POSITIONING,1.5M DOUBLE SHOCK ABSORBING LANYARD WITH LARGE SCAFFOLD/SNAP HOOK,COMPLIES WITH SANS50361 & SANS50358",null,"No",4,{"v":750,"d":"750.00"},{"v":3000,"d":"3,000.00"}]
[713,"Safety Harnesses","Safety equipment","Section 42 Workshop","Safety Harness Double Lanyard,HARNESS,BODY,FULL,C/W FRONT D-RING,BACK D-RING AND THREE D-RINGS ON THE WAIST BELT FOR WORK POSITIONING,1.5M DOUBLE SHOCK ABSORBING LANYARD WITH LARGE SCAFFOLD/SNAP HOOK,COMPLIES WITH SANS50361 & SANS50358",null,"No",2,{"v":750,"d":"750.00"},{"v":1500,"d":"1,500.00"}]
[714,"Safety Harnesses","Safety equipment","Mill Maintenance Workshop","Safety Harness Double Lanyard,HARNESS,BODY,FULL,C/W FRONT D-RING,BACK D-RING AND THREE D-RINGS ON THE WAIST BELT FOR WORK POSITIONING,1.5M DOUBLE SHOCK ABSORBING LANYARD WITH LARGE SCAFFOLD/SNAP HOOK,COMPLIES WITH SANS50361 & SANS50358",null,"No",4,{"v":750,"d":"750.00"},{"v":3000,"d":"3,000.00"}]
[715,"Safety Harnesses","Safety equipment","Welding Workshop","Safety Harness Double Lanyard,HARNESS,BODY,FULL,C/W FRONT D-RING,BACK D-RING AND THREE D-RINGS ON THE WAIST BELT FOR WORK POSITIONING,1.5M DOUBLE SHOCK ABSORBING LANYARD WITH LARGE SCAFFOLD/SNAP HOOK,COMPLIES WITH SANS50361 & SANS50358",null,"No",2,{"v":750,"d":"750.00"},{"v":1500,"d":"1,500.00"}]
[716,"Safety Harnesses","Tools","Batch Plant Workshop","Safety Harness Double Lanyard,HARNESS,BODY,FULL,C/W FRONT D-RING,BACK D-RING AND THREE D-RINGS ON THE WAIST BELT FOR WORK POSITIONING,1.5M DOUBLE SHOCK ABSORBING LANYARD WITH LARGE SCAFFOLD/SNAP HOOK,COMPLIES WITH SANS50361 & SANS50358",null,"No",3,{"v":750,"d":"750.00"},{"v":2250,"d":"2,250.00"}]
[717,"Safety Valve Test Bench","Tools","Section 42 Workshop","Digital or semi automatic (computerized) test system for testing and re(adjusting) the set pressure, blow down, re seating, pressure and seat tightness with gas system 0-500 dar / 7250 PSI. Pressure - vacuum test systems for breather valves and other tank safety's up to 24\". ",null,"No",2,{"v":15885.6,"d":"15,885.60"},{"v":31771.2,"d":"31,771.20"}]
[718,"Scale","Tools","16 M Level Workshop","0 - 250kg. floor mount.",null,"No",1,{"$f":"1599/1.15","v":{"v":1390.4347826086957,"d":"1,390.43"}},{"$f":"I728*H728","v":{"v":1390.4347826086957,"d":"1,390.43"}}]
[719,"screw cutting gauge","Tools","Section 42 Workshop","Relief at the end of each slot\nIndicates 55° for whit & B.S.F; 47-1/2° for B.A.; 60° for American & Metric; 14-1/2° for ACME","Kennedy","No",2,{"$f":"178/1.15","v":{"v":154.7826086956522,"d":"154.78"}},{"v":309.5652173913044,"d":"309.57"}]
[720,"screw cutting gauge","Tools","Batch Plant Workshop","Relief at the end of each slot\nIndicates 55° for whit & B.S.F; 47-1/2° for B.A.; 60° for American & Metric; 14-1/2° for ACME","Kennedy","No",2,{"$f":"178/1.15","v":{"v":154.7826086956522,"d":"154.78"}},{"v":309.5652173913044,"d":"309.57"}]
[721,"screw drivers 10 piece","Tools","Section 42 Workshop",null,null,"No",6,{"$f":"275/1.15","v":{"v":239.13043478260872,"d":"239.13"}},{"v":1434.7826086956522,"d":"1,434.78"}]
[722,"screw drivers 10 piece","Tools","Batch Plant Workshop",null,null,"No",3,{"v":230,"d":"230.00"},{"v":690,"d":"690.00"}]
[723,"Screw extractor set - easy out","Tools","Section 42 Workshop","Heavy duty 12 PC. Screw extractor set\nHeat treated\nFully polished, includes 6 high carbon steel screw extractor\nSizes: #1,#2, #3, #4, #5, #6\n6 HSS twist drill bits\nSizes: 5/64'', 1/8\", 5/32'',1/4\", 9/32\", 3/8\"",null,"No",1,{"$f":"1028.12/1.15","v":{"v":894.0173913043478,"d":"894.02"}},{"v":894.0173913043478,"d":"894.02"}]
[724,"Screw extractor set - easy out","Tools","ERI Turbo Gen Services (TGS) Workshop 15","Heavy duty 12 PC. Screw extractor set\nHeat treated\nFully polished, includes 6 high carbon steel screw extractor\nSizes: #1,#2, #3, #4, #5, #6\n6 HSS twist drill bits\nSizes: 5/64'', 1/8\", 5/32'',1/4\", 9/32\", 3/8\"",null,"No",2,{"$f":"1028.12/1.15","v":{"v":894.0173913043478,"d":"894.02"}},{"v":1788.0347826086957,"d":"1,788.03"}]
[725,"Screw extractor set - easy out","Tools","Section 42 Workshop","Heavy duty 12 PC. Screw extractor set\nHeat treated\nFully polished, includes 6 high carbon steel screw extractor\nSizes: #1,#2, #3, #4, #5, #6\n6 HSS twist drill bits\nSizes: 5/64'', 1/8\", 5/32'',1/4\", 9/32\", 3/8\"",null,"No",2,{"$f":"1028.12/1.15","v":{"v":894.0173913043478,"d":"894.02"}},{"v":1788.0347826086957,"d":"1,788.03"}]
[726,"Screw extractor set - easy out","Tools","Mill Maintenance Workshop","Heavy duty 12 PC. Screw extractor set\nHeat treated\nFully polished, includes 6 high carbon steel screw extractor\nSizes: #1,#2, #3, #4, #5, #6\n6 HSS twist drill bits\nSizes: 5/64'', 1/8\", 5/32'',1/4\", 9/32\", 3/8\"",null,"No",2,{"v":894.0173913043478,"d":"894.02"},{"v":1788.0347826086957,"d":"1,788.03"}]
[727,"Screw extractor set - easy out","Tools","Batch Plant Workshop","Heavy duty 12 PC. Screw extractor set\nHeat treated\nFully polished, includes 6 high carbon steel screw extractor\nSizes: #1,#2, #3, #4, #5, #6\n6 HSS twist drill bits\nSizes: 5/64'', 1/8\", 5/32'',1/4\", 9/32\", 3/8\"",null,"No",1,{"$f":"1028.12/1.15","v":{"v":894.0173913043478,"d":"894.02"}},{"v":894.0173913043478,"d":"894.02"}]
[728,"screw pitch gauge met/imp 0.25 - 6mm /4 - 62tpi","Tools","Section 42 Workshop",null,null,"No",2,{"v":207,"d":"207.00"},{"v":414,"d":"414.00"}]
[729,"screw pitch gauge met/imp 0.25 - 6mm /4 - 62tpi","Tools","Batch Plant Workshop",null,null,"No",2,{"v":207,"d":"207.00"},{"v":414,"d":"414.00"}]
[730,"Set of concrete Drill bit","Tools","Batch Plant Workshop","EDGE's double-fluted SDS Plus drill, used in conjunction with a rotary hammer drilling machine \n\n","MIKITA/HILTI","No",20,{"$f":"396/1.15","v":{"v":344.34782608695656,"d":"344.35"}},{"v":6886.956521739131,"d":"6,886.96"}]
[731,"Set of insulate spanners",null,"Batch Plant Workshop","Insulated safety spanners 6mm - 36mm set up to 1000V / 1500V. Fully insulated blade as per DIN EN 60900 with impact resistant red handle. Chrome Vanadium Molybdenum steel eith tip","GEDORE","No",10,{"$f":"1860/1.15","v":{"v":1617.3913043478262,"d":"1,617.39"}},{"v":16173.913043478262,"d":"16,173.91"}]
[732,"Set of Insulated screwdriver","Tools","Batch Plant Workshop","Insulated safety screwdrivers up to 1000V / 1500V. Fully insulated blade as per DIN EN 60900 with impact resistant red handle. Chrome Vanadium Molybdenum steel eith tip","GEDORE","No",10,{"$f":"550/1.15","v":{"v":478.26086956521743,"d":"478.26"}},{"v":4782.608695652174,"d":"4,782.61"}]
[733,"Set of insulated socket wrench","Tools","Batch Plant Workshop","Insulated safety s up to 1000V / 1500V Socket wrench , In tough, resilient plastic. Head depth 25mm Chrome Vanadium steel with VDE insulated as per DIN EN 60900","GEDORE","No",6,{"$f":"2999/1.15","v":{"v":2607.826086956522,"d":"2,607.83"}},{"v":15646.956521739132,"d":"15,646.96"}]
[734,"Set of pin Punch","Tools","Batch Plant Workshop","Made from Chrome-molybdenum-Vanadium air hardened and tempered along the fully length. Striking heads induction tempered working edge polished and clear vanished","GEDORE","No",10,{"$f":"569/1.15","v":{"v":494.7826086956522,"d":"494.78"}},{"v":4947.826086956522,"d":"4,947.83"}]
[735,"Set of steel Drill bit","Tools","Batch Plant Workshop","EDGE's premium-grade HSS industrial steel drill","MIKITA/HILTI","No",20,{"v":699.9,"d":"699.90"},{"v":13998,"d":"13,998.00"}]
[736,"Set of tube Spanner","Tools","Batch Plant Workshop","Kd26R tubular Box Spanner Set. In tubular steel, harden. Chrome plate, with stepped tommy bar, chrome Vanadium steel 31CrV3, hardened. Chrome plated.","GEDORE","No",12,{"$f":"850/1.15","v":{"v":739.1304347826087,"d":"739.13"}},{"v":8869.565217391304,"d":"8,869.57"}]
[737,"Shifting Spanner 150mm","Tools","Batch Plant Workshop","Chrome Vanadium steel - 31CrV3.swedish pattern - Jaw set at 15 degrees .blackened finish. Ground head","GEDORE","No",10,{"$f":"262/1.15","v":{"v":227.82608695652175,"d":"227.83"}},{"v":2278.2608695652175,"d":"2,278.26"}]
[738,"Shifting Spanner 200mm","Tools","Batch Plant Workshop","Chrome Vanadium steel - 31CrV3.swedish pattern - Jaw set at 15 degrees .blackened finish. Ground head","GEDORE","No",10,{"$f":"347/1.15","v":{"v":301.7391304347826,"d":"301.74"}},{"v":3017.391304347826,"d":"3,017.39"}]
[739,"Shifting Spanner 250mm","Tools","Batch Plant Workshop","Chrome Vanadium steel - 31CrV3.swedish pattern - Jaw set at 15 degrees .blackened finish. Ground head","GEDORE","No",10,{"$f":"347/1.15","v":{"v":301.7391304347826,"d":"301.74"}},{"v":3017.391304347826,"d":"3,017.39"}]
[740,"Side cutter","Tools","Batch Plant Workshop","For hart wire, including piano wire. Induction-hardened precision cutting edges, hardness approx. 64HRC. DIN ISO 5749","GEDORE","No",12,{"$f":"425.27/1.15","v":{"v":369.8,"d":"369.80"}},{"v":4437.6,"d":"4,437.60"}]
[741,"Sidewinder Jacks mini jacks","Tools","Section 42 Workshop","20 ton",null,"No",2,{"v":1491,"d":"1,491.00"},{"v":2982,"d":"2,982.00"}]
[742,"Sidewinder Jacks mini jacks","Tools","Batch Plant Workshop","20 ton",null,"No",1,{"v":1491,"d":"1,491.00"},{"v":1491,"d":"1,491.00"}]
[743,"Sling - 2 ton","Tools","Batch Plant Workshop","Double ply (for double safety) lifting sling made from high tenacity polyester fibres, Colour coded according to DIN-EN 1492-1 Temperature Range of -40°C to +100°C, length 2 m ",null,"No",4,{"v":780,"d":"780.00"},{"v":3120,"d":"3,120.00"}]
[744,"Sling - 2 ton","Tools","Section 42 Workshop","Double ply (for double safety) lifting sling made from high tenacity polyester fibres, Colour coded according to DIN-EN 1492-1 Temperature Range of -40°C to +100°C, length 2 m ",null,"No",2,{"v":780,"d":"780.00"},{"v":1560,"d":"1,560.00"}]
[745,"Sling - 2 ton","Tools","Batch Plant Workshop","Double ply (for double safety) lifting sling made from high tenacity polyester fibres, Colour coded according to DIN-EN 1492-1 Temperature Range of -40°C to +100°C, length 2 m ",null,"No",2,{"v":780,"d":"780.00"},{"v":1560,"d":"1,560.00"}]
[746,"Sling - 6 ton","Tools","Batch Plant Workshop","Double ply (for double safety) lifting sling made from high tenacity polyester fibres, Colour coded according to DIN-EN 1492-1 Temperature Range of -40°C to +100°C, length 2 m ",null,"No",4,{"v":1050,"d":"1,050.00"},{"v":4200,"d":"4,200.00"}]
[747,"Sling - 6 ton","Tools","Section 42 Workshop","Double ply (for double safety) lifting sling made from high tenacity polyester fibres, Colour coded according to DIN-EN 1492-1 Temperature Range of -40°C to +100°C, length 2 m ",null,"No",2,{"v":1050,"d":"1,050.00"},{"v":2100,"d":"2,100.00"}]
[748,"Sling - 6 ton","Tools","Batch Plant Workshop","Double ply (for double safety) lifting sling made from high tenacity polyester fibres, Colour coded according to DIN-EN 1492-1 Temperature Range of -40°C to +100°C, length 2 m ",null,"No",2,{"v":1050,"d":"1,050.00"},{"v":2100,"d":"2,100.00"}]
[749,"Slogging spanners set 30mm - 110mm","Tools","Section 42 Workshop","For very heavy duty work\nUp to length 500 mm chrome-vanadium steel 31CrV3, above 525 mm material C35\n","GEDORE","No",2,{"v":650,"d":"650.00"},{"v":1300,"d":"1,300.00"}]
[750,"Slogging spanners set 30mm - 110mm","Tools","Batch Plant Workshop","For very heavy duty work\nUp to length 500 mm chrome-vanadium steel 31CrV3, above 525 mm material C35\n","GEDORE","No",2,{"v":650,"d":"650.00"},{"v":1300,"d":"1,300.00"}]
[751,"small engineers square 75mm","Tools","Section 42 Workshop",null,null,"No",2,{"v":135,"d":"135.00"},{"v":270,"d":"270.00"}]
[752,"small engineers square 75mm","Tools","Batch Plant Workshop",null,null,"No",2,{"v":135,"d":"135.00"},{"v":270,"d":"270.00"}]
[753,"Snatch Block","Tools","Section 42 Workshop","120 kg",null,"No",4,{"v":360,"d":"360.00"},{"v":1440,"d":"1,440.00"}]
[754,"Snatch Block","Tools","Section 42 Workshop","500 kg",null,"No",5,{"v":460,"d":"460.00"},{"v":2300,"d":"2,300.00"}]
[755,"Snatch Block","Tools","Section 42 Workshop","2 Ton",null,"No",5,{"v":890,"d":"890.00"},{"v":4450,"d":"4,450.00"}]
[756,"Snatch Block","Tools","Section 42 Workshop","3 Ton",null,"No",2,{"v":1255,"d":"1,255.00"},{"v":2510,"d":"2,510.00"}]
[757,"Snatch Block","Tools","Section 42 Workshop","5 Ton",null,"No",5,{"v":1640,"d":"1,640.00"},{"v":8200,"d":"8,200.00"}]
[758,"Snatch Block","Tools","Section 42 Workshop","7.5 Ton",null,"No",2,{"v":2351,"d":"2,351.00"},{"v":4702,"d":"4,702.00"}]
[759,"Snatch Block","Tools","Section 42 Workshop","7.5 Ton",null,"No",2,{"v":2351,"d":"2,351.00"},{"v":4702,"d":"4,702.00"}]
[760,"Snatch Block","Tools","Section 42 Workshop","10 Ton",null,"No",5,{"v":4231,"d":"4,231.00"},{"v":21155,"d":"21,155.00"}]
[761,"Snatch Block","Tools","Section 42 Workshop","32 Ton",null,"No",2,{"v":9545,"d":"9,545.00"},{"v":19090,"d":"19,090.00"}]
[762,"Snatch Block","Tools","Section 42 Workshop","32 Ton",null,"No",2,{"v":9545,"d":"9,545.00"},{"v":19090,"d":"19,090.00"}]
[763,"Snatch Block","Tools","Batch Plant Workshop","120 kg",null,"No",4,{"v":360,"d":"360.00"},{"v":1440,"d":"1,440.00"}]
[764,"Snatch Block","Tools","Batch Plant Workshop","500 kg",null,"No",4,{"v":460,"d":"460.00"},{"v":1840,"d":"1,840.00"}]
[765,"Snatch Block","Tools","Batch Plant Workshop","2 Ton",null,"No",5,{"v":890,"d":"890.00"},{"v":4450,"d":"4,450.00"}]
[766,"Snatch Block","Tools","Batch Plant Workshop","3 Ton",null,"No",2,{"v":1255,"d":"1,255.00"},{"v":2510,"d":"2,510.00"}]
[767,"Snatch Block","Tools","Batch Plant Workshop","5 Ton",null,"No",5,{"v":1640,"d":"1,640.00"},{"v":8200,"d":"8,200.00"}]
[768,"Snatch Block","Tools","Batch Plant Workshop","7.5 Ton",null,"No",2,{"v":2351,"d":"2,351.00"},{"v":4702,"d":"4,702.00"}]
[769,"Snatch Block","Tools","Batch Plant Workshop","7.5 Ton",null,"No",2,{"v":2351,"d":"2,351.00"},{"v":4702,"d":"4,702.00"}]
[770,"Snatch Block","Tools","Batch Plant Workshop","10 Ton",null,"No",3,{"v":4231,"d":"4,231.00"},{"v":12693,"d":"12,693.00"}]
[771,"Snatch Block","Tools","Batch Plant Workshop","32 Ton",null,"No",2,{"v":9545,"d":"9,545.00"},{"v":19090,"d":"19,090.00"}]
[772,"Snatch Block","Tools","Batch Plant Workshop","32 Ton",null,"No",2,{"v":9545,"d":"9,545.00"},{"v":19090,"d":"19,090.00"}]
[773,"Socket set","Tools","Batch Plant Workshop","Manually operated 1/2\" sockets and accessories. Supplied in blue powder coated, D19 T- steel box. Dimensions: 435x170x50","GEDORE","No",6,{"v":2950,"d":"2,950.00"},{"v":17700,"d":"17,700.00"}]
[774,"Socket set - Allen Keys Metric Large","Tools","Batch Plant Workshop","5mm - 19mm, 1/2 in square","GEDORE","No",10,{"v":699,"d":"699.00"},{"v":6990,"d":"6,990.00"}]
[775,"Socket set - Allen Keys Metric Large","Tools","Section 42 Workshop","5mm - 19mm, 1/2 in square",null,"No",6,{"v":699,"d":"699.00"},{"v":4194,"d":"4,194.00"}]
[776,"Socket set - Allen Keys Metric Large","Tools","Batch Plant Workshop","5mm - 19mm, 1/2 in square",null,"No",3,{"v":699,"d":"699.00"},{"v":2097,"d":"2,097.00"}]
[777,"Socket set large  10mm - 32 mm","Tools","Batch Plant Workshop","10mm - 32mm with extension bar(125mm), Sliding bar (250mm), Reversible ratchet handle (250mm), extension bar(250mm) & universal joint","GEDORE","No",6,{"v":1968,"d":"1,968.00"},{"v":11808,"d":"11,808.00"}]
[778,"Sockets & Allen Drives, Square Drive Predator series","Tools","Section 42 Workshop","Max Torque 33496 Nm, 700bar",null,"No",1,{"$f":"2100/1.15","v":{"v":1826.0869565217392,"d":"1,826.09"}},{"v":1826.0869565217392,"d":"1,826.09"}]
[779,"Sockets & Allen Drives, Square Drive Predator series","Tools","Section 42 Workshop","Max Torque 33496 Nm, 700bar",null,"No",1,{"$f":"2100/1.15","v":{"v":1826.0869565217392,"d":"1,826.09"}},{"v":1826.0869565217392,"d":"1,826.09"}]
[780,"Sockets & Allen Drives, Square Drive Predator series","Tools","Batch Plant Workshop","Max Torque 33496 Nm, 700bar",null,"No",1,{"v":1826.0869565217392,"d":"1,826.09"},{"v":1826.0869565217392,"d":"1,826.09"}]
[781,"Sockets & Allen Drives, Square Drive Predator series","Tools","Batch Plant Workshop","Max Torque 33496 Nm, 700bar",null,"No",1,{"$f":"210/1.15","v":{"v":182.60869565217394,"d":"182.61"}},{"v":182.60869565217394,"d":"182.61"}]
[782,"soft face hammer 32mm face dia","Tools","Section 42 Workshop",null,null,"No",4,{"$f":"210/1.15","v":{"v":182.60869565217394,"d":"182.61"}},{"$f":"I792*H792","v":{"v":730.4347826086957,"d":"730.43"}}]
[783,"soft face hammer 32mm face dia","Tools","Batch Plant Workshop",null,null,"No",4,{"$f":"289/1.15","v":{"v":251.30434782608697,"d":"251.30"}},{"v":1005.2173913043479,"d":"1,005.22"}]
[784,"soldering Iron","Tools","Batch Plant Workshop","ESD Safe Manual Desoldering Tool, One hand operation with spring-loaded piston \nProvides ESD safe, solder removing vacuum ESD analog soldering station 350 - 850 deg F 50W\nFeatures self-cleaning non-clogging static-free replaceable tip, \n","HELLERMANN  TYTON","No",10,{"v":2666.95,"d":"2,666.95"},{"v":26669.5,"d":"26,669.50"}]
[785,"Soldering iron ","Tools","Section 18 Auxiliary Bay Unit 1","ESD analog soldering station 350 - 850 deg F 50W",null,"No",1,{"v":2666.95,"d":"2,666.95"},{"v":2666.95,"d":"2,666.95"}]
[786,"Soldering iron / sucker","Tools","Section 18 Auxiliary Bay Unit 1","WRS1002X desoldering station",null,"No",1,{"v":6575,"d":"6,575.00"},{"v":6575,"d":"6,575.00"}]
[787,"spanners (24 to 42 mm)","Tools ","Section 18 Auxiliary Bay Unit 1","Work shop spanners up to 36\"",null,"No",2,{"$f":"1719/1.15","v":{"v":1494.7826086956522,"d":"1,494.78"}},{"v":2989.5652173913045,"d":"2,989.57"}]
[788,"Sparkfree - ADJUSTABLE WRENCH","Tools","Section 42 Workshop","150mm Spark Resistant - ADJUSTABLE WRENCH, Aluminium -bronze",null,"No",2,{"v":210,"d":"210.00"},{"v":420,"d":"420.00"}]
[789,"Sparkfree - ADJUSTABLE WRENCH","Tools","Section 42 Workshop","250mm Spark Resistant - ADJUSTABLE WENCH, Aluminium Bronze",null,"No",2,{"v":210,"d":"210.00"},{"v":420,"d":"420.00"}]
[790,"Sparkfree - ADJUSTABLE WRENCH","Tools","Batch Plant Workshop","150mm Spark Resistant - ADJUSTABLE WRENCH, Aluminium -bronze",null,"No",1,{"$f":"I798","v":{"v":210,"d":"210.00"}},{"v":210,"d":"210.00"}]
[791,"Sparkfree - ADJUSTABLE WRENCH","Tools","Batch Plant Workshop","250mm Spark Resistant - ADJUSTABLE WENCH, Aluminium Bronze",null,"No",1,{"$f":"I799","v":{"v":210,"d":"210.00"}},{"v":210,"d":"210.00"}]
[792,"Sparkfree - HAMMER","Tools","Section 42 Workshop","500gram Spark Resistant Ballpein Hammer wood Shaft",null,"No",2,{"$f":"135/1.15","v":{"v":117.3913043478261,"d":"117.39"}},{"v":234.7826086956522,"d":"234.78"}]
[793,"Sparkfree - HAMMER","Tools","Batch Plant Workshop","500gram Spark Resistant Ballpein Hammer wood Shaft",null,"No",1,{"$f":"135/1.15","v":{"v":117.3913043478261,"d":"117.39"}},{"v":117.3913043478261,"d":"117.39"}]
[794,"Sparkfree - PINCERS / GROOVE JOINT PINCER","Tools","Section 42 Workshop","250mm Spark Resistant - Groove Joint Plier, Aluminium Bronze",null,"No",1,{"v":356,"d":"356.00"},{"v":356,"d":"356.00"}]
[795,"Sparkfree - PINCERS / GROOVE JOINT PINCER","Tools","Batch Plant Workshop","250mm Spark Resistant - Groove Joint Plier, Aluminium Bronze",null,"No",1,{"v":356,"d":"356.00"},{"v":356,"d":"356.00"}]
[796,"Sparkfree - PLIERS / COMBINATION ","Tools","Section 42 Workshop","180mm Aluminium Bronze Spark Resistant combination Pliers",null,"No",1,{"v":561,"d":"561.00"},{"v":561,"d":"561.00"}]
[797,"Sparkfree - PLIERS / COMBINATION ","Tools","Batch Plant Workshop","180mm Aluminium Bronze Spark Resistant combination Pliers",null,"No",1,{"v":561,"d":"561.00"},{"v":561,"d":"561.00"}]
[798,"Sparkfree - PLIERS / DIAGONAL CUTTING PLIERS","Tools","Section 42 Workshop","160mm Aluminium Bronze Spark resistant Diagonal Cutting Pliers",null,"No",1,{"$f":"256/1.15","v":{"v":222.60869565217394,"d":"222.61"}},{"v":222.60869565217394,"d":"222.61"}]
[799,"Sparkfree - PLIERS / DIAGONAL CUTTING PLIERS","Tools","Batch Plant Workshop","160mm Aluminium Bronze Spark resistant Diagonal Cutting Pliers",null,"No",1,{"$f":"256/1.15","v":{"v":222.60869565217394,"d":"222.61"}},{"v":222.60869565217394,"d":"222.61"}]
[800,"Sparkfree - PLIERS / FLAT NOSE","Tools","Section 42 Workshop","160mm",null,"No",1,{"$f":"203/1.15","v":{"v":176.5217391304348,"d":"176.52"}},{"v":176.5217391304348,"d":"176.52"}]
[801,"Sparkfree - PLIERS / FLAT NOSE","Tools","Batch Plant Workshop","160mm",null,"No",1,{"$f":"203/1.15","v":{"v":176.5217391304348,"d":"176.52"}},{"v":176.5217391304348,"d":"176.52"}]
[802,"Sparkfree - PLIERS / LONG NOSE","Tools","Section 42 Workshop","160mm Aluminium Bronze Spark resistant Long Nose/ Pliers",null,"No",1,{"v":159,"d":"159.00"},{"v":159,"d":"159.00"}]
[803,"Sparkfree - PLIERS / LONG NOSE","Tools","Batch Plant Workshop","160mm Aluminium Bronze Spark resistant Long Nose/ Pliers",null,"No",1,{"$f":"401/1.15","v":{"v":348.69565217391306,"d":"348.70"}},{"v":348.69565217391306,"d":"348.70"}]
[804,"Sparkfree - PLIERS / ROUND NOSE","Tools","Section 42 Workshop","160mm",null,"No",1,{"$f":"401/1.15","v":{"v":348.69565217391306,"d":"348.70"}},{"v":348.69565217391306,"d":"348.70"}]
[805,"Sparkfree - PLIERS / ROUND NOSE","Tools","Batch Plant Workshop","160mm",null,"No",1,{"v":348.69565217391306,"d":"348.70"},{"v":348.69565217391306,"d":"348.70"}]
[806,"Sparkfree - PLIERS / WIRESTRIPPER","Tools","Section 42 Workshop","170mm",null,"No",1,{"$f":"411.9/1.15","v":{"v":358.17391304347825,"d":"358.17"}},{"v":358.17391304347825,"d":"358.17"}]
[807,"Sparkfree - PLIERS / WIRESTRIPPER","Tools","Batch Plant Workshop","170mm",null,"No",1,{"$f":"411.9/1.15","v":{"v":358.17391304347825,"d":"358.17"}},{"v":358.17391304347825,"d":"358.17"}]
[808,"Sparkfree - SCREWDRIVERS - Flat","Tools","Section 42 Workshop","3, 5,7 & 9mm Aluminium Bronze Spark Resistant Screwdrivers -Flat",null,null,2,{"v":265,"d":"265.00"},{"v":530,"d":"530.00"}]
[809,"Sparkfree - SCREWDRIVERS - Flat","Tools","Batch Plant Workshop","3, 5,7 & 9mm Aluminium Bronze Spark Resistant Screwdrivers -Flat",null,"No",2,{"v":265,"d":"265.00"},{"v":530,"d":"530.00"}]
[810,"Sparkfree - SCREWDRIVERS / PHILIPS","Tools","Section 42 Workshop","PH-1 & PH3 Aluminium Bronze Spark Resistant Screwdrivers- Cross point/Philips",null,null,2,{"$f":"54+140","v":{"v":194,"d":"194.00"}},{"v":388,"d":"388.00"}]
[811,"Sparkfree - SCREWDRIVERS / PHILIPS","Tools","Batch Plant Workshop","PH-1 & PH3 Aluminium Bronze Spark Resistant Screwdrivers- Cross point/Philips",null,"No",2,{"$f":"54+140","v":{"v":194,"d":"194.00"}},{"v":388,"d":"388.00"}]
[812,"Sparkfree - Wrench Monkey","Tools","Section 42 Workshop","12 inche(300mm) Aluminium bronze Spark Resistant heavy duty pipe wrenches",null,null,2,{"$f":"648/1.15","v":{"v":563.4782608695652,"d":"563.48"}},{"v":1126.9565217391305,"d":"1,126.96"}]
[813,"Sparkfree - Wrench Monkey","Tools","Batch Plant Workshop","12 inche(300mm) Aluminium bronze Spark Resistant heavy duty pipe wrenches",null,"No",2,{"$f":"648/1.15","v":{"v":563.4782608695652,"d":"563.48"}},{"v":1126.9565217391305,"d":"1,126.96"}]
[814,"Sparkfree - WRENCHES  / BALLPOINT HEXAGONAL KEYS","Tools","Section 42 Workshop","3 to 12mm",null,null,2,{"v":435,"d":"435.00"},{"v":870,"d":"870.00"}]
[815,"Sparkfree - WRENCHES  / BALLPOINT HEXAGONAL KEYS","Tools","Batch Plant Workshop","3 to 12mm",null,"No",2,{"v":435,"d":"435.00"},{"v":870,"d":"870.00"}]
[816,"Sparkfree - WRENCHES  / COMBINATION WRENCH (MM) Ring / flat","Tools","Section 42 Workshop","6mm to 32mm Aluminium Bronze Spark Resistant Combination Spanners",null,null,2,{"$f":"1432/1.15","v":{"v":1245.217391304348,"d":"1,245.22"}},{"v":2490.434782608696,"d":"2,490.43"}]
[817,"Sparkfree - WRENCHES  / COMBINATION WRENCH (MM) Ring / flat","Tools","Batch Plant Workshop","6mm to 32mm Aluminium Bronze Spark Resistant Combination Spanners",null,"No",2,{"$f":"1432/1.15","v":{"v":1245.217391304348,"d":"1,245.22"}},{"v":2490.434782608696,"d":"2,490.43"}]
[818,"Spot light 500W","Tools","Section 19 Auxiliary Bay Unit 2",null,null,"No",10,{"v":560.5,"d":"560.50"},{"v":5605,"d":"5,605.00"}]
[819,"Spot light 500W","Tools","Batch Plant Workshop",null,null,"No",5,{"v":560.5,"d":"560.50"},{"v":2802.5,"d":"2,802.50"}]
[820,"Spreaders Hydraulic","Tools","Section 42 Workshop","1.5 ton",null,null,5,{"v":3459,"d":"3,459.00"},{"v":17295,"d":"17,295.00"}]
[821,"Spreaders Hydraulic","Tools","Batch Plant Workshop","1.5 ton",null,"No",1,{"v":3459,"d":"3,459.00"},{"v":3459,"d":"3,459.00"}]
[822,"Spring dividers set 3 piece","Tools","Section 42 Workshop","3 piece to include: Internal, external and divider caliper\nsize: 6\"",null,null,2,{"v":319,"d":"319.00"},{"v":638,"d":"638.00"}]
[823,"spring dividers set 3 piece","Tools","Batch Plant Workshop","3 piece to include: Internal, external and divider caliper\nsize: 6\"",null,"No",2,{"v":319,"d":"319.00"},{"v":638,"d":"638.00"}]
[824,"Square aluminium oxide sharpening stone fine 100 x 13","Tools","Section 42 Workshop",{"$nulls":3},3,{"$f":"88.7","v":{"v":88.7,"d":"88.70"}},{"v":266.1,"d":"266.10"}]
[825,"Square aluminium oxide sharpening stone fine 100 x 13","Tools","Batch Plant Workshop",null,null,"No",3,{"$f":"88.7","v":{"v":88.7,"d":"88.70"}},{"v":266.1,"d":"266.10"}]
[826,"Square head centre punch point dia 6.3mm x 100mm","Tools","Section 42 Workshop",{"$nulls":3},4,{"$f":"106/1.15","v":{"v":92.17391304347827,"d":"92.17"}},{"v":368.69565217391306,"d":"368.70"}]
[827,"square head centre punch point dia 6.3mm x 100mm","Tools","Batch Plant Workshop",null,null,"No",4,{"$f":"106/1.15","v":{"v":92.17391304347827,"d":"92.17"}},{"v":368.69565217391306,"d":"368.70"}]
[828,"standard Vernier caliper 150mm","Tools","Section 42 Workshop","With inside & outside measurement scale\nAccuracy +/- 0.10mm\nWith fine adjustment","Mitutoyo",null,2,{"$f":"900/1.15","v":{"v":782.608695652174,"d":"782.61"}},{"v":1565.217391304348,"d":"1,565.22"}]
[829,"standard Vernier caliper 150mm","Tools","Batch Plant Workshop","With inside & outside measurement scale\nAccuracy +/- 0.10mm\nWith fine adjustment","Mitutoyo","No",1,{"$f":"900/1.15","v":{"v":782.608695652174,"d":"782.61"}},{"v":782.608695652174,"d":"782.61"}]
[830,"standard Vernier caliper 300mm","Tools","Section 42 Workshop","With inside & outside measurement scale\nAccuracy +/- 0.10mm\nWith fine adjustment\n300mm, Jaw Depths inside 19mm , outside 63mm, Knife-edge contacts for both inside and outside measurements, Lock screw for holding the sliding jaw in position . ","Mitutoyo",null,3,{"$f":"1307/1.15","v":{"v":1136.521739130435,"d":"1,136.52"}},{"v":3409.565217391305,"d":"3,409.57"}]
[831,"standard Vernier caliper 300mm","Tools","Batch Plant Workshop","With inside & outside measurement scale\nAccuracy +/- 0.10mm\nWith fine adjustment\n300mm, Jaw Depths inside 19mm , outside 63mm, Knife-edge contacts for both inside and outside measurements, Lock screw for holding the sliding jaw in position . ","Mitutoyo","No",1,{"$f":"1307/1.15","v":{"v":1136.521739130435,"d":"1,136.52"}},{"v":1136.521739130435,"d":"1,136.52"}]
[832,"steel rule flexible blade 1000mm","Tools","Section 42 Workshop",{"$nulls":3},2,{"v":25,"d":"25.00"},{"v":50,"d":"50.00"}]
[833,"steel rule flexible blade 1000mm","Tools","Batch Plant Workshop",null,null,"No",2,{"$f":"129/1.15","v":{"v":112.17391304347827,"d":"112.17"}},{"v":224.34782608695653,"d":"224.35"}]
[834,"Straight edge steel ruler","Tools","Batch Plant Workshop","Steel Straight Edge Ruler is our finest combination straight edge and ruler for woodworking. All four sides of this high quality steel blade are surface ground to perfection. One edge is then milled to a 30 degree angle which allows the machine engraved inch scale. \n","GEDORE","No",10,{"$f":"1357/1.15","v":{"v":1180,"d":"1,180.00"}},{"v":11800,"d":"11,800.00"}]
[835,"Surface grinder","Tools","Section 42 Workshop","Table AJ-750 H/HD\nWorking surface (mm) 737 x 254, Maximum Longitudinal Traverse (mm) 775, Longitudinal speed (m/min) 6.7-24.4, Maximum grinding length & width (mm) 762 x 305, Grinding Head - Grinding wheel size (mm) 355 x 32 x 127, Spindle speed (rpm) 145",null,null,1,{"v":4995,"d":"4,995.00"},{"v":4995,"d":"4,995.00"}]
[836,"Surface grinder","Tools","Batch Plant Workshop","Table AJ-750 H/HD\nWorking surface (mm) 737 x 254, Maximum Longitudinal Traverse (mm) 775, Longitudinal speed (m/min) 6.7-24.4, Maximum grinding length & width (mm) 762 x 305, Grinding Head - Grinding wheel size (mm) 355 x 32 x 127, Spindle speed (rpm) 145",null,"No",1,{"v":4995,"d":"4,995.00"},{"v":4995,"d":"4,995.00"}]
[837,"Swivel Hoist Rings","Tools","Section 42 Workshop","16mm",null,null,2,{"v":869,"d":"869.00"},{"v":1738,"d":"1,738.00"}]
[838,"Swivel Hoist Rings","Tools","Batch Plant Workshop","16mm",null,"No",2,{"v":869,"d":"869.00"},{"v":1738,"d":"1,738.00"}]
[839,"Swivel Hoist rings ","Tools","Section 42 Workshop","20mm",null,null,2,{"v":1210,"d":"1,210.00"},{"v":2420,"d":"2,420.00"}]
[840,"Swivel Hoist rings ","Tools","Batch Plant Workshop","20mm",null,"No",2,{"v":1210,"d":"1,210.00"},{"v":2420,"d":"2,420.00"}]
[841,"SWR Sling","Tools","Section 42 Workshop","10Ton",null,null,8,{"v":645,"d":"645.00"},{"v":5160,"d":"5,160.00"}]
[842,"SWR Sling","Tools","Batch Plant Workshop","10Ton",null,"No",8,{"v":645,"d":"645.00"},{"v":5160,"d":"5,160.00"}]
[843,"SWR Sling 10mmx1m","Tools","Section 42 Workshop","1 Ton",null,null,10,{"v":48.5,"d":"48.50"},{"v":485,"d":"485.00"}]
[844,"SWR Sling 10mmx1m","Tools","Batch Plant Workshop","1 Ton",null,"No",10,{"v":48.5,"d":"48.50"},{"v":485,"d":"485.00"}]
[845,"SWR Sling 10mmx2m","Tools","Section 42 Workshop","1.15 Ton",null,null,10,76.25,{"v":762.5,"d":"762.50"}]
[846,"SWR Sling 10mmx2m","Tools","Batch Plant Workshop","1.15 Ton",null,"No",10,76.25,{"$f":"I856*H856","v":{"v":762.5,"d":"762.50"}}]
[847,"SWR Sling 10mmx3m","Tools","Section 42 Workshop","1.15 Ton",null,null,10,{"v":103.9,"d":"103.90"},{"v":1039,"d":"1,039.00"}]
[848,"SWR Sling 10mmx3m","Tools","Batch Plant Workshop","1.15 Ton",null,"No",10,{"v":103.9,"d":"103.90"},{"v":1039,"d":"1,039.00"}]
[849,"SWR Sling 10mmx4m","Tools","Section 42 Workshop","1 Ton",null,null,6,{"v":119.6,"d":"119.60"},{"v":717.5999999999999,"d":"717.60"}]
[850,"SWR Sling 10mmx4m","Tools","Batch Plant Workshop","1 Ton",null,"No",6,{"v":119.6,"d":"119.60"},{"v":717.5999999999999,"d":"717.60"}]
[851,"SWR Sling 10mmx500mm","Tools","Section 42 Workshop","1 Ton",null,null,8,{"v":35,"d":"35.00"},{"v":280,"d":"280.00"}]
[852,"SWR Sling 10mmx500mm","Tools","Batch Plant Workshop","1 Ton",null,"No",8,{"v":35,"d":"35.00"},{"v":280,"d":"280.00"}]
[853,"SWR Sling 10mmx600mm","Tools","Section 42 Workshop","1.15 Ton",null,null,2,{"v":41.9,"d":"41.90"},{"v":83.8,"d":"83.80"}]
[854,"SWR Sling 10mmx600mm","Tools","Batch Plant Workshop","1.15 Ton",null,"No",2,{"v":41.9,"d":"41.90"},{"v":83.8,"d":"83.80"}]
[855,"SWR Sling 10mmx6m","Tools","Section 42 Workshop","1.15 Ton",null,null,2,{"v":170,"d":"170.00"},{"v":340,"d":"340.00"}]
[856,"SWR Sling 10mmx6m","Tools","Batch Plant Workshop","1.15 Ton",null,"No",2,{"v":170,"d":"170.00"},{"v":340,"d":"340.00"}]
[857,"SWR Sling 10mmx800mm","Tools","Section 42 Workshop","1 Ton",null,null,10,{"v":48.1,"d":"48.10"},{"v":481,"d":"481.00"}]
[858,"SWR Sling 10mmx800mm","Tools","Batch Plant Workshop","1 Ton",null,"No",10,{"v":48.1,"d":"48.10"},{"v":481,"d":"481.00"}]
[859,"SWR Sling 12mmx1m","Tools","Section 42 Workshop","1.5  ton",null,null,2,{"v":71.7,"d":"71.70"},{"v":143.4,"d":"143.40"}]
[860,"SWR Sling 12mmx1m","Tools","Batch Plant Workshop","1.5  ton",null,"No",2,{"v":71.7,"d":"71.70"},{"v":143.4,"d":"143.40"}]
[861,"SWR Sling 13mmx3m","Tools","Section 42 Workshop","1.5 Ton",null,null,10,{"v":121.5,"d":"121.50"},{"v":1215,"d":"1,215.00"}]
[862,"SWR Sling 13mmx3m","Tools","Batch Plant Workshop","1.5 Ton",null,"No",10,{"v":121.5,"d":"121.50"},{"v":1215,"d":"1,215.00"}]
[863,"SWR Sling 13mmx8m","Tools","Section 42 Workshop","1.5 Ton",null,null,2,{"v":156.4,"d":"156.40"},{"v":312.8,"d":"312.80"}]
[864,"SWR Sling 13mmx8m","Tools","Batch Plant Workshop","1.5 Ton",null,"No",2,{"v":156.4,"d":"156.40"},{"v":312.8,"d":"312.80"}]
[865,"SWR Sling 16mmx3m","Tools","Section 42 Workshop","2 Ton",null,null,10,{"v":283,"d":"283.00"},{"v":2830,"d":"2,830.00"}]
[866,"SWR Sling 16mmx3m","Tools","Section 42 Workshop","2,5 Ton",null,null,2,{"v":356,"d":"356.00"},{"v":712,"d":"712.00"}]
[867,"SWR Sling 16mmx3m","Tools","Batch Plant Workshop","2 Ton",null,"No",10,{"v":283,"d":"283.00"},{"v":2830,"d":"2,830.00"}]
[868,"SWR Sling 16mmx3m","Tools","Batch Plant Workshop","2,5 Ton",null,"No",2,{"v":356,"d":"356.00"},{"v":712,"d":"712.00"}]
[869,"SWR Sling 16mmx4m","Tools","Section 42 Workshop","2.5 Ton",null,null,4,{"v":416.3,"d":"416.30"},{"v":1665.2,"d":"1,665.20"}]
[870,"SWR Sling 16mmx4m","Tools","Batch Plant Workshop","2.5 Ton",null,"No",4,{"v":416.3,"d":"416.30"},{"v":1665.2,"d":"1,665.20"}]
[871,"SWR Sling 16mmx6m","Tools","Section 42 Workshop","2 Ton",null,null,2,{"v":501.6,"d":"501.60"},{"v":1003.2,"d":"1,003.20"}]
[872,"SWR Sling 16mmx6m","Tools","Batch Plant Workshop","2 Ton",null,"No",2,{"v":501.6,"d":"501.60"},{"v":1003.2,"d":"1,003.20"}]
[873,"SWR Sling 16mmx800mm","Tools","Section 42 Workshop","2 Ton",null,null,10,{"v":102.8,"d":"102.80"},{"v":1028,"d":"1,028.00"}]
[874,"SWR Sling 16mmx800mm","Tools","Batch Plant Workshop","2 Ton",null,"No",10,{"v":102.8,"d":"102.80"},{"v":1028,"d":"1,028.00"}]
[875,"SWR Sling 16mmx8m","Tools","Section 42 Workshop","2 Ton",null,null,4,674.62,{"v":2698.48,"d":"2,698.48"}]
[876,"SWR Sling 16mmx8m","Tools","Batch Plant Workshop","2 Ton",null,"No",4,674.62,{"v":2698.48,"d":"2,698.48"}]
[877,"SWR Sling 18mmx1.5m","Tools","Section 42 Workshop","3 Ton",null,null,10,{"v":284.8,"d":"284.80"},{"v":2848,"d":"2,848.00"}]
[878,"SWR Sling 18mmx1.5m","Tools","Batch Plant Workshop","3 Ton",null,"No",10,{"v":284.8,"d":"284.80"},{"v":2848,"d":"2,848.00"}]
[879,"SWR Sling 18mmx2m","Tools","Section 42 Workshop","3 Ton",null,null,10,{"v":329,"d":"329.00"},{"v":3290,"d":"3,290.00"}]
[880,"SWR Sling 18mmx2m","Tools","Batch Plant Workshop","3 Ton",null,"No",10,{"v":329,"d":"329.00"},{"v":3290,"d":"3,290.00"}]
[881,"SWR Sling 18mmx6m","Tools","Section 42 Workshop","3 Ton",null,null,10,{"v":419,"d":"419.00"},{"v":4190,"d":"4,190.00"}]
[882,"SWR Sling 18mmx6m","Tools","Batch Plant Workshop","3 Ton",null,"No",10,{"v":419,"d":"419.00"},{"v":4190,"d":"4,190.00"}]
[883,"SWR Sling 18mmx8m","Tools","Section 42 Workshop","3 Ton",null,null,10,{"v":852,"d":"852.00"},{"v":8520,"d":"8,520.00"}]
[884,"SWR Sling 18mmx8m","Tools","Batch Plant Workshop","3 Ton",null,"No",10,{"v":852,"d":"852.00"},{"v":8520,"d":"8,520.00"}]
[885,"SWR Sling 22mmx1.5m","Tools","Section 42 Workshop","4.6Ton",null,null,5,{"v":492,"d":"492.00"},{"v":2460,"d":"2,460.00"}]
[886,"SWR Sling 22mmx1.5m","Tools","Batch Plant Workshop","4.6Ton",null,"No",10,{"v":492,"d":"492.00"},{"v":4920,"d":"4,920.00"}]
[887,"SWR Sling 22mmx3m","Tools","Section 42 Workshop","4 Ton",null,null,10,{"v":506.7,"d":"506.70"},{"v":5067,"d":"5,067.00"}]
[888,"SWR Sling 22mmx3m","Tools","Batch Plant Workshop","4 Ton",null,"No",10,{"v":506.7,"d":"506.70"},{"v":5067,"d":"5,067.00"}]
[889,"SWR Sling 22mmx6m","Tools","Section 42 Workshop","4 Ton",null,null,2,{"v":845.1,"d":"845.10"},{"v":1690.2,"d":"1,690.20"}]
[890,"SWR Sling 22mmx6m","Tools","Batch Plant Workshop","4 Ton",null,"No",2,{"v":845.1,"d":"845.10"},{"v":1690.2,"d":"1,690.20"}]
[891,"SWR Sling 22mmx8m","Tools","Section 42 Workshop","4 Ton",null,null,2,{"v":8963.5,"d":"8,963.50"},{"v":17927,"d":"17,927.00"}]
[892,"SWR Sling 22mmx8m","Tools","Batch Plant Workshop","4 Ton",null,"No",2,{"v":8963.5,"d":"8,963.50"},{"v":17927,"d":"17,927.00"}]
[893,"SWR Sling 24mmx10m","Tools","Section 42 Workshop","5 Ton",null,null,8,{"v":1167,"d":"1,167.00"},{"v":9336,"d":"9,336.00"}]
[894,"SWR Sling 24mmx10m","Tools","Batch Plant Workshop","5 Ton",null,"No",8,{"v":1167,"d":"1,167.00"},{"v":9336,"d":"9,336.00"}]
[895,"SWR Sling 24mmx4m","Tools","Section 42 Workshop","5 Ton",null,null,4,{"v":743.7,"d":"743.70"},{"v":2974.8,"d":"2,974.80"}]
[896,"SWR Sling 24mmx4m","Tools","Batch Plant Workshop","5 Ton",null,"No",10,{"v":743.7,"d":"743.70"},{"v":7437,"d":"7,437.00"}]
[897,"SWR Sling 25mmx2m","Tools","Section 42 Workshop","5 Ton",null,null,2,509.01,{"v":1018.02,"d":"1,018.02"}]
[898,"SWR Sling 25mmx2m","Tools","Batch Plant Workshop","5 Ton",null,"No",2,509.01,{"v":1018.02,"d":"1,018.02"}]
[899,"SWR Sling 26mmx1.5m","Tools","Section 42 Workshop","6 Ton",null,null,6,{"v":708.6,"d":"708.60"},{"v":4251.6,"d":"4,251.60"}]
[900,"SWR Sling 26mmx1.5m","Tools","Batch Plant Workshop","6 Ton",null,"No",10,{"v":708.6,"d":"708.60"},{"v":7086,"d":"7,086.00"}]
[901,"SWR Sling 26mmx10m","Tools","Section 42 Workshop","6 Ton",null,null,6,{"v":1298.55,"d":"1,298.55"},{"v":7791.299999999999,"d":"7,791.30"}]
[902,"SWR Sling 26mmx10m","Tools","Batch Plant Workshop","6 Ton",null,"No",10,{"v":1298.55,"d":"1,298.55"},{"v":12985.5,"d":"12,985.50"}]
[903,"SWR Sling 26mmx4m","Tools","Section 42 Workshop","6 Ton",null,null,10,{"v":516.2,"d":"516.20"},{"v":5162,"d":"5,162.00"}]
[904,"SWR Sling 26mmx4m","Tools","Section 42 Workshop","7.8 Ton",null,null,4,{"v":516.2,"d":"516.20"},{"v":2064.8,"d":"2,064.80"}]
[905,"SWR Sling 26mmx4m","Tools","Batch Plant Workshop","6 Ton",null,"No",10,{"v":516.2,"d":"516.20"},{"v":5162,"d":"5,162.00"}]
[906,"SWR Sling 26mmx4m","Tools","Batch Plant Workshop","7.8 Ton",null,"No",8,{"v":516.2,"d":"516.20"},{"v":4129.6,"d":"4,129.60"}]
[907,"SWR Sling 26mmx6m","Tools","Section 42 Workshop","6 Ton",null,null,8,{"v":845.1,"d":"845.10"},{"v":6760.8,"d":"6,760.80"}]
[908,"SWR Sling 26mmx6m","Tools","Batch Plant Workshop","6 Ton",null,"No",10,{"v":845.1,"d":"845.10"},{"v":8451,"d":"8,451.00"}]
[909,"SWR Sling 26mmx8m","Tools","Section 42 Workshop","6 Ton",null,null,10,{"v":1099,"d":"1,099.00"},{"v":10990,"d":"10,990.00"}]
[910,"SWR Sling 26mmx8m","Tools","Batch Plant Workshop","6 Ton",null,"No",10,{"v":1099,"d":"1,099.00"},{"$f":"I920*H920","v":{"v":10990,"d":"10,990.00"}}]
[911,"SWR Sling 32mmx3m","Tools","Section 42 Workshop","8.75 Ton",null,null,4,{"v":1071.6,"d":"1,071.60"},{"v":4286.4,"d":"4,286.40"}]
[912,"SWR Sling 32mmx3m","Tools","Batch Plant Workshop","8.75 Ton",null,"No",4,{"v":1071.6,"d":"1,071.60"},{"v":4286.4,"d":"4,286.40"}]
[913,"SWR Sling 40mm x 2m","Tools","Section 42 Workshop","18.6 Ton",null,null,4,{"v":2177.8,"d":"2,177.80"},{"v":8711.2,"d":"8,711.20"}]
[914,"SWR Sling 40mm x 2m","Tools","Batch Plant Workshop","18.6 Ton",null,"No",4,{"v":2177.8,"d":"2,177.80"},{"v":8711.2,"d":"8,711.20"}]
[915,"SWR Sling 58mmx4m","Tools","Section 42 Workshop","33.7 Ton",null,null,2,{"v":3099.53,"d":"3,099.53"},{"v":6199.06,"d":"6,199.06"}]
[916,"SWR Sling 58mmx4m","Tools","Batch Plant Workshop","33.7 Ton",null,"No",2,{"v":3099.53,"d":"3,099.53"},{"v":6199.06,"d":"6,199.06"}]
[917,"SWR Sling 8mmx500mm","Tools","Section 42 Workshop","600 kg",null,null,16,{"v":36.4,"d":"36.40"},{"v":582.4,"d":"582.40"}]
[918,"SWR Sling 8mmx500mm","Tools","Batch Plant Workshop","600 kg",null,"No",4,{"v":36.4,"d":"36.40"},{"v":145.6,"d":"145.60"}]
[919,"Temperature & Humidity recorder","Tools","Section 18 Auxiliary Bay Unit 1","LCD Displays Measured Temperature and Humidity Readings, Programmable Alarms for Humidity and Temperature, Measurement Range of -35°C to 80°C (-31°F to 176°F) and 0 to 100% RH, Fast Sampling Rate of 10 Seconds Includes Software and Lithium Battery","MAJORTECH",null,2,{"v":1400,"d":"1,400.00"},{"v":2800,"d":"2,800.00"}]
[920,"Temperature gun","Tools","Section 18 Auxiliary Bay Unit 1","Non infrared IR laser Digital Thermometer, high accuracy",null,null,1,{"v":890.9,"d":"890.90"},{"v":890.9,"d":"890.90"}]
[921,"Temperature Non-Contact Thermometer","Tools","16 M Level Workshop","TEMPERATURE RANGE -30°C~550°C / -22°F~1022°F \nRESOLUTION 0,5 /1°C (AUTO),1°F \nRESPONSE TIME 0,25 SECOND \nSPECTRAL RESPONSE 6 TO 14 µM NOMINAL \nEMISSIVITY ADJ. 0,1 TO 1 \nTEMPERATURE ± 0,2% OF READING OR \nCO-EFFICIENT ±0,2°C \n","MAJORTECH","No",2,{"v":550,"d":"550.00"},{"v":1100,"d":"1,100.00"}]
[922,"Temperature Non-Contact Thermometer","Tools","Batch Plant Workshop","TEMPERATURE RANGE -30°C~550°C / -22°F~1022°F \nRESOLUTION 0,5 /1°C (AUTO),1°F \nRESPONSE TIME 0,25 SECOND \nSPECTRAL RESPONSE 6 TO 14 µM NOMINAL \nEMISSIVITY ADJ. 0,1 TO 1 \nTEMPERATURE ± 0,2% OF READING OR \nCO-EFFICIENT ±0,2°C \n","Off the shelf ","No",2,{"v":550,"d":"550.00"},{"v":1100,"d":"1,100.00"}]
[923,"Temperature Non-Contact Thermometer","Tools","Section 18 Auxiliary Bay Unit 1","TEMPERATURE RANGE -30°C~550°C / -22°F~1022°F \nRESOLUTION 0,5 /1°C (AUTO),1°F \nRESPONSE TIME 0,25 SECOND \nSPECTRAL RESPONSE 6 TO 14 µM NOMINAL \nEMISSIVITY ADJ. 0,1 TO 1 \nTEMPERATURE ± 0,2% OF READING OR \nCO-EFFICIENT ±0,2°C \n",null,"No",2,{"v":550,"d":"550.00"},{"v":1100,"d":"1,100.00"}]
[924,"Termi-point Tool ","Tools","Section 18 Auxiliary Bay Unit 1","WIRE (AWG) SOLID OR STRANDED  (7 Strands) 20 and 24. INSULATION DIAMETER RANGE (mm [in.]) 1.17–1.65 [.046–.065] or 1.68–2.16 [.066–.085] or 1.40–1.65 [.055–.065], MANDREL AND CLIP COLOR CODE, Yellow and Red.",null,null,1,{"v":6570,"d":"6,570.00"},{"v":6570,"d":"6,570.00"}]
[925,"Testing Trolleys","Tools","Section 19 Auxiliary Bay Unit 2","Stabel design ,stainless steel square frame 40x40x1.25mm work top,50mm thick, sheet metal 2mm thick. Grit size 320-400.2 x castors with brakes,2x castors. Floor clearance of 150mm, working height 850mm.",null,"No",2,{"v":2999,"d":"2,999.00"},{"v":5998,"d":"5,998.00"}]
[926,"Testing Trolleys","Tools","Batch Plant Workshop","Stabel design ,stainless steel square frame 40x40x1.25mm work top,50mm thick, sheet metal 2mm thick. Grit size 320-400.2 x castors with brakes,2x castors. Floor clearance of 150mm, working height 850mm.",null,"No",2,{"v":2999,"d":"2,999.00"},{"v":5998,"d":"5,998.00"}]
[927,"Tirfor Rope","Tools","Section 42 Workshop","4 Ton",null,"No",4,{"v":1890,"d":"1,890.00"},{"v":7560,"d":"7,560.00"}]
[928,"Tirfor Rope","Tools","Batch Plant Workshop","4 Ton",null,"No",4,{"v":1890,"d":"1,890.00"},{"v":7560,"d":"7,560.00"}]
[929,"Toe Jacks","Tools","Section 42 Workshop","27,5 ton",null,"No",1,{"v":1795,"d":"1,795.00"},{"v":1795,"d":"1,795.00"}]
[930,"Toe Jacks","Tools","Batch Plant Workshop","27,5 ton",null,"No",1,{"v":1795,"d":"1,795.00"},{"v":1795,"d":"1,795.00"}]
[931,"Tools Carry Bag","Tools","Batch Plant Workshop","Brown genuine leather tool carry bag with dividers inside..",null,"No",20,{"$f":"2100/1.15","v":{"v":1826.0869565217392,"d":"1,826.09"}},{"v":36521.739130434784,"d":"36,521.74"}]
[null,"Torque testers ","Tools","Section 42 Workshop","Electronic torque tester with integrated torque transducer.\nWith 10mm, 17mm & 36mm hexagonal sockets.\nWith fixed hexagon female drive 1/4\" or 1.1/2\" square drive adaptor. \nMeasurement accuracy: +/- 1% tolerance of reading, +/- 1 digit\nBreak-point-measurement \nFor torque wrenches.\n","GEDORE","No",2,{"v":27861,"d":"27,861.00"},{"v":55722,"d":"55,722.00"}]
[933,"Torque testers","Tools","Batch Plant Workshop","Electronic torque tester with integrated torque transducer.\nWith 10mm, 17mm & 36mm hexagonal sockets.\nWith fixed hexagon female drive 1/4\" or 1.1/2\" square drive adaptor. \nMeasurement accuracy: +/- 1% tolerance of reading, +/- 1 digit\nBreak-point-measurement \nFor torque wrenches.\n","GEDORE","No",2,{"v":27861,"d":"27,861.00"},{"v":55722,"d":"55,722.00"}]
[934,"Torque wrench","Tools","Batch Plant Workshop","Torque Range 50 - 225 Nm,1/2 in square drive.","GEDORE","No",4,{"v":4483.38,"d":"4,483.38"},{"v":17933.52,"d":"17,933.52"}]
[935,"Torque wrench","Tools","Batch Plant Workshop","Torque Range 12 - 68 Nm,1/2 in square drive.","GEDORE","No",10,{"v":2682.8,"d":"2,682.80"},{"v":26828,"d":"26,828.00"}]
[936,"Torque Wrench, Square Drive Predator series","Tools","Section 42 Workshop","Max Torque 33496 Nm, 700bar",null,"No",1,{"v":13428,"d":"13,428.00"},{"v":13428,"d":"13,428.00"}]
[937,"Torque Wrench, Square Drive Predator series","Tools","Section 42 Workshop","Max Torque 33496 Nm, 700bar",null,"No",1,{"v":58000,"d":"58,000.00"},{"v":58000,"d":"58,000.00"}]
[938,"Torque Wrench, Square Drive Predator series","Tools","Batch Plant Workshop","Max Torque 33496 Nm, 700bar",null,"No",1,{"v":58000,"d":"58,000.00"},{"v":58000,"d":"58,000.00"}]
[939,"Torque Wrench, Square Drive Predator series","Tools","Batch Plant Workshop","Max Torque 33496 Nm, 700bar",null,"No",1,{"v":58000,"d":"58,000.00"},{"v":58000,"d":"58,000.00"}]
[940,"Torque multiplier","Tools","Section 42 Workshop","Output Capacity: 1356Nm\nInput Capacity: 451Nm\nOutput Sq. Size: 19mm","GEDORE","No",1,{"$f":"40015.3/1.15","v":{"v":34795.913043478264,"d":"34,795.91"}},{"v":34795.913043478264,"d":"34,795.91"}]
[941,"Torque multiplier","Tools","Section 42 Workshop","Output Capacity: 2712Nm\nInput Capacity: 775Nm\nOutput Sq. Size: 26mm","GEDORE","No",1,{"$f":"40015.3/1.15","v":{"v":34795.913043478264,"d":"34,795.91"}},{"v":34795.913043478264,"d":"34,795.91"}]
[942,"Torque multiplier","Tools","Batch Plant Workshop","Output Capacity: 1356Nm\nInput Capacity: 451Nm\nOutput Sq. Size: 19mm","GEDORE","No",1,{"v":34795.913043478264,"d":"34,795.91"},{"v":34795.913043478264,"d":"34,795.91"}]
[943,"Torque multiplier","Tools","Batch Plant Workshop","Output Capacity: 2712Nm\nInput Capacity: 775Nm\nOutput Sq. Size: 26mm","GEDORE","No",1,{"v":34795.913043478264,"d":"34,795.91"},{"v":34795.913043478264,"d":"34,795.91"}]
[944,"Torque wrench 100 - 500nm ","Tools","Section 42 Workshop",null,"GEDORE","No",4,{"v":1945,"d":"1,945.00"},{"v":7780,"d":"7,780.00"}]
[945,"Torque wrench 100 - 500nm ","Tools","Batch Plant Workshop",null,"GEDORE","No",2,{"v":1945,"d":"1,945.00"},{"v":3890,"d":"3,890.00"}]
[946,"Torque wrench 12 - 68nm ","Tools","Section 42 Workshop",null,"GEDORE","No",4,{"v":1978,"d":"1,978.00"},{"v":7912,"d":"7,912.00"}]
[947,"Torque wrench 12 - 68nm nonbar","Tools","Batch Plant Workshop",null,"GEDORE","No",2,{"v":1978,"d":"1,978.00"},{"v":3956,"d":"3,956.00"}]
[948,"Torque wrench 150 - 700nm","Tools","Section 42 Workshop",null,"GEDORE","No",4,{"v":2648,"d":"2,648.00"},{"v":10592,"d":"10,592.00"}]
[949,"Torque wrench 150 - 700nm","Tools","Batch Plant Workshop",null,"GEDORE","No",2,{"v":2648,"d":"2,648.00"},{"v":5296,"d":"5,296.00"}]
[950,"Torque wrench 20 - 100nm","Tools","Section 42 Workshop",null,"GEDORE","No",4,{"v":1978,"d":"1,978.00"},{"v":7912,"d":"7,912.00"}]
[951,"Torque wrench 20 - 100nm","Tools","Batch Plant Workshop",null,"GEDORE","No",2,{"v":1978,"d":"1,978.00"},{"v":3956,"d":"3,956.00"}]
[952,"Torque wrench 300 - 1000nm","Tools","Section 42 Workshop",null,"GEDORE","No",4,{"v":3659,"d":"3,659.00"},{"v":14636,"d":"14,636.00"}]
[953,"Torque wrench 300 - 1000nm","Tools","Batch Plant Workshop",null,"GEDORE","No",2,{"v":3659,"d":"3,659.00"},{"v":7318,"d":"7,318.00"}]
[954,"Torque wrench 4 - 20nm ","Tools","Section 42 Workshop",null,"GEDORE","No",4,{"$f":"I956","v":{"v":1978,"d":"1,978.00"}},{"v":7912,"d":"7,912.00"}]
[955,"Torque wrench 4 - 20nm ","Tools","Batch Plant Workshop",null,"GEDORE","No",2,{"$f":"I957","v":{"v":1978,"d":"1,978.00"}},{"v":3956,"d":"3,956.00"}]
[956,"Torque wrench 40 - 200nm","Tools","Section 42 Workshop",null,"GEDORE","No",4,{"$f":"I954","v":{"v":1945,"d":"1,945.00"}},{"v":7780,"d":"7,780.00"}]
[957,"Torque wrench 40 - 200nm","Tools","Batch Plant Workshop",null,"GEDORE","No",2,{"$f":"I955","v":{"v":1945,"d":"1,945.00"}},{"v":3890,"d":"3,890.00"}]
[958,"Torque wrench 60 - 330nm","Tools","Section 42 Workshop",null,"GEDORE","No",4,{"$f":"I959","v":{"v":2648,"d":"2,648.00"}},{"v":10592,"d":"10,592.00"}]
[959,"Torque wrench 60 - 330nm","Tools","Batch Plant Workshop",null,"GEDORE","No",2,{"$f":"I959","v":{"v":2648,"d":"2,648.00"}},{"v":5296,"d":"5,296.00"}]
[960,"Torque wrench 8 - 54nm","Tools","Section 42 Workshop",null,"GEDORE","No",4,{"$f":"I956","v":{"v":1978,"d":"1,978.00"}},{"v":7912,"d":"7,912.00"}]
[961,"Torque wrench 8 - 54nm","Tools","Batch Plant Workshop",null,"GEDORE","No",2,{"$f":"I957","v":{"v":1978,"d":"1,978.00"}},{"v":3956,"d":"3,956.00"}]
[962,"TRI BLOCS","Tools","Section 42 Workshop","The TRI BLOCS contains 3 MM plates in one case roughing , finishing and superfinishing complete with hyprez diamond stick compound for each plate. Three diamond sticks hyprez MM 131, 141, 142. Reference no: 0903NL000",null,null,4,77.14,308.56]
[963,"TRI BLOCS","Tools","Batch Plant Workshop","The TRI BLOCS contains 3 MM plates in one case roughing , finishing and superfinishing complete with hyprez diamond stick compound for each plate. Three diamond sticks hyprez MM 131, 141, 142. Reference no: 0903NL000",null,"No",4,77.14,308.56]
[964,"Universal 2 mag stand oxford","Tools","Section 42 Workshop","Mounts: 1/\n4” I/D lug, stem/spigot\ndiameter:\n4mm, 8mm, 3/8” without bush. \nBase dimensions:\n60 x 50 x 55mm. \nColumn height x dia.:\n175 x 12mm.\nCrossbar length x dia.:\n165 x 10.0mm. \nClamp ring: 6.35mm. Magnetic pull: 50kg","Oxford","No",6,{"v":601,"d":"601.00"},{"v":3606,"d":"3,606.00"}]
[965,"universal 2 mag stand oxford","Tools","Batch Plant Workshop","Mounts: 1/\n4” I/D lug, stem/spigot\ndiameter:\n4mm, 8mm, 3/8” without bush. \nBase dimensions:\n60 x 50 x 55mm. \nColumn height x dia.:\n175 x 12mm.\nCrossbar length x dia.:\n165 x 10.0mm. \nClamp ring: 6.35mm. Magnetic pull: 50kg","Oxford","No",0,{"v":601,"d":"601.00"},0]
[966,"Utility knife","Tools","Batch Plant Workshop","Cutting tool used in various trades and crafts for a variety of purposes","GEDORE","No",20,{"$f":"166/1.15","v":{"v":144.34782608695653,"d":"144.35"}},{"v":2886.9565217391305,"d":"2,886.96"}]
[967,"v belt alignment machine","Tools","Section 42 Workshop","Type of laser: Green laser diode\nLaser: 1x Built-in class 2 laser, <1 mW, 532 nm \nLaser line length: 2 m at 2 m\nMeasurement accuracy angular: Better than 0,02° at 2 m\nMeasurement accuracy offset: Better than 0,5 mm\nMeasurement distance: 50 mm to 6 000 mm\nTransmitter unit: 169 x 51 x 37 mm \nReceiver unit: 169 x 51 x 37 mm\nReflector dimensions: 22 x 32 mm\nCalibration certificate: Required",null,null,4,{"$f":"37884/1.15","v":{"v":32942.608695652176,"d":"32,942.61"}},{"v":131770.4347826087,"d":"131,770.43"}]
[968,"v belt alignment machine","Tools","Batch Plant Workshop","Type of laser: Green laser diode\nLaser: 1x Built-in class 2 laser, <1 mW, 532 nm \nLaser line length: 2 m at 2 m\nMeasurement accuracy angular: Better than 0,02° at 2 m\nMeasurement accuracy offset: Better than 0,5 mm\nMeasurement distance: 50 mm to 6 000 mm\nTransmitter unit: 169 x 51 x 37 mm \nReceiver unit: 169 x 51 x 37 mm\nReflector dimensions: 22 x 32 mm\nCalibration certificate: Required",null,"No",2,{"$f":"37884/1.15","v":{"v":32942.608695652176,"d":"32,942.61"}},{"v":65885.21739130435,"d":"65,885.22"}]
[969,"Vacuum cleaner","Tools","16 M Level Workshop","Wet dry type","Off the Shelf","No",1,{"$f":"1398/1.15","v":{"v":1215.6521739130435,"d":"1,215.65"}},{"v":1215.6521739130435,"d":"1,215.65"}]
[970,"Vacuum cleaner","Tools","Section 19 Auxiliary Bay Unit 2","Wet dry type",null,"No",1,{"$f":"1398/1.15","v":{"v":1215.6521739130435,"d":"1,215.65"}},{"v":1215.6521739130435,"d":"1,215.65"}]
[971,"Vacuum cleaner","Tools","Section 42: Workshop and Stores building","Wet dry type","WAP industrial vacuum cleaner recommended","No",1,{"$f":"1398/1.15","v":{"v":1215.6521739130435,"d":"1,215.65"}},{"v":1215.6521739130435,"d":"1,215.65"}]
[972,"Vacuum cleaner","Tools","Batch Plant Workshop","Wet dry type","WAP industrial vacuum cleaner recommended","No",1,{"$f":"1398/1.15","v":{"v":1215.6521739130435,"d":"1,215.65"}},{"v":1215.6521739130435,"d":"1,215.65"}]
[973,"Vacuum cleaner","Tools","Section 18 Auxiliary Bay Unit 1","portable vacuum cleaner with shoulder strap back pack                                        Model NO.:   ZN1301-12L \nwith shoulder , PP + ABS ",null,null,1,{"$f":"1398/1.15","v":{"v":1215.6521739130435,"d":"1,215.65"}},{"v":1215.6521739130435,"d":"1,215.65"}]
[974,"V-Belt tension gauge complete set","Tools","Section 42 Workshop","V-belt tension tester/gauge c/w Deflection force scale, Span scale.",null,null,6,{"v":1497,"d":"1,497.00"},{"$f":"I984*H984","v":{"v":8982,"d":"8,982.00"}}]
[975,"V-Belt tension gauge complete set","Tools","Batch Plant Workshop","V-belt tension tester/gauge c/w Deflection force scale, Span scale.",null,"No",4,{"v":1497,"d":"1,497.00"},{"v":5988,"d":"5,988.00"}]
[976,"Vernier Caliper ","Tools","Batch Plant Workshop","300mm, Jaw Depths inside 19mm , outside 63mm, Knife-edge contacts for both inside and outside measurements, Lock screw for holding the sliding jaw in position . ","GEDORE","No",16,{"v":2623,"d":"2,623.00"},{"v":4196,"d":"4,196.00"}]
[977,"Vernier Caliper ","Tools","ERI Turbo Gen Services (TGS) Workshop 20","300mm, Jaw Depths inside 19mm , outside 63mm, Knife-edge contacts for both inside and outside measurements, Lock screw for holding the sliding jaw in position . ",null,"No",1,{"v":2623,"d":"2,623.00"},{"$f":"I987*H987","v":{"v":2623,"d":"2,623.00"}}]
[978,"Vernier Caliper ","Tools","Section 42 Workshop","300mm, Jaw Depths inside 19mm , outside 63mm, Knife-edge contacts for both inside and outside measurements, Lock screw for holding the sliding jaw in position . ",null,"No",1,{"v":2623,"d":"2,623.00"},{"v":2623,"d":"2,623.00"}]
[979,"Vernier Caliper ","Tools","Mill Maintenance Workshop","300mm, Jaw Depths inside 19mm , outside 63mm, Knife-edge contacts for both inside and outside measurements, Lock screw for holding the sliding jaw in position . ",null,"No",1,{"v":2623,"d":"2,623.00"},{"v":2623,"d":"2,623.00"}]
[980,"Vernier Caliper ","Tools","Welding Workshop","300mm, Jaw Depths inside 19mm , outside 63mm, Knife-edge contacts for both inside and outside measurements, Lock screw for holding the sliding jaw in position . ",null,"No",1,{"v":2623,"d":"2,623.00"},{"v":2623,"d":"2,623.00"}]
[981,"Vernier height gauge 0 - 500mm","Tools","Section 42 Workshop",null,"Mitutoyo","No",5,{"$f":"4360/1.15","v":{"v":3791.3043478260875,"d":"3,791.30"}},{"v":18956.521739130436,"d":"18,956.52"}]
[982,"Vernier height gauge 0 - 500mm","Tools","Batch Plant Workshop",null,"Mitutoyo","No",1,{"$f":"4360/1.15","v":{"v":3791.3043478260875,"d":"3,791.30"}},{"v":3791.3043478260875,"d":"3,791.30"}]
[983,"Webbing Sling 100mmx3m","Tools","Section 42 Workshop","2 Ton",null,"No",2,{"v":96,"d":"96.00"},{"v":192,"d":"192.00"}]
[984,"Webbing Sling 100mmx3m","Tools","Batch Plant Workshop","2 Ton",null,"No",2,{"v":96,"d":"96.00"},{"v":192,"d":"192.00"}]
[985,"Webbing Sling 100mmx4m","Tools","Section 42 Workshop","4 Ton",null,"No",10,{"v":275,"d":"275.00"},{"v":2750,"d":"2,750.00"}]
[986,"Webbing Sling 100mmx4m","Tools","Section 42 Workshop","4 Ton",null,"No",2,{"v":275,"d":"275.00"},{"v":550,"d":"550.00"}]
[987,"Webbing Sling 100mmx4m","Tools","Batch Plant Workshop","4 Ton",null,"No",5,{"v":275,"d":"275.00"},{"v":1375,"d":"1,375.00"}]
[988,"Webbing Sling 100mmx4m","Tools","Batch Plant Workshop","4 Ton",null,"No",2,{"v":275,"d":"275.00"},{"v":550,"d":"550.00"}]
[989,"Webbing Sling 100mmx6m","Tools","Section 42 Workshop","4 Ton",null,"No",2,{"v":406,"d":"406.00"},{"v":812,"d":"812.00"}]
[990,"Webbing Sling 100mmx6m","Tools","Section 42 Workshop","4 Ton",null,"No",4,{"v":406,"d":"406.00"},{"v":1624,"d":"1,624.00"}]
[991,"Webbing Sling 100mmx6m","Tools","Batch Plant Workshop","4 Ton",null,"No",2,{"v":406,"d":"406.00"},{"v":812,"d":"812.00"}]
[992,"Webbing Sling 100mmx6m","Tools","Batch Plant Workshop","4 Ton",null,"No",4,{"v":406,"d":"406.00"},{"v":1624,"d":"1,624.00"}]
[993,"Webbing Sling 200mm x 4m","Tools","Section 42 Workshop","4 Ton",null,"No",2,{"v":900,"d":"900.00"},{"v":1800,"d":"1,800.00"}]
[994,"Webbing Sling 200mm x 4m","Tools","Batch Plant Workshop","4 Ton",null,"No",2,{"v":900,"d":"900.00"},{"v":1800,"d":"1,800.00"}]
[995,"Wedge spreader","Tools","Section 42 Workshop","Mechanical wedge spreader\nMax. spreading force: 72KN\nTip clearance: 6 mm\nMax. Spread: 80 mm\nWeight: 6.5 Kg",null,"No",4,{"v":2147,"d":"2,147.00"},{"v":8588,"d":"8,588.00"}]
[996,"Wedge spreader","Tools","Batch Plant Workshop","Mechanical wedge spreader\nMax. spreading force: 72KN\nTip clearance: 6 mm\nMax. Spread: 80 mm\nWeight: 6.5 Kg",null,"No",2,{"v":2147,"d":"2,147.00"},{"v":4294,"d":"4,294.00"}]
[997,"Wire scratch brush cast steel 4 rows","Tools","Section 42 Workshop",null,null,"No",5,{"v":32,"d":"32.00"},{"v":160,"d":"160.00"}]
[998,"wire scratch brush cast steel 4 rows","Tools","Batch Plant Workshop",null,null,"No",5,{"v":32,"d":"32.00"},{"v":160,"d":"160.00"}]
[999,"Wire stripper","Tools","Batch Plant Workshop","Self adjusting cutting and stripping tool for modern  electrical installation and equipment circuit","GEDORE","No",14,{"$f":"115/1.15","v":{"v":100.00000000000001,"d":"100.00"}},{"v":1400.0000000000002,"d":"1,400.00"}]
[1000,"Work benches Heavy duty","Tools","Section 42 Workshop","2000 L x 800 D x 890 H, Incl drawers:3 on one side and cabinet on the other side, metal top with rubber finish.",null,null,24,{"$f":"4000*(1+0.25)","v":{"v":5000,"d":"5,000.00"}},{"v":120000,"d":"120,000.00"}]
[1001,"Work benches Heavy duty","Tools","ERI Turbo Gen Services (TGS) Workshop 6","2000 L x 800 D x 890 H, Incl drawers:3 on one side and cabinet on the other side, metal top with rubber finish.",null,null,3,{"$f":"4000*(1+0.25)","v":{"v":5000,"d":"5,000.00"}},{"v":15000,"d":"15,000.00"}]
[1002,"Work benches Heavy duty","Workshop furniture","ERI Turbo Gen Services (TGS) Workshop 18","2000 L x 800 D x 890 H, Incl drawers:3 on one side and cabinet on the other side with solid wood top.",null,"Required",2,{"v":5000,"d":"5,000.00"},{"v":10000,"d":"10,000.00"}]
[1003,"Work benches Heavy duty","Workshop furniture","Section 42 Workshop","2000 L x 800 D x 890 H, Incl drawers:3 on one side and cabinet on the other side with solid wood top.",null,null,10,{"v":5000,"d":"5,000.00"},{"v":50000,"d":"50,000.00"}]
[1004,"Work benches Heavy duty","Workshop furniture","Section 42 Workshop","2000 L x 800 D x 890 H, Incl drawers:3 on one side and cabinet on the other side with solid wood top.",null,null,10,{"v":5000,"d":"5,000.00"},{"v":50000,"d":"50,000.00"}]
[1005,"Work benches Heavy duty","Tools","Mill Maintenance Workshop","2000 L x 800 D x 890 H, Incl drawers:3 on one side and cabinet on the other side with solid wood top.",null,"Required",2,{"v":5000,"d":"5,000.00"},{"v":10000,"d":"10,000.00"}]
[1006,"Work benches Heavy duty","Tools","Mill Maintenance Workshop","2000 L x 800 D x 890 H, Incl drawers:3 on one side and cabinet on the other side with solid wood top.",null,"Required",4,{"v":5000,"d":"5,000.00"},{"v":20000,"d":"20,000.00"}]
[1007,"Work table Office standard","Workshop furniture","Section 18 Auxiliary Bay Unit 1","2000 L x 800 D x 890 H, Incl drawers:3 on one side and cabinet on the other side with solid wood top.",null,"Installation Required",2,{"v":5000,"d":"5,000.00"},{"v":10000,"d":"10,000.00"}]
[1008,"Zeus or similar approved precision book","Tools","Section 42 Workshop","With Data charts and reference tables for tool room and workshops. Should contain data on  standard drill sizes and decimal equivalents, tapping drills and clearances for metric and imperial threads,\nBS4500 tolerances, hardness comparisons, jig boring co-ordinates for equally spaced holes, allowances for sheet metal bending and Morse tapers.","Zeus","No",4,{"v":200.8,"d":"200.80"},{"v":803.2,"d":"803.20"}]
[1009,"Zeus or similar approved precision book","Tools","Batch Plant Workshop","With Data charts and reference tables for tool room and workshops. Should contain data on  standard drill sizes and decimal equivalents, tapping drills and clearances for metric and imperial threads,\nBS4500 tolerances, hardness comparisons, jig boring co-ordinates for equally spaced holes, allowances for sheet metal bending and Morse tapers.","Zeus","No",2,{"v":200.8,"d":"200.80"},{"v":401.6,"d":"401.60"}]
[]
[{"$nulls":6},{"$f":"SUM(J11:J1019)","v":{"v":7056670.955217391,"d":"7,056,670.96"}}]
[]
[]
[]
[]
[]
[null,"SUMMARY"]
[]
[null,"16m Level",null,{"v":69623.09,"d":"R69,623.09"}]
[null,"batch Plant workshop",null,{"v":2800583.93,"d":"R2,800,583.93"}]
[null,"ERI  Turbo workshop 1 - 20",null,{"v":140760.82,"d":"R140,760.82"}]
[null,"Section 42",null,{"v":3002988.11,"d":"R3,002,988.11"}]
[null,"Aux Bay U1 ",null,338171.35]
[null,"Aux Bay U2 ",null,151527.97]
[null,"Aux Bay U3",null,{"v":131800.57,"d":"R131,800.57"}]
[null,"Welding W",null,{"v":186205.1,"d":"R186,205.10"}]
[null,"Units workshop - Mills",null,{"v":88191.42,"d":"R88,191.42"}]
[]
[{"$nulls":3},{"$f":"SUM(D1029:D1037)","v":{"v":6909852.3599999985,"d":"R6,909,852.36"}},{"$f":"G1021-D1039","v":{"v":146818.59521739278,"d":"146,818.60"}}]

{"sheet":"Sheet 1","index":6,"n_rows":1035,"n_cols":15,"rows_kept":1035,"hidden":true,"merged":[[0,0,0,1],[0,2,0,4],[1,0,1,1],[2,0,2,1]]}
["Package:",null,"P37A"]
["Department:",null,"Maintanance"]
["Project:",null,"P37A C&I, Electrical and Mechanical Workshop Off-Shelf Tools & Equipment "]
[]
[{"$nulls":11},"Formulae check"]
["Item No","Description","Category","Building","QTY","Specification","Brand","Installation","RATE","AMOUNT",null,"RATE","AMOUNT"]
[]
[1,"\"D\" Shackle","Tools","Section 42 Workshop",2,"750kg",null,"No",{"v":7.4,"d":"7.40"},{"$f":"I8*E8","v":{"v":14.8,"d":"14.80"}},null,{"v":7.4,"d":"7.40"},{"$f":"L8*E8","v":{"v":14.8,"d":"14.80"}}]
[2,"\"D\" Shackle","Tools","Section 42 Workshop",5,"1.5 Ton",null,"No",11.65,58.25,null,11.65,58.25]
[3,"\"D\" Shackle","Tools","Section 42 Workshop",8,"2 Ton",null,"No",{"v":16.5,"d":"16.50"},{"v":132,"d":"132.00"},null,{"v":16.5,"d":"16.50"},{"v":132,"d":"132.00"}]
[4,"\"D\" Shackle","Tools","Section 42 Workshop",3,"3 Ton",null,"No",{"v":23,"d":"23.00"},{"v":69,"d":"69.00"},null,{"v":23,"d":"23.00"},{"v":69,"d":"69.00"}]
[5,"\"D\" Shackle","Tools","Section 42 Workshop",2,"3.25 Ton",null,"No",{"v":23,"d":"23.00"},{"v":46,"d":"46.00"},null,{"v":23,"d":"23.00"},{"v":46,"d":"46.00"}]
[6,"\"D\" Shackle","Tools","Section 42 Workshop",2,"3.75 Ton",null,"No",{"v":23,"d":"23.00"},{"v":46,"d":"46.00"},null,{"v":23,"d":"23.00"},{"v":46,"d":"46.00"}]
[7,"\"D\" Shackle","Tools","Section 42 Workshop",3,"4.75 Ton",null,"No",{"v":37,"d":"37.00"},{"v":111,"d":"111.00"},null,{"v":37,"d":"37.00"},{"v":111,"d":"111.00"}]
[8,"\"D\" Shackle","Tools","Section 42 Workshop",2,"7 Ton",null,"No",{"v":96,"d":"96.00"},{"v":192,"d":"192.00"},null,{"v":96,"d":"96.00"},{"v":192,"d":"192.00"}]
[9,"\"D\" Shackle","Tools","Section 42 Workshop",2,"9 Ton",null,"No",{"v":105,"d":"105.00"},{"v":210,"d":"210.00"},null,{"v":105,"d":"105.00"},{"v":210,"d":"210.00"}]
[10,"\"D\" Shackle","Tools","Section 42 Workshop",2,"10 Ton",null,"No",{"v":153,"d":"153.00"},{"v":306,"d":"306.00"},null,{"v":153,"d":"153.00"},{"v":306,"d":"306.00"}]
[11,"\"D\" Shackle","Tools","Section 42 Workshop",2,"13 Ton",null,"No",{"v":190,"d":"190.00"},{"v":380,"d":"380.00"},null,{"v":190,"d":"190.00"},{"v":380,"d":"380.00"}]
[12,"\"D\" Shackle","Tools","Section 42 Workshop",2,"200 Ton",null,"No",{"$f":"3350*2","v":{"v":6700,"d":"6,700.00"}},{"v":13400,"d":"13,400.00"},null,{"$f":"3350*2","v":{"v":6700,"d":"6,700.00"}},{"v":13400,"d":"13,400.00"}]
[13,"\"D\" Shackle","Tools","Batch Plant Workshop",2,"750kg",null,"No",{"v":7.4,"d":"7.40"},{"v":14.8,"d":"14.80"},null,{"v":7.4,"d":"7.40"},{"v":14.8,"d":"14.80"}]
[14,"\"D\" Shackle","Tools","Batch Plant Workshop",5,"1.5 Ton",null,"No",11.65,58.25,null,11.65,58.25]
[15,"\"D\" Shackle","Tools","Batch Plant Workshop",8,"2 Ton",null,"No",{"v":16.5,"d":"16.50"},{"v":132,"d":"132.00"},null,{"v":16.5,"d":"16.50"},{"v":132,"d":"132.00"}]
[16,"\"D\" Shackle","Tools","Batch Plant Workshop",4,"3 Ton",null,"No",{"v":23,"d":"23.00"},{"v":92,"d":"92.00"},null,{"v":23,"d":"23.00"},{"v":92,"d":"92.00"}]
[17,"\"D\" Shackle","Tools","Batch Plant Workshop",4,"3.25 Ton",null,"No",{"v":23,"d":"23.00"},{"v":92,"d":"92.00"},null,{"v":23,"d":"23.00"},{"v":92,"d":"92.00"}]
[18,"\"D\" Shackle","Tools","Batch Plant Workshop",2,"3.75 Ton",null,"No",{"v":23,"d":"23.00"},{"v":46,"d":"46.00"},null,{"v":23,"d":"23.00"},{"v":46,"d":"46.00"}]
[19,"\"D\" Shackle","Tools","Batch Plant Workshop",3,"4.75 Ton",null,"No",{"v":37,"d":"37.00"},{"v":111,"d":"111.00"},null,{"v":37,"d":"37.00"},{"v":111,"d":"111.00"}]
[20,"\"D\" Shackle","Tools","Batch Plant Workshop",2,"7 Ton",null,"No",{"v":96,"d":"96.00"},{"v":192,"d":"192.00"},null,{"v":96,"d":"96.00"},{"v":192,"d":"192.00"}]
[21,"\"D\" Shackle","Tools","Batch Plant Workshop",2,"9 Ton",null,"No",{"v":105,"d":"105.00"},{"v":210,"d":"210.00"},null,{"v":105,"d":"105.00"},{"v":210,"d":"210.00"}]
[22,"\"D\" Shackle","Tools","Batch Plant Workshop",2,"10 Ton",null,"No",{"v":153,"d":"153.00"},{"v":306,"d":"306.00"},null,{"v":153,"d":"153.00"},{"v":306,"d":"306.00"}]
[23,"\"D\" Shackle","Tools","Batch Plant Workshop",2,"13 Ton",null,"No",{"v":190,"d":"190.00"},{"v":380,"d":"380.00"},null,{"v":190,"d":"190.00"},{"v":380,"d":"380.00"}]
[24,"\"D\" Shackle","Tools","Batch Plant Workshop",2,"200 Ton",null,"No",{"$f":"3350*2","v":{"v":6700,"d":"6,700.00"}},{"v":13400,"d":"13,400.00"},null,{"$f":"3350*2","v":{"v":6700,"d":"6,700.00"}},{"v":13400,"d":"13,400.00"}]
[25,"0 - 150mm outside micrometer","Tools","Section 42 Workshop",2,"Type: Standard\nRange: 0 -150mm\nGraduation: 0.01mm, 0,001mm\nAccuracy: ±2µm\nFlatness: 0.6µm\nMeasuring Faces: Carbide\nParallelism: (2+R/100)µm, R = max. range (mm)","Mitutoyo","No",{"$f":"250*14","v":{"v":3500,"d":"3,500.00"}},{"v":7000,"d":"7,000.00"},null,{"$f":"250*14","v":{"v":3500,"d":"3,500.00"}},{"v":7000,"d":"7,000.00"}]
[26,"0 - 150mm outside micrometer","Tools","Batch Plant Workshop",2,"Type: Standard\nRange: 0 -150mm\nGraduation: 0.01mm, 0,001mm\nAccuracy: ±2µm\nFlatness: 0.6µm\nMeasuring Faces: Carbide\nParallelism: (2+R/100)µm, R = max. range (mm)","Mitutoyo","No",{"$f":"250*14","v":{"v":3500,"d":"3,500.00"}},{"v":7000,"d":"7,000.00"},null,{"$f":"250*14","v":{"v":3500,"d":"3,500.00"}},{"v":7000,"d":"7,000.00"}]
[27,"0 - 25mm Outside micrometer","Tools","Section 42 Workshop",3,"Baked enamel finished frame\nCarbide measuring faces\nEquipped with ratchet stop for constant measuring force\nMaximum measuring range up to 25mm\n0.01mm of graduation\nAccuracy of ±2µm","Mitutoyo","No",{"$f":"68.64*18","v":{"v":1235.52,"d":"1,235.52"}},{"v":3706.56,"d":"3,706.56"},null,{"$f":"68.64*18","v":{"v":1235.52,"d":"1,235.52"}},{"v":3706.56,"d":"3,706.56"}]
[28,"0 - 25mm Outside micrometer","Tools","Batch Plant Workshop",3,"Baked enamel finished frame\nCarbide measuring faces\nEquipped with ratchet stop for constant measuring force\nMaximum measuring range up to 25mm\n0.01mm of graduation\nAccuracy of ±2µm","Mitutoyo","No",{"$f":"68.64*18","v":{"v":1235.52,"d":"1,235.52"}},{"v":3706.56,"d":"3,706.56"},null,{"$f":"1430/1.15","v":{"v":1243.4782608695652,"d":"1,243.48"}},{"v":3730.434782608696,"d":"3,730.43"}]
[29,"11 drawer roller cabinet","Tools","Section 42 Workshop",4,"Height: 1435 mm\nWidth: 705 mm\nDepth: 485 mm\nQty lengthwise dividers: 16x Piece\nQty crosswise dividers: 4x Piece\nWeight: 123 kg\nNumber of drawers: 11 Piece","GEDORE","No",{"v":22002.41,"d":"22,002.41"},{"v":88009.64,"d":"88,009.64"},null,{"$f":"I36","v":{"v":22002.41,"d":"22,002.41"}},{"v":88009.64,"d":"88,009.64"}]
[30,"11 drawer roller cabinet","Tools","Batch Plant Workshop",4,"Height: 1435 mm\nWidth: 705 mm\nDepth: 485 mm\nQty lengthwise dividers: 16x Piece\nQty crosswise dividers: 4x Piece\nWeight: 123 kg\nNumber of drawers: 11 Piece","GEDORE","No",{"v":22002.41,"d":"22,002.41"},{"v":88009.64,"d":"88,009.64"},null,{"$f":"I37","v":{"v":22002.41,"d":"22,002.41"}},{"v":88009.64,"d":"88,009.64"}]
[31,"12mm boring bar iso insert type tpmr","Tools","Section 42 Workshop",6,null,null,"No",{"v":365,"d":"365.00"},{"v":2190,"d":"2,190.00"},null,{"v":365,"d":"365.00"},{"v":2190,"d":"2,190.00"}]
[32,"16mm boring bar iso insert type tpmr","Tools","Section 42 Workshop",6,null,null,"No",null,0,null,null,0]
[33,"2 Legged Chain sling","Tools","Section 42 Workshop",2,"1 Ton",null,"No",{"v":385,"d":"385.00"},{"v":770,"d":"770.00"},null,{"v":385,"d":"385.00"},{"v":770,"d":"770.00"}]
[34,"2 Legged Chain sling","Tools","Batch Plant Workshop",2,"1 Ton",null,"No",{"v":385,"d":"385.00"},{"v":770,"d":"770.00"},null,{"v":385,"d":"385.00"},{"v":770,"d":"770.00"}]
[35,"2 Legged Steel sling","Tools","Section 42 Workshop",2,"500kg",null,null,{"v":385,"d":"385.00"},{"v":770,"d":"770.00"},null,{"v":385,"d":"385.00"},{"v":770,"d":"770.00"}]
[36,"2 Legged Steel sling","Tools","Batch Plant Workshop",2,"500kg",null,"No",{"v":385,"d":"385.00"},{"v":770,"d":"770.00"},null,{"v":385,"d":"385.00"},{"v":770,"d":"770.00"}]
[37,"200mm scriber","Tools",null,10,"LIS-31800, LIS31800; Features and Benefits: Ideal for marking most metal and softer material surfaces. Comes with straight and 90 degree points to mark in even the tightest places Heat-treated carbon steel ",null,"No",37.41,{"v":374.09999999999997,"d":"374.10"},null,37.41,{"v":374.09999999999997,"d":"374.10"}]
[38,"2020 left hand turning tool iso insert type tpmr (Lathe cutting tool insert)","Tools","Section 42 Workshop",6,{"$nulls":4},0,null,283.43,{"v":1700.58,"d":"1,700.58"}]
[39,"2020 right turning tool iso insert type tpmr","Tools","Section 42 Workshop",6,{"$nulls":4},0,null,283.43,{"v":1700.58,"d":"1,700.58"}]
[40,"20mm boring bar iso insert type tpmr","Tools","Section 42 Workshop",6,{"$nulls":4},0,null,null,0]
[41,"20mm internal thread cutting boring bar top clamp","Tools","Section 42 Workshop",6,{"$nulls":4},0,null,null,0]
[42,"25 - 50mm inside micrometer","Tools","Section 42 Workshop",2,"Interchangeable rod type\nGraduation: 0.01mm\nTravel of head: 7mm\nwith 2 rods\n","Mitutoyo",null,null,0,null,null,0]
[43,"25 - 50mm inside micrometer","Tools","Batch Plant Workshop",2,"Interchangeable rod type\nGraduation: 0.01mm\nTravel of head: 7mm\nwith 2 rods\n","Mitutoyo","No",null,0,null,null,0]
[44,"25 - 50mm outside micrometer","Tools","Section 42 Workshop",3,"Type: Standard\nRange: 25 -50mm\nGraduation: 0.01mm\nAccuracy: ±2µm\nFlatness: 0.6µm\nMeasuring Faces: Carbide\nParallelism: (2+R/100)µm, R = max. range (mm)","Mitutoyo",null,null,0,null,{"$f":"1640/1.15","v":{"v":1426.0869565217392,"d":"1,426.09"}},{"v":4278.260869565218,"d":"4,278.26"}]
[45,"25 - 50mm outside micrometer","Tools","Batch Plant Workshop",3,"Type: Standard\nRange: 25 -50mm\nGraduation: 0.01mm\nAccuracy: ±2µm\nFlatness: 0.6µm\nMeasuring Faces: Carbide\nParallelism: (2+R/100)µm, R = max. range (mm)","Mitutoyo","No",null,0,null,null,0]
[46,"2525 left hand turning tool iso insert type tpmr","Tools","Section 42 Workshop",6,{"$nulls":4},0,null,null,0]
[47,"2525 right turning tool iso insert type tpmr","Tools","Section 42 Workshop",6,{"$nulls":4},0,null,null,0]
[48,"25mm boring bar iso insert type tpmr","Tools","Section 42 Workshop",6,{"$nulls":4},0,null,null,0]
[49,"300mm hacksaw blade ","Tools",null,100,"Hacksaw blade 18,24 and 32 TPI - pack of 10. For 435mm Hacksaw","GEDORE","No",{"v":6.6,"d":"6.60"},{"$f":"I56*E56","v":{"v":660,"d":"660.00"}},null,{"$f":"(200/50)/1.15","v":{"v":3.4782608695652177,"d":"3.48"}},{"v":347.82608695652175,"d":"347.83"}]
[50,"300mm steel ruler","Tools",null,12,"Stainless steel ruler 300mm","GEDORE","No",{"v":50,"d":"50.00"},{"$f":"I57*E57","v":{"v":600,"d":"600.00"}},null,{"$f":"I57","v":{"v":50,"d":"50.00"}},{"v":600,"d":"600.00"}]
[51,"4 Legged Chain sling","Tools","Section 42 Workshop",2,"3,36 Ton",null,"No",null,0,null,{"v":2635,"d":"2,635.00"},{"v":5270,"d":"5,270.00"}]
[52,"4 Legged Chain sling","Tools","Section 42 Workshop",2,"6.62 Ton",null,"No",{"v":2200,"d":"2,200.00"},{"v":4400,"d":"4,400.00"},null,{"v":2200,"d":"2,200.00"},{"v":4400,"d":"4,400.00"}]
[53,"4 Legged Chain sling","Tools","Section 42 Workshop",2,"7.5Ton",null,"No",{"v":2045,"d":"2,045.00"},{"v":4090,"d":"4,090.00"},null,{"v":2045,"d":"2,045.00"},{"v":4090,"d":"4,090.00"}]
[54,"4 Legged Chain sling","Tools","Batch Plant Workshop",2,"3,36 Ton",null,"No",{"v":825,"d":"825.00"},{"v":1650,"d":"1,650.00"},null,{"v":825,"d":"825.00"},{"v":1650,"d":"1,650.00"}]
[55,"4 Legged Chain sling","Tools","Batch Plant Workshop",2,"6.62 Ton",null,"No",{"v":2200,"d":"2,200.00"},{"v":4400,"d":"4,400.00"},null,{"v":2200,"d":"2,200.00"},{"v":4400,"d":"4,400.00"}]
[56,"4 Legged Chain sling","Tools","Batch Plant Workshop",2,"7.5Ton",null,"No",{"v":2045,"d":"2,045.00"},{"v":4090,"d":"4,090.00"},null,{"v":2045,"d":"2,045.00"},{"v":4090,"d":"4,090.00"}]
[57,"4 Legged Steel sling","Tools","Section 42 Workshop",2,"4.5 Ton",null,"No",{"v":820,"d":"820.00"},{"v":1640,"d":"1,640.00"},null,{"v":820,"d":"820.00"},{"v":1640,"d":"1,640.00"}]
[58,"4 Legged Steel sling","Tools","Section 42 Workshop",2,"11 Ton",null,"No",{"v":5300,"d":"5,300.00"},{"v":10600,"d":"10,600.00"},null,{"v":5300,"d":"5,300.00"},{"v":10600,"d":"10,600.00"}]
[59,"4 Legged Steel sling","Tools","Section 42 Workshop",4,"16.8Ton",null,"No",{"v":8720,"d":"8,720.00"},{"v":34880,"d":"34,880.00"},null,{"v":8720,"d":"8,720.00"},{"v":34880,"d":"34,880.00"}]
[60,"4 Legged Steel sling","Tools","Batch Plant Workshop",2,"4.5 Ton",null,"No",{"v":820,"d":"820.00"},{"v":1640,"d":"1,640.00"},null,{"v":820,"d":"820.00"},{"v":1640,"d":"1,640.00"}]
[61,"4 Legged Steel sling","Tools","Batch Plant Workshop",2,"11 Ton",null,"No",{"v":5300,"d":"5,300.00"},{"v":10600,"d":"10,600.00"},null,{"v":5300,"d":"5,300.00"},{"v":10600,"d":"10,600.00"}]
[62,"4 Legged Steel sling","Tools","Batch Plant Workshop",2,"16.8Ton",null,"No",{"v":8720,"d":"8,720.00"},{"v":17440,"d":"17,440.00"},null,{"v":8720,"d":"8,720.00"},{"v":17440,"d":"17,440.00"}]
[63,"5 compartment Sheet metal Electrician Toolbox","Tools",null,10,"Strong structure , Smooth operating hinges.Round carrying plastic handle and lockable with required tools inside.",null,"No",{"v":683,"d":"683.00"},{"v":6830,"d":"6,830.00"},null,{"v":683,"d":"683.00"},{"$f":"L70*E70","v":{"v":6830,"d":"6,830.00"}}]
[64,"50 - 200mm inside micrometer","Tools","Section 42 Workshop",2,"Type: Standard\nRange: 50 -200mm\nGraduation: 0.01mm\nAccuracy: ±(6+L/50)µm*\nFlatness: 0.6µm\nHead adjustment range: 13mm\n","Mitutoyo","No",null,0,null,{"v":3289,"d":"3,289.00"},{"$f":"L71*E71","v":{"v":6578,"d":"6,578.00"}}]
[65,"50 - 200mm inside micrometer","Tools","Batch Plant Workshop",2,"Type: Standard\nRange: 50 -200mm\nGraduation: 0.01mm\nAccuracy: ±(6+L/50)µm*\nFlatness: 0.6µm\nHead adjustment range: 13mm\n","Mitutoyo","No",null,0,null,{"v":3289,"d":"3,289.00"},{"v":6578,"d":"6,578.00"}]
[66,"5m steel  measuring tape","Tools",null,10,"5m nylon measuring tape with belt clip.","3M","No",{"v":89,"d":"89.00"},{"v":890,"d":"890.00"},null,{"v":89,"d":"89.00"},{"v":890,"d":"890.00"}]
[67,"90 degree countersink 25mm dia x 10mm shank","Tools","Section 42 Workshop",6,null,null,"No",{"v":482.8,"d":"482.80"},{"v":2896.8,"d":"2,896.80"},null,{"v":482.8,"d":"482.80"},{"v":2896.8,"d":"2,896.80"}]
[68,"90 degree countersink 25mm dia x 10mm shank","Tools","Batch Plant Workshop",2,null,null,"No",{"v":482.8,"d":"482.80"},{"v":965.6,"d":"965.60"},null,{"v":482.8,"d":"482.80"},{"v":965.6,"d":"965.60"}]
[69,"adjustable hacksaw 300mm","Tools","Section 42 Workshop",3,null,null,"No",{"v":473,"d":"473.00"},{"v":1419,"d":"1,419.00"},null,{"v":286,"d":"286.00"},{"v":858,"d":"858.00"}]
[70,"adjustable hacksaw 300mm","Tools","Batch Plant Workshop",2,null,null,"No",{"v":473,"d":"473.00"},{"v":946,"d":"946.00"},null,{"v":286,"d":"286.00"},{"v":572,"d":"572.00"}]
[71,"Adjustable Wrenches","Tools",null,3,"18 inche","GEDORE","No",{"v":392.7,"d":"392.70"},{"v":1178.1,"d":"1,178.10"},null,{"v":347,"d":"347.00"},{"v":1041,"d":"1,041.00"}]
[72,"Adjustable Wrenches","Tools",null,3,"24 inche","GEDORE","No",517.07,{"v":1551.21,"d":"1,551.21"},null,498.06,{"v":1494.18,"d":"1,494.18"}]
[73,"Adjustable Wrenches","Tools","Section 42 Workshop",2,"18 inch,WRENCH,ADJUSTABLE SHIFTER,H/DUTY,450MM","GEDORE","No",{"v":392.7,"d":"392.70"},{"v":785.4,"d":"785.40"},null,{"v":347,"d":"347.00"},{"v":694,"d":"694.00"}]
[74,"Adjustable Wrenches","Tools","Section 42 Workshop",2,"24 inche, WRENCH,ADJUSTABLE SHIFTER,H/DUTY,600MM","GEDORE","No",517.07,{"v":1034.14,"d":"1,034.14"},null,498.06,996.12]
[75,"Adjustable Wrenches","Tools","ERI Turbo Gen Services (TGS) Workshop 2",2,"18 inche, WRENCH,ADJUSTABLE SHIFTER,H/DUTY,450MM","GEDORE","No",{"v":392.7,"d":"392.70"},{"v":785.4,"d":"785.40"},null,{"v":347,"d":"347.00"},{"v":694,"d":"694.00"}]
[76,"Adjustable Wrenches","Tools","ERI Turbo Gen Services (TGS) Workshop 3",2,"24 inche, WRENCH,ADJUSTABLE SHIFTER,H/DUTY,600MM","GEDORE","No",517.07,{"v":1034.14,"d":"1,034.14"},null,498.06,996.12]
[77,"Adjustable Wrenches","Tools","ERI Turbo Gen Services (TGS) Workshop 1",1,"18 inche, WRENCH,ADJUSTABLE SHIFTER,H/DUTY,450MM","GEDORE","No",{"v":392.7,"d":"392.70"},{"v":392.7,"d":"392.70"},null,{"v":347,"d":"347.00"},{"v":347,"d":"347.00"}]
[78,"Adjustable Wrenches","Tools","ERI Turbo Gen Services (TGS) Workshop 2",1,"24 inche, WRENCH,ADJUSTABLE SHIFTER,H/DUTY,600MM","GEDORE","No",517.07,517.07,null,498.06,498.06]
[79,"Adjustable Wrenches","Tools","Section 42 Workshop",2,"18 inche, WRENCH,ADJUSTABLE SHIFTER,H/DUTY,450MM","GEDORE","No",{"v":392.7,"d":"392.70"},{"v":785.4,"d":"785.40"},null,{"v":347,"d":"347.00"},{"v":694,"d":"694.00"}]
[80,"Adjustable Wrenches","Tools","Section 42 Workshop",2,"24 inche, WRENCH,ADJUSTABLE SHIFTER,H/DUTY,600MM","GEDORE","No",517.07,{"v":1034.14,"d":"1,034.14"},null,498.06,996.12]
[81,"Adjustable Wrenches","Tools","Mill Maintenance Workshop",2,"18 inche, WRENCH,ADJUSTABLE SHIFTER,H/DUTY,450MM","GEDORE","No",{"v":392.7,"d":"392.70"},{"v":785.4,"d":"785.40"},null,{"v":347,"d":"347.00"},{"v":694,"d":"694.00"}]
[82,"Adjustable Wrenches","Tools","Mill Maintenance Workshop",2,"24 inche, WRENCH,ADJUSTABLE SHIFTER,H/DUTY,600MM","GEDORE","No",517.07,{"v":1034.14,"d":"1,034.14"},null,498.06,996.12]
[83,"Adjustable Wrenches","Tools","Welding Workshop",1,"18 inche, WRENCH,ADJUSTABLE SHIFTER,H/DUTY,450MM","GEDORE","No",{"v":392.7,"d":"392.70"},{"v":392.7,"d":"392.70"},null,{"v":347,"d":"347.00"},{"v":347,"d":"347.00"}]
[84,"Adjustable Wrenches","Tools","Welding Workshop",1,"24 inche, WRENCH,ADJUSTABLE SHIFTER,H/DUTY,600MM","GEDORE","No",517.07,517.07,null,498.06,498.06]
[85,"Adjustable Wrenches","Tools","Batch Plant Workshop",2,"18 inche,WRENCH,ADJUSTABLE SHIFTER,H/DUTY,450MM","GEDORE","No",{"v":392.7,"d":"392.70"},{"v":785.4,"d":"785.40"},null,{"v":347,"d":"347.00"},{"v":694,"d":"694.00"}]
[86,"Adjustable Wrenches","Tools","Batch Plant Workshop",2,"24 inche, WRENCH,ADJUSTABLE SHIFTER,H/DUTY,600MM","GEDORE","No",517.07,{"v":1034.14,"d":"1,034.14"},null,498.06,996.12]
[87,"Allen Keys - imperial set long arm 9 piece","Tools","Section 42 Workshop",6,null,null,"No",null,0,null,{"v":326.6,"d":"326.60"},{"v":1959.6000000000001,"d":"1,959.60"}]
[88,"Allen Keys - imperial set long arm 9 piece","Tools","Batch Plant Workshop",3,null,null,"No",null,0,null,{"v":326.6,"d":"326.60"},{"v":979.8000000000001,"d":"979.80"}]
[89,"Allen Keys - metric set long arm 9 piece","Tools","Section 42 Workshop",6,null,null,"No",null,0,null,{"v":326.6,"d":"326.60"},{"v":1959.6000000000001,"d":"1,959.60"}]
[90,"Allen Keys - metric set long arm 9 piece","Tools","Batch Plant Workshop",3,null,null,"No",null,0,null,{"v":326.6,"d":"326.60"},{"v":979.8000000000001,"d":"979.80"}]
[91,"Allen Keys Imperial","Tools",null,14,"Imperial set, 1/16, 5/64, 3/32, 1/8, 5/32, 3/16, 7/32, 1/4, 5/16, 3/8\".  - 1/2\" square","Off the shelf ","No",{"v":181,"d":"181.00"},{"v":2534,"d":"2,534.00"},null,{"v":181,"d":"181.00"},{"v":2534,"d":"2,534.00"}]
[92,"Allen Keys Metric","Tools",null,14,"Metric, 1.5mm, 2mm, 2.5mm, 3mm, 4mm, 5mm, 6mm, 8mm, 10mm.  - 1/2\" square","Off the shelf ","No",{"v":181,"d":"181.00"},{"v":2534,"d":"2,534.00"},null,{"v":181,"d":"181.00"},{"v":2534,"d":"2,534.00"}]
[93,"Angle Grinder","Tools","Section 42 Workshop",2,"2400W 230V 50 Hz 6000 rpm with spindle lock Blade size 230x22,2mm","Bosch","No",{"v":2310,"d":"2,310.00"},{"v":4620,"d":"4,620.00"},null,{"$f":"2310/1.15","v":{"v":2008.6956521739132,"d":"2,008.70"}},{"v":4017.3913043478265,"d":"4,017.39"},null,135.68]
[94,"Angle Grinder","Tools","ERI Turbo Gen Services (TGS) Workshop 4",2,"2400W 230V 50 Hz 6000 rpm with spindle lock Blade size 230x22,2mm",null,"No",{"v":2310,"d":"2,310.00"},{"v":4620,"d":"4,620.00"},null,{"v":2008.6956521739132,"d":"2,008.70"},{"v":4017.3913043478265,"d":"4,017.39"},null,{"$f":"3160","v":{"v":3160,"d":"3160.00"}}]
[95,"Angle Grinder","Tools","ERI Turbo Gen Services (TGS) Workshop 3",2,"2400W 230V 50 Hz 6000 rpm with spindle lock Blade size 230x22,2mm",null,"No",{"v":2310,"d":"2,310.00"},{"v":4620,"d":"4,620.00"},null,{"v":2008.6956521739132,"d":"2,008.70"},{"v":4017.3913043478265,"d":"4,017.39"},null,{"$f":"3160","v":{"v":3160,"d":"3160.00"}}]
[96,"Angle Grinder","Tools","Section 42 Workshop",2,"2400W 230V 50 Hz 6000 rpm with spindle lock Blade size 230x22,2mm",null,"No",{"v":2310,"d":"2,310.00"},{"v":4620,"d":"4,620.00"},null,{"v":2008.6956521739132,"d":"2,008.70"},{"v":4017.3913043478265,"d":"4,017.39"}]
[97,"Angle Grinder","Tools","Mill Maintenance Workshop",2,"2400W 230V 50 Hz 6000 rpm with spindle lock Blade size 230x22,2mm","Bosch","No",{"v":2310,"d":"2,310.00"},{"v":4620,"d":"4,620.00"},null,{"v":2008.6956521739132,"d":"2,008.70"},{"v":4017.3913043478265,"d":"4,017.39"},null,{"v":1193.5,"d":"1193.50"}]
[98,"Angle Grinder","Tools","Welding Workshop",6,"2400W 230V 50 Hz 6000 rpm with spindle lock Blade size 230x22,2mm",null,"No",{"v":2310,"d":"2,310.00"},{"v":13860,"d":"13,860.00"},null,{"v":2008.6956521739132,"d":"2,008.70"},{"v":12052.17391304348,"d":"12,052.17"}]
[99,"Angle Grinder","Tools","Batch Plant Workshop",2,"2400W 230V 50 Hz 6000 rpm with spindle lock Blade size 230x22,2mm","Bosch","No",{"v":2310,"d":"2,310.00"},{"v":4620,"d":"4,620.00"},null,{"v":2008.6956521739132,"d":"2,008.70"},{"v":4017.3913043478265,"d":"4,017.39"}]
[100,"Angle Grinder - Air. ","Tools","Section 42 Workshop",2,"Lever type throttle, Disc dia 178mm, Speed 7000rpm, Air pressure 630kPa, Motor 1 HP, Air hose 13mm","Bosch","No",{"v":1200,"d":"1,200.00"},{"v":2400,"d":"2,400.00"},null,{"v":1200,"d":"1,200.00"},{"v":2400,"d":"2,400.00"},null,{"v":198,"d":"198.00"}]
[101,"Angle Grinder - Air. ","Tools","Welding Workshop",2,"Lever type throttle, Disc dia 178mm, Speed 7000rpm, Air pressure 630kPa, Motor 1 HP, Air hose 13mm","Bosch","No",{"v":1200,"d":"1,200.00"},{"v":2400,"d":"2,400.00"},null,{"v":1200,"d":"1,200.00"},{"v":2400,"d":"2,400.00"},null,{"v":467,"d":"467.00"}]
[102,"Angle Grinder - Air. ","Tools","Batch Plant Workshop",2,"Lever type throttle, Disc dia 178mm, Speed 7000rpm, Air pressure 630kPa, Motor 1 HP, Air hose 13mm","Bosch","No",{"v":1200,"d":"1,200.00"},{"v":2400,"d":"2,400.00"},null,{"v":1200,"d":"1,200.00"},{"v":2400,"d":"2,400.00"},null,{"v":560,"d":"560.00"}]
[103,"Angle Grinder - baby","Tools","Section 42 Workshop",2,"900W 230V 50 Hz 11000 rpm with spindle lock Blade size 115x22,2mm"," ","No",{"v":1114,"d":"1,114.00"},{"v":2228,"d":"2,228.00"},null,{"v":1114,"d":"1,114.00"},{"v":2228,"d":"2,228.00"},null,{"v":290,"d":"290.00"}]
[104,"Angle Grinder - baby","Tools","Welding Workshop",2,"900W 230V 50 Hz 11000 rpm with spindle lock Blade size 115x22,2mm","Bosch","No",{"v":1114,"d":"1,114.00"},{"v":2228,"d":"2,228.00"},null,{"v":1114,"d":"1,114.00"},{"v":2228,"d":"2,228.00"}]
[105,"Angle Grinder - baby","Tools","Batch Plant Workshop",2,"900W 230V 50 Hz 11000 rpm with spindle lock Blade size 115x22,2mm"," ","No",{"v":1114,"d":"1,114.00"},{"v":2228,"d":"2,228.00"},null,{"v":1114,"d":"1,114.00"},{"v":2228,"d":"2,228.00"},null,{"v":439,"d":"439.00"}]
[106,"Angle iron rolling machine hydraulic","Tools","Welding Workshop",1,"BPRC/602/F/E",null,"No",null,0,null,null,0,null,{"v":439,"d":"439.00"}]
[107,"Auma actuator test kit","Tools","Section 18 Auxiliary Bay Unit 1",1,"Enquire with Auma",null,"No",null,0,null,null,0]
[108,"BA Tap and Die Set in Wooden Box\n\n","Tools",null,6,"BA 0 - 10 sizes 0, 1, 2, 3, 4, 5, 6, 7, 8, 9, 10 - Each set contains 2 Taps per size (Plug and Bottom Lead) with the corresponding Die, appropriate Tapwrench and Die Stock. ","HELLERMANN TYTON","No",null,0,null,null,0]
[109,"Baby Angle Grinder and blades ","Tools",null,8,"900W 230V 50 Hz 11000 rpm with spindle lock Blade size 115x22,2mm","MIKITA","No",null,0,null,{"v":444,"d":"444.00"},{"$f":"L116*E116","v":{"v":3552,"d":"3,552.00"}}]
[110,"Beam  Clamp","Tools","Section 42 Workshop",2,"2 Ton",null,"No",{"v":444,"d":"444.00"},{"v":888,"d":"888.00"},null,{"v":759,"d":"759.00"},{"v":1518,"d":"1,518.00"}]
[111,"Beam  Clamp","Tools","Section 42 Workshop",10,"3 Ton",null,"No",{"v":759,"d":"759.00"},{"v":7590,"d":"7,590.00"},null,{"v":835,"d":"835.00"},{"v":8350,"d":"8,350.00"}]
[112,"Beam  Clamp","Tools","Section 42 Workshop",10,"5 Ton",null,"No",{"v":835,"d":"835.00"},{"v":8350,"d":"8,350.00"},null,{"v":835,"d":"835.00"},{"v":8350,"d":"8,350.00"}]
[113,"Beam  Clamp","Tools","Section 42 Workshop",4,"5 Ton",null,"No",{"v":835,"d":"835.00"},{"v":3340,"d":"3,340.00"},null,{"v":444,"d":"444.00"},{"v":1776,"d":"1,776.00"}]
[114,"Beam  Clamp","Tools","Batch Plant Workshop",2,"2 Ton",null,"No",{"v":444,"d":"444.00"},{"$f":"I121*E121","v":{"v":888,"d":"888.00"}},null,{"v":759,"d":"759.00"},{"v":1518,"d":"1,518.00"}]
[115,"Beam  Clamp","Tools","Batch Plant Workshop",12,"3 Ton",null,"No",{"v":759,"d":"759.00"},{"v":9108,"d":"9,108.00"},null,{"v":835,"d":"835.00"},{"v":10020,"d":"10,020.00"}]
[116,"Beam  Clamp","Tools","Batch Plant Workshop",12,"5 Ton",null,"No",{"v":835,"d":"835.00"},{"v":10020,"d":"10,020.00"},null,{"v":835,"d":"835.00"},{"v":10020,"d":"10,020.00"}]
[117,"Beam  Clamp","Tools","Batch Plant Workshop",4,"5 Ton",null,"No",{"v":835,"d":"835.00"},{"v":3340,"d":"3,340.00"},null,{"v":835,"d":"835.00"},{"v":3340,"d":"3,340.00"}]
[118,"Bearing fitment kit","Tools","16m level Workshop",4,"Kit consist of 36 impact rings, 3 impact sleeves and a deadblow hammer all included in a carry case","SFK","No",{"v":7613,"d":"7,613.00"},{"v":30452,"d":"30,452.00"},null,{"v":7613,"d":"7,613.00"},{"v":30452,"d":"30,452.00"}]
[119,"Bearing fitment kit","Tools","Section 42 Workshop",3,"Kit consist of 36 impact rings, 3 impact sleeves and a deadblow hammer all included in a carry case",null,"No",{"v":7613,"d":"7,613.00"},{"v":22839,"d":"22,839.00"},null,{"v":7613,"d":"7,613.00"},{"v":22839,"d":"22,839.00"}]
[120,"Bearing fitment kit","Tools","ERI Turbo Gen Services (TGS) Workshop 4",1,"Kit consist of 36 impact rings, 3 impact sleeves and a deadblow hammer all included in a carry case",null,"No",{"v":7613,"d":"7,613.00"},{"v":7613,"d":"7,613.00"},null,{"v":7613,"d":"7,613.00"},{"v":7613,"d":"7,613.00"}]
[121,"Bearing fitment kit","Tools","Section 42 Workshop",1,"Kit consist of 36 impact rings, 3 impact sleeves and a deadblow hammer all included in a carry case",null,"No",{"v":7613,"d":"7,613.00"},{"v":7613,"d":"7,613.00"},null,{"v":7613,"d":"7,613.00"},{"v":7613,"d":"7,613.00"}]
[122,"Bearing fitment kit","Tools","Mill Maintenance Workshop",1,"Kit consist of 36 impact rings, 3 impact sleeves and a deadblow hammer all included in a carry case",null,"No",{"v":7613,"d":"7,613.00"},{"v":7613,"d":"7,613.00"},null,{"v":7613,"d":"7,613.00"},{"v":7613,"d":"7,613.00"}]
[123,"Bearing fitment kit","Tools","Batch Plant Workshop",3,"Kit consist of 36 impact rings, 3 impact sleeves and a deadblow hammer all included in a carry case",null,"No",{"v":7613,"d":"7,613.00"},{"v":22839,"d":"22,839.00"},null,{"v":7613,"d":"7,613.00"},{"v":22839,"d":"22,839.00"}]
[124,"Bearing heater","Tools","Section 42 Workshop",2,"380 Vac, power 12.8kW, Max dia of work piece 560mm & Max width of work piece 210mm, Max Temp 240/400 deg C. Include induction yokes 23, 30, 40, 50, 60 and 70mm",null,"No",{"v":36900,"d":"36,900.00"},{"v":73800,"d":"73,800.00"},null,{"v":36900,"d":"36,900.00"},{"$f":"L131*E131","v":{"v":73800,"d":"73,800.00"}}]
[125,"Bearing heater","Tools","Section 42 Workshop",2,"240 Vdc Bearing size inner dia 20 - 100mm, width 50mm Temp control 0 -200 deg C",null,"No",{"v":36900,"d":"36,900.00"},{"v":73800,"d":"73,800.00"},null,{"v":36900,"d":"36,900.00"},{"$f":"L132*E132","v":{"v":73800,"d":"73,800.00"}}]
[126,"Bearing heater","Tools","Batch Plant Workshop",2,"380 Vac, power 12.8kW, Max dia of work piece 560mm & Max width of work piece 210mm, Max Temp 240/400 deg C. Include induction yokes 23, 30, 40, 50, 60 and 70mm",null,"No",{"v":36900,"d":"36,900.00"},{"v":73800,"d":"73,800.00"},null,{"v":36900,"d":"36,900.00"},{"$f":"L133*E133","v":{"v":73800,"d":"73,800.00"}}]
[127,"Bearing heater","Tools","Batch Plant Workshop",1,"240 Vdc Bearing size inner dia 20 - 100mm, width 50mm Temp control 0 -200 deg C",null,"No",{"v":36900,"d":"36,900.00"},{"v":36900,"d":"36,900.00"},null,{"v":36900,"d":"36,900.00"},{"$f":"L134*E134","v":{"v":36900,"d":"36,900.00"}}]
[128,"Bearing puller sets Large","Tools","Section 42 Workshop",2,"240 Vdc Bearing size inner dia 20 - 100mm, width 50mm Temp control 0 -200 deg C",null,"No",{"v":8200,"d":"8,200.00"},{"v":16400,"d":"16,400.00"},null,{"v":8200,"d":"8,200.00"},{"$f":"L135*E135","v":{"v":16400,"d":"16,400.00"}}]
[129,"Bearing puller sets Large","Tools","ERI Turbo Gen Services (TGS) Workshop 5",2,"240 Vdc Bearing size inner dia 20 - 100mm, width 50mm Temp control 0 -200 deg C","GEDORE","No",{"v":8200,"d":"8,200.00"},{"v":16400,"d":"16,400.00"},null,{"v":7800.5,"d":"7,800.50"},{"$f":"E136*L136","v":{"v":15601,"d":"15,601.00"}}]
[130,"Bearing puller sets Large","Tools","Batch Plant Workshop",1,"240 Vdc Bearing size inner dia 20 - 100mm, width 50mm Temp control 0 -200 deg C",null,"No",{"v":8200,"d":"8,200.00"},{"v":8200,"d":"8,200.00"},null,{"v":8200,"d":"8,200.00"},{"$f":"L137*E137","v":{"v":8200,"d":"8,200.00"}}]
[131,"Bearing puller sets Meduim","Tools","Section 42 Workshop",2,"40 - 220mm, BEARING PULLER,3 LEGGES,TMMP30-230,40 TO 230MM",null,"No",{"v":4500,"d":"4,500.00"},{"v":9000,"d":"9,000.00"},null,{"v":4500,"d":"4,500.00"},{"$f":"L138*E138","v":{"v":9000,"d":"9,000.00"}}]
[132,"Bearing puller sets Meduim","Tools","ERI Turbo Gen Services (TGS) Workshop 6",2,"40 - 220mm, BEARING PULLER,3 LEGGES,TMMP30-230,40 TO 230MM","GEDORE","No",{"v":4500,"d":"4,500.00"},{"v":9000,"d":"9,000.00"},null,{"v":3777.77,"d":"3,777.77"},{"$f":"L139*E139","v":{"v":7555.54,"d":"7,555.54"}}]
[133,"Bearing puller sets Meduim","Tools","Batch Plant Workshop",1,"40 - 220mm, BEARING PULLER,3 LEGGES,TMMP30-230,40 TO 230MM",null,"No",{"v":4500,"d":"4,500.00"},{"v":4500,"d":"4,500.00"},null,{"v":4500,"d":"4,500.00"},{"$f":"L140*E140","v":{"v":4500,"d":"4,500.00"}}]
[134,"Bearing puller Small","Tools",null,4,"24 - 100mm","SFK","No",{"v":2200,"d":"2,200.00"},{"v":8800,"d":"8,800.00"},null,{"v":1120,"d":"1,120.00"},{"$f":"L141*E141","v":{"v":4480,"d":"4,480.00"}}]
[135,"Bearing puller Small","Tools","Section 42 Workshop",2,"24 - 100mm, BEARING PULLER,2 LEGGED,TMMP2-170,25 TO 170MM",null,"No",{"v":2200,"d":"2,200.00"},{"v":4400,"d":"4,400.00"},null,{"v":1120,"d":"1,120.00"},{"$f":"L142*E142","v":{"v":2240,"d":"2,240.00"}}]
[136,"Bearing puller Small","Tools","ERI Turbo Gen Services (TGS) Workshop 7",2,"24 - 100mm, BEARING PULLER,2 LEGGED,TMMP2-170,25 TO 170MM",null,"No",{"v":2200,"d":"2,200.00"},{"v":4400,"d":"4,400.00"},null,{"v":1120,"d":"1,120.00"},{"v":2240,"d":"2,240.00"}]
[137,"Bearing puller Small","Tools","Batch Plant Workshop",1,"24 - 100mm, BEARING PULLER,2 LEGGED,TMMP2-170,25 TO 170MM",null,"No",{"v":2200,"d":"2,200.00"},{"v":2200,"d":"2,200.00"},null,{"v":1120,"d":"1,120.00"},{"v":1120,"d":"1,120.00"}]
[138,"Bench Vice","Tools","Section 18 Auxiliary Bay Unit 1",2,"Jaw width 150mm, Opening 175mm",null,"Installation Required",{"v":2006,"d":"2,006.00"},{"v":4012,"d":"4,012.00"},null,{"v":2006,"d":"2,006.00"},{"v":4012,"d":"4,012.00"}]
[139,"Bench Vice","Tools","Section 42 Workshop",12,"Jaw width 150mm, Opening 175mm, VICE,ENGINEERSV BENCH,ALL STEEL,EV150,JAW WIDTH 150MM,OPENING 190MM",null,"Installation Required",{"v":2006,"d":"2,006.00"},{"v":24072,"d":"24,072.00"},null,{"v":2006,"d":"2,006.00"},{"v":24072,"d":"24,072.00"}]
[140,"Bench Vice","Tools","ERI Turbo Gen Services (TGS) Workshop 5",6,"Jaw width 150mm, Opening 175mm, VICE,ENGINEERSV BENCH,ALL STEEL,EV150,JAW WIDTH 150MM,OPENING 190MM",null,"Installation Required",{"v":2006,"d":"2,006.00"},{"v":12036,"d":"12,036.00"},null,{"v":2006,"d":"2,006.00"},{"v":12036,"d":"12,036.00"}]
[141,"Bench Vice","Tools","ERI Turbo Gen Services (TGS) Workshop 8",4,"Jaw width 150mm, Opening 175mm, VICE,ENGINEERSV BENCH,ALL STEEL,EV150,JAW WIDTH 150MM,OPENING 190MM",null,"Required",{"v":2006,"d":"2,006.00"},{"v":8024,"d":"8,024.00"},null,{"v":2006,"d":"2,006.00"},{"v":8024,"d":"8,024.00"}]
[142,"Bench Vice","Tools","Section 42 Workshop",4,"Jaw width 150mm, Opening 175mm, VICE,ENGINEERSV BENCH,ALL STEEL,EV150,JAW WIDTH 150MM,OPENING 190MM",null,null,{"v":2006,"d":"2,006.00"},{"v":8024,"d":"8,024.00"},null,{"v":2006,"d":"2,006.00"},{"v":8024,"d":"8,024.00"}]
[143,"Bench Vice","Tools","Section 42 Workshop",2,"Jaw width 150mm, Opening 175mm, VICE,ENGINEERSV BENCH,ALL STEEL,EV150,JAW WIDTH 150MM,OPENING 190MM",null,null,{"v":2006,"d":"2,006.00"},{"v":4012,"d":"4,012.00"},null,{"v":2006,"d":"2,006.00"},{"v":4012,"d":"4,012.00"}]
[144,"Bench Vice","Tools","Mill Maintenance Workshop",4,"Jaw width 150mm, Opening 175mm, VICE,ENGINEERSV BENCH,ALL STEEL,EV150,JAW WIDTH 150MM,OPENING 190MM",null,"No",{"v":2006,"d":"2,006.00"},{"v":8024,"d":"8,024.00"},null,{"v":2006,"d":"2,006.00"},{"v":8024,"d":"8,024.00"}]
[145,"Bench Vice","Tools","Welding Workshop",8,"Jaw width 150mm, Opening 175mm, VICE,ENGINEERSV BENCH,ALL STEEL,EV150,JAW WIDTH 150MM,OPENING 190MM",null,"Required",{"v":2006,"d":"2,006.00"},{"v":16048,"d":"16,048.00"},null,{"v":2006,"d":"2,006.00"},{"v":16048,"d":"16,048.00"}]
[146,"Bolt cutter.","Tools",null,3,"30\" Overall Length Capacity for high-tensile steel bolts, and chain","RACO/ L-STONE","No",{"v":1430,"d":"1,430.00"},{"v":4290,"d":"4,290.00"},null,null,{"$f":"L153*E153","v":0}]
[147,"Bolt cutter.","Tools","Section 42 Workshop",1,"30\" Overall Length Capacity for high-tensile steel bolts, and chain",null,"No",{"v":1430,"d":"1,430.00"},{"v":1430,"d":"1,430.00"},null,{"v":1250,"d":"1,250.00"},{"v":1250,"d":"1,250.00"}]
[148,"Bolt cutter.","Tools","ERI Turbo Gen Services (TGS) Workshop 7",1,"30\" Overall Length Capacity for high-tensile steel bolts, and chain",null,"No",{"v":1430,"d":"1,430.00"},{"v":1430,"d":"1,430.00"},null,{"v":1250,"d":"1,250.00"},{"v":1250,"d":"1,250.00"}]
[149,"Bolt cutter.","Tools","ERI Turbo Gen Services (TGS) Workshop 9",1,"30\" Overall Length Capacity for high-tensile steel bolts, and chain",null,"No",{"v":1430,"d":"1,430.00"},{"v":1430,"d":"1,430.00"},null,{"v":1250,"d":"1,250.00"},{"v":1250,"d":"1,250.00"}]
[150,"Bolt cutter.","Tools","Section 42 Workshop",1,"30\" Overall Length Capacity for high-tensile steel bolts, and chain",null,"No",{"v":1430,"d":"1,430.00"},{"v":1430,"d":"1,430.00"},null,{"v":1250,"d":"1,250.00"},{"v":1250,"d":"1,250.00"}]
[151,"Bolt cutter.","Tools","Mill Maintenance Workshop",1,"30\" Overall Length Capacity for high-tensile steel bolts, and chain",null,"No",{"v":1430,"d":"1,430.00"},{"v":1430,"d":"1,430.00"},null,{"v":1250,"d":"1,250.00"},{"v":1250,"d":"1,250.00"}]
[152,"Bolt cutter.","Tools","Batch Plant Workshop",1,"30\" Overall Length Capacity for high-tensile steel bolts, and chain",null,"No",{"v":1430,"d":"1,430.00"},{"v":1430,"d":"1,430.00"},null,{"v":1250,"d":"1,250.00"},{"v":1250,"d":"1,250.00"}]
[153,"bore micrometer set 25 - 600mm","Tools","Section 42 Workshop",4,null,"Mitutoyo","No",null,0,null,{"$f":"1140/1.15","v":{"v":991.304347826087,"d":"991.30"}},{"$f":"L160*E160","v":{"v":3965.217391304348,"d":"3,965.22"}}]
[154,"bore micrometer set 25 - 600mm","Tools","Batch Plant Workshop",2,null,"Mitutoyo","No",null,0,null,{"$f":"1140/1.15","v":{"v":991.304347826087,"d":"991.30"}},{"v":1982.608695652174,"d":"1,982.61"}]
[155,"borescope","Tools","Section 42 Workshop",1,"Capture JPEG images or AVI video to memory card\n17mm diameter camera with 704 x 576 pixels (PAL)\nDetachable wireless 3.5\" TFT colour display\nCamera head and tube is IP67 water-proof\nFocus distance up to 250mm\n50 degree viewing angle\n2 adjustable bright LED's \nLED lighting capability up to 1.5m\n1m flex and stay gooseneck (extendable)\nHook, magnet and mirror attachments\nMust c/w case, mini camera on 1m tube, attachments, hand grip, LCD monitor, USB cable, video out cable, 2GB SD card, charger, batteries and operating manual",null,"No",{"v":6490,"d":"6,490.00"},{"v":6490,"d":"6,490.00"},null,{"v":4557.9,"d":"4,557.90"},{"v":4557.9,"d":"4,557.90"}]
[156,"borescope","Tools","Batch Plant Workshop",1,"Capture JPEG images or AVI video to memory card\n17mm diameter camera with 704 x 576 pixels (PAL)\nDetachable wireless 3.5\" TFT colour display\nCamera head and tube is IP67 water-proof\nFocus distance up to 250mm\n50 degree viewing angle\n2 adjustable bright LED's \nLED lighting capability up to 1.5m\n1m flex and stay gooseneck (extendable)\nHook, magnet and mirror attachments\nMust c/w case, mini camera on 1m tube, attachments, hand grip, LCD monitor, USB cable, video out cable, 2GB SD card, charger, batteries and operating manual",null,"No",{"v":6490,"d":"6,490.00"},{"v":6490,"d":"6,490.00"},null,{"v":4557.9,"d":"4,557.90"},{"v":4557.9,"d":"4,557.90"}]
[157,"Bow Shackle","Tools","Section 42 Workshop",4,"500 kg",null,"No",{"v":6.5,"d":"6.50"},{"v":26,"d":"26.00"},null,{"v":6.5,"d":"6.50"},{"v":26,"d":"26.00"}]
[158,"Bow Shackle","Tools","Section 42 Workshop",10,"1 Ton",null,"No",{"v":9.8,"d":"9.80"},{"v":98,"d":"98.00"},null,{"v":9.8,"d":"9.80"},{"v":98,"d":"98.00"}]
[159,"Bow Shackle","Tools","Section 42 Workshop",10,"1.5 Ton",null,"No",{"v":11,"d":"11.00"},{"v":110,"d":"110.00"},null,{"v":11,"d":"11.00"},{"v":110,"d":"110.00"}]
[160,"Bow Shackle","Tools","Section 42 Workshop",10,"2 Ton",null,"No",{"v":14,"d":"14.00"},{"v":140,"d":"140.00"},null,{"v":14,"d":"14.00"},{"v":140,"d":"140.00"}]
[161,"Bow Shackle","Tools","Section 42 Workshop",10,"3.25 Ton",null,"No",{"v":25,"d":"25.00"},{"v":250,"d":"250.00"},null,{"v":25,"d":"25.00"},{"v":250,"d":"250.00"}]
[162,"Bow Shackle","Tools","Section 42 Workshop",10,"4.75 Ton",null,"No",{"v":36,"d":"36.00"},{"v":360,"d":"360.00"},null,{"v":36,"d":"36.00"},{"v":360,"d":"360.00"}]
[163,"Bow Shackle","Tools","Section 42 Workshop",2,"6,5 Ton",null,"No",{"v":53,"d":"53.00"},{"v":106,"d":"106.00"},null,{"v":53,"d":"53.00"},{"v":106,"d":"106.00"}]
[164,"Bow Shackle","Tools","Section 42 Workshop",10,"6.5 Ton",null,"No",{"v":53,"d":"53.00"},{"v":530,"d":"530.00"},null,{"v":53,"d":"53.00"},{"v":530,"d":"530.00"}]
[165,"Bow Shackle","Tools","Section 42 Workshop",2,"6.5 Ton",null,"No",{"v":53,"d":"53.00"},{"v":106,"d":"106.00"},null,{"v":53,"d":"53.00"},{"v":106,"d":"106.00"}]
[166,"Bow Shackle","Tools","Section 42 Workshop",2,"6.5 Ton",null,"No",{"v":53,"d":"53.00"},{"v":106,"d":"106.00"},null,{"v":53,"d":"53.00"},{"v":106,"d":"106.00"}]
[167,"Bow Shackle","Tools","Section 42 Workshop",10,"9.5 Ton",null,"No",{"v":120,"d":"120.00"},{"v":1200,"d":"1,200.00"},null,{"v":120,"d":"120.00"},{"v":1200,"d":"1,200.00"}]
[168,"Bow Shackle","Tools","Section 42 Workshop",8,"12.5 Ton",null,"No",{"v":160,"d":"160.00"},{"v":1280,"d":"1,280.00"},null,{"v":160,"d":"160.00"},{"v":1280,"d":"1,280.00"}]
[169,"Bow Shackle","Tools","Section 42 Workshop",8,"17 Ton",null,"No",{"v":295,"d":"295.00"},{"v":2360,"d":"2,360.00"},null,{"v":295,"d":"295.00"},{"v":2360,"d":"2,360.00"}]
[170,"Bow Shackle","Tools","Section 42 Workshop",10,"25 Ton",null,"No",{"v":510,"d":"510.00"},{"v":5100,"d":"5,100.00"},null,{"v":510,"d":"510.00"},{"v":5100,"d":"5,100.00"}]
[171,"Bow Shackle","Tools","Section 42 Workshop",4,"35 Ton",null,"No",{"v":1020,"d":"1,020.00"},{"v":4080,"d":"4,080.00"},null,{"v":1020,"d":"1,020.00"},{"v":4080,"d":"4,080.00"}]
[172,"Bow Shackle","Tools","Section 42 Workshop",6,"55 Ton",null,"No",{"v":2450,"d":"2,450.00"},{"v":14700,"d":"14,700.00"},null,{"v":2450,"d":"2,450.00"},{"v":14700,"d":"14,700.00"}]
[173,"Bow Shackle","Tools","Section 42 Workshop",8,"85 Ton",null,"No",{"v":6020,"d":"6,020.00"},{"v":48160,"d":"48,160.00"},null,{"v":6020,"d":"6,020.00"},{"v":48160,"d":"48,160.00"}]
[174,"Bow Shackle","Tools","Batch Plant Workshop",4,"500 kg",null,"No",{"v":6.5,"d":"6.50"},{"v":26,"d":"26.00"},null,{"v":6.5,"d":"6.50"},{"v":26,"d":"26.00"}]
[175,"Bow Shackle","Tools","Batch Plant Workshop",10,"1 Ton",null,"No",{"v":9.8,"d":"9.80"},{"v":98,"d":"98.00"},null,{"v":9.8,"d":"9.80"},{"v":98,"d":"98.00"}]
[176,"Bow Shackle","Tools","Batch Plant Workshop",10,"1.5 Ton",null,"No",{"v":11,"d":"11.00"},{"v":110,"d":"110.00"},null,{"v":11,"d":"11.00"},{"v":110,"d":"110.00"}]
[177,"Bow Shackle","Tools","Batch Plant Workshop",10,"2 Ton",null,"No",{"v":14,"d":"14.00"},{"v":140,"d":"140.00"},null,{"v":14,"d":"14.00"},{"v":140,"d":"140.00"}]
[178,"Bow Shackle","Tools","Batch Plant Workshop",10,"3.25 Ton",null,"No",{"v":25,"d":"25.00"},{"$f":"I185*E185","v":{"v":250,"d":"250.00"}},null,{"v":25,"d":"25.00"},{"v":250,"d":"250.00"}]
[179,"Bow Shackle","Tools","Batch Plant Workshop",10,"4.75 Ton",null,"No",{"v":36,"d":"36.00"},{"v":360,"d":"360.00"},null,{"v":36,"d":"36.00"},{"v":360,"d":"360.00"}]
[180,"Bow Shackle","Tools","Batch Plant Workshop",2,"6,3 Ton",null,"No",{"v":53,"d":"53.00"},{"v":106,"d":"106.00"},null,{"v":53,"d":"53.00"},{"v":106,"d":"106.00"}]
[181,"Bow Shackle","Tools","Batch Plant Workshop",10,"6.5 Ton",null,"No",{"v":53,"d":"53.00"},{"v":530,"d":"530.00"},null,{"v":53,"d":"53.00"},{"v":530,"d":"530.00"}]
[182,"Bow Shackle","Tools","Batch Plant Workshop",2,"6.5 Ton",null,"No",{"v":53,"d":"53.00"},{"v":106,"d":"106.00"},null,{"v":53,"d":"53.00"},{"v":106,"d":"106.00"}]
[183,"Bow Shackle","Tools","Batch Plant Workshop",2,"6.5 Ton",null,"No",{"v":53,"d":"53.00"},{"v":106,"d":"106.00"},null,{"v":53,"d":"53.00"},{"v":106,"d":"106.00"}]
[184,"Bow Shackle","Tools","Batch Plant Workshop",10,"9.5 Ton",null,"No",{"v":120,"d":"120.00"},{"v":1200,"d":"1,200.00"},null,{"v":120,"d":"120.00"},{"v":1200,"d":"1,200.00"}]
[185,"Bow Shackle","Tools","Batch Plant Workshop",4,"12.5 Ton",null,"No",{"v":160,"d":"160.00"},{"v":640,"d":"640.00"},null,{"v":160,"d":"160.00"},{"v":640,"d":"640.00"}]
[186,"Bow Shackle","Tools","Batch Plant Workshop",8,"17 Ton",null,"No",{"v":295,"d":"295.00"},{"v":2360,"d":"2,360.00"},null,{"v":295,"d":"295.00"},{"v":2360,"d":"2,360.00"}]
[187,"Bow Shackle","Tools","Batch Plant Workshop",14,"25 Ton",null,"No",{"v":510,"d":"510.00"},{"v":7140,"d":"7,140.00"},null,{"v":510,"d":"510.00"},{"v":7140,"d":"7,140.00"}]
[188,"Bow Shackle","Tools","Batch Plant Workshop",4,"35 Ton",null,"No",{"v":1020,"d":"1,020.00"},{"v":4080,"d":"4,080.00"},null,{"v":1020,"d":"1,020.00"},{"v":4080,"d":"4,080.00"}]
[189,"Bow Shackle","Tools","Batch Plant Workshop",12,"55 Ton",null,"No",{"v":2450,"d":"2,450.00"},{"v":29400,"d":"29,400.00"},null,{"v":2450,"d":"2,450.00"},{"v":29400,"d":"29,400.00"}]
[190,"Bow Shackle","Tools","Batch Plant Workshop",8,"85 Ton",null,"No",{"v":6020,"d":"6,020.00"},{"v":48160,"d":"48,160.00"},null,{"v":6020,"d":"6,020.00"},{"$f":"L197*E197","v":{"v":48160,"d":"48,160.00"}}]
[191,"Cable Cutter large","Tools",null,3,"Armoured Cable Ratchet Cable Cutter - 58mm O.D. Compact ratchet cable cutter, designed to cut 3 by 120mm2 armoured cable maximum.  Typical maximum O.D. of cable that the tool will cut is 58mm.  It will easily cut normal copper or aluminum cable.  The hand","HELLERMANN TYTON","No",{"v":4709,"d":"4,709.00"},{"v":14127,"d":"14,127.00"},null,{"v":4709,"d":"4,709.00"},{"$f":"L198*E198","v":{"v":14127,"d":"14,127.00"}}]
[192,"Cable Cutter medium","Tools",null,5,"Large cable cutter for annealed copper and aluminium conductors up to 500mm2.  ‘Parrot beak’ blades. Length: 805mm,  Weight: 2.8kg","HELLERMANN TYTON","No",{"v":2259,"d":"2,259.00"},{"v":11295,"d":"11,295.00"},null,{"v":2259,"d":"2,259.00"},{"v":11295,"d":"11,295.00"}]
[193,"Cable Cutter small","Tools",null,6,"Ratchet operated cable cutter.  Compact cutter for cutting annealed copper and aluminium conductors up to 300mm2 (maximum 32mm outside diameter.) Small size enables cutting in tight spots.  Ratchet reduces hand effort. Length: 260mm.  Weight: 680g",null,"No",{"v":1565,"d":"1,565.00"},{"v":9390,"d":"9,390.00"},null,{"v":1565,"d":"1,565.00"},{"v":9390,"d":"9,390.00"}]
[194,"Calibration and test unit with linear adaptor","Tools","Section 42 Workshop",1,"Test bench for torque testing of valve and damper actuators",null,"No",null,0,null,null,0]
[195,"centre drills -1","Tools","Section 42 Workshop",6,"Drill Dia: 1.191 mm",null,"No",null,0,null,{"$f":"60.66/1.15","v":{"v":52.74782608695652,"d":"52.75"}},{"v":316.4869565217391,"d":"316.49"}]
[196,"centre drills -2","Tools","Section 42 Workshop",6,"Drill Dia: 1.984 mm",null,"No",null,0,null,{"$f":"60.66/1.15","v":{"v":52.74782608695652,"d":"52.75"}},{"v":316.4869565217391,"d":"316.49"}]
[197,"centre drills -3","Tools","Section 42 Workshop",6,"Drill Dia: 2.778 mm",null,"No",null,0,null,{"$f":"83.35/1.15","v":{"v":72.47826086956522,"d":"72.48"}},{"v":434.8695652173913,"d":"434.87"}]
[198,"centre drills -4","Tools","Section 42 Workshop",6,"Drill Dia: 3.175 mm",null,"No",null,0,null,null,0]
[199,"centre drills -5","Tools","Section 42 Workshop",6,"Drill Dia: 4.763 mm",null,"No",null,0,null,null,0]
[200,"centre drills -6","Tools","Section 42 Workshop",6,"Drill Dia: 5.556 mm",null,"No",null,0,null,null,0]
[201,"Chain Block","Tools","Section 42 Workshop",5,"500kg",null,"No",{"v":2212,"d":"2,212.00"},{"v":11060,"d":"11,060.00"},null,{"v":2212,"d":"2,212.00"},{"v":11060,"d":"11,060.00"}]
[202,"Chain Block","Tools","Section 42 Workshop",5,"1 Ton",null,"No",{"v":2415,"d":"2,415.00"},{"v":12075,"d":"12,075.00"},null,{"v":2415,"d":"2,415.00"},{"v":12075,"d":"12,075.00"}]
[203,"Chain Block","Tools","Section 42 Workshop",10,"2 Ton",null,"No",{"v":4335,"d":"4,335.00"},{"v":43350,"d":"43,350.00"},null,{"v":4335,"d":"4,335.00"},{"v":43350,"d":"43,350.00"}]
[204,"Chain Block","Tools","Section 42 Workshop",10,"3 Ton",null,"No",{"v":5351,"d":"5,351.00"},{"v":53510,"d":"53,510.00"},null,{"v":5351,"d":"5,351.00"},{"v":53510,"d":"53,510.00"}]
[205,"Chain Block","Tools","Section 42 Workshop",5,"5 Ton",null,"No",{"v":8385,"d":"8,385.00"},{"v":41925,"d":"41,925.00"},null,{"v":8385,"d":"8,385.00"},{"v":41925,"d":"41,925.00"}]
[206,"Chain Block","Tools","Batch Plant Workshop",5,"500kg",null,"No",{"v":2212,"d":"2,212.00"},{"v":11060,"d":"11,060.00"},null,{"v":2212,"d":"2,212.00"},{"v":11060,"d":"11,060.00"}]
[207,"Chain Block","Tools","Batch Plant Workshop",5,"1 Ton",null,"No",{"v":2415,"d":"2,415.00"},{"v":12075,"d":"12,075.00"},null,{"v":2415,"d":"2,415.00"},{"v":12075,"d":"12,075.00"}]
[208,"Chain Block","Tools","Batch Plant Workshop",10,"2 Ton",null,"No",{"v":4335,"d":"4,335.00"},{"v":43350,"d":"43,350.00"},null,{"v":4335,"d":"4,335.00"},{"v":43350,"d":"43,350.00"}]
[209,"Chain Block","Tools","Batch Plant Workshop",10,"3 Ton",null,"No",{"v":5351,"d":"5,351.00"},{"v":53510,"d":"53,510.00"},null,{"v":5351,"d":"5,351.00"},{"v":53510,"d":"53,510.00"}]
[210,"Chain Block","Tools","Batch Plant Workshop",10,"5 Ton",null,"No",{"v":8385,"d":"8,385.00"},{"v":83850,"d":"83,850.00"},null,{"v":8385,"d":"8,385.00"},{"v":83850,"d":"83,850.00"}]
[211,"Circlip Plier set - inside bend","Tools",null,12,"With bent tips Size 140mm/5.1/2\", Capacity 12-25mm, Size 180mm/7\" Capacity 19-60mm, ","HELLERMANN TYTON","No",106.43,{"v":1277.16,"d":"1,277.16"},null,106.43,{"v":1277.16,"d":"1,277.16"}]
[212,"Circlip Plier set - inside bend","Tools","Section 42 Workshop",3,"With bent tips Size 140mm/5.1/2\", Capacity 12-25mm, Size 180mm/7\" Capacity 19-60mm, ","GEDORE","No",106.43,319.29,null,null,0]
[213,"Circlip Plier set - inside bend","Tools","Batch Plant Workshop",3,"With bent tips Size 140mm/5.1/2\", Capacity 12-25mm, Size 180mm/7\" Capacity 19-60mm, ","GEDORE","No",106.43,319.29,null,null,0]
[214,"Circlip Pliers set - inside straight","Tools",null,12,"With straight, accurately ground tips, Size 140mm/5.1/2\", Capacity 12-25mm, Size 180mm/7\", Capacity 19-60mm, Size 220mm/8.1/4\", Capacity 40-100mm and Size 300mm/12\", Capacity 85-140mm.","HELLERMANN TYTON","No",{"v":95,"d":"95.00"},{"v":1140,"d":"1,140.00"},null,{"v":95,"d":"95.00"},{"v":1140,"d":"1,140.00"}]
[215,"Circlip Pliers set - inside straight","Tools","Section 42 Workshop",3,"With straight, accurately ground tips, Size 140mm/5.1/2\", Capacity 12-25mm, Size 180mm/7\", Capacity 19-60mm, Size 220mm/8.1/4\", Capacity 40-100mm and Size 300mm/12\", Capacity 85-140mm.","GEDORE","No",{"v":95,"d":"95.00"},{"v":285,"d":"285.00"},null,{"v":237,"d":"237.00"},{"v":711,"d":"711.00"}]
[216,"Circlip Pliers set - inside straight","Tools","Batch Plant Workshop",3,"With straight, accurately ground tips, Size 140mm/5.1/2\", Capacity 12-25mm, Size 180mm/7\", Capacity 19-60mm, Size 220mm/8.1/4\", Capacity 40-100mm and Size 300mm/12\", Capacity 85-140mm.","GEDORE","No",{"v":95,"d":"95.00"},{"v":285,"d":"285.00"},null,{"v":237,"d":"237.00"},{"v":711,"d":"711.00"}]
[217,"Circlip Pliers set - outside","Tools",null,12,"Straight points with leaf springs,  Size 140mm/5.1/2\", Capacity 12-25mm, Size 180mm/7\", Capacity 19-60mm, Size 220mm/8.1/4\", Capacity 40-100mm and Size 300mm/12\", Capacity 85-140mm.","GEDORE","No",119.72,{"v":1436.6399999999999,"d":"1,436.64"},null,null,0]
[218,"Circlip Pliers set - outside","Tools","Section 42 Workshop",3,"Straight points with leaf springs,  Size 140mm/5.1/2\", Capacity 12-25mm, Size 180mm/7\", Capacity 19-60mm, Size 220mm/8.1/4\", Capacity 40-100mm and Size 300mm/12\", Capacity 85-140mm.","GEDORE",null,119.72,{"v":359.15999999999997,"d":"359.16"},null,null,0]
[219,"Circlip Pliers set - outside","Tools","Batch Plant Workshop",3,"Straight points with leaf springs,  Size 140mm/5.1/2\", Capacity 12-25mm, Size 180mm/7\", Capacity 19-60mm, Size 220mm/8.1/4\", Capacity 40-100mm and Size 300mm/12\", Capacity 85-140mm.","GEDORE","No",119.72,{"v":359.15999999999997,"d":"359.16"},null,null,0]
[220,"Circlip Pliers set - outside bend","Tools",null,12,"Leaf springs and bent tips , Size 140mm/5.1/2\", Capacity 10-25mm, Size 180mm/7\", Capacity 19-60mm","GEDORE","No",119.72,{"v":1436.6399999999999,"d":"1,436.64"},null,null,0]
[221,"Circlip Pliers set - outside bend","Tools","Section 42 Workshop",3,"Leaf springs and bent tips , Size 140mm/5.1/2\", Capacity 10-25mm, Size 180mm/7\", Capacity 19-60mm","GEDORE",null,119.72,{"v":359.15999999999997,"d":"359.16"},null,null,0]
[222,"Circlip Pliers set - outside bend","Tools","Batch Plant Workshop",3,"Leaf springs and bent tips , Size 140mm/5.1/2\", Capacity 10-25mm, Size 180mm/7\", Capacity 19-60mm","GEDORE","No",119.72,{"v":359.15999999999997,"d":"359.16"},null,null,0]
[223,"Clamp on  tester","Tools","16 M Level Workshop",2,"0 - 600 Amp, 0 - 1000 V ,Detarchable screen ,Jaw Opening 42mm","FLUKE","No",{"v":7140,"d":"7,140.00"},{"v":14280,"d":"14,280.00"},null,{"v":5239,"d":"5,239.00"},{"v":10478,"d":"10,478.00"}]
[224,"Clamp on  tester","Tools","Section 19 Auxilliary Bay Unit 2",4,"0 - 600 Amp, 0-1000V detatchable,Jaw Opening 42mm","FLUKE","No",{"v":7140,"d":"7,140.00"},{"v":28560,"d":"28,560.00"},null,{"v":5239,"d":"5,239.00"},{"v":20956,"d":"20,956.00"}]
[225,"Clamp on  tester","Tools","Section 42: Workshop and Stores building",4,"0 - 600 Amp, 0-1000V detatchable,Jaw Opening 42mm","FLUKE","No",{"v":7140,"d":"7,140.00"},{"v":28560,"d":"28,560.00"},null,{"v":5239,"d":"5,239.00"},{"v":20956,"d":"20,956.00"}]
[226,"Clamp on  tester","Tools",null,3,"0 - 600 Amp, 0-1000V detatchable,Jaw Opening 42mm","FLUKE","No",{"v":7140,"d":"7,140.00"},{"v":21420,"d":"21,420.00"},null,{"v":5239,"d":"5,239.00"},{"v":15717,"d":"15,717.00"}]
[227,"Clamp ready v-blocks in pairs","Tools","Section 42 Workshop",6,{"$nulls":4},0,null,null,0]
[228,"Clamp ready v-blocks in pairs","Tools","Batch Plant Workshop",0,null,null,"No",null,0,null,null,0]
[229,"Club hammer 14lb","Tools","Section 42 Workshop",4,"Forged head DIN 6475\nNearly unbreakable fibreglass handle\nwith plastic grip and secured head","GEDORE","No",{"v":1177,"d":"1,177.00"},{"v":4708,"d":"4,708.00"},null,{"$f":"I236","v":{"v":1177,"d":"1,177.00"}},{"v":4708,"d":"4,708.00"}]
[230,"Club hammer 14lb","Tools","Batch Plant Workshop",2,"Forged head DIN 6475\nNearly unbreakable fibreglass handle\nwith plastic grip and secured head","GEDORE","No",{"v":1177,"d":"1,177.00"},{"v":2354,"d":"2,354.00"},null,{"$f":"I237","v":{"v":1177,"d":"1,177.00"}},{"v":2354,"d":"2,354.00"}]
[231,"Club hammer 4lb","Tools","Section 42 Workshop",3,"Forged head DIN 6475\nNearly unbreakable fibreglass handle\nwith plastic grip and secured head","GEDORE","No",{"v":250,"d":"250.00"},{"v":750,"d":"750.00"},null,{"$f":"I238","v":{"v":250,"d":"250.00"}},{"v":750,"d":"750.00"}]
[232,"Club hammer 4lb","Tools","Batch Plant Workshop",3,"Forged head DIN 6475\nNearly unbreakable fibreglass handle\nwith plastic grip and secured head","GEDORE","No",{"v":250,"d":"250.00"},{"v":750,"d":"750.00"},null,{"$f":"I239","v":{"v":250,"d":"250.00"}},{"v":750,"d":"750.00"}]
[233,"Combination fin comb",null,null,12,"SUPERCOMB FIN COMB SET OF 6 (Fin Straightening Comb Set Of 6)","Off the shelf ","No",null,0,null,{"v":340,"d":"340.00"},{"v":4080,"d":"4,080.00"},null,135.68]
[234,"Combination Plier set","Tools",null,15,"For heavy, continous use. Good lever action for easy cutting. Induction-hardened precision cutting edges, hardness approx. 64HRC. To cut wire types, incl. piono wire. DIN ISO 5746","GEDORE","No",{"v":470,"d":"470.00"},{"v":7050,"d":"7,050.00"},null,{"$f":"I241","v":{"v":470,"d":"470.00"}},{"v":7050,"d":"7,050.00"},null,{"$f":"3160","v":{"v":3160,"d":"3160.00"}}]
[235,"combination set with 300mm rule","Tools","Section 42 Workshop",2,"C/W fixed angles of 45° and 90° \nBuilt-in spirit level and adjusting nut. ",null,"No",{"v":230,"d":"230.00"},{"v":460,"d":"460.00"},null,{"v":230,"d":"230.00"},{"v":460,"d":"460.00"},null,{"$f":"3160","v":{"v":3160,"d":"3160.00"}}]
[236,"combination set with 300mm rule","Tools","Batch Plant Workshop",2,"C/W fixed angles of 45° and 90° \nBuilt-in spirit level and adjusting nut. ",null,"No",{"v":230,"d":"230.00"},{"v":460,"d":"460.00"},null,{"v":230,"d":"230.00"},{"v":460,"d":"460.00"}]
[237,"Combination spanner set  size 6-5 - 32","Tools",null,12,"Chrome Vanadium steel - 31CrV3. Chrome plated, polished rings. Rings - thin walled with deep offset, UD profile. Same on each end. Sizes 5mm - 32 mm","GEDORE","No",{"v":4181,"d":"4,181.00"},{"v":50172,"d":"50,172.00"},null,{"v":3317,"d":"3,317.00"},{"v":39804,"d":"39,804.00"},null,{"v":1193.5,"d":"1193.50"}]
[238,"combination spanners Set 36 - 50mm","Tools","Section 42 Workshop",4,"With same size each end\nvanadium steel 31CrV3\nHot forged\nJaw exactly ground to spanner size\nMade Acc. to DIN 837 Form B, ISO 3318, ISO 1085","GEDORE","No",null,0,null,{"v":6667.89,"d":"6,667.89"},{"$f":"L245*E245","v":26671.56}]
[239,"combination spanners Set 36 - 50mm","Tools","Batch Plant Workshop",4,"With same size each end\nvanadium steel 31CrV3\nHot forged\nJaw exactly ground to spanner size\nMade Acc. to DIN 837 Form B, ISO 3318, ISO 1085","GEDORE","No",null,0,null,{"v":6667.89,"d":"6,667.89"},{"$f":"L246*E246","v":26671.56}]
[240,"Comparator","Tools","Section 18 Auxiliary Bay Unit 1",2,"700 Bar max,  1,8 m safety hose, with gauge adaptor  and fitting set (18 fittings) or Tek Know PC705 Pressure Calbrator. Range 0 - 700 Bar (Preferred Option)",{"$nulls":3},0,null,{"v":32300,"d":"32,300.00"},{"v":64600,"d":"64,600.00"},null,{"v":198,"d":"198.00"}]
[241,"Comparator ","Tools","Section 18 Auxiliary Bay Unit 1",5,"P5515 Hydraulic Pressure Comparator",null,"litres",null,0,null,{"v":32300,"d":"32,300.00"},{"v":161500,"d":"161,500.00"},null,{"v":467,"d":"467.00"}]
[242,"Copper hammer","Tools",null,6,"5lb Copper Hammer, 2\" face, 14\" Supergrip Fiberglass handle.","THOR","No",{"v":1504,"d":"1,504.00"},{"$f":"I249*E249","v":{"v":9024,"d":"9,024.00"}},null,{"v":1504,"d":"1,504.00"},{"v":9024,"d":"9,024.00"},null,{"v":560,"d":"560.00"}]
[243,"Cordless drill with carry case","Tools",null,6,"13mm chuck, variable speed, keyless chuck, 18V ","Off the shelf ","No",{"v":5220,"d":"5,220.00"},{"v":31320,"d":"31,320.00"},null,{"v":5220,"d":"5,220.00"},{"v":31320,"d":"31,320.00"},null,{"v":3160,"d":"3160.00"}]
[244,"Cordless drill with carry case","Tools","Section 42 Workshop",2,"13mm chuck, variable speed, keyless chuck, 18V ",null,"No",{"v":5220,"d":"5,220.00"},{"v":10440,"d":"10,440.00"},null,{"v":5220,"d":"5,220.00"},{"v":10440,"d":"10,440.00"},null,{"$f":"3160","v":{"v":3160,"d":"3160.00"}}]
[245,"Cordless drill with carry case","Tools","Batch Plant Workshop",2,"13mm chuck, variable speed, keyless chuck, 18V ",null,"No",{"v":5220,"d":"5,220.00"},{"v":10440,"d":"10,440.00"},null,{"v":5220,"d":"5,220.00"},{"v":10440,"d":"10,440.00"},null,{"$f":"3160","v":{"v":3160,"d":"3160.00"}}]
[246,"Crimper - Die-less Bootlace Ferrule Crimper, 4 - 16mm2","Tools",null,10,"Bootlace Ferrule sizes, 4 - 16mm2 with ratchet control","HELLERMANN  TYTON","No",{"v":482,"d":"482.00"},{"v":4820,"d":"4,820.00"},null,{"v":482,"d":"482.00"},{"v":4820,"d":"4,820.00"}]
[247,"Crimper - Die-less Bootlace Ferrule Crimper,, 16 - 35mm2","Tools",null,10,"Bootlace Ferrule sizes, 16 - 35mm2 with ratchet control","HELLERMANN  TYTON","No",{"v":1790,"d":"1,790.00"},{"v":17900,"d":"17,900.00"},null,{"v":1790,"d":"1,790.00"},{"v":17900,"d":"17,900.00"},null,{"v":1193.5,"d":"1193.50"}]
[248,"Crimper for pre-insulated terminals","Tools",null,10,"High precision ratchet style crimping tool for red, blue and yellow pre-insulated terminals. • Super high leverage ergonomic handles, • Jaws are hardened and polished to achieve optimum crimp, • Ratchet operation ensures correct crimp and reduced hand eff","HELLERMANN  TYTON","No",{"v":340,"d":"340.00"},{"v":3400,"d":"3,400.00"},null,{"v":340,"d":"340.00"},{"v":3400,"d":"3,400.00"}]
[249,"Crimper for un-isolated lugs Heavy duty","Tools",null,4,"Robust ratchet crimper for copper lugs and un-insulated terminals 1.5 - 16mm2.  A ratchet operation ensures a correct crimp","HELLERMANN  TYTON","No",{"v":340,"d":"340.00"},{"v":1360,"d":"1,360.00"},null,{"v":340,"d":"340.00"},{"v":1360,"d":"1,360.00"}]
[250,"Crimper, Copper Lugs  6 - 120mm2 ",null,null,4,"Copper Lugs  6 - 120mm2. Hexagonal copper lug crimper with crimp range 6 - 120mm2.  Dies are self- contained and rotating, so they cannot be misplaced.  Tool has over-centre action to ensure complete crimp.","HELLERMANN  TYTON","No",{"v":1790,"d":"1,790.00"},{"v":7160,"d":"7,160.00"},null,{"v":1790,"d":"1,790.00"},{"v":7160,"d":"7,160.00"},null,{"v":198,"d":"198.00"}]
[251,"Crimper, Copper Lugs  6 - 120mm2 ","Tools","Section 18 Auxiliary Bay Unit 1",2,"Copper Lugs  6 - 120mm2. Hexagonal copper lug crimper with crimp range 6 - 120mm2.  Dies are self- contained and rotating, so they cannot be misplaced.  Tool has over-centre action to ensure complete crimp.","HELLERMAN","No",{"v":1790,"d":"1,790.00"},{"v":3580,"d":"3,580.00"},null,{"v":1790,"d":"1,790.00"},{"v":3580,"d":"3,580.00"},null,{"v":467,"d":"467.00"}]
[252,"Crow / tommey bars - diff sizes","Tools",null,4,"Tommy bar - 450x19mm, 600x19mm & 600x24mm. Pry bar 600mm","GEDORE","No",{"$f":"140+220+300+200","v":{"v":860,"d":"860.00"}},{"v":3440,"d":"3,440.00"},null,null,0,null,{"v":560,"d":"560.00"}]
[253,"Crow / tommey bars - diff sizes","Tools","Section 42 Workshop",4,"Tommy bar - 450x19mm, 600x19mm & 600x24mm. Pry bar 600mm","GEDORE","No",null,0,null,null,0,null,{"v":290,"d":"290.00"}]
[254,"Crow / tommey bars - diff sizes","Tools","ERI Turbo Gen Services (TGS) Workshop 8",2,"Tommy bar - 450x19mm, 600x19mm & 600x24mm. Pry bar 600mm","GEDORE","No",{"$f":"140+220+300+200","v":{"v":860,"d":"860.00"}},{"v":1720,"d":"1,720.00"},null,{"$f":"140+220+300+200","v":{"v":860,"d":"860.00"}},{"v":1720,"d":"1,720.00"}]
[255,"Crow / tommey bars - diff sizes","Tools","Section 42 Workshop",2,"Tommy bar - 450x19mm, 600x19mm & 600x24mm. Pry bar 600mm",null,"No",{"$f":"140+220+300+200","v":{"v":860,"d":"860.00"}},{"v":1720,"d":"1,720.00"},null,{"$f":"140+220+300+200","v":{"v":860,"d":"860.00"}},{"$f":"L262*E262","v":{"v":1720,"d":"1,720.00"}},null,{"v":439,"d":"439.00"}]
[256,"Crow / tommey bars - diff sizes","Tools","Mill Maintenance Workshop",2,"Tommy bar - 450x19mm, 600x19mm & 600x24mm. Pry bar 600mm","GEDORE","No",{"$f":"140+220+300+200","v":{"v":860,"d":"860.00"}},{"v":1720,"d":"1,720.00"},null,{"$f":"140+220+300+200","v":{"v":860,"d":"860.00"}},{"v":1720,"d":"1,720.00"},null,{"v":439,"d":"439.00"}]
[257,"Crow / tommey bars - diff sizes","Tools","Welding Workshop",2,"Tommy bar - 450x19mm, 600x19mm & 600x24mm. Pry bar 600mm",null,"No",{"$f":"140+220+300+200","v":{"v":860,"d":"860.00"}},{"v":1720,"d":"1,720.00"},null,{"$f":"140+220+300+200","v":{"v":860,"d":"860.00"}},{"v":1720,"d":"1,720.00"}]
[258,"Crow / tommey bars - diff sizes","Tools","Batch Plant Workshop",4,"Tommy bar - 450x19mm, 600x19mm & 600x24mm. Pry bar 600mm","GEDORE","No",{"$f":"140+220+300+200","v":{"v":860,"d":"860.00"}},{"v":3440,"d":"3,440.00"},null,null,0]
[259,"Current Source ","Tools ","Section 18 Auxiliary Bay Unit 1",2,"370 series clamp meter","FLUKE","No",null,0,null,{"$f":"8980/1.15","v":{"v":7808.695652173914,"d":"7,808.70"}},{"v":15617.391304347828,"d":"15,617.39"}]
[260,"double ended scriber 180mm","Tools","Section 42 Workshop",2,null,null,"No",null,0,null,null,0]
[261,"double ended scriber 180mm","Tools","Batch Plant Workshop",2,null,null,"No",null,0,null,null,0]
[262,"Drill  800 W 13mm chuck and hammer action","Tools",null,6,"800 W 13mm chuck, variable speed, forward reverse direction. ","Off the shelf ","No",{"v":2370,"d":"2,370.00"},{"v":14220,"d":"14,220.00"},null,null,0,null,{"v":1193.5,"d":"1193.50"}]
[263,"Drill, Reversable,  Air with key chuck. Complete set","Tools","Section 42 Workshop",1,"Chuck size 13mm, Speed 800rpm, air pressure 630kPa, Air hose 10mm.",null,"No",{"v":2370,"d":"2,370.00"},{"v":2370,"d":"2,370.00"},null,{"v":2370,"d":"2,370.00"},{"v":2370,"d":"2,370.00"}]
[264,"Drill, Reversable,  Air with key chuck. Complete set","Tools","Batch Plant Workshop",1,"Chuck size 13mm, Speed 800rpm, air pressure 630kPa, Air hose 10mm.",null,"No",{"v":2370,"d":"2,370.00"},{"v":2370,"d":"2,370.00"},null,{"v":2370,"d":"2,370.00"},{"v":2370,"d":"2,370.00"}]
[265,"Drilling Machine Hand - Large","Tools",null,2,"1200 W 20mm chuck, variable speed, forward reverse direction. ","Off the shelf ","No",{"v":2725,"d":"2,725.00"},{"v":5450,"d":"5,450.00"},null,{"v":2725,"d":"2,725.00"},{"v":5450,"d":"5,450.00"}]
[266,"Drilling Machine Hand - Large","Tools","Section 42 Workshop",2,"Driling machine 1200 W 20mm chuck, variable speed, forward reverse direction, 220v",null,null,{"v":2725,"d":"2,725.00"},{"v":5450,"d":"5,450.00"},null,{"v":2725,"d":"2,725.00"},{"v":5450,"d":"5,450.00"}]
[267,"Drilling Machine Hand - Large","Tools","Mill Maintenance Workshop",2,"Driling machine 1200 W 20mm chuck, variable speed, forward reverse direction, 220v",null,"No",{"v":2725,"d":"2,725.00"},{"v":5450,"d":"5,450.00"},null,{"v":2725,"d":"2,725.00"},{"v":5450,"d":"5,450.00"}]
[268,"Druk Pressure Calibrator","Tools","Section 18 Auxiliary Bay Unit 1",1,"3. Druck PV411A Multi-Function Pressure Generator:\nMulti-function \"4 In 1\" hand pump.\nPneumatic pressures to 600 psi (40 bar).\nHydraulic pressures to 10,000 psi (700 bar).\nGenerates vacuum to 95%.\nVacuum priming for Hydraulic systems.\nExcellent low pressure Control.\nAdjustable overpressure protection.\nPressure connections: 1/4 in NPT female.\nReservoir connection: 1/4 BSP female.\nDimensions: 10.2 in x 5.3 in x 3.7 in.\nWeight: 2.5 lb\n","FLUKE","No",{"$f":"1289*15","v":{"v":19335,"d":"19,335.00"}},{"v":19335,"d":"19,335.00"},null,{"$f":"1289*15","v":{"v":19335,"d":"19,335.00"}},{"v":19335,"d":"19,335.00"}]
[269,"Drum lifter chain with  hook","Tools","Section 42 Workshop",2,"300kg\nChain size: 6mm-34mm\n",null,"No",null,0,null,{"v":1450,"d":"1,450.00"},{"v":2900,"d":"2,900.00"}]
[270,"Drum lifter chain with  hook","Tools","Batch Plant Workshop",2,"300kg\nChain size: 6mm-34mm\n",null,"No",null,0,null,{"v":1450,"d":"1,450.00"},{"v":2900,"d":"2,900.00"}]
[271,"Earth leakage tester","Tools","Section 19 Auxilliary Bay Unit 2",4,"ELCB trip ratingsRange - 10mA-15mA-20mA-25mA-30mA-35mA, Basic Accuracy ± 1.75mA at 220V AC",null,"No",{"v":300,"d":"300.00"},{"v":1200,"d":"1,200.00"},null,{"v":300,"d":"300.00"},{"v":1200,"d":"1,200.00"}]
[272,"Earth leakage tester","Tools","Section 42: Workshop and Stores building",4,"ELCB trip ratingsRange - 10mA-15mA-20mA-25mA-30mA-35mA, Basic Accuracy ± 1.75mA at 220V AC",null,"No",{"v":300,"d":"300.00"},{"v":1200,"d":"1,200.00"},null,{"v":300,"d":"300.00"},{"v":1200,"d":"1,200.00"}]
[273,"Earth leakage tester","Tools",null,4,"ELCB trip ratingsRange - 10mA-15mA-20mA-25mA-30mA-35mA, Basic Accuracy ± 1.75mA at 220V AC",null,"No",{"v":300,"d":"300.00"},{"v":1200,"d":"1,200.00"},null,{"v":300,"d":"300.00"},{"v":1200,"d":"1,200.00"}]
[274,"Earth leakage tester 3 phase.","Tools","Section 19 Auxilliary Bay Unit 2",4,"Indicates Phase Presence, Indicates Phase Rotation, TEST for Disconnection Sensitivity, TEST for Disconnection Time, Select One of 3 Phase to test ELCB, Measure Voltage Phase to Earth, Over Temperature Protection, Phase Polarity Trip Indicator. Tech Spec ",null,"No",{"v":11000,"d":"11,000.00"},{"v":44000,"d":"44,000.00"},null,{"v":11000,"d":"11,000.00"},{"v":44000,"d":"44,000.00"}]
[275,"Earth leakage tester 3 phase.","Tools","Section 42: Workshop and Stores building",4,"Indicates Phase Presence, Indicates Phase Rotation, TEST for Disconnection Sensitivity, TEST for Disconnection Time, Select One of 3 Phase to test ELCB, Measure Voltage Phase to Earth, Over Temperature Protection, Phase Polarity Trip Indicator. Tech Spec ",null,"No",{"v":11000,"d":"11,000.00"},{"v":44000,"d":"44,000.00"},null,{"v":11000,"d":"11,000.00"},{"v":44000,"d":"44,000.00"}]
[276,"Earth leakage tester 3 phase.","Tools",null,4,"Indicates Phase Presence, Indicates Phase Rotation, TEST for Disconnection Sensitivity, TEST for Disconnection Time, Select One of 3 Phase to test ELCB, Measure Voltage Phase to Earth, Over Temperature Protection, Phase Polarity Trip Indicator. Tech Spec ",null,"No",{"v":11000,"d":"11,000.00"},{"v":44000,"d":"44,000.00"},null,{"v":11000,"d":"11,000.00"},{"v":44000,"d":"44,000.00"}]
[277,"easy read dial gauge plunger type","Tools","Section 42 Workshop",4,"Oxford 0.01 x 10mm travel",null,"No",685.87,{"v":2743.48,"d":"2,743.48"},null,685.87,{"v":2743.48,"d":"2,743.48"}]
[278,"easy read dial gauge plunger type","Tools","Batch Plant Workshop",2,"Oxford 0.01 x 10mm travel",null,"No",685.87,{"v":1371.74,"d":"1,371.74"},null,685.87,{"v":1371.74,"d":"1,371.74"}]
[279,"Easy Read Dial test indicator","Tools","Section 42 Workshop",4,"Oxford 0.01 x 0.8mm travel",null,"No",685.87,{"v":2743.48,"d":"2,743.48"},null,685.87,{"v":2743.48,"d":"2,743.48"}]
[280,"Easy Read Dial test indicator","Tools","Batch Plant Workshop",2,"Oxford 0.01 x 0.8mm travel",null,"No",685.87,{"v":1371.74,"d":"1,371.74"},null,685.87,{"v":1371.74,"d":"1,371.74"}]
[281,"economy digital caliper 150mm senator","Tools","Section 42 Workshop",1,null,"Mitutoyo",null,null,0,null,{"$f":"4650/1.15","v":{"v":4043.4782608695655,"d":"4,043.48"}},{"v":4043.4782608695655,"d":"4,043.48"}]
[282,"economy digital caliper 150mm senator","Tools","Batch Plant Workshop",1,null,"Mitutoyo","No",null,0,null,{"$f":"4650/1.15","v":{"v":4043.4782608695655,"d":"4,043.48"}},{"v":4043.4782608695655,"d":"4,043.48"}]
[283,"ElectronicTest gauge 0 to 10 MPA","Tools","Section 18 Auxiliary Bay Unit 1",2,"0 to 10 MPA - 4digit resolution or better \"Wika\"","\"Wika\"",null,null,0,null,{"v":6165,"d":"6,165.00"},{"v":12330,"d":"12,330.00"}]
[284,"ElectronicTest gauge 0 to 1000 kPA","Tools","Section 18 Auxiliary Bay Unit 1",2," 0 to 1000 kPA - 4digit resolution or better \"Wika\"","\"Wika\"",null,null,0,null,{"v":6165,"d":"6,165.00"},{"v":12330,"d":"12,330.00"}]
[285,"ElectronicTest gauge 0 to 20 MPA","Tools","Section 18 Auxiliary Bay Unit 1",2,"0 to 20 MPA - 4digit resolution or better \"Wika\"","\"Wika\"",null,null,0,null,{"v":1447.84,"d":"1,447.84"},{"v":2895.68,"d":"2,895.68"}]
[286,"ElectronicTest gauge 0 to 250 kPA","Tools","Section 18 Auxiliary Bay Unit 1",2,"0 to 250 kPA - 4digit resolution or better \"Wika\"","\"Wika\"",null,null,0,null,{"v":1447.84,"d":"1,447.84"},{"v":2895.68,"d":"2,895.68"}]
[287,"ElectronicTest gauge 0 to 40 MPA","Tools","Section 18 Auxiliary Bay Unit 1",2,"0 to 40 MPA - 4digit resolution or better \"Wika\"","\"Wika\"",null,null,0,null,{"v":6165,"d":"6,165.00"},{"v":12330,"d":"12,330.00"}]
[288,"ElectronicTest gauge 0 to 500 kPA","Tools","Section 18 Auxiliary Bay Unit 1",2,"0 to 500 kPA - 4digit resolution or better \"Wika\"","\"Wika\"",null,null,0,null,{"v":1447.84,"d":"1,447.84"},{"v":2895.68,"d":"2,895.68"}]
[289,"ElectronicTest gauge 0 to 750 kPA","Tools","Section 18 Auxiliary Bay Unit 1",2,"0 to 750 kPA - 4digit resolution or better \"Wika\"","\"Wika\"",null,null,0,null,{"v":1447.84,"d":"1,447.84"},{"v":2895.68,"d":"2,895.68"}]
[290,"ElectronicTest gauge -100 to 0 kPA","Tools","Section 18 Auxiliary Bay Unit 1",2," -100 to 0 kPA - 4digit resolution or better \"Wika\"","\"Wika\"",null,null,0,null,{"v":1447.84,"d":"1,447.84"},{"v":2895.68,"d":"2,895.68"}]
[291,"Endless Round Sling 1.5m","Tools","Section 42 Workshop",2,"5 Ton",null,"No",null,0,null,{"v":1450.45,"d":"1,450.45"},{"v":2900.9,"d":"2,900.90"}]
[292,"Endless Round Sling 1.5m","Tools","Batch Plant Workshop",2,"5 Ton",null,"No",null,0,null,{"v":1450.45,"d":"1,450.45"},{"v":2900.9,"d":"2,900.90"}]
[293,"Endless Round Sling 1m","Tools","Section 42 Workshop",5,"1 Ton",null,"No",26.15,130.75,null,26.15,130.75]
[294,"Endless Round Sling 1m","Tools","Batch Plant Workshop",5,"1 Ton",null,"No",26.15,130.75,null,26.15,130.75]
[295,"Endless Round Sling 2.5m","Tools","Section 42 Workshop",5,"1 Ton",null,"No",60.75,303.75,null,{"v":48.6,"d":"48.60"},{"v":243,"d":"243.00"}]
[296,"Endless Round Sling 2.5m","Tools","Section 42 Workshop",2,"2 Ton",null,"No",{"v":95,"d":"95.00"},{"v":190,"d":"190.00"},null,{"v":95,"d":"95.00"},{"v":190,"d":"190.00"}]
[297,"Endless Round Sling 2.5m","Tools","Section 42 Workshop",2,"8 Ton",null,"No",{"v":445,"d":"445.00"},{"v":890,"d":"890.00"},null,{"v":445,"d":"445.00"},{"v":890,"d":"890.00"}]
[298,"Endless Round Sling 2.5m","Tools","Section 42 Workshop",2,"20 Ton",null,"No",{"v":745,"d":"745.00"},{"v":1490,"d":"1,490.00"},null,{"v":745,"d":"745.00"},{"v":1490,"d":"1,490.00"}]
[299,"Endless Round Sling 2.5m","Tools","Batch Plant Workshop",5,"1 Ton",null,"No",60.75,303.75,null,60.75,303.75]
[300,"Endless Round Sling 2.5m","Tools","Batch Plant Workshop",2,"2 Ton",null,"No",{"v":95,"d":"95.00"},{"v":190,"d":"190.00"},null,{"v":95,"d":"95.00"},{"v":190,"d":"190.00"}]
[301,"Endless Round Sling 2.5m","Tools","Batch Plant Workshop",2,"8 Ton",null,"No",{"v":445,"d":"445.00"},{"v":890,"d":"890.00"},null,{"v":445,"d":"445.00"},{"v":890,"d":"890.00"}]
[302,"Endless Round Sling 2.5m","Tools","Batch Plant Workshop",2,"20 Ton",null,"No",{"v":745,"d":"745.00"},{"v":1490,"d":"1,490.00"},null,{"v":745,"d":"745.00"},{"v":1490,"d":"1,490.00"}]
[303,"Endless Round Sling 2m","Tools","Section 42 Workshop",5,"1 Ton",null,"No",60.75,303.75,null,60.75,303.75]
[304,"Endless Round Sling 2m","Tools","Section 42 Workshop",5,"2 Ton",null,"No",{"v":95,"d":"95.00"},{"v":475,"d":"475.00"},null,{"v":95,"d":"95.00"},{"v":475,"d":"475.00"}]
[305,"Endless Round Sling 2m","Tools","Batch Plant Workshop",5,"1 Ton",null,"No",60.75,303.75,null,60.75,303.75]
[306,"Endless Round Sling 2m","Tools","Batch Plant Workshop",5,"2 Ton",null,"No",{"v":95,"d":"95.00"},{"$f":"I313*E313","v":{"v":475,"d":"475.00"}},null,{"v":95,"d":"95.00"},{"v":475,"d":"475.00"}]
[307,"Endless Round Sling 3m","Tools","Section 42 Workshop",5,"2 Ton",null,"No",{"v":115,"d":"115.00"},{"v":575,"d":"575.00"},null,{"v":115,"d":"115.00"},{"v":575,"d":"575.00"}]
[308,"Endless Round Sling 3m","Tools","Batch Plant Workshop",5,"2 Ton",null,"No",{"v":115,"d":"115.00"},{"v":575,"d":"575.00"},null,{"v":115,"d":"115.00"},{"v":575,"d":"575.00"}]
[309,"Endless Round Sling 4m","Tools","Section 42 Workshop",2,"2 Ton",null,"No",{"v":150,"d":"150.00"},{"v":300,"d":"300.00"},null,{"v":150,"d":"150.00"},{"v":300,"d":"300.00"}]
[310,"Endless Round Sling 4m","Tools","Section 42 Workshop",2,"8 Ton",null,"No",{"v":445,"d":"445.00"},{"v":890,"d":"890.00"},null,{"v":423,"d":"423.00"},{"v":846,"d":"846.00"}]
[311,"Endless Round Sling 4m","Tools","Batch Plant Workshop",2,"2 Ton",null,"No",{"v":150,"d":"150.00"},{"v":300,"d":"300.00"},null,{"v":150,"d":"150.00"},{"v":300,"d":"300.00"}]
[312,"Endless Round Sling 4m","Tools","Batch Plant Workshop",2,"8 Ton",null,"No",{"v":445,"d":"445.00"},{"v":890,"d":"890.00"},null,{"$f":"L317","v":{"v":423,"d":"423.00"}},{"v":846,"d":"846.00"}]
[313,"Endless Round Sling 500mm","Tools","Section 42 Workshop",5,"1 Ton",null,"No",{"v":21.5,"d":"21.50"},{"v":107.5,"d":"107.50"},null,{"v":21.5,"d":"21.50"},{"v":107.5,"d":"107.50"}]
[314,"Endless Round Sling 500mm","Tools","Batch Plant Workshop",5,"1 Ton",null,"No",{"v":21.5,"d":"21.50"},{"v":107.5,"d":"107.50"},null,{"v":21.5,"d":"21.50"},{"v":107.5,"d":"107.50"}]
[315,"Endless Round Sling 6m","Tools","Section 42 Workshop",4,"2 Ton",null,"No",{"v":225,"d":"225.00"},{"v":900,"d":"900.00"},null,{"v":225,"d":"225.00"},{"v":900,"d":"900.00"}]
[316,"Endless Round Sling 6m","Tools","Batch Plant Workshop",2,"2 Ton",null,"No",{"v":225,"d":"225.00"},{"v":450,"d":"450.00"},null,{"v":225,"d":"225.00"},{"v":450,"d":"450.00"}]
[317,"Endless Round Sling 8m","Tools","Section 42 Workshop",3,"8 Ton",null,"No",{"v":880,"d":"880.00"},{"v":2640,"d":"2,640.00"},null,{"v":860,"d":"860.00"},{"v":2580,"d":"2,580.00"}]
[318,"Endless Round Sling 8m","Tools","Batch Plant Workshop",3,"8 Ton",null,"No",{"v":880,"d":"880.00"},{"v":2640,"d":"2,640.00"},null,{"v":880,"d":"880.00"},{"v":2640,"d":"2,640.00"}]
[319,"engineers ball pein hammer 2lb","Tools","Section 42 Workshop",4,"Hardened and tempered steel to EN 10083.\nEnamelled, face and ball ground.\nAsh shaf.","GEDORE",null,null,0,null,592.76,{"$f":"L326*E326","v":{"v":2371.04,"d":"2,371.04"}}]
[320,"engineers ball pein hammer 2lb","Tools","Batch Plant Workshop",4,"Hardened and tempered steel to EN 10083.\nEnamelled, face and ball ground.\nAsh shaf.","GEDORE","No",null,0,null,592.76,{"v":2371.04,"d":"2,371.04"}]
[321,"engineers second cut file set 8 piece x 225mm","Tools","Section 42 Workshop",3,{"$nulls":4},0,null,{"$f":"776/1.15","v":{"v":674.7826086956522,"d":"674.78"}},{"v":2024.3478260869567,"d":"2,024.35"}]
[322,"engineers second cut file set 8 piece x 225mm","Tools","Batch Plant Workshop",3,null,null,"No",null,0,null,{"$f":"776/1.15","v":{"v":674.7826086956522,"d":"674.78"}},{"v":2024.3478260869567,"d":"2,024.35"}]
[323,"engraver kit","Tools","Section 42 Workshop",4,"Rated power input 35 W \nVoltage 230 V \nWeight 0,31 kg \nLength 17 cm \nStrokes per minute 6000 \nSound pressure 86 dB(A) \nSound power 97 dB(A) \nVibration 7,7 m/s²",null,"No",{"v":544,"d":"544.00"},{"v":2176,"d":"2,176.00"},null,{"v":544,"d":"544.00"},{"v":2176,"d":"2,176.00"}]
[324,"engraver kit","Tools","Batch Plant Workshop",2,"Rated power input 35 W \nVoltage 230 V \nWeight 0,31 kg \nLength 17 cm \nStrokes per minute 6000 \nSound pressure 86 dB(A) \nSound power 97 dB(A) \nVibration 7,7 m/s²",null,"No",{"v":544,"d":"544.00"},{"v":1088,"d":"1,088.00"},null,{"v":544,"d":"544.00"},{"v":1088,"d":"1,088.00"}]
[325,"Ex Intrinsically Safe True RMS Digital Multimeter","Tools","Section 18 Auxiliary Bay Unit 1",1,"Fluke 28 II Ex Intrinsically Safe True-rms Digital Multimeter","FLUKE","No",{"v":12960,"d":"12,960.00"},{"v":12960,"d":"12,960.00"},null,{"v":12960,"d":"12,960.00"},{"v":12960,"d":"12,960.00"}]
[326,"Extension reels","Tools",null,12,"20m ,2.5mm electrical extension cable on reel","Schneider Electric","No",{"v":499,"d":"499.00"},{"v":5988,"d":"5,988.00"},null,{"v":499,"d":"499.00"},{"v":5988,"d":"5,988.00"}]
[327,"Extension reels","Tools","Section 42 Workshop",10,"20m electrical extension cable on reel, REEL,EXTENSION WITH CABLE AND D PLUG,30M",null,"No",{"v":899,"d":"899.00"},{"v":8990,"d":"8,990.00"},null,{"v":899,"d":"899.00"},{"v":8990,"d":"8,990.00"}]
[328,"Extension reels","Tools","ERI Turbo Gen Services (TGS) Workshop 9",3,"20m electrical extension cable on reel, REEL,EXTENSION WITH CABLE AND D PLUG,30M",null,"No",{"v":899,"d":"899.00"},{"v":2697,"d":"2,697.00"},null,{"v":899,"d":"899.00"},{"v":2697,"d":"2,697.00"}]
[329,"Extension reels","Tools","ERI Turbo Gen Services (TGS) Workshop 10",3,"20m electrical extension cable on reel, REEL,EXTENSION WITH CABLE AND D PLUG,30M",null,"No",{"v":899,"d":"899.00"},{"v":2697,"d":"2,697.00"},null,{"v":899,"d":"899.00"},{"v":2697,"d":"2,697.00"}]
[330,"Extension reels","Tools","Section 42 Workshop",3,"20m electrical extension cable on reel, REEL,EXTENSION WITH CABLE AND D PLUG,30M",null,"No",{"v":899,"d":"899.00"},{"v":2697,"d":"2,697.00"},null,{"v":899,"d":"899.00"},{"v":2697,"d":"2,697.00"}]
[331,"Extension reels","Tools","Mill Maintenance Workshop",3,"20m electrical extension cable on reel, REEL,EXTENSION WITH CABLE AND D PLUG,30M",null,"No",{"v":899,"d":"899.00"},{"v":2697,"d":"2,697.00"},null,{"v":899,"d":"899.00"},{"v":2697,"d":"2,697.00"}]
[332,"Extension reels","Tools","Welding Workshop",3,"20m electrical extension cable on reel, REEL,EXTENSION WITH CABLE AND D PLUG,30M",null,"No",{"v":899,"d":"899.00"},{"v":2697,"d":"2,697.00"},null,{"v":899,"d":"899.00"},{"v":2697,"d":"2,697.00"}]
[333,"Extension reels","Tools","Batch Plant Workshop",10,"20m electrical extension cable on reel, REEL,EXTENSION WITH CABLE AND D PLUG,30M",null,"No",{"v":899,"d":"899.00"},{"v":8990,"d":"8,990.00"},null,{"v":899,"d":"899.00"},{"v":8990,"d":"8,990.00"}]
[334,"extraction fans","Tools","Section 42 Workshop",6,"Extraction fan\n230 volt \n3600 m3 per hour air flow\nWeight 14kg\nDimensions 44cm, 37cm, 40cm\nWith 10 meters of flexible ducting",null,"No",null,0,null,{"v":4199,"d":"4,199.00"},{"v":25194,"d":"25,194.00"}]
[335,"extraction fans","Tools","Batch Plant Workshop",2,"Extraction fan\n230 volt \n3600 m3 per hour air flow\nWeight 14kg\nDimensions 44cm, 37cm, 40cm\nWith 10 meters of flexible ducting",null,"No",null,0,null,{"v":4199,"d":"4,199.00"},{"v":8398,"d":"8,398.00"}]
[336,"Eye Bolt 64mm","Tools","Section 42 Workshop",2,"14.5 Ton",null,"No",{"v":987,"d":"987.00"},{"v":1974,"d":"1,974.00"},null,{"v":815.5,"d":"815.50"},{"v":1631,"d":"1,631.00"}]
[337,"Eye Bolt 64mm","Tools","Batch Plant Workshop",2,"14.5 Ton",null,"No",{"v":987,"d":"987.00"},{"v":1974,"d":"1,974.00"},null,{"v":815.5,"d":"815.50"},{"v":1631,"d":"1,631.00"}]
[338,"Eye Bolts 100mm","Tools","Section 42 Workshop",2,"30 Ton",null,"No",{"v":5000,"d":"5,000.00"},{"v":10000,"d":"10,000.00"},null,{"v":2450,"d":"2,450.00"},{"v":4900,"d":"4,900.00"}]
[339,"Eye Bolts 100mm","Tools","Batch Plant Workshop",2,"30 Ton",null,"No",{"v":5000,"d":"5,000.00"},{"v":10000,"d":"10,000.00"},null,{"v":2450,"d":"2,450.00"},{"v":4900,"d":"4,900.00"}]
[340,"Eye Bolts 10mm","Tools","Section 42 Workshop",4,"640 Kg",null,"No",{"v":14,"d":"14.00"},{"v":56,"d":"56.00"},null,{"v":14,"d":"14.00"},{"v":56,"d":"56.00"}]
[341,"Eye Bolts 10mm","Tools","Section 42 Workshop",4,"1 Ton",null,"No",null,0,null,{"v":18.5,"d":"18.50"},{"v":74,"d":"74.00"}]
[342,"Eye Bolts 10mm","Tools","Section 42 Workshop",3,"700kg",null,"No",null,0,null,26.75,80.25]
[343,"Eye Bolts 10mm","Tools","Section 42 Workshop",5,"1800kg",null,"No",null,0,null,{"v":18.5,"d":"18.50"},{"v":92.5,"d":"92.50"}]
[344,"Eye Bolts 10mm","Tools","Batch Plant Workshop",4,"640 Kg",null,"No",null,0,null,{"v":14,"d":"14.00"},{"v":56,"d":"56.00"}]
[345,"Eye Bolts 10mm","Tools","Batch Plant Workshop",4,"1 Ton",null,"No",null,0,null,{"v":18.5,"d":"18.50"},{"v":74,"d":"74.00"}]
[346,"Eye Bolts 10mm","Tools","Batch Plant Workshop",2,"700kg",null,"No",null,0,null,16.25,{"v":32.5,"d":"32.50"}]
[347,"Eye Bolts 10mm","Tools","Batch Plant Workshop",5,"1800kg",null,"No",null,0,null,26.75,133.75]
[348,"Eye Bolts 12mm","Tools","Section 42 Workshop",2,"1.2Ton",null,"No",null,0,null,22.75,{"v":45.5,"d":"45.50"}]
[349,"Eye Bolts 12mm","Tools","Batch Plant Workshop",2,"1.2Ton",null,"No",null,0,null,22.75,{"$f":"L357*E356","v":{"v":43.1,"d":"43.10"}}]
[350,"Eye Bolts 16mm","Tools","Section 42 Workshop",2,"1 Ton",null,"No",null,0,null,{"$f":"21.55","v":21.55},{"$f":"L358*E357","v":0}]
[351,"Eye Bolts 16mm","Tools","Section 42 Workshop",8,"1.6Ton",null,"No",null,0,null,null,0]
[352,"Eye Bolts 16mm","Tools","Batch Plant Workshop",2,"1 Ton",null,"No",null,0,null,{"$f":"21.55","v":21.55},{"v":43.1,"d":"43.10"}]
[353,"Eye Bolts 16mm","Tools","Batch Plant Workshop",4,"1.6Ton",null,"No",null,0,null,null,0]
[354,"Eye Bolts 18mm","Tools","Section 42 Workshop",2,"4Ton",null,"No",null,0,null,null,0]
[355,"Eye Bolts 18mm","Tools","Section 42 Workshop",2,"950kg",null,"No",null,0,null,{"v":24.5,"d":"24.50"},{"v":49,"d":"49.00"}]
[356,"Eye Bolts 18mm","Tools","Section 42 Workshop",4,"2.5Ton",null,"No",null,0,null,null,0]
[357,"Eye Bolts 18mm","Tools","Batch Plant Workshop",2,"4Ton",null,"No",null,0,null,null,0]
[358,"Eye Bolts 18mm","Tools","Batch Plant Workshop",2,"950kg",null,"No",null,0,null,{"v":24.5,"d":"24.50"},{"v":49,"d":"49.00"}]
[359,"Eye Bolts 18mm","Tools","Batch Plant Workshop",2,"2.5Ton",null,"No",null,0,null,null,0]
[360,"Eye Bolts 20mm","Tools","Section 42 Workshop",5,"2.5Ton",null,"No",null,0,null,null,0]
[361,"Eye Bolts 20mm","Tools","Section 42 Workshop",2,"1.5 Ton",null,"No",null,0,null,20.95,{"v":41.9,"d":"41.90"}]
[362,"Eye Bolts 20mm","Tools","Section 42 Workshop",2,"3.2 Ton",null,"No",null,0,null,null,0]
[363,"Eye Bolts 20mm","Tools","Section 42 Workshop",2,"3.6 Ton",null,"No",null,0,null,null,0]
[364,"Eye Bolts 20mm","Tools","Section 42 Workshop",2,"4.3 Ton",null,"No",null,0,null,null,0]
[365,"Eye Bolts 20mm","Tools","Section 42 Workshop",2,"5 Ton",null,"No",null,0,null,null,0]
[366,"Eye Bolts 20mm","Tools","Batch Plant Workshop",5,"2.5Ton",null,"No",null,0,null,null,0]
[367,"Eye Bolts 20mm","Tools","Batch Plant Workshop",2,"1.5 Ton",null,"No",null,0,null,20.95,{"v":41.9,"d":"41.90"}]
[368,"Eye Bolts 20mm","Tools","Batch Plant Workshop",2,"3.2 Ton",null,"No",null,0,null,null,0]
[369,"Eye Bolts 20mm","Tools","Batch Plant Workshop",2,"3.6 Ton",null,"No",null,0,null,null,0]
[370,"Eye Bolts 20mm","Tools","Batch Plant Workshop",2,"4.3 Ton",null,"No",null,{"$f":"I377*E377","v":0},null,null,0]
[371,"Eye Bolts 20mm","Tools","Batch Plant Workshop",2,"5 Ton",null,"No",null,0,null,null,0]
[372,"Eye Bolts 22mm","Tools","Section 42 Workshop",2,"5 Ton",null,"No",null,0,null,{"v":112,"d":"112.00"},{"v":224,"d":"224.00"}]
[373,"Eye Bolts 22mm","Tools","Batch Plant Workshop",2,"5 Ton",null,"No",null,0,null,{"v":112,"d":"112.00"},{"v":224,"d":"224.00"}]
[374,"Eye Bolts 24mm","Tools","Section 42 Workshop",2,"5 Ton",null,"No",null,0,null,null,0]
[375,"Eye Bolts 24mm","Tools","Batch Plant Workshop",2,"5 Ton",null,"No",null,0,null,null,0]
[376,"Eye Bolts 27mm","Tools","Section 42 Workshop",2,"5 Ton",null,"No",null,0,null,null,0]
[377,"Eye Bolts 27mm","Tools","Section 42 Workshop",2,"8.5 Ton",null,"No",null,0,null,null,0]
[378,"Eye Bolts 27mm","Tools","Batch Plant Workshop",2,"5 Ton",null,"No",null,0,null,null,0]
[379,"Eye Bolts 27mm","Tools","Batch Plant Workshop",2,"8.5 Ton",null,"No",null,0,null,null,0]
[380,"Eye Bolts 30mm","Tools","Section 42 Workshop",2,"8.5 Ton",null,"No",null,0,null,{"v":197.5,"d":"197.50"},{"v":395,"d":"395.00"}]
[381,"Eye Bolts 30mm","Tools","Section 42 Workshop",2,"8Ton",null,"No",null,0,null,{"v":197.5,"d":"197.50"},{"v":395,"d":"395.00"}]
[382,"Eye Bolts 30mm","Tools","Batch Plant Workshop",2,"8.5 Ton",null,"No",null,0,null,{"v":197.5,"d":"197.50"},{"v":395,"d":"395.00"}]
[383,"Eye Bolts 30mm","Tools","Batch Plant Workshop",2,"8Ton",null,"No",null,0,null,{"v":197.5,"d":"197.50"},{"$f":"L390*E390","v":{"v":395,"d":"395.00"}}]
[384,"Eye Bolts 33mm","Tools","Section 42 Workshop",4,"8Ton",null,"No",null,0,null,{"v":197.5,"d":"197.50"},{"v":790,"d":"790.00"}]
[385,"Eye Bolts 33mm","Tools","Batch Plant Workshop",4,"8Ton",null,"No",null,0,null,{"v":197.5,"d":"197.50"},{"v":790,"d":"790.00"}]
[386,"Eye Bolts 36mm","Tools","Section 42 Workshop",5,"8Ton",null,"No",null,0,null,null,0]
[387,"Eye Bolts 36mm","Tools","Section 42 Workshop",2,"3.4 Ton",null,"No",null,0,null,null,0]
[388,"Eye Bolts 36mm","Tools","Section 42 Workshop",4,"6.3 Ton",null,"No",null,0,null,null,0]
[389,"Eye Bolts 36mm","Tools","Section 42 Workshop",5,"8 Ton",null,"No",null,0,null,{"v":216.5,"d":"216.50"},{"v":1082.5,"d":"1,082.50"}]
[390,"Eye Bolts 36mm","Tools","Batch Plant Workshop",4,"8Ton",null,"No",null,0,null,{"v":216.5,"d":"216.50"},{"v":866,"d":"866.00"}]
[391,"Eye Bolts 36mm","Tools","Batch Plant Workshop",2,"3.4 Ton",null,"No",null,0,null,{"v":134.5,"d":"134.50"},{"v":269,"d":"269.00"}]
[392,"Eye Bolts 36mm","Tools","Batch Plant Workshop",4,"6.3 Ton",null,"No",null,0,null,{"v":198.5,"d":"198.50"},{"v":794,"d":"794.00"}]
[393,"Eye Bolts 36mm","Tools","Batch Plant Workshop",5,"8 Ton",null,"No",null,0,null,{"v":216.5,"d":"216.50"},{"v":1082.5,"d":"1,082.50"}]
[394,"Eye Bolts 42mm","Tools","Section 42 Workshop",2,"8 Ton",null,"No",null,0,null,{"v":328.5,"d":"328.50"},{"v":657,"d":"657.00"}]
[395,"Eye Bolts 42mm","Tools","Section 42 Workshop",2,"10 Ton",null,"No",null,0,null,{"v":328.5,"d":"328.50"},{"v":657,"d":"657.00"}]
[396,"Eye Bolts 42mm","Tools","Section 42 Workshop",2,"11.5 Ton",null,"No",null,0,null,{"v":328.5,"d":"328.50"},{"v":657,"d":"657.00"}]
[397,"Eye Bolts 42mm","Tools","Section 42 Workshop",4,"16 Ton",null,"No",null,0,null,null,0]
[398,"Eye Bolts 42mm","Tools","Batch Plant Workshop",2,"8 Ton",null,"No",null,0,null,{"v":410,"d":"410.00"},{"v":820,"d":"820.00"}]
[399,"Eye Bolts 42mm","Tools","Batch Plant Workshop",2,"10 Ton",null,"No",null,0,null,null,0]
[400,"Eye Bolts 42mm","Tools","Batch Plant Workshop",2,"11.5 Ton",null,"No",null,0,null,null,0]
[401,"Eye Bolts 42mm","Tools","Batch Plant Workshop",2,"16 Ton",null,"No",null,0,null,{"v":460,"d":"460.00"},{"v":920,"d":"920.00"}]
[402,"Eye Bolts 45mm","Tools","Section 42 Workshop",2,"25 Ton",null,"No",null,0,null,{"v":670.3,"d":"670.30"},{"v":1340.6,"d":"1,340.60"}]
[403,"Eye Bolts 45mm","Tools","Batch Plant Workshop",2,"25 Ton",null,"No",null,0,null,{"v":670.3,"d":"670.30"},{"v":1340.6,"d":"1,340.60"}]
[404,"Eye Bolts 48mm","Tools","Section 42 Workshop",2,"10 Ton",null,"No",null,0,null,{"v":478,"d":"478.00"},{"v":956,"d":"956.00"}]
[405,"Eye Bolts 48mm","Tools","Batch Plant Workshop",2,"10 Ton",null,"No",null,0,null,{"v":478,"d":"478.00"},{"v":956,"d":"956.00"}]
[406,"Eye Bolts 80mm","Tools","Section 42 Workshop",2,"10 Ton",null,"No",null,0,null,1250,{"$f":"L411*E413","v":{"v":956,"d":"956.00"}}]
[407,"Eye Bolts 80mm","Tools","Batch Plant Workshop",2,"10 Ton",null,"No",null,0,null,1250,{"v":2500,"d":"2,500.00"}]
[408,"Eye Bolts 8mm","Tools","Section 42 Workshop",5,"400 Kg",null,"No",null,0,null,9.82,{"v":49.1,"d":"49.10"}]
[409,"Eye Bolts 8mm","Tools","Batch Plant Workshop",5,"400 Kg",null,"No",null,0,null,9.82,{"v":49.1,"d":"49.10"}]
[410,"Fall Arrestor","Tools","Section 42 Workshop",5,"140 kg",null,"No",null,0,null,4.81,{"v":24.049999999999997,"d":"24.05"}]
[411,"Fall Arrestor","Tools","Batch Plant Workshop",2,"140 kg",null,"No",null,0,null,4.81,9.62]
[412,"feeler gauge 13 blade x 100mm","Tools","Section 42 Workshop",4,null,null,"No",null,0,null,null,0]
[413,"feeler gauge 13 blade x 100mm","Tools","Batch Plant Workshop",2,null,null,"No",null,0,null,null,0]
[414,"Fiber optic splicing tool","Tools","Section 18 Auxiliary Bay Unit 1",2,"• Arc Fusion splicer, \n• 6.9 a h lithium ion battery\n• High precision Y16 Fiber cleaver\n• clauss strippers\n• spare electrodes\n• 12V D c car adaptor\nincluded in a sturdy, padded, Fiber types Singlemode and multimode, 100μm to 140μm, Fiber cleaved length 16",null,"No",null,0,null,null,0]
[415,"Fibre optic line tester","Tools","Section 18 Auxiliary Bay Unit 1",2,"MicrOTDR Optical fault locator or AFL Noyes M200",null,"No",{"$f":"8995*15","v":{"v":134925,"d":"134,925.00"}},{"v":269850,"d":"269,850.00"},null,{"v":74435.25,"d":"74,435.25"},{"v":148870.5,"d":"148,870.50"}]
[416,"Fish tape","Tools",null,6,"50m Steel fish tape",null,"No",{"v":520,"d":"520.00"},{"v":3120,"d":"3,120.00"},null,{"v":520,"d":"520.00"},{"v":3120,"d":"3,120.00"}]
[417,"Rechargeable flashlight","Tools","Section 42 Workshop",4,"2 hours continuous on time, 51,700 Peak Beam Candlepower, 1/4 turn, cam action focus, spot-to-flood, 5-Cell (1/2-D) Nickel-Cadmium battery pack. Rechargeable up to 1000 times, djustable light beam (Spot to Flood)  Charger operates on A/C or D/C current, 230/12V",null,"No",{"v":2833,"d":"2,833.00"},{"v":11332,"d":"11,332.00"},null,{"v":1833,"d":"1,833.00"},{"v":7332,"d":"7,332.00"}]
[418,"Rechargeable flashlight","Tools","ERI Turbo Gen Services (TGS) Workshop 11",2,"2 hours continuous on time, 51,700 Peak Beam Candlepower, 1/4 turn, cam action focus, spot-to-flood, 5-Cell (1/2-D) Nickel-Cadmium battery pack. Rechargeable up to 1000 times, djustable light beam (Spot to Flood)  Charger operates on A/C or D/C current, 230/12V",null,"No",{"v":2833,"d":"2,833.00"},{"v":5666,"d":"5,666.00"},null,{"v":1833,"d":"1,833.00"},{"v":3666,"d":"3,666.00"}]
[419,"Rechargeable flashlight","Tools","Welding Workshop",2,"2 hours continuous on time, 51,700 Peak Beam Candlepower, 1/4 turn, cam action focus, spot-to-flood, 5-Cell (1/2-D) Nickel-Cadmium battery pack. Rechargeable up to 1000 times, djustable light beam (Spot to Flood)  Charger operates on A/C or D/C current,230/12V",null,"No",{"v":2833,"d":"2,833.00"},{"v":5666,"d":"5,666.00"},null,{"v":1833,"d":"1,833.00"},{"v":3666,"d":"3,666.00"}]
[420,"Flash light and charger","Tools","Batch Plant Workshop",4,"2 hours continuous on time, 51,700 Peak Beam Candlepower, 1/4 turn, cam action focus, spot-to-flood, 5-Cell (1/2-D) Nickel-Cadmium battery pack. Rechargeable up to 1000 times, djustable light beam (Spot to Flood)  Charger operates on A/C or D/C current, 230/12V",null,"No",{"v":2833,"d":"2,833.00"},{"v":11332,"d":"11,332.00"},null,{"v":1833,"d":"1,833.00"},{"v":7332,"d":"7,332.00"}]
[421,"Flat file 2nd cut set with handle","Tools",null,12,"250mm/8 flat 2nd cut file with handle","GEDORE","No",{"v":200,"d":"200.00"},{"v":2400,"d":"2,400.00"},null,null,0]
[422,"Flat file bastard with handle","Tools",null,12,"250mm/8 flat 2nd cut file with handle","GEDORE","No",{"v":200,"d":"200.00"},{"v":2400,"d":"2,400.00"},null,null,0]
[423,"Flat file smooth with handle","Tools",null,12,"250mm/8 flat 2nd cut file with handle","GEDORE","No",{"v":200,"d":"200.00"},{"v":2400,"d":"2,400.00"},null,null,0]
[424,"Floor crane","Tools","ERI Turbo Gen Services (TGS) Workshop 10",1,"3 Ton Hydrapneumatic floor crane,EXTRA HEAVY DUTY,3 TON,LIFTING HEIGHT - 3.55M",null,"No",null,0,null,{"v":4944.5,"d":"4,944.50"},{"v":4944.5,"d":"4,944.50"}]
[425,"Floor crane","Tools","Section 42 Workshop",2,"3 Ton Hydrapneumatic floor crane,EXTRA HEAVY DUTY,3 TON,LIFTING HEIGHT - 3.55M",null,"No",null,0,null,{"v":4944.5,"d":"4,944.50"},{"v":9889,"d":"9,889.00"}]
[426,"Folding Barricade","Tools","Section 42 Workshop",12,"Type: Folding barricade\nHeight: 940mm\nMax. Width: 3.5m\nMaterial: Aluminium/Steel\nColour: Safety yellow/Black",null,"No",null,0,null,{"v":10160,"d":"10,160.00"},{"v":121920,"d":"121,920.00"}]
[427,"Folding Barricade","Tools","Batch Plant Workshop",8,"Type: Folding barricade\nHeight: 940mm\nMax. Width: 3.5m\nMaterial: Aluminium/Steel\nColour: Safety yellow/Black",null,"No",null,0,null,{"v":10160,"d":"10,160.00"},{"v":81280,"d":"81,280.00"}]
[428,"Freeze seal kit","Tools","Section 42 Workshop",3,"Pipe freeze kit\nForm an ice pack that can withstand 483bar\nForm dry ice with a temperature of minus (-79C°).\nKit c/w 10 sets of freeze heads for 10mm to 60mm  lines, two high pressure spiral hoses with injectors, T-distributor, locking nut, hex head screwdriver. ",null,"No",null,0,null,null,0]
[429,"Freeze seal kit","Tools","Batch Plant Workshop",1,"Pipe freeze kit\nForm an ice pack that can withstand 483bar\nForm dry ice with a temperature of minus (-79C°).\nKit c/w 10 sets of freeze heads for 10mm to 60mm  lines, two high pressure spiral hoses with injectors, T-distributor, locking nut, hex head screwdriver. ",null,"No",null,0,null,null,0]
[430,"Gas Welding / Cutting equipment set","Tools","Welding Workshop",3,"Complete set with trolley and large bottles",null,"No",null,0,null,null,0]
[431,"G-Clamps","Tools","Section 42 Workshop",2,"G Clamp forged\n50mm 119-2\nExtra heavy duty ","Record","No",{"v":154,"d":"154.00"},{"v":308,"d":"308.00"},null,{"v":154,"d":"154.00"},{"v":308,"d":"308.00"}]
[432,"G-Clamps","Tools","Section 42 Workshop",2,"G Clamp forged\n100mm 121-4\nExtra heavy duty ","Record","No",{"v":425,"d":"425.00"},{"v":850,"d":"850.00"},null,{"v":425,"d":"425.00"},{"v":850,"d":"850.00"}]
[433,"G-Clamps","Tools","Section 42 Workshop",2,"G Clamp forged\n150mm 121-6\nExtra heavy duty ","Record","No",{"v":648,"d":"648.00"},{"v":1296,"d":"1,296.00"},null,{"v":648,"d":"648.00"},{"v":1296,"d":"1,296.00"}]
[434,"G-Clamps","Tools","Section 42 Workshop",2,"G Clamp forged\n200mm 121-8\nExtra heavy duty ","Record","No",{"v":774,"d":"774.00"},{"$f":"I441*E441","v":{"v":1548,"d":"1,548.00"}},null,{"v":774,"d":"774.00"},{"v":1548,"d":"1,548.00"}]
[435,"G-Clamps","Tools","Section 42 Workshop",2,"G Clamp forged\n250mm 121-10\nExtra heavy duty ","Record","No",{"v":1380,"d":"1,380.00"},{"v":2760,"d":"2,760.00"},null,{"v":1380,"d":"1,380.00"},{"v":2760,"d":"2,760.00"}]
[436,"G-Clamps","Tools","Section 42 Workshop",2,"G Clamp forged\n300mm 121-12\nExtra heavy duty ","Record","No",{"v":1782,"d":"1,782.00"},{"v":3564,"d":"3,564.00"},null,{"v":1782,"d":"1,782.00"},{"v":3564,"d":"3,564.00"}]
[437,"G-Clamps","Tools","Batch Plant Workshop",2,"G Clamp forged\n50mm 119-2\nExtra heavy duty ","Record","No",{"v":154,"d":"154.00"},{"v":308,"d":"308.00"},null,{"v":154,"d":"154.00"},{"v":308,"d":"308.00"}]
[438,"G-Clamps","Tools","Batch Plant Workshop",2,"G Clamp forged\n100mm 121-4\nExtra heavy duty ","Record","No",{"v":425,"d":"425.00"},{"v":850,"d":"850.00"},null,{"v":425,"d":"425.00"},{"v":850,"d":"850.00"}]
[439,"G-Clamps","Tools","Batch Plant Workshop",2,"G Clamp forged\n150mm 121-6\nExtra heavy duty ","Record","No",{"v":648,"d":"648.00"},{"v":1296,"d":"1,296.00"},null,{"v":648,"d":"648.00"},{"v":1296,"d":"1,296.00"}]
[440,"G-Clamps","Tools","Batch Plant Workshop",2,"G Clamp forged\n200mm 121-8\nExtra heavy duty ","Record","No",{"v":774,"d":"774.00"},{"v":1548,"d":"1,548.00"},null,{"v":774,"d":"774.00"},{"v":1548,"d":"1,548.00"}]
[441,"G-Clamps","Tools","Batch Plant Workshop",2,"G Clamp forged\n250mm 121-10\nExtra heavy duty ","Record","No",{"v":1380,"d":"1,380.00"},{"v":2760,"d":"2,760.00"},null,{"v":1380,"d":"1,380.00"},{"v":2760,"d":"2,760.00"}]
[442,"G-Clamps","Tools","Batch Plant Workshop",2,"G Clamp forged\n300mm 121-12\nExtra heavy duty ","Record","No",{"v":1782,"d":"1,782.00"},{"v":3564,"d":"3,564.00"},null,{"v":1782,"d":"1,782.00"},{"v":3564,"d":"3,564.00"}]
[443,"general purpose tinsnips 200mm","Tools","Section 42 Workshop",2,null,null,"No",{"v":200,"d":"200.00"},{"v":400,"d":"400.00"},null,{"v":200,"d":"200.00"},{"v":400,"d":"400.00"}]
[444,"general purpose tinsnips 200mm","Tools","Batch Plant Workshop",2,null,null,"No",{"v":200,"d":"200.00"},{"v":400,"d":"400.00"},null,{"v":200,"d":"200.00"},{"v":400,"d":"400.00"}]
[445,"Grease pump small - hand tipe ","Tools",null,10,"5kg mini greaser complete with drum, 1,5m hose, coupler and following plate.Pressure of up to 320 Bar (32 MPa). Suitable for up to a No. 2 grease. \n",null,"No",{"v":2162,"d":"2,162.00"},{"v":21620,"d":"21,620.00"},null,{"v":2162,"d":"2,162.00"},{"v":21620,"d":"21,620.00"}]
[446,"Grease pump small - hand tipe ","Tools","Section 42 Workshop",3,"5kg mini greaser complete with drum, 1,5m hose, coupler and following plate.Pressure of up to 320 Bar (32 MPa). Suitable for up to a No. 2 grease. \n",null,"No",{"v":2162,"d":"2,162.00"},{"v":6486,"d":"6,486.00"},null,{"v":2162,"d":"2,162.00"},{"v":6486,"d":"6,486.00"}]
[447,"Grease pump small - hand tipe ","Tools","ERI Turbo Gen Services (TGS) Workshop 11",1,"5kg mini greaser complete with drum, 1,5m hose, coupler and following plate.Pressure of up to 320 Bar (32 MPa). Suitable for up to a No. 2 grease. \n",null,"No",{"v":2162,"d":"2,162.00"},{"v":2162,"d":"2,162.00"},null,{"v":2162,"d":"2,162.00"},{"$f":"L454*E454","v":{"v":2162,"d":"2,162.00"}}]
[448,"Grease pump small - hand tipe ","Tools","Mill Maintenance Workshop",null,"5kg mini greaser complete with drum, 1,5m hose, coupler and following plate.Pressure of up to 320 Bar (32 MPa). Suitable for up to a No. 2 grease. \n",null,"No",{"v":2162,"d":"2,162.00"},0,null,{"v":2162,"d":"2,162.00"},0]
[449,"Grease pump small - hand tipe ","Tools","Batch Plant Workshop",3,"5kg mini greaser complete with drum, 1,5m hose, coupler and following plate.Pressure of up to 320 Bar (32 MPa). Suitable for up to a No. 2 grease. \n",null,"No",{"v":2162,"d":"2,162.00"},{"v":6486,"d":"6,486.00"},null,{"v":2162,"d":"2,162.00"},{"v":6486,"d":"6,486.00"}]
[450,"Grease pump small - hand type ","Tools","Section 42 Workshop",1,"5kg mini greaser complete with drum, 1,5m hose, coupler and following plate.Pressure of up to 320 Bar (32 MPa). Suitable for up to a No. 2 grease. \n",null,"No",{"v":2162,"d":"2,162.00"},{"v":2162,"d":"2,162.00"},null,{"v":2162,"d":"2,162.00"},{"v":2162,"d":"2,162.00"}]
[451,"Grinder,  Air Die, Heavy duty","Tools","Welding Workshop",4,"Collet size 6 & 3mm, Speed 2000rpm, Air press 630kPa, Motor power 0.9 HP, Air hose 10mm",null,"No",{"v":425,"d":"425.00"},{"v":1700,"d":"1,700.00"},null,{"v":425,"d":"425.00"},{"v":1700,"d":"1,700.00"}]
[452,"Grommet sling","Tools","Section 42 Workshop",4,"38 Ton",null,"No",null,0,null,null,0]
[453,"Grommet sling","Tools","Section 42 Workshop",8,"55.3 Ton",null,"No",null,0,null,null,0]
[454,"Grommet sling","Tools","Section 42 Workshop",2,"104 Ton",null,"No",null,0,null,null,0]
[455,"Hack Saw","Tools",null,20,"Hi-Tension Hack Saw Frame Cast aluminum handle and end pieces with permanent blade pins, blade storage.","GEDORE","No",{"v":250,"d":"250.00"},{"v":5000,"d":"5,000.00"},null,null,0]
[456,"Hack Saw","Tools","Section 42 Workshop",2,"Hi-Tension Hack Saw Frame Cast aluminum handle and end pieces with permanent blade pins, blade storage.",null,"No",{"v":250,"d":"250.00"},{"v":500,"d":"500.00"},null,{"v":250,"d":"250.00"},{"v":500,"d":"500.00"}]
[457,"Hack Saw","Tools","ERI Turbo Gen Services (TGS) Workshop 12",2,"Hi-Tension Hack Saw Frame Cast aluminum handle and end pieces with permanent blade pins, blade storage.",null,"No",{"v":250,"d":"250.00"},{"v":500,"d":"500.00"},null,{"v":250,"d":"250.00"},{"v":500,"d":"500.00"}]
[458,"Hack Saw","Tools","Section 42 Workshop",2,"Hi-Tension Hack Saw Frame Cast aluminum handle and end pieces with permanent blade pins, blade storage.",null,"No",{"v":250,"d":"250.00"},{"v":500,"d":"500.00"},null,{"v":250,"d":"250.00"},{"v":500,"d":"500.00"}]
[459,"Hack Saw","Tools","Mill Maintenance Workshop",2,"Hi-Tension Hack Saw Frame Cast aluminum handle and end pieces with permanent blade pins, blade storage.",null,"No",{"v":250,"d":"250.00"},{"v":500,"d":"500.00"},null,{"v":250,"d":"250.00"},{"v":500,"d":"500.00"}]
[460,"Hack Saw","Tools","Welding Workshop",2,"Hi-Tension Hack Saw Frame Cast aluminum handle and end pieces with permanent blade pins, blade storage.",null,"No",{"v":250,"d":"250.00"},{"v":500,"d":"500.00"},null,{"v":250,"d":"250.00"},{"v":500,"d":"500.00"}]
[461,"Hack Saw","Tools","Batch Plant Workshop",4,"Hi-Tension Hack Saw Frame Cast aluminum handle and end pieces with permanent blade pins, blade storage.",null,"No",{"v":250,"d":"250.00"},{"v":1000,"d":"1,000.00"},null,{"v":250,"d":"250.00"},{"v":1000,"d":"1,000.00"}]
[462,"Hack Saw Frame Standard","Tools","Section 42 Workshop",3,"standard junior pattern 260mm\nOverall Length 280mm\nOverall Width 80\nOverall Depth 5\n",null,"No",{"v":185,"d":"185.00"},{"v":555,"d":"555.00"},null,{"v":185,"d":"185.00"},{"v":555,"d":"555.00"}]
[463,"Hack Saw Frame Standard","Tools","Batch Plant Workshop",3,"standard junior pattern 260mm\nOverall Length 280mm\nOverall Width 80\nOverall Depth 5\n",null,"No",{"v":185,"d":"185.00"},{"v":555,"d":"555.00"},null,{"v":185,"d":"185.00"},{"v":555,"d":"555.00"}]
[464,"Half round file 2nd cut with handle","Tools",null,10,"250mm/8 flat 2nd cut file with handle","GEDORE","No",{"v":290,"d":"290.00"},{"v":2900,"d":"2,900.00"},null,{"v":79,"d":"79.00"},{"v":790,"d":"790.00"}]
[465,"Half round file bastard with handle","Tools",null,10,"250mm/8 flat 2nd cut file with handle","GEDORE","No",{"v":290,"d":"290.00"},{"v":2900,"d":"2,900.00"},null,{"v":79,"d":"79.00"},{"v":790,"d":"790.00"}]
[466,"Half round file smooth with handle","Tools",null,10,"250mm/8 flat 2nd cut file with handle","GEDORE","No",{"v":290,"d":"290.00"},{"v":2900,"d":"2,900.00"},null,{"v":79,"d":"79.00"},{"v":790,"d":"790.00"}]
[467,"Hand Pump Hydraulic P Series","Tools","Section 42 Workshop",3,"P59, 400 to 1131 cm3 resevoir, two speed, single acting cylinder",null,"No",null,0,null,null,0]
[468,"Hand Pump Hydraulic P Series","Tools","Section 42 Workshop",3,"P460D, 9.5 liter resevoir, two speed, single acting cylinder",null,"No",null,0,null,null,0]
[469,"Hand Pump Hydraulic P Series","Tools","Section 42 Workshop",3,"P460D, 9.5 liter resevoir, two speed, double acting cylinder",null,"No",null,0,null,null,0]
[470,"Hand Pump Hydraulic P Series","Tools","Batch Plant Workshop",1,"P59, 400 to 1131 cm3 resevoir, two speed, single acting cylinder",null,"No",null,0,null,null,0]
[471,"Hand Pump Hydraulic P Series","Tools","Batch Plant Workshop",1,"P460D, 9.5 liter resevoir, two speed, single acting cylinder",null,"No",null,0,null,null,0]
[472,"Hand Pump Hydraulic P Series","Tools","Batch Plant Workshop",1,"P460D, 9.5 liter resevoir, two speed, double acting cylinder",null,"No",null,0,null,null,0]
[473,"Hand-held infrared thermometer","Tools","16 M Level Workshop",4,"Target spot of 70mm at 1 metre distance.","HELLERMAN","No",{"v":1650,"d":"1,650.00"},{"v":6600,"d":"6,600.00"},null,{"v":1650,"d":"1,650.00"},{"v":6600,"d":"6,600.00"}]
[474,"Heatgun","Tools",null,10,"Air volume 250/350/500 l/min, Air temperature 50/350/550°C, Rated input 1,600 watts ","MIKITA","No",{"v":395,"d":"395.00"},{"v":3950,"d":"3,950.00"},null,{"v":395,"d":"395.00"},{"v":3950,"d":"3,950.00"}]
[475,"Heatgun","Tools ","Section 18 Auxiliary Bay Unit 1",2,"MICRO-THERM™ MJ-600",null,"No",{"$f":"24.62*15","v":{"v":369.3,"d":"369.30"}},{"v":738.6,"d":"738.60"},null,{"$f":"24.62*15","v":{"v":369.3,"d":"369.30"}},{"v":738.6,"d":"738.60"}]
[476,"Heavy Duty Combination Hammer and Impact drill","Tools","Section 42 Workshop",2,"Drilling with high torque in wood and steel \nHammer drilling in concrete, masonry and natural stone with drill bits 1/2\" - 6\" in diameter\nDrilling holes for heavy-duty anchors 3/4\" - 1 3/4\" in diameter",null,"No",null,0,null,null,0]
[477,"Heavy Duty Combination Hammer and Impact drill","Tools","Batch Plant Workshop",2,"Drilling with high torque in wood and steel \nHammer drilling in concrete, masonry and natural stone with drill bits 1/2\" - 6\" in diameter\nDrilling holes for heavy-duty anchors 3/4\" - 1 3/4\" in diameter",null,"No",null,0,null,null,0]
[478,"Heavy duty hand winches","Tools","Section 42 Workshop",2,"Gear Ratio: 392/1, Rope Capacity: 103m, Working Length: 73m, Rope Diameter: 26mm, SWL: 8 ton ",{"$nulls":3},0,null,null,0]
[479,"Heavy duty hand winches","Tools","Batch Plant Workshop",2,"Gear Ratio: 392/1, Rope Capacity: 103m, Working Length: 73m, Rope Diameter: 26mm, SWL: 8 ton ",null,"No",null,0,null,null,0]
[480,"heavy duty snipe nose pliers 160mm","Tools","Section 42 Workshop",4,{"$nulls":4},0,null,null,0]
[481,"heavy duty snipe nose pliers 160mm","Tools","Batch Plant Workshop",2,null,null,"No",null,0,null,null,0]
[482,"Heavy duty winches","Tools","Section 42 Workshop",2,"Air winch\nCapacity: 5 ton\nSpeed: 10 m/min\nnet weight: 750 Kg\n",null,"No",{"v":45895,"d":"45,895.00"},{"v":91790,"d":"91,790.00"},null,{"v":45895,"d":"45,895.00"},{"v":91790,"d":"91,790.00"}]
[483,"Heavy duty winches","Tools","Batch Plant Workshop",2,"Air winch\nCapacity: 5 ton\nSpeed: 10 m/min\nnet weight: 750 Kg\n",null,"No",{"v":45895,"d":"45,895.00"},{"v":91790,"d":"91,790.00"},null,{"v":45895,"d":"45,895.00"},{"v":91790,"d":"91,790.00"}]
[484,"Hilti Drill for Concrete","Tools","Section 42 Workshop",1,"(TE-Y (SDS Max) chuck, 1700 W, 380 rpm, 10.2 kg, 8.5 m/s2), with Active Torque Control, with Active Vibration Reduction and Theft Protection System Hammer drilling in concrete, masonry and natural stone in the 22 to 150 mm diameter range Drilling through-",null,"No",{"v":2176,"d":"2,176.00"},{"v":2176,"d":"2,176.00"},null,{"v":2176,"d":"2,176.00"},{"v":2176,"d":"2,176.00"}]
[485,"Hilti Drill for Concrete","Tools","Batch Plant Workshop",1,"(TE-Y (SDS Max) chuck, 1700 W, 380 rpm, 10.2 kg, 8.5 m/s2), with Active Torque Control, with Active Vibration Reduction and Theft Protection System Hammer drilling in concrete, masonry and natural stone in the 22 to 150 mm diameter range Drilling through-",null,"No",{"v":2176,"d":"2,176.00"},{"v":2176,"d":"2,176.00"},null,{"v":2176,"d":"2,176.00"},{"v":2176,"d":"2,176.00"}]
[486,"Hole punches Complete set.","Tools",null,12,"Standard Round Industrial Hole Punch Set Included 3/4 7/8 1 1 1/8 1 1/4 and 1 1/2 Inches Ball Bearing Punches and Dies Draw Studs Metal Case 15 Pieces\nFunctionPunch 10, 14 and 16 Gauge Mild Steel, Manual Operation  ItemPunch Driver Set  Number of Pieces15","GEDORE","No",null,0,null,null,0]
[487,"Hollow pnch sets 12 pc","Tools","Section 42 Workshop",4,"Heat Treated Carbon Steel Construction\nPrecision Ground Flute and Cutting Edge\nNon-Slip Knurled Handle Grip\n12-pc. Hollow Punches: 2-20 mm\nComplete with Organizer Storage Pouch","Gedore/Kennedy",null,null,0,null,null,0]
[488,"Hollow pnch sets 12 pc","Tools","Batch Plant Workshop",2,"Heat Treated Carbon Steel Construction\nPrecision Ground Flute and Cutting Edge\nNon-Slip Knurled Handle Grip\n12-pc. Hollow Punches: 2-20 mm\nComplete with Organizer Storage Pouch","Gedore/Kennedy","No",null,0,null,null,0]
[489,"hss ground flute jobber drill set 1mm - 13mm","Tools","Section 42 Workshop",6,{"$nulls":4},0,null,null,0]
[490,"hss ground flute jobber drill set 1mm - 13mm","Tools","Batch Plant Workshop",3,null,null,"No",null,0,null,null,0]
[491,"Hydaulic Punches","Tools","Section 42 Workshop",6,"20 ton",{"$nulls":3},0,null,null,0]
[492,"Hydaulic Punches","Tools","Batch Plant Workshop",1,"20 ton",null,"No",null,0,null,null,0]
[493,"Hydraulic Cable Cutter ","Tools",null,2,"Hydraulic Return cable cutters were designed for the cutting of LV & HV cables . They feature a maximum operating pressure of 720/72 (bar/Mpa) or 10443 psi, holding capacity of 203.6 kN (20.8 t) and can handle a maximum cable diameter of 240 mm  cables.",null,"No",null,0,null,null,0]
[494,"Hydraulic Jack 100 ton","Tools","Section 42 Workshop",1,"Capacity: 100ton\nMax. handle effort: 42Kg\nStroke: 144mm\nMax. Height:443mm",null,"No",{"v":2000,"d":"2,000.00"},{"v":2000,"d":"2,000.00"},null,{"v":2000,"d":"2,000.00"},{"v":2000,"d":"2,000.00"}]
[495,"Hydraulic Jack 100 ton","Tools","Batch Plant Workshop",1,"Capacity: 100ton\nMax. handle effort: 42Kg\nStroke: 144mm\nMax. Height:443mm",null,"No",{"v":2000,"d":"2,000.00"},{"v":2000,"d":"2,000.00"},null,{"v":2000,"d":"2,000.00"},{"v":2000,"d":"2,000.00"}]
[496,"Hydraulic Jack 12 ton","Tools","Section 42 Workshop",1,"Capacity: 12ton\nExtended screw: 78mm\nStroke: 147mm\nMax. Height:463mm",null,"No",{"v":495,"d":"495.00"},{"v":495,"d":"495.00"},null,{"v":495,"d":"495.00"},{"v":495,"d":"495.00"}]
[497,"Hydraulic Jack 12 ton","Tools","Batch Plant Workshop",1,"Capacity: 12ton\nExtended screw: 78mm\nStroke: 147mm\nMax. Height:463mm",null,"No",{"v":495,"d":"495.00"},{"v":495,"d":"495.00"},null,{"v":495,"d":"495.00"},{"v":495,"d":"495.00"}]
[498,"Hydraulic Jack 2 ton","Tools","Section 42 Workshop",1,"Capacity: 2 ton\nExtended screw: 50mm\nStroke: 112.5mm\nMax. Height: 325mm",null,"No",{"v":145,"d":"145.00"},{"$f":"I505*E505","v":{"v":145,"d":"145.00"}},null,{"v":145,"d":"145.00"},{"v":145,"d":"145.00"}]
[499,"Hydraulic Jack 2 ton","Tools","Batch Plant Workshop",1,"Capacity: 2 ton\nExtended screw: 50mm\nStroke: 112.5mm\nMax. Height: 325mm",null,"No",{"v":145,"d":"145.00"},{"v":145,"d":"145.00"},null,{"v":145,"d":"145.00"},{"v":145,"d":"145.00"}]
[500,"Hydraulic Jack 22 ton","Tools","Section 42 Workshop",1,"Capacity: 22ton\nMax. handle effort: 33Kg\nStroke: 160mm\nMax. Height:425mm",null,"No",{"v":895,"d":"895.00"},{"v":895,"d":"895.00"},null,{"v":895,"d":"895.00"},{"v":895,"d":"895.00"}]
[501,"Hydraulic Jack 22 ton","Tools","Batch Plant Workshop",1,"Capacity: 22ton\nMax. handle effort: 33Kg\nStroke: 160mm\nMax. Height:425mm",null,"No",{"v":895,"d":"895.00"},{"v":895,"d":"895.00"},null,{"v":895,"d":"895.00"},{"v":895,"d":"895.00"}]
[502,"Hydraulic Jack 3 ton","Tools","Section 42 Workshop",1,"Capacity: 3 ton\nExtended screw: 60mm\nStroke: 112.5mm\nMax. Height:360mm",null,"No",{"v":265,"d":"265.00"},{"v":265,"d":"265.00"},null,{"v":265,"d":"265.00"},{"v":265,"d":"265.00"}]
[503,"Hydraulic Jack 3 ton","Tools","Batch Plant Workshop",1,"Capacity: 3 ton\nExtended screw: 60mm\nStroke: 112.5mm\nMax. Height:360mm",null,"No",{"v":265,"d":"265.00"},{"v":265,"d":"265.00"},null,{"v":265,"d":"265.00"},{"$f":"L510*E510","v":{"v":265,"d":"265.00"}}]
[504,"Hydraulic Jack 35 ton","Tools","Section 42 Workshop",1,"Capacity: 35ton\nMax. handle effort: 31Kg\nStroke: 160mm\nMax. Height:435mm",null,"No",{"v":1395,"d":"1,395.00"},{"v":1395,"d":"1,395.00"},null,{"v":1395,"d":"1,395.00"},{"v":1395,"d":"1,395.00"}]
[505,"Hydraulic Jack 35 ton","Tools","Batch Plant Workshop",1,"Capacity: 35ton\nMax. handle effort: 31Kg\nStroke: 160mm\nMax. Height:435mm",null,"No",{"v":1395,"d":"1,395.00"},{"v":1395,"d":"1,395.00"},null,{"v":1395,"d":"1,395.00"},{"v":1395,"d":"1,395.00"}]
[506,"Hydraulic Jack 5 ton","Tools","Section 42 Workshop",1,"Capacity: 5 ton\nExtended screw: 69mm\nStroke: 119mm\nMax. Height:385mm",null,"No",{"v":265,"d":"265.00"},{"v":265,"d":"265.00"},null,{"v":265,"d":"265.00"},{"v":265,"d":"265.00"}]
[507,"Hydraulic Jack 5 ton","Tools","Batch Plant Workshop",1,"Capacity: 5 ton\nExtended screw: 69mm\nStroke: 119mm\nMax. Height:385mm",null,"No",{"v":265,"d":"265.00"},{"v":265,"d":"265.00"},null,{"v":265,"d":"265.00"},{"v":265,"d":"265.00"}]
[508,"Hydraulic Jack 55 ton","Tools","Section 42 Workshop",1,"Capacity: 55ton\nMax. handle effort: 33Kg\nStroke: 160mm\nMax. Height:469mm",null,"No",{"v":1395,"d":"1,395.00"},{"v":1395,"d":"1,395.00"},null,{"v":1395,"d":"1,395.00"},{"v":1395,"d":"1,395.00"}]
[509,"Hydraulic Jack 55 ton","Tools","Batch Plant Workshop",1,"Capacity: 55ton\nMax. handle effort: 33Kg\nStroke: 160mm\nMax. Height:469mm",null,"No",{"v":1395,"d":"1,395.00"},{"v":1395,"d":"1,395.00"},null,{"v":1395,"d":"1,395.00"},{"v":1395,"d":"1,395.00"}]
[510,"Hydraulic Jack 8 ton","Tools","Section 42 Workshop",1,"Capacity: 8 ton\nExtended screw: 69mm\nStroke: 119mm\nMax. Height:385mm",null,"No",{"v":395,"d":"395.00"},{"v":395,"d":"395.00"},null,{"v":395,"d":"395.00"},{"v":395,"d":"395.00"}]
[511,"Hydraulic Jack 8 ton","Tools","Batch Plant Workshop",1,"Capacity: 8 ton\nExtended screw: 69mm\nStroke: 119mm\nMax. Height:385mm",null,"No",{"v":395,"d":"395.00"},{"v":395,"d":"395.00"},null,{"v":395,"d":"395.00"},{"v":395,"d":"395.00"}]
[512,"hydraulic nut splitter","Tools","Section 42 Workshop",1,"Hexagon nut range: 70 - 80mm\nBolt range: M45 - M52\nCapacity: 103 ton\n",null,"No",null,0,null,null,0]
[513,"hydraulic nut splitter","Tools","Section 42 Workshop",1,"Hexagon nut range: 70 - 85mm\nBolt range: M45 - M56\nCapacity: 103 ton\n",null,"No",null,0,null,null,0]
[514,"hydraulic nut splitter","Tools","Section 42 Workshop",1,"Hexagon nut range: 70 - 95mm\nBolt range: M45 - M64\nCapacity: 103 ton\n",null,"No",null,0,null,null,0]
[515,"hydraulic nut splitter","Tools","Section 42 Workshop",1,"Hexagon nut range: 70 - 105mm\nBolt range: M45 - M72\nCapacity: 103 ton\n",null,"No",null,0,null,null,0]
[516,"hydraulic nut splitter","Tools","Section 42 Workshop",1,"Hexagon nut range: 110 - 115mm\nBolt range: M76 - M80\nCapacity: 193 ton\n",null,"No",null,0,null,null,0]
[517,"hydraulic nut splitter","Tools","Section 42 Workshop",1,"Hexagon nut range: 110 - 130mm\nBolt range: M76 - M90\nCapacity: 193 ton\n",null,"No",null,0,null,null,0]
[518,"hydraulic nut splitter","Tools","Batch Plant Workshop",1,"Hexagon nut range: 70 - 80mm\nBolt range: M45 - M52\nCapacity: 103 ton\n",null,"No",null,0,null,null,0]
[519,"hydraulic nut splitter","Tools","Batch Plant Workshop",1,"Hexagon nut range: 70 - 85mm\nBolt range: M45 - M56\nCapacity: 103 ton\n",null,"No",null,0,null,null,0]
[520,"hydraulic nut splitter","Tools","Batch Plant Workshop",1,"Hexagon nut range: 70 - 95mm\nBolt range: M45 - M64\nCapacity: 103 ton\n",null,"No",null,0,null,null,0]
[521,"hydraulic nut splitter","Tools","Batch Plant Workshop",1,"Hexagon nut range: 70 - 105mm\nBolt range: M45 - M72\nCapacity: 103 ton\n",null,"No",null,0,null,null,0]
[522,"hydraulic nut splitter","Tools","Batch Plant Workshop",1,"Hexagon nut range: 110 - 115mm\nBolt range: M76 - M80\nCapacity: 193 ton\n",null,"No",null,0,null,null,0]
[523,"hydraulic nut splitter","Tools","Batch Plant Workshop",1,"Hexagon nut range: 110 - 130mm\nBolt range: M76 - M90\nCapacity: 193 ton\n",null,"No",null,0,null,null,0]
[524,"Impact socket set ","Tools","Section 42 Workshop",1,"3/4\" sizes 17, 19, 21, 22, 24, 26, 27, 29, 30, 32, 35, 36, 38 up to 80mm, with drive extention bar",null,"No",{"v":4417,"d":"4,417.00"},{"v":4417,"d":"4,417.00"},null,{"v":4417,"d":"4,417.00"},{"v":4417,"d":"4,417.00"}]
[525,"Impact socket set ","Tools","Batch Plant Workshop",1,"3/4\" sizes 17, 19, 21, 22, 24, 26, 27, 29, 30, 32, 35, 36, 38 up to 80mm, with drive extention bar",null,"No",{"v":4417,"d":"4,417.00"},{"v":4417,"d":"4,417.00"},null,{"v":4417,"d":"4,417.00"},{"v":4417,"d":"4,417.00"}]
[526,"Impact Wrench ","Tools","Section 42 Workshop",1,"Maximum Tightening torque: 360Nm. Tip Style: 1/2 inch Square Drive Input Power: 480 Watts Amperage: 4.2 Amps No-Load Speed (RPM): 1,900/min. Impact rate (IPM): 2,100/min. Switch Type: Rocker",null,"No",{"v":8450,"d":"8,450.00"},{"v":8450,"d":"8,450.00"},null,{"v":8450,"d":"8,450.00"},{"v":8450,"d":"8,450.00"}]
[527,"Impact Wrench ","Tools","Batch Plant Workshop",1,"Maximum Tightening torque: 360Nm. Tip Style: 1/2 inch Square Drive Input Power: 480 Watts Amperage: 4.2 Amps No-Load Speed (RPM): 1,900/min. Impact rate (IPM): 2,100/min. Switch Type: Rocker",null,"No",{"v":8450,"d":"8,450.00"},{"v":8450,"d":"8,450.00"},null,{"v":8450,"d":"8,450.00"},{"$f":"L534*E534","v":{"v":8450,"d":"8,450.00"}}]
[528,"Impact Wrench - air - Heavy duty","Tools","Section 42 Workshop",1,"Square drive 3/4\", torque range 200 -1600Nm, Air pressure 600kPa",null,"No",{"v":9999,"d":"9,999.00"},{"v":9999,"d":"9,999.00"},null,{"v":9999,"d":"9,999.00"},{"v":9999,"d":"9,999.00"}]
[529,"Impact Wrench - air - Heavy duty","Tools","Batch Plant Workshop",1,"Square drive 3/4\", torque range 200 -1600Nm, Air pressure 600kPa",null,"No",{"v":9999,"d":"9,999.00"},{"v":9999,"d":"9,999.00"},null,{"v":9999,"d":"9,999.00"},{"v":9999,"d":"9,999.00"}]
[530,"Impact Wrench - air General Duty","Tools","Section 42 Workshop",1,"Square drive 1/2\", torque range 180 -400Nm, Air pressure 600kPa",null,"No",{"v":4045,"d":"4,045.00"},{"v":4045,"d":"4,045.00"},null,{"v":4045,"d":"4,045.00"},{"v":4045,"d":"4,045.00"}]
[531,"Impact Wrench - air General Duty","Tools","Batch Plant Workshop",1,"Square drive 1/2\", torque range 180 -400Nm, Air pressure 600kPa",null,"No",{"v":4045,"d":"4,045.00"},{"v":4045,"d":"4,045.00"},null,{"v":4045,"d":"4,045.00"},{"v":4045,"d":"4,045.00"}]
[532,"industrial drill chuck arbor no 2 morse taper","Tools","Section 42 Workshop",6,"Length: 112 mm\nMT3 Spindle to MT2 Arbor Morse taper adapter",null,"No",null,0,null,null,0]
[533,"industrial drill chuck arbor no 2 morse taper","Tools","Batch Plant Workshop",2,"Length: 112 mm\nMT3 Spindle to MT2 Arbor Morse taper adapter",null,"No",null,0,null,null,0]
[534,"industrial keyless drill chuck 13mm capacity","Tools","Section 42 Workshop",6,"Self tightening\nDiameter: 33 mm\nTotal length: 70 mm\nMount: 33JT",null,"No",null,0,null,null,0]
[535,"industrial keyless drill chuck 13mm capacity","Tools","Batch Plant Workshop",3,"Self tightening\nDiameter: 33 mm\nTotal length: 70 mm\nMount: 33JT",null,"No",null,0,null,null,0]
[536,"inserted pin punch set 6 pice","Tools","Section 42 Workshop",4,null,null,"No",null,0,null,null,0]
[537,"inserted pin punch set 6 pice","Tools","Batch Plant Workshop",4,null,null,"No",null,0,null,null,0]
[538,"insulated non sparking Set of tube Spanner","Tools","Section 18 Auxiliary Bay Unit 1",1,"Kd26R tubular Box Spanner Set. In tubular steel, harden.chrome plate, with stepped tommy bar, chrome Vanadium steel 31CrV3, hardened.chrome plated.Insulated safety screwdrivers up to 1000V / 1500V","GEDORE","No",null,0,null,null,0]
[539,"insulated non sparking Shifting Spanner 150mm","Tools","Section 18 Auxiliary Bay Unit 1",1,"Chrome Vanadium steel - 31CrV3.swedish pattern - Jaw set at 15 degrees .blackened finish. Ground head.Insulated safety screwdrivers up to 1000V / 1500V","GEDORE","No",null,0,null,null,0]
[540,"insulated non sparking Shifting Spanner 200mm","Tools","Section 18 Auxiliary Bay Unit 1",1,"Chrome Vanadium steel - 31CrV3.swedish pattern - Jaw set at 15 degrees .blackened finish. Ground head.Insulated safety screwdrivers up to 1000V / 1500V","GEDORE","No",null,0,null,null,0]
[541,"insulated non sparking Shifting Spanner 250mm","Tools","Section 18 Auxiliary Bay Unit 1",1,"Chrome Vanadium steel - 31CrV3.swedish pattern - Jaw set at 15 degrees .blackened finish. Ground head.Insulated safety screwdrivers up to 1000V / 1500V","GEDORE","No",null,0,null,null,0]
[542,"insulated non sparking Torque wrench","Tools","Section 18 Auxiliary Bay Unit 1",1,"Torque Range 50 - 225 Nm,1/2 in sqaure drive.Insulated safety screwdrivers up to 1000V / 1500V","GEDORE","No",null,0,null,null,0]
[543,"insulated non sparking Torque wrench","Tools","Section 18 Auxiliary Bay Unit 1",1,"Torque Range 12 - 68 Nm,1/2 in sqaure drive.Insulated safety screwdrivers up to 1000V / 1500V","GEDORE","No",null,0,null,null,0]
[544,"Insulation and continuity tester with leads","Tools","16 M Level Workshop",1,"1000 MΩ 250 - 1 kV Domestic and industrial systems, site maintenance and service departments, transformers, motors, generators, switchgear, panel building, domestic appliances, power tools etc., fixed electrical wiring systems ","MEGGER","No",null,0,null,null,0]
[545,"Insulation and continuity tester with leads","Tools","Section 19 Auxilliary Bay Unit 2",2,"1000 MΩ 250V - 1kV Domestic and industrial systems, site maintenance and service departments, transformers, motors, generators, switchgear, panel building, domestic appliances, power tools etc., fixed electrical wiring systems ","FLUKE","No",null,0,null,{"$f":"12290/1.15","v":{"v":10686.956521739132,"d":"10,686.96"}},{"v":21373.913043478264,"d":"21,373.91"}]
[546,"Insulation and continuity tester with leads","Tools","Section 42: Workshop and Stores building",2,"1000 MΩ 250V - 1kV Domestic and industrial systems, site maintenance and service departments, transformers, motors, generators, switchgear, panel building, domestic appliances, power tools etc., fixed electrical wiring systems ","FLUKE","No",null,0,null,{"$f":"10290/1.15","v":{"v":8947.826086956522,"d":"8,947.83"}},{"v":17895.652173913044,"d":"17,895.65"}]
[547,"Insulation and continuity tester with leads","Tools",null,1,"1000 MΩ 250V - 1kV Domestic and industrial systems, site maintenance and service departments, transformers, motors, generators, switchgear, panel building, domestic appliances, power tools etc., fixed electrical wiring systems ","FLUKE","No",null,0,null,{"$f":"12290/1.15","v":{"v":10686.956521739132,"d":"10,686.96"}},{"v":10686.956521739132,"d":"10,686.96"}]
[548,"Insulation and continuity tester with leads","Tools",null,1,"1000 MΩ 250 - 1 kV Domestic and industrial systems, site maintenance and service departments, transformers, motors, generators, switchgear, panel building, domestic appliances, power tools etc., fixed electrical wiring systems ","Off the shelf ","No",null,0,null,null,0]
[549,"Inverter welding machines","Tools","Welding Workshop",4,"250Amp Miller WELDING MACHINE,BIG BLUE 400X,IDEAIL FOR PIPELINE CONTRACTORS,RENTAL AOR FLEET MANAGERS,SIMPLE TO SET CONTROLS,TAILORED ARC CONTROL (DIG),AUTO REMOTE SENSE (ARS),LIFT ARC STARTS,LOW OCV,VAULT-ULTIMATE CONTROL BOARD RELIABILITY,",null,"No",null,0,null,null,0]
[550,"IR & Contact Thermometer","Tools","Section 42 Workshop",5,"Temperature range: -40 to 650°C\nAccuracy: 1%\nResponse time: <500ms\nLaser sighting: Single point laser < 1mw class2\nDistance to spot: 30:1\nProbe(included): Type K bead thermocoupe\nEmissivity Adjustment: Material tablr & numerically from 0.01 to 1.00\nStorage memories: 20 measurements\nHi/Lo Alarms: Audible & Visual (2 colour flashing backlight)\nLCD: Dot matrix\nPower Requirements: 2 x AA/LR6 batteries\nDimensions & weight: 254 mm x 191 mm - 965g\n",null,"No",null,0,null,null,0]
[551,"IR & Contact Thermometer","Tools","Batch Plant Workshop",5,"Temperature range: -40 to 650°C\nAccuracy: 1%\nResponse time: <500ms\nLaser sighting: Single point laser < 1mw class2\nDistance to spot: 30:1\nProbe(included): Type K bead thermocoupe\nEmissivity Adjustment: Material tablr & numerically from 0.01 to 1.00\nStorage memories: 20 measurements\nHi/Lo Alarms: Audible & Visual (2 colour flashing backlight)\nLCD: Dot matrix\nPower Requirements: 2 x AA/LR6 batteries\nDimensions & weight: 254 mm x 191 mm - 965g\n",null,"No",null,0,null,null,0]
[552,"IR Thermometer","Tools","Section 42 Workshop",3,"Temperature range: -40 to 650°C\nAccuracy: 1%\nResponse time: <500ms\nLaser sighting: Single point laser < 1mw class2\nDistance to spot: 30:1\nProbe(included): Type K bead thermocoupe\nEmissivity Adjustment: Material tablr & numerically from 0.01 to 1.00\nStorage memories: 20 measurements\nHi/Lo Alarms: Audible & Visual (2 colour flashing backlight)\nLCD: Dot matrix\nPower Requirements: 2 x AA/LR6 batteries\nDimensions & weight: 254 mm x 191 mm - 965g\n","FLUKE","No",null,0,null,{"$f":"3150/1.15","v":{"v":2739.130434782609,"d":"2,739.13"}},{"v":8217.391304347828,"d":"8,217.39"}]
[553,"IR Thermometer","Tools","Batch Plant Workshop",2,"Temperature range: -40 to 650°C\nAccuracy: 1%\nResponse time: <500ms\nLaser sighting: Single point laser < 1mw class2\nDistance to spot: 30:1\nProbe(included): Type K bead thermocoupe\nEmissivity Adjustment: Material tablr & numerically from 0.01 to 1.00\nStorage memories: 20 measurements\nHi/Lo Alarms: Audible & Visual (2 colour flashing backlight)\nLCD: Dot matrix\nPower Requirements: 2 x AA/LR6 batteries\nDimensions & weight: 254 mm x 191 mm - 965g\n","FLUKE","No",null,0,null,{"$f":"9490","v":{"v":9490,"d":"9,490.00"}},{"v":18980,"d":"18,980.00"}]
[554,"jenny caliper","Tools","Section 42 Workshop",2,"Outside spring joint caliper 200mm",null,"No",null,0,null,null,0]
[555,"jenny caliper","Tools","Batch Plant Workshop",2,"Outside spring joint caliper 200mm",null,"No",null,0,null,null,0]
[556,"Jig Clamp horizontal ","Tools",null,10,"Horizontal 500 1bs",null,"No",null,0,null,null,0]
[557,"Jig clamp sliding","Tools",null,10,"Sliding 300 1bs Force",null,"No",null,0,null,null,0]
[558,"Jig clamp Vertical","Tools",null,10,"Vertical 2001bs force",null,"No",null,0,null,null,0]
[559,"Jigsaw","Tools",null,12,"JIG SAW STROKE LENGTH 26MM ORBITAL ACTION BARREL BODY VAR. 720W. 800 -2800 strokes / minute","MIKITA","No",null,0,null,null,0]
[560,"Jofra","Tools","Section 18 Auxiliary Bay Unit 1",1,"Jofra 650SE Dry Block Calibrator",null,"No",null,0,null,{"v":289.9,"d":"289.90"},{"v":289.9,"d":"289.90"}]
[561,"Junior Hacksaw","Tools",null,12,null,"GEDORE","No",null,0,null,null,0]
[562,"Keyway cutting set","Tools","Section 42 Workshop",1,"No.80 Metric Set\nKeway sizes:10,12,14\nBore sizes: 32,34,35,36,38,40,44,45,46,48,50",null,"No",null,{"$f":"I569*E569","v":0},null,null,0]
[563,"Keyway cutting set","Tools","Batch Plant Workshop",1,"No.80 Metric Set\nKeway sizes:10,12,14\nBore sizes: 32,34,35,36,38,40,44,45,46,48,50",null,"No",null,0,null,null,{"$f":"L567*E570","v":{"v":289.9,"d":"289.90"}}]
[564,"Label Maker",null,null,3,"Electronic label maker, handheld labelling machine. PC connectability to import data logos and images, ThermalTransfer Printing on Dl plastic tape 6. 9, 12.19mm x 7m tape cassettes. ABC keyboard for easy navigation, prints 529 characters and upto 5-lines,","DYMO LABELPOINT 350","No",null,0,null,{"v":1350,"d":"1,350.00"},{"v":4050,"d":"4,050.00"}]
[565,"Label Maker","Tools","Section 42 Workshop",1,"Electronic label maker, handheld labelling machine. PC connectability to import data logos and images, ThermalTransfer Printing on Dl plastic tape 6. 9, 12.19mm x 7m tape cassettes. ABC keyboard for easy navigation, prints 529 characters and upto 5-lines,",null,"No",null,0,null,{"v":1350,"d":"1,350.00"},{"v":1350,"d":"1,350.00"}]
[566,"Label Maker",null,"Mill Maintenance Workshop",1,"Electronic label maker, handheld labelling machine. PC connectability to import data logos and images, ThermalTransfer Printing on Dl plastic tape 6. 9, 12.19mm x 7m tape cassettes. ABC keyboard for easy navigation, prints 529 characters and upto 5-lines,",null,"No",null,0,null,null,0]
[567,"Label Maker","Tools","Batch Plant Workshop",1,"Electronic label maker, handheld labelling machine. PC connectability to import data logos and images, ThermalTransfer Printing on Dl plastic tape 6. 9, 12.19mm x 7m tape cassettes. ABC keyboard for easy navigation, prints 529 characters and upto 5-lines,",null,"No",null,0,null,{"v":1350,"d":"1,350.00"},{"v":1350,"d":"1,350.00"}]
[568,"Ladder 2.4m","Tools",null,8,"Ladder, 2.4 m, heavy duty, Working load 135 kg, High shear strenght rivits, non-slip & non-scuff feet, rust, rot and splinter proof & heavy duty locking bars","ISAACSON LADDERS","No",null,0,null,{"v":1999.5,"d":"1,999.50"},{"v":15996,"d":"15,996.00"}]
[569,"Ladder 2.4m","Tools","Section 42 Workshop",2,"Ladder, 2.4 m, heavy duty, Working load 135 kg, High shear strenght rivits, non-slip & non-scuff feet, rust, rot and splinter proof & heavy duty locking bars",null,"No",null,0,null,{"v":1999.5,"d":"1,999.50"},{"v":3999,"d":"3,999.00"}]
[570,"Ladder 2.4m","Tools","ERI Turbo Gen Services (TGS) Workshop 12",1,"Ladder, 2.4 m, heavy duty, Working load 135 kg, High shear strenght rivits, non-slip & non-scuff feet, rust, rot and splinter proof & heavy duty locking bars",null,"No",null,0,null,{"v":1999.5,"d":"1,999.50"},{"v":1999.5,"d":"1,999.50"}]
[571,"Ladder 2.4m","Tools","Section 42 Workshop",1,"Ladder, 2.4 m, heavy duty, Working load 135 kg, High shear strenght rivits, non-slip & non-scuff feet, rust, rot and splinter proof & heavy duty locking bars",null,"No",null,0,null,{"v":1399.5,"d":"1,399.50"},{"v":1399.5,"d":"1,399.50"}]
[572,"Ladder 2.4m","Tools","Mill Maintenance Workshop",1,"Ladder, 2.4 m, heavy duty, Working load 135 kg, High shear strenght rivits, non-slip & non-scuff feet, rust, rot and splinter proof & heavy duty locking bars",null,"No",null,0,null,{"v":1399.5,"d":"1,399.50"},{"v":1399.5,"d":"1,399.50"}]
[573,"Ladder 2.4m","Tools","Batch Plant Workshop",2,"Ladder, 2.4 m, heavy duty, Working load 135 kg, High shear strenght rivits, non-slip & non-scuff feet, rust, rot and splinter proof & heavy duty locking bars",null,"No",null,0,null,{"v":1399.5,"d":"1,399.50"},{"v":2799,"d":"2,799.00"}]
[574,"Ladder 4.8m","Tools",null,6,"Ladder, 4.8 m, heavy duty, Working load 135 kg, High shear strenght rivits, non-slip & non-scuff feet, rust, rot and splinter proof & heavy duty locking bars","ISAACSON LADDERS","No",null,0,null,{"v":1653.5,"d":"1,653.50"},{"v":9921,"d":"9,921.00"}]
[575,"Ladder 4.8m","Tools","Section 42 Workshop",2,"Ladder, 4.8 m, heavy duty, Working load 135 kg, High shear strenght rivits, non-slip & non-scuff feet, rust, rot and splinter proof & heavy duty locking bars",null,"No",null,0,null,{"v":1653.5,"d":"1,653.50"},{"v":3307,"d":"3,307.00"}]
[576,"Ladder 4.8m","Tools","ERI Turbo Gen Services (TGS) Workshop 13",1,"Ladder, 4.8 m, heavy duty, Working load 135 kg, High shear strenght rivits, non-slip & non-scuff feet, rust, rot and splinter proof & heavy duty locking bars",null,"No",null,0,null,{"v":1653.5,"d":"1,653.50"},{"v":1653.5,"d":"1,653.50"}]
[577,"Ladder 4.8m","Tools","Section 42 Workshop",1,"Ladder, 4.8 m, heavy duty, Working load 135 kg, High shear strenght rivits, non-slip & non-scuff feet, rust, rot and splinter proof & heavy duty locking bars",null,"No",null,0,null,{"v":1653.5,"d":"1,653.50"},{"v":1653.5,"d":"1,653.50"}]
[578,"Ladder 4.8m","Tools","Batch Plant Workshop",1,"Ladder, 4.8 m, heavy duty, Working load 135 kg, High shear strenght rivits, non-slip & non-scuff feet, rust, rot and splinter proof & heavy duty locking bars",null,"No",null,0,null,{"v":1653.5,"d":"1,653.50"},{"v":1653.5,"d":"1,653.50"}]
[579,"Ladder 9m","Tools","Section 42 Workshop",2,"Heavy duty extension Ladder, closed hieght 4.8m and extended hieght 9m. Non-slip PVC feet. Pole rung and safety chain fitted",null,"No",null,0,null,{"v":3299,"d":"3,299.00"},{"v":6598,"d":"6,598.00"}]
[580,"Ladder 9m","Tools","ERI Turbo Gen Services (TGS) Workshop 14",1,"Heavy duty extension Ladder, closed hieght 4.8m and extended hieght 9m. Non-slip PVC feet. Pole rung and safety chain fitted",null,"No",null,0,null,{"v":3299,"d":"3,299.00"},{"v":3299,"d":"3,299.00"}]
[581,"Ladder 9m","Tools","Section 42 Workshop",1,"Heavy duty extension Ladder, closed hieght 4.8m and extended hieght 9m. Non-slip PVC feet. Pole rung and safety chain fitted",null,"No",null,0,null,{"v":3299,"d":"3,299.00"},{"v":3299,"d":"3,299.00"}]
[582,"Ladder 9m","Tools","Batch Plant Workshop",1,"Heavy duty extension Ladder, closed hieght 4.8m and extended hieght 9m. Non-slip PVC feet. Pole rung and safety chain fitted",null,"No",null,0,null,{"v":3299,"d":"3,299.00"},{"v":3299,"d":"3,299.00"}]
[583,"LAP MASTER","Tools","Section 42 Workshop",4,"Floor standing machine, Model Type: 40, Condition Rings: 3,  Ring ID : 465mm, Plate Diameter: 1016, Working Height: 965mm, Standard RPM: 60, RPM Range: 0 - 70, Drive Motor Lapper: 5.6kW, Drive Motor polisher: 7.5kW,  L: 1072mm, W: 1397mm, H:1473mm, , shipping weight: 1851kg",null,"No",null,0,null,null,0]
[584,"Laser alignment system","Tools","Section 42 Workshop",2,"Specifications: System Programs - Horizontal shaft alignment, Softfoot, Measurement distance, Up to 33 feet [10 m] Temperature range 32–122°F [0–50°C] Relative humidity 10–95% Max.displayed error  +1% +1 digitCarrying case WxHxD: 16\"x12\"x4\" [420x320x110 m",null,"No",null,0,null,null,0]
[585,"Laser alignment system","Tools","Section 42 Workshop",1,"Specifications: System Programs - Horizontal shaft alignment, Softfoot, Measurement distance, Up to 33 feet [10 m] Temperature range 32–122°F [0–50°C] Relative humidity 10–95% Max.displayed error  +1% +1 digitCarrying case WxHxD: 16\"x12\"x4\" [420x320x110 m",null,"No",null,0,null,null,0]
[586,"Laser alignment system","Tools","Batch Plant Workshop",1,"Specifications: System Programs - Horizontal shaft alignment, Softfoot, Measurement distance, Up to 33 feet [10 m] Temperature range 32–122°F [0–50°C] Relative humidity 10–95% Max.displayed error  +1% +1 digitCarrying case WxHxD: 16\"x12\"x4\" [420x320x110 m",null,"No",null,0,null,null,0]
[587,"Laser Cutter","Tools","Welding Workshop",2,"Bystar 3015, 4.4kW",null,"No",null,0,null,null,0]
[588,"Lead light","Tools",null,12,"220Vac with 20m cable",null,"No",null,0,null,null,0]
[589,"Lead light","Tools","Section 42 Workshop",15,"220Vac with 20m cable, LEAD LIGHT,USC0160,220VOLT,C/W 5M CABLE",null,"No",null,0,null,null,0]
[590,"Lead light","Tools","ERI Turbo Gen Services (TGS) Workshop 13",2,"220Vac with 20m cable, LEAD LIGHT,USC0160,220VOLT,C/W 5M CABLE",null,"No",null,0,null,null,0]
[591,"Lead light","Tools","ERI Turbo Gen Services (TGS) Workshop 15",2,"220Vac with 20m cable, LEAD LIGHT,USC0160,220VOLT,C/W 5M CABLE",null,"No",null,0,null,null,{"$f":"L598*E598","v":0}]
[592,"Lead light","Tools","Section 42 Workshop",2,"220Vac with 20m cable, LEAD LIGHT,USC0160,220VOLT,C/W 5M CABLE",null,"No",null,0,null,null,0]
[593,"Lead light","Tools","Mill Maintenance Workshop",2,"220Vac with 20m cable, LEAD LIGHT,USC0160,220VOLT,C/W 5M CABLE",null,"No",null,0,null,null,0]
[594,"Lead light","Tools","Welding Workshop",2,"220Vac with 20m cable, LEAD LIGHT,USC0160,220VOLT,C/W 5M CABLE",null,"No",null,0,null,null,0]
[595,"Lead light","Tools","Batch Plant Workshop",15,"220Vac with 20m cable, LEAD LIGHT,USC0160,220VOLT,C/W 5M CABLE",null,"No",null,0,null,null,0]
[596,"Letter set punches","Tools",null,10,"6mm print height. 27 letter. To label finished parts such sign, tools etc. Made from hardened steel, with harden handle and tempered striking head in plastic set",null,"No",null,0,null,null,0]
[597,"Links & Reducers, Low Clearance Predator Series","Tools","Section 42 Workshop",1,"39 024 Nm Max Torque, 700bar",null,"No",null,0,null,null,0]
[598,"Links & Reducers, Low Clearance Predator Series","Tools","Section 42 Workshop",1,"39 024 Nm Max Torque, 700bar",null,"No",null,0,null,null,0]
[599,"Links & Reducers, Low Clearance Predator Series","Tools","Batch Plant Workshop",1,"39 024 Nm Max Torque, 700bar",null,"No",null,0,null,null,0]
[600,"Links & Reducers, Low Clearance Predator Series","Tools","Batch Plant Workshop",1,"39 024 Nm Max Torque, 700bar",null,"No",null,0,null,null,0]
[601,"Locking Collar Cylinder RC Series","Tools","Section 42 Workshop",2,"1220 tons Cylinder Cap, 250mm Stroke ",null,"No",null,0,null,null,0]
[602,"Locking Collar Cylinder RC Series","Tools","Section 42 Workshop",2,"962 tons Cylinder Cap, 150mm Stroke ",null,"No",null,0,null,null,0]
[603,"locking tape measure 10m","Tools","Section 42 Workshop",4,null,"Stanley","No",null,0,null,290.43,{"v":1161.72,"d":"1,161.72"}]
[604,"locking tape measure 10m","Tools","Batch Plant Workshop",4,null,"Stanley","No",null,0,null,290.43,{"v":1161.72,"d":"1,161.72"}]
[605,"Long jaw caliper 0(20) - 1000mm","Tools","Section 42 Workshop",2,"With inside & outside measurement scale\nAccuracy +/- 0.15mm\nWith fine adjustment","Mitutoyo","No",null,0,null,null,0]
[606,"Long jaw caliper 0(20) - 1000mm","Tools","Batch Plant Workshop",1,"With inside & outside measurement scale\nAccuracy +/- 0.15mm\nWith fine adjustment","Mitutoyo","No",null,0,null,null,0]
[607,"Magnetic Base Drill","Tools","Section 42 Workshop",2,"Lightweight at 14.6kg - ideal for use on site on in a workshop\nMagnet Footprint of 165mm x 80mm\n750kgs magnetic adhesion\nHeight 510mm / Width 180mm Exc. bottle / Length 265mm\nCuts holes up to 40mm diameter x 50mm deep\n19.05mm (3/4\") Spindle Bore\n1100 watt motor - 110V full load 11 amps / 230V full load 5 amps\n350 - 600 rpm no load\nFeed capstan may be reversed for easy positioning in tight areas\nVariable speed - the right speed for the right diameter\nAutomatic coolant bottle\nSupplied with chuck adaptor and 13mm twist drill chuck\nSupplied with secure carrying case\nClutch and electronic overload Safety Features\n\n",null,"No",null,0,null,null,0]
[608,"Magnetic Base Drill","Tools","Batch Plant Workshop",1,"Lightweight at 14.6kg - ideal for use on site on in a workshop\nMagnet Footprint of 165mm x 80mm\n750kgs magnetic adhesion\nHeight 510mm / Width 180mm Exc. bottle / Length 265mm\nCuts holes up to 40mm diameter x 50mm deep\n19.05mm (3/4\") Spindle Bore\n1100 watt motor - 110V full load 11 amps / 230V full load 5 amps\n350 - 600 rpm no load\nFeed capstan may be reversed for easy positioning in tight areas\nVariable speed - the right speed for the right diameter\nAutomatic coolant bottle\nSupplied with chuck adaptor and 13mm twist drill chuck\nSupplied with secure carrying case\nClutch and electronic overload Safety Features\n\n",null,"No",null,0,null,null,0]
[609,"Manifold gauge set","Tools",null,3,"R-410A side wheel manifold with gauges and hoses ","Off the shelf ","No",null,0,null,{"v":1984.4,"d":"1,984.40"},{"v":5953.200000000001,"d":"5,953.20"}]
[610,"Mechanical tension meter","Tools","Section 42 Workshop",2,"• Includes flexible type sensor \n• 40 Memory Registers for Belt Constants\n• Max Frequency of 5000 Hz\n• Auto Microphone Gain Control\n• Variable Frequency Range Filters","Gates","No",null,0,null,null,0]
[611,"Mechanical tension meter","Tools","Batch Plant Workshop",1,"• Includes flexible type sensor \n• 40 Memory Registers for Belt Constants\n• Max Frequency of 5000 Hz\n• Auto Microphone Gain Control\n• Variable Frequency Range Filters","Gates","No",null,0,null,null,0]
[612,"Metric Tap and Die Set in Wooden Box\n\n","Tools",null,10,"6 - 24 mm coarse, M6, M8, M10, M12, M14, M16, M18, M20, M22, M24 - Each set contains 2 Taps per size (Plug and Bottom Lead) with the corresponding Die, appropriate Tapwrench and Die Stock.","GEDORE","No",null,0,null,null,0]
[613,"Metric Tap and Die Set in Wooden Box\n\n","Tools","Section 42 Workshop",4,"6 - 24 mm coarse, M6, M8, M10, M12, M14, M16, M18, M20, M22, M24 - Each set contains 2 Taps per size (Plug and Bottom Lead) with the corresponding Die, appropriate Tapwrench and Die Stock. (BSW, BSF, UNC, UNF up to 1inch, BSPF, BSPT up to 2 inch & Metruic",null,"No",null,0,null,null,0]
[614,"Metric Tap and Die Set in Wooden Box\n\n","Tools","ERI Turbo Gen Services (TGS) Workshop 14",2,"6 - 24 mm coarse, M6, M8, M10, M12, M14, M16, M18, M20, M22, M24 - Each set contains 2 Taps per size (Plug and Bottom Lead) with the corresponding Die, appropriate Tapwrench and Die Stock.",null,"No",null,0,null,null,0]
[615,"Metric Tap and Die Set in Wooden Box\n\n","Tools","Section 42 Workshop",2,"6 - 24 mm coarse, M6, M8, M10, M12, M14, M16, M18, M20, M22, M24 - Each set contains 2 Taps per size (Plug and Bottom Lead) with the corresponding Die, appropriate Tapwrench and Die Stock.",null,"No",null,0,null,null,0]
[616,"Metric Tap and Die Set in Wooden Box\n\n","Tools","Mill Maintenance Workshop",2,"6 - 24 mm coarse, M6, M8, M10, M12, M14, M16, M18, M20, M22, M24 - Each set contains 2 Taps per size (Plug and Bottom Lead) with the corresponding Die, appropriate Tapwrench and Die Stock.",null,"No",null,0,null,null,0]
[617,"Metric Tap and Die Set in Wooden Box\n\n","Tools","Batch Plant Workshop",4,"6 - 24 mm coarse, M6, M8, M10, M12, M14, M16, M18, M20, M22, M24 - Each set contains 2 Taps per size (Plug and Bottom Lead) with the corresponding Die, appropriate Tapwrench and Die Stock. (BSW, BSF, UNC, UNF up to 1inch, BSPF, BSPT up to 2 inch & Metruic",null,"No",null,0,null,null,0]
[618,"Microwave leakage tester","Tools","Section 19 Auxilliary Bay Unit 2",2,"Supply: 9V alkaline battey. Warning Value: 5mW/cm2. Frequency of Operation: Calibrated to 2450MHz. Accuracy: ± 1d","FLUKE","No",null,0,null,{"v":4650,"d":"4,650.00"},{"v":9300,"d":"9,300.00"}]
[619,"Microwave leakage tester","Tools","Section 42: Workshop and Stores building",2,"Supply: 9V alkaline battey. Warning Value: 5mW/cm2. Frequency of Operation: Calibrated to 2450MHz. Accuracy: ± 1d","FLUKE","No",null,0,null,{"v":4650,"d":"4,650.00"},{"v":9300,"d":"9,300.00"}]
[620,"Microwave leakage tester","Tools",null,1,"Supply: 9V alkaline battey. Warning Value: 5mW/cm2. Frequency of Operation: Calibrated to 2450MHz. Accuracy: ± 1d","FLUKE","No",null,0,null,{"v":4650,"d":"4,650.00"},{"v":4650,"d":"4,650.00"}]
[621,"milliamp source","Tools","Section 18 Auxiliary Bay Unit 1",2,"HT ITALIA HT8051 Multifunction Process Calibrator 4-20mA / 0-10V",null,"No",null,0,null,{"v":5600,"d":"5,600.00"},{"v":11200,"d":"11,200.00"}]
[622,"modulor deburring tool universal handle and blade set /b10","Tools","Section 42 Workshop",6,null,null,"No",null,0,null,null,0]
[623,"modulor deburring tool universal handle and blade set /b10","Tools","Batch Plant Workshop",3,null,null,"No",null,0,null,null,0]
[624,"Monkey Wrench ","Tools","Section 42 Workshop",2,"Size (In.) 18\"  Jaw Opening 4 3/8\"",null,"No",null,0,null,null,0]
[625,"Monkey Wrench ","Tools","ERI Turbo Gen Services (TGS) Workshop 16",2,"Size (In.) 18\"  Jaw Opening 4 3/8\"",null,"No",null,0,null,null,0]
[626,"Monkey Wrench ","Tools","ERI Turbo Gen Services (TGS) Workshop 16",2,"Size (In.) 18\"  Jaw Opening 4 3/8\"",null,"No",null,{"$f":"I633*E633","v":0},null,null,0]
[627,"Monkey Wrench ","Tools","Section 42 Workshop",2,"Size (In.) 18\"  Jaw Opening 4 3/8\"",null,"No",null,0,null,null,0]
[628,"Monkey Wrench ","Tools","Mill Maintenance Workshop",2,"Size (In.) 18\"  Jaw Opening 4 3/8\"",null,"No",null,0,null,null,0]
[629,"Monkey Wrench ","Tools","Welding Workshop",2,"Size (In.) 18\"  Jaw Opening 4 3/8\"",null,"No",null,0,null,null,0]
[630,"Monkey Wrench ","Tools","Batch Plant Workshop",2,"Size (In.) 18\"  Jaw Opening 4 3/8\"",null,"No",null,0,null,null,0]
[631,"Monkey Wrench set ","Tools",null,8,"Size (In.) 6,8,10,12, and 18\"  Jaw Opening 4 3/8\"","GEDORE","No",null,0,null,null,0]
[632,"Multi pipe bender ","Tools","Section 18 Auxiliary Bay Unit 1",1,"All metal multi-purpose tube bender for 3/16 in., 1/4 in. 5/16 in. and 3/8 in. (4, 6, 8,10 and 12mm) O.D. tubing",null,"No",null,0,null,null,0]
[633,"Multimeter with leads","Tools","16 M Level Workshop",2,"Fluke -1000 V  True RMS Multimeter - Approved for use in Eskom","FLUKE","No",null,0,null,null,0]
[634,"Multimeter with leads","Tools","Section 19 Auxilliary Bay Unit 2",4,"Fluke -1000 V  True RMS Multimeter - Approved for use in Eskom","FLUKE","No",null,0,null,{"v":4650,"d":"4,650.00"},{"v":18600,"d":"18,600.00"}]
[635,"Multimeter with leads","Tools","Section 42: Workshop and Stores building",4,"Fluke -1000 V  True RMS Multimeter - Approved for use in Eskom","FLUKE","No",null,0,null,{"v":4650,"d":"4,650.00"},{"v":18600,"d":"18,600.00"}]
[636,"Multimeter with leads","Tools",null,2,"Fluke -1000 V  True RMS Multimeter - Approved for use in Eskom","FLUKE","No",null,0,null,{"v":4650,"d":"4,650.00"},{"v":9300,"d":"9,300.00"}]
[637,"needle file set 12 piece x 160mm","Tools","Section 42 Workshop",3,null,null,"No",null,0,null,null,0]
[638,"needle file set 12 piece x 160mm","Tools","Batch Plant Workshop",3,null,null,"No",null,0,null,null,0]
[639,"Number set punches","Tools",null,10,"6mm print height. 9 numbers. To label finished parts such sign, tools etc. Made from hardened steel, with harden handle and tempered striking head in plastic set","GEDORE","No",null,0,null,null,0]
[640,"Nut Splitters Hydraulic","Tools","Section 42 Workshop",5,"25 ton capacity",null,"No",null,0,null,null,0]
[641,"Nut Splitters Hydraulic","Tools","Batch Plant Workshop",1,"25 ton capacity",null,"No",null,0,null,null,0]
[642,"nylon faced hammer 32mm face dia","Tools","Section 42 Workshop",3,null,null,"No",null,0,null,null,0]
[643,"nylon faced hammer 32mm face dia","Tools","Batch Plant Workshop",3,null,null,"No",null,0,null,null,0]
[644,"Oblong lifting ring","Tools","Section 42 Workshop",2,"10 Ton",null,"No",null,0,null,{"v":245,"d":"245.00"},{"v":490,"d":"490.00"}]
[645,"Oblong lifting ring","Tools","Section 42 Workshop",8,"15 Ton",null,"No",null,0,null,{"v":320,"d":"320.00"},{"v":2560,"d":"2,560.00"}]
[646,"Oblong lifting ring","Tools","Section 42 Workshop",6,"20 Ton",null,"No",null,0,null,{"v":630,"d":"630.00"},{"v":3780,"d":"3,780.00"}]
[647,"Oblong lifting ring","Tools","Batch Plant Workshop",2,"10 Ton",null,"No",null,0,null,{"v":245,"d":"245.00"},{"v":490,"d":"490.00"}]
[648,"Oblong lifting ring","Tools","Batch Plant Workshop",2,"15 Ton",null,"No",null,0,null,{"v":320,"d":"320.00"},{"v":640,"d":"640.00"}]
[649,"Oblong lifting ring","Tools","Batch Plant Workshop",2,"20 Ton",null,"No",null,0,null,{"v":630,"d":"630.00"},{"v":1260,"d":"1,260.00"}]
[650,"Oil drum Pump for transformer topping","Tools",null,2,"Barrel pump suitable for 200L or 220L barrels, transfering diesel oil.",null,"No",null,0,null,null,0]
[651,"Pallet Trolley - Low profile","Tools","Section 42 Workshop",1,"Capacity (kg) 2000, Lowered fork height h1(mm) 65, Total lift height h2(mm) 160, Fork length L(mm) 1000, Width over the forks W(mm) 685, Hand operated hydraulic jack, Fork wheel B(mm) D 64",null,"No",null,0,null,null,0]
[652,"Panecake Cylinder Locking Collar  RC Series","Tools","Section 42 Workshop",2,"620 tons Cylinder Cap, 50mm Stroke ",null,"No",null,0,null,null,0]
[653,"Pedestal drilling machine - normal","Tools","Section 18 Auxiliary Bay Unit 1",2,"Drill capacity 14mm steel, 700W variable speed 450 - 4000 rpm, Depth of feed 60mm, chuck size 24mm",null,"No",null,0,null,null,0]
[654,"Pedestal grinder","Tools","Section 18 Auxiliary Bay Unit 1",2,"220v 300W, two grinding discs, speed 2950rpm, disc size 150x20#36 and 150x40#80",null,"No",null,0,null,null,0]
[655,"Pipe bender - big size up to 3\"","Tools ","Section 18 Auxiliary Bay Unit 1",2,"pipe bennder 6,8,10 and 12\" \"Wika\"",null,"No",null,0,null,null,{"$f":"L662*E662","v":0}]
[656,"Pipe Cutter ","Tools","Section 18 Auxiliary Bay Unit 1",1,"Heavy Duty Tube Cutter for 1/8\" to 1 1/8\" (4 to 28mm) O.D. Cutter includes retractable reamer/file and spare carbide cutting wheel. Carbide wheel cuts hard and soft copper, aluminum, brass, thin wall steel and stainless steel.","IMPERIAL EASTMAN","No",null,0,null,null,0]
[657,"Pipe Flange Hydraulic Spreaders","Tools","Section 42 Workshop",5,"10 ton",null,"No",null,0,null,null,0]
[658,"Pipe Flange Hydraulic Spreaders","Tools","Batch Plant Workshop",1,"10 ton",null,"No",null,0,null,null,0]
[659,"Plier - 140mm Round nose ","Tools",null,12,"Serrated gripping surfaces. Short Jaw. DIN ISO 5745",null,"No",null,0,null,null,0]
[660,"Plier - 200mm Long nose ","Tools",null,12,"Flat- round taped jaws, Straight gripping faces,serrated. induction-hardened precision cutting edges, hardness approx. 64HRC. DIN ISO 5745","GEDORE","No",null,0,null,null,0]
[661,"Pliers V Jaw  - Tongue and Groove (Waterpump Pliers)","Tools",null,8,"16 Inch,  Capacity: 4.25\" Adjustments: 8 ","GEDORE","No",null,0,null,null,0]
[662,"Pliers V Jaw  - Tongue and Groove (Waterpump Pliers)","Tools","Section 42 Workshop",2,"16 Inch,  Capacity: 4.25\" Adjustments: 8, PLIER,WATERPUMP,CURVED JAW,400MM (16\")",null,"No",null,0,null,null,0]
[663,"Pliers V Jaw  - Tongue and Groove (Waterpump Pliers)","Tools","ERI Turbo Gen Services (TGS) Workshop 17",2,"16 Inch,  Capacity: 4.25\" Adjustments: 8, PLIER,WATERPUMP,CURVED JAW,400MM (16\")",null,"No",null,0,null,null,0]
[664,"Pliers V Jaw  - Tongue and Groove (Waterpump Pliers)","Tools","ERI Turbo Gen Services (TGS) Workshop 17",2,"16 Inch,  Capacity: 4.25\" Adjustments: 8, PLIER,WATERPUMP,CURVED JAW,400MM (16\")",null,"No",null,0,null,null,0]
[665,"Pliers V Jaw  - Tongue and Groove (Waterpump Pliers)","Tools","Section 42 Workshop",2,"16 Inch,  Capacity: 4.25\" Adjustments: 8, PLIER,WATERPUMP,CURVED JAW,400MM (16\")",null,"No",null,0,null,null,0]
[666,"Pliers V Jaw  - Tongue and Groove (Waterpump Pliers)","Tools","Mill Maintenance Workshop",2,"16 Inch,  Capacity: 4.25\" Adjustments: 8, PLIER,WATERPUMP,CURVED JAW,400MM (16\")","Gedore","No",null,0,null,null,0]
[667,"Pliers V Jaw  - Tongue and Groove (Waterpump Pliers)","Tools","Welding Workshop",2,"16 Inch,  Capacity: 4.25\" Adjustments: 8, PLIER,WATERPUMP,CURVED JAW,400MM (16\")",null,"No",null,0,null,null,0]
[668,"Pliers V Jaw  - Tongue and Groove (Waterpump Pliers)","Tools","Batch Plant Workshop",2,"16 Inch,  Capacity: 4.25\" Adjustments: 8, PLIER,WATERPUMP,CURVED JAW,400MM (16\")",null,"No",null,0,null,null,0]
[669,"Pop rivet Gun","Tools",null,8,"Swivel head professional rivet tool. Ideal \nfor the tradesman and heavy use DIYer. Rivet head swivels 360° for riveting at any angle. Improved handle leverage allows for easy use. Includes nose piece wrench. Fastens metal,",null,"No",null,0,null,null,0]
[670,"Portable Compressor and 100m Hose","Tools","Section 18 Auxiliary Bay Unit 1",1,"l/MIN = 653\nCFM = 22,9\nHP = 5,5\nkW = 4\nRPM = 1400\nVOLT = 400/3/50\nBAR = 11\nLXWXH (mm) = 1575x60x1150\nKG = 157, and Braid, Compressed Air Hose\n\n",null,"No",null,0,null,null,0]
[671,"Portable cordless drill","Tools",null,12,"Torque: 28 Nm/10 Nm, Drill diameter in: Steel: 16 mm/8 mm \n Soft wood: 40 mm/25 mm,Idle revolution: 0 - 900 / 0 - 2.600 /min ",null,"No",null,0,null,null,0]
[672,"Portable High Tonnage Jacks","Tools","Section 42 Workshop",1,"Jack\n100 ton RR 37\" Ret, Elect\nStroke: 686mm\nRetracted Height: 940mm",null,"No",null,0,null,null,0]
[673,"Portable High Tonnage Jacks","Tools","Batch Plant Workshop",1,"Jack\n100 ton RR 37\" Ret, Elect\nStroke: 686mm\nRetracted Height: 940mm",null,"No",null,0,null,null,0]
[674,"Pressure calibrator 0-20 bar","Tools","Section 18 Auxiliary Bay Unit 1",2,"Range 0 - 2000 kPa  \"Wika\"","Wika","No",null,0,null,{"$f":"5943/1.15","v":{"v":5167.826086956522,"d":"5,167.83"}},{"v":10335.652173913044,"d":"10,335.65"}]
[675,"protractor type depth and angle gauge","Tools","Section 42 Workshop",2,null,null,"No",null,0,null,null,0]
[676,"protractor type depth and angle gauge","Tools","Batch Plant Workshop",2,null,null,"No",null,0,null,null,0]
[677,"Pull lift 1.5 ton","Tools","Section 42 Workshop",2,"Lever hoist - Capacity (tons) 1.5, Standard Lift (m) 1.5, Net Weight (kg) 9.7, Minimum Distance Between Hooks (mm) 335, Pull on lever to Lift Full Load (kg) 18, Chain Thickness (mm) 7.1",null,"No",null,0,null,{"v":1655,"d":"1,655.00"},{"v":3310,"d":"3,310.00"}]
[678,"Pull lift 1.5 ton","Tools","Section 42 Workshop",2,"Lever hoist - Capacity (tons) 1.5, Standard Lift (m) 1.5, Net Weight (kg) 9.7, Minimum Distance Between Hooks (mm) 335, Pull on lever to Lift Full Load (kg) 18, Chain Thickness (mm) 7.1",null,"No",null,0,null,{"v":1655,"d":"1,655.00"},{"v":3310,"d":"3,310.00"}]
[679,"Pull lift 1.5 ton","Tools","Batch Plant Workshop",1,"Lever hoist - Capacity (tons) 1.5, Standard Lift (m) 1.5, Net Weight (kg) 9.7, Minimum Distance Between Hooks (mm) 335, Pull on lever to Lift Full Load (kg) 18, Chain Thickness (mm) 7.1",null,"No",null,0,null,{"v":1655,"d":"1,655.00"},{"v":1655,"d":"1,655.00"}]
[680,"Pull lift 3 ton","Tools","Section 42 Workshop",4,"Lever hoist - Capacity (tons) 3, Standard Lift (m) 1.5, Net Weight (kg) 17.5, Minimum Distance Between Hooks (mm) 550, Pull on lever to Lift Full Load (kg) 39, Chain Thickness (mm) 9",null,"No",null,0,null,{"v":1911.5,"d":"1,911.50"},{"v":7646,"d":"7,646.00"}]
[681,"Pull lift 3 ton","Tools","Batch Plant Workshop",1,"Lever hoist - Capacity (tons) 3, Standard Lift (m) 1.5, Net Weight (kg) 17.5, Minimum Distance Between Hooks (mm) 550, Pull on lever to Lift Full Load (kg) 39, Chain Thickness (mm) 9",null,"No",null,0,null,{"v":1911.5,"d":"1,911.50"},{"v":1911.5,"d":"1,911.50"}]
[682,"Pull lift 6 ton","Tools","Section 42 Workshop",2,"Lever hoist - Capacity (tons) 6, Standard Lift (m) 1.5, Net Weight (kg) 26.7, Minimum Distance Between Hooks (mm) 550, Pull on lever to Lift Full Load (kg) 39, Chain Thickness (mm) 9",null,"No",null,0,null,{"v":2339,"d":"2,339.00"},{"v":4678,"d":"4,678.00"}]
[683,"Pull lift 6 ton","Tools","Section 42 Workshop",2,"Lever hoist - Capacity (tons) 6, Standard Lift (m) 1.5, Net Weight (kg) 26.7, Minimum Distance Between Hooks (mm) 550, Pull on lever to Lift Full Load (kg) 39, Chain Thickness (mm) 9",null,"No",null,0,null,{"v":2339,"d":"2,339.00"},{"v":4678,"d":"4,678.00"}]
[684,"Pull lift 6 ton","Tools","Batch Plant Workshop",1,"Lever hoist - Capacity (tons) 6, Standard Lift (m) 1.5, Net Weight (kg) 26.7, Minimum Distance Between Hooks (mm) 550, Pull on lever to Lift Full Load (kg) 39, Chain Thickness (mm) 9",null,"No",null,0,null,{"v":2339,"d":"2,339.00"},{"v":2339,"d":"2,339.00"}]
[685,"Pull lift 750Kg","Tools","Section 42 Workshop",6,"Lever hoist - Capacity (Kg) 750, Standard Lift (m) 1.5, Net Weight (kg) 9.7, Minimum Distance Between Hooks (mm) 335, Pull on lever to Lift Full Load (kg) 18, Chain Thickness (mm) 7.1",null,"No",null,0,null,{"v":828.9,"d":"828.90"},{"v":4973.4,"d":"4,973.40"}]
[686,"Pull lift 750Kg","Tools","Batch Plant Workshop",1,"Lever hoist - Capacity (Kg) 750, Standard Lift (m) 1.5, Net Weight (kg) 9.7, Minimum Distance Between Hooks (mm) 335, Pull on lever to Lift Full Load (kg) 18, Chain Thickness (mm) 7.1",null,"No",null,0,null,{"v":828.9,"d":"828.90"},{"v":828.9,"d":"828.90"}]
[687,"Pump Pliers","Tools",null,12,"Universal plier Chrome - Vanadium steel 31CrV3. Chrome plated. 7 position notch. Pinch protector. Induction hardened teeth.","GEDORE","No",null,0,null,null,0]
[688,"Rachet pipe threader","Tools","Section 42 Workshop",2,"Steel die sizes: 3/8\" - 2\"\n28 in. ratchet handle ",null,"No",null,0,null,null,0]
[689,"Rachet pipe threader","Tools","Batch Plant Workshop",1,"Steel die sizes: 3/8\" - 2\"\n28 in. ratchet handle ",null,"No",null,0,null,null,0]
[690,"Radiation dose rate monitor","Tools","Section 18 Auxiliary Bay Unit 1",2,"The dose rate range covers 6 decades from 50nSv/h to 10mSv/h.",null,"No",null,{"$f":"I697*E697","v":0},null,null,0]
[691,"Ratchet Wrench meduim","Tools",null,8,"Air conditioning ratchet wrench 9/16 & 1/2in ","Off the shelf ","No",null,0,null,null,0]
[692,"Ratchet Wrench small",null,null,8,"Refrigeration Ratchet Wrench 1/4, 3/8, 3/16 And 5/16in","Off the shelf ","No",null,0,null,null,0]
[693,"Refrigirant cylinder (Refillable gas cylinders)",null,null,6,"Empty refrigirant cylinder","Off the shelf ","No",null,0,null,{"v":600,"d":"600.00"},{"v":3600,"d":"3,600.00"}]
[694,"Resistance box","Tools","Section 18 Auxiliary Bay Unit 1",2,"Calibration / Substitution, 8 Decade-Thumb Wheel Resistance Box",null,"No",null,0,null,null,0]
[695,"retractable trimming knife 160mm","Tools","Section 42 Workshop",3,"Die cast metal body retractable\nfixed blade\nPatented wedge action blade locking design\nC/w 3 bldes stored in the handle","Stanley","No",null,0,null,{"v":150,"d":"150.00"},{"v":450,"d":"450.00"}]
[696,"retractable trimming knife 160mm","Tools","Batch Plant Workshop",3,"Die cast metal body retractable\nfixed blade\nPatented wedge action blade locking design\nC/w 3 bldes stored in the handle","Stanley","No",null,0,null,{"v":150,"d":"150.00"},{"v":450,"d":"450.00"}]
[697,"Ring flat spanner set - 6mm -32mm","Tools",null,14,"6mm - 32mm","GEDORE","No",null,0,null,{"$f":"(79/1.15)","v":{"v":68.69565217391305,"d":"68.70"}},{"v":961.7391304347826,"d":"961.74"}]
[698,"Ring flat spanner set - 6mm -32mm","Tools","Section 42 Workshop",8,"6mm - 32mm\nMade Acc. to DIN 837 Form B, ISO 3318, ISO 1085\nvanadium steel 31CrV3, chrome-plated","Gedore","No",null,0,null,null,0]
[699,"Ring flat spanner set - 6mm -32mm","Tools","ERI Turbo Gen Services (TGS) Workshop 18",2,"6mm - 32mm\nMade Acc. to DIN 837 Form B, ISO 3318, ISO 1085\nvanadium steel 31CrV3, chrome-plated","Gedore","No",null,0,null,null,0]
[700,"Ring flat spanner set - 6mm -32mm","Tools","Section 42 Workshop",2,"6mm - 32mm\nMade Acc. to DIN 837 Form B, ISO 3318, ISO 1085\nvanadium steel 31CrV3, chrome-plated","Gedore","No",null,0,null,null,0]
[701,"Ring flat spanner set - 6mm -32mm","Tools","Mill Maintenance Workshop",2,"6mm - 32mm\nMade Acc. to DIN 837 Form B, ISO 3318, ISO 1085\nvanadium steel 31CrV3, chrome-plated","Gedore","No",null,0,null,null,0]
[702,"Ring flat spanner set - 6mm -32mm","Tools","Welding Workshop",2,"6mm - 32mm\nMade Acc. to DIN 837 Form B, ISO 3318, ISO 1085\nvanadium steel 31CrV3, chrome-plated","Gedore","No",null,0,null,null,0]
[703,"Ring flat spanner set - 6mm -32mm","Tools","Batch Plant Workshop",4,"6mm - 32mm\nMade Acc. to DIN 837 Form B, ISO 3318, ISO 1085\nvanadium steel 31CrV3, chrome-plated","Gedore","No",null,0,null,null,0]
[704,"Ring flat spanner set - 6mm -36mm","Tools","Section 42 Workshop",12,"6mm - 32mm\nMade Acc. to DIN 837 Form B, ISO 3318, ISO 1085\nvanadium steel 31CrV3, chrome-plated","Gedore","No",null,0,null,null,0]
[705,"round aluminium oxide sharpening stone fine 100 x 13","Tools","Section 42 Workshop",3,null,null,"No",null,0,null,null,0]
[706,"round aluminium oxide sharpening stone fine 100 x 13","Tools","Batch Plant Workshop",3,null,null,"No",null,0,null,null,0]
[707,"Round file 2nd cut with handle","Tools",null,10,"250mm/8 flat 2nd cut file with handle","GEDORE","No",null,0,null,null,0]
[708,"Round file bastard with handle","Tools",null,10,"250mm/8 flat 2nd cut file with handle","GEDORE","No",null,0,null,null,0]
[709,"Round file smooth with handle","Tools",null,10,"250mm/8 flat 2nd cut file with handle","GEDORE","No",null,0,null,null,0]
[710,"Rubber Mallet","Tools",null,12,"Solid rubber head. Wooden handle. &  Does not mark materials when hammered. \n","3M","No",null,0,null,null,0]
[711,"Safety Harnesses","Tools","Section 42 Workshop",3,"Safety Harness Double Lanyard,HARNESS,BODY,FULL,C/W FRONT D-RING,BACK D-RING AND THREE D-RINGS ON THE WAIST BELT FOR WORK POSITIONING,1.5M DOUBLE SHOCK ABSORBING LANYARD WITH LARGE SCAFFOLD/SNAP HOOK,COMPLIES WITH SANS50361 & SANS50358",null,"No",null,0,null,null,0]
[712,"Safety Harnesses","Safety equipment","ERI Turbo Gen Services (TGS) Workshop 19",4,"Safety Harness Double Lanyard,HARNESS,BODY,FULL,C/W FRONT D-RING,BACK D-RING AND THREE D-RINGS ON THE WAIST BELT FOR WORK POSITIONING,1.5M DOUBLE SHOCK ABSORBING LANYARD WITH LARGE SCAFFOLD/SNAP HOOK,COMPLIES WITH SANS50361 & SANS50358",null,"No",null,0,null,{"v":750,"d":"750.00"},{"v":3000,"d":"3,000.00"}]
[713,"Safety Harnesses","Safety equipment","Section 42 Workshop",2,"Safety Harness Double Lanyard,HARNESS,BODY,FULL,C/W FRONT D-RING,BACK D-RING AND THREE D-RINGS ON THE WAIST BELT FOR WORK POSITIONING,1.5M DOUBLE SHOCK ABSORBING LANYARD WITH LARGE SCAFFOLD/SNAP HOOK,COMPLIES WITH SANS50361 & SANS50358",null,"No",null,0,null,{"v":750,"d":"750.00"},{"v":1500,"d":"1,500.00"}]
[714,"Safety Harnesses","Safety equipment","Mill Maintenance Workshop",4,"Safety Harness Double Lanyard,HARNESS,BODY,FULL,C/W FRONT D-RING,BACK D-RING AND THREE D-RINGS ON THE WAIST BELT FOR WORK POSITIONING,1.5M DOUBLE SHOCK ABSORBING LANYARD WITH LARGE SCAFFOLD/SNAP HOOK,COMPLIES WITH SANS50361 & SANS50358",null,"No",null,0,null,{"v":750,"d":"750.00"},{"v":3000,"d":"3,000.00"}]
[715,"Safety Harnesses","Safety equipment","Welding Workshop",2,"Safety Harness Double Lanyard,HARNESS,BODY,FULL,C/W FRONT D-RING,BACK D-RING AND THREE D-RINGS ON THE WAIST BELT FOR WORK POSITIONING,1.5M DOUBLE SHOCK ABSORBING LANYARD WITH LARGE SCAFFOLD/SNAP HOOK,COMPLIES WITH SANS50361 & SANS50358",null,"No",null,0,null,{"v":750,"d":"750.00"},{"v":1500,"d":"1,500.00"}]
[716,"Safety Harnesses","Tools","Batch Plant Workshop",3,"Safety Harness Double Lanyard,HARNESS,BODY,FULL,C/W FRONT D-RING,BACK D-RING AND THREE D-RINGS ON THE WAIST BELT FOR WORK POSITIONING,1.5M DOUBLE SHOCK ABSORBING LANYARD WITH LARGE SCAFFOLD/SNAP HOOK,COMPLIES WITH SANS50361 & SANS50358",null,"No",null,0,null,{"v":750,"d":"750.00"},{"v":2250,"d":"2,250.00"}]
[717,"Safety Valve Test Bench","Tools","Section 42 Workshop",2,"Digital or semi automatic (computerized) test system for testing and re(adjusting) the set pressure, blow down, re seating, pressure and seat tightness with gas system 0-500 dar / 7250 PSI. Pressure - vacuum test systems for breather valves and other tank safety's up to 24\". ",null,"No",null,0,null,null,0]
[718,"Scale","Tools","16 M Level Workshop",1,"0 - 250kg. floor mount.",null,"No",null,0,null,null,0]
[719,"screw cutting gauge","Tools","Section 42 Workshop",2,"Relief at te end of each slot\nIndicates 55° for whit & B.S.F; 47-1/2° for B.A.; 60° for American & Metric; 14-1/2° for ACME","Kennedy","No",null,0,null,null,{"$f":"L726*E726","v":0}]
[720,"screw cutting gauge","Tools","Batch Plant Workshop",2,"Relief at te end of each slot\nIndicates 55° for whit & B.S.F; 47-1/2° for B.A.; 60° for American & Metric; 14-1/2° for ACME","Kennedy","No",null,0,null,null,0]
[721,"screw drivers 10 piece","Tools","Section 42 Workshop",6,null,null,"No",null,0,null,null,0]
[722,"screw drivers 10 piece","Tools","Batch Plant Workshop",3,null,null,"No",null,0,null,null,0]
[723,"Screw extractor set - easy out","Tools","Section 42 Workshop",1,"Heavy duty 12 PC. Screw extractor set\nHeat treated\nFully polished, includes 6 high carbon steel screw extractor\nSizes: #1,#2, #3, #4, #5, #6\n6 HSS twist drill bits\nSizes: 5/64'', 1/8\", 5/32'',1/4\", 9/32\", 3/8\"",null,"No",null,0,null,null,0]
[724,"Screw extractor set - easy out","Tools","ERI Turbo Gen Services (TGS) Workshop 15",2,"Heavy duty 12 PC. Screw extractor set\nHeat treated\nFully polished, includes 6 high carbon steel screw extractor\nSizes: #1,#2, #3, #4, #5, #6\n6 HSS twist drill bits\nSizes: 5/64'', 1/8\", 5/32'',1/4\", 9/32\", 3/8\"",null,"No",null,0,null,null,0]
[725,"Screw extractor set - easy out","Tools","Section 42 Workshop",2,"Heavy duty 12 PC. Screw extractor set\nHeat treated\nFully polished, includes 6 high carbon steel screw extractor\nSizes: #1,#2, #3, #4, #5, #6\n6 HSS twist drill bits\nSizes: 5/64'', 1/8\", 5/32'',1/4\", 9/32\", 3/8\"",null,"No",null,0,null,null,0]
[726,"Screw extractor set - easy out","Tools","Mill Maintenance Workshop",2,"Heavy duty 12 PC. Screw extractor set\nHeat treated\nFully polished, includes 6 high carbon steel screw extractor\nSizes: #1,#2, #3, #4, #5, #6\n6 HSS twist drill bits\nSizes: 5/64'', 1/8\", 5/32'',1/4\", 9/32\", 3/8\"",null,"No",null,0,null,null,0]
[727,"Screw extractor set - easy out","Tools","Batch Plant Workshop",1,"Heavy duty 12 PC. Screw extractor set\nHeat treated\nFully polished, includes 6 high carbon steel screw extractor\nSizes: #1,#2, #3, #4, #5, #6\n6 HSS twist drill bits\nSizes: 5/64'', 1/8\", 5/32'',1/4\", 9/32\", 3/8\"",null,"No",null,0,null,null,0]
[728,"screw pitch gauge met/imp 0.25 - 6mm /4 - 62tpi","Tools","Section 42 Workshop",2,null,null,"No",null,0,null,null,0]
[729,"screw pitch gauge met/imp 0.25 - 6mm /4 - 62tpi","Tools","Batch Plant Workshop",2,null,null,"No",null,0,null,null,0]
[730,"Set of concrete Drillbit","Tools",null,20,"EDGE's double-fluted SDS Plus drill, used in conjunction with a rotary hammer drilling machine \n\n","MIKITA/HILTI","No",null,0,null,null,0]
[731,"Set of insulate spanners",null,null,10,"Insulated safety spanners 6mm - 36mm set up to 1000V / 1500V. Fully insulated blade as per DIN EN 60900 with impact resistand red handle. Chrome Vanadium Molybdenum steel eith tip","GEDORE","No",null,0,null,null,0]
[732,"Set of Insulated screwdriver","Tools",null,10,"Insulated safety screwdrivers up to 1000V / 1500V. Fully insulated blade as per DIN EN 60900 with impact resistand red handle. Chrome Vanadium Molybdenum steel eith tip","GEDORE","No",null,0,null,null,0]
[733,"Set of insulated socket wrench","Tools",null,6,"Insulated safety s up to 1000V / 1500V Socket wrench , In tough, resillient plastic. Head depth 25mm Chrome Vanadium steel with VDE insulated as per DIN EN 60900","GEDORE","No",null,0,null,null,0]
[734,"Set of pin Punch","Tools",null,10,"Made from Chrome-molybdenum-Vanadium air hardened and tempered along the fully length. Sttiking heads induction tempered working edge polished and clear vanished","GEDORE","No",null,0,null,null,0]
[735,"Set of steel Drillbit","Tools",null,20,"EDGE's premium-grade HSS industrial steel drill","MIKITA/HILTI","No",null,0,null,null,0]
[736,"Set of tube Spanner","Tools",null,12,"Kd26R tubular Box Spanner Set. In tubular steel, harden.chrome plate, with stepped tommy bar, chrome Vanadium steel 31CrV3, hardened.chrome plated.","GEDORE","No",null,0,null,null,0]
[737,"Shifting Spanner 150mm","Tools",null,10,"Chrome Vanadium steel - 31CrV3.swedish pattern - Jaw set at 15 degrees .blackened finish. Ground head","GEDORE","No",null,0,null,null,0]
[738,"Shifting Spanner 200mm","Tools",null,10,"Chrome Vanadium steel - 31CrV3.swedish pattern - Jaw set at 15 degrees .blackened finish. Ground head","GEDORE","No",null,0,null,null,0]
[739,"Shifting Spanner 250mm","Tools",null,10,"Chrome Vanadium steel - 31CrV3.swedish pattern - Jaw set at 15 degrees .blackened finish. Ground head","GEDORE","No",null,0,null,null,0]
[740,"Side cutter","Tools",null,12,"For hart wire, including piano wire. Induction-hardened precision cutting edges, hardness approx. 64HRC. DIN ISO 5749","GEDORE","No",null,0,null,null,0]
[741,"Sidewinder Jacks mini jacks","Tools","Section 42 Workshop",2,"20 ton",null,"No",null,0,null,{"v":1491,"d":"1,491.00"},{"v":2982,"d":"2,982.00"}]
[742,"Sidewinder Jacks mini jacks","Tools","Batch Plant Workshop",1,"20 ton",null,"No",null,0,null,{"v":1491,"d":"1,491.00"},{"v":1491,"d":"1,491.00"}]
[743,"Sling - 2 ton","Tools",null,4,"Double ply (for double safety) lifting sling made from high tenacity polyester fibres, Colour coded according to DIN-EN 1492-1 Temperature Range of -40°C to +100°C, length 2 m ",null,"No",null,0,null,null,0]
[744,"Sling - 2 ton","Tools","Section 42 Workshop",2,"Double ply (for double safety) lifting sling made from high tenacity polyester fibres, Colour coded according to DIN-EN 1492-1 Temperature Range of -40°C to +100°C, length 2 m ",null,"No",null,0,null,{"v":780,"d":"780.00"},{"v":1560,"d":"1,560.00"}]
[745,"Sling - 2 ton","Tools","Batch Plant Workshop",2,"Double ply (for double safety) lifting sling made from high tenacity polyester fibres, Colour coded according to DIN-EN 1492-1 Temperature Range of -40°C to +100°C, length 2 m ",null,"No",null,0,null,{"v":780,"d":"780.00"},{"v":1560,"d":"1,560.00"}]
[746,"Sling - 6 ton","Tools",null,4,"Double ply (for double safety) lifting sling made from high tenacity polyester fibres, Colour coded according to DIN-EN 1492-1 Temperature Range of -40°C to +100°C, length 2 m ",null,"No",null,0,null,{"v":1050,"d":"1,050.00"},{"v":4200,"d":"4,200.00"}]
[747,"Sling - 6 ton","Tools","Section 42 Workshop",2,"Double ply (for double safety) lifting sling made from high tenacity polyester fibres, Colour coded according to DIN-EN 1492-1 Temperature Range of -40°C to +100°C, length 2 m ",null,"No",null,0,null,{"v":1050,"d":"1,050.00"},{"v":2100,"d":"2,100.00"}]
[748,"Sling - 6 ton","Tools","Batch Plant Workshop",2,"Double ply (for double safety) lifting sling made from high tenacity polyester fibres, Colour coded according to DIN-EN 1492-1 Temperature Range of -40°C to +100°C, length 2 m ",null,"No",null,0,null,{"v":1050,"d":"1,050.00"},{"v":2100,"d":"2,100.00"}]
[749,"Slogging spanners set 30mm - 110mm","Tools","Section 42 Workshop",2,"For very heavy duty work\nUp to length 500 mm chrome-vanadium steel 31CrV3, above 525 mm material C35\n","GEDORE","No",null,0,null,{"v":650,"d":"650.00"},{"v":1300,"d":"1,300.00"}]
[750,"Slogging spanners set 30mm - 110mm","Tools","Batch Plant Workshop",2,"For very heavy duty work\nUp to length 500 mm chrome-vanadium steel 31CrV3, above 525 mm material C35\n","GEDORE","No",null,0,null,{"v":650,"d":"650.00"},{"v":1300,"d":"1,300.00"}]
[751,"small engineers square 75mm","Tools","Section 42 Workshop",2,null,null,"No",null,0,null,{"v":135,"d":"135.00"},{"$f":"L758*E758","v":{"v":270,"d":"270.00"}}]
[752,"small engineers square 75mm","Tools","Batch Plant Workshop",2,null,null,"No",null,0,null,{"v":135,"d":"135.00"},{"$f":"L759*E759","v":{"v":270,"d":"270.00"}}]
[753,"Snatch Block","Tools","Section 42 Workshop",4,"120 kg",null,"No",null,0,null,{"v":360,"d":"360.00"},{"v":1440,"d":"1,440.00"}]
[754,"Snatch Block","Tools","Section 42 Workshop",5,"500 kg",null,"No",null,{"$f":"I761*E761","v":0},null,{"v":460,"d":"460.00"},{"v":2300,"d":"2,300.00"}]
[755,"Snatch Block","Tools","Section 42 Workshop",5,"2 Ton",null,"No",null,0,null,{"v":890,"d":"890.00"},{"v":4450,"d":"4,450.00"}]
[756,"Snatch Block","Tools","Section 42 Workshop",2,"3 Ton",null,"No",null,0,null,{"v":1255,"d":"1,255.00"},{"v":2510,"d":"2,510.00"}]
[757,"Snatch Block","Tools","Section 42 Workshop",5,"5 Ton",null,"No",null,0,null,{"v":1640,"d":"1,640.00"},{"v":8200,"d":"8,200.00"}]
[758,"Snatch Block","Tools","Section 42 Workshop",2,"7.5 Ton",null,"No",null,0,null,{"v":2351,"d":"2,351.00"},{"v":4702,"d":"4,702.00"}]
[759,"Snatch Block","Tools","Section 42 Workshop",2,"7.5 Ton",null,"No",null,0,null,{"v":2351,"d":"2,351.00"},{"$f":"L767*E766","v":{"v":8462,"d":"8,462.00"}}]
[760,"Snatch Block","Tools","Section 42 Workshop",5,"10 Ton",null,"No",null,0,null,{"v":4231,"d":"4,231.00"},{"v":21155,"d":"21,155.00"}]
[761,"Snatch Block","Tools","Section 42 Workshop",2,"32 Ton",null,"No",null,0,null,{"v":9545,"d":"9,545.00"},{"v":19090,"d":"19,090.00"}]
[762,"Snatch Block","Tools","Section 42 Workshop",2,"32 Ton",null,"No",null,0,null,{"v":9545,"d":"9,545.00"},{"v":19090,"d":"19,090.00"}]
[763,"Snatch Block","Tools","Batch Plant Workshop",4,"120 kg",null,"No",null,0,null,{"v":360,"d":"360.00"},{"v":1440,"d":"1,440.00"}]
[764,"Snatch Block","Tools","Batch Plant Workshop",4,"500 kg",null,"No",null,0,null,{"v":460,"d":"460.00"},{"v":1840,"d":"1,840.00"}]
[765,"Snatch Block","Tools","Batch Plant Workshop",5,"2 Ton",null,"No",null,0,null,{"v":890,"d":"890.00"},{"v":4450,"d":"4,450.00"}]
[766,"Snatch Block","Tools","Batch Plant Workshop",2,"3 Ton",null,"No",null,0,null,{"v":1255,"d":"1,255.00"},{"v":2510,"d":"2,510.00"}]
[767,"Snatch Block","Tools","Batch Plant Workshop",5,"5 Ton",null,"No",null,0,null,{"v":1640,"d":"1,640.00"},{"v":8200,"d":"8,200.00"}]
[768,"Snatch Block","Tools","Batch Plant Workshop",2,"7.5 Ton",null,"No",null,0,null,{"v":2351,"d":"2,351.00"},{"$f":"L774*E775","v":{"v":3280,"d":"3,280.00"}}]
[769,"Snatch Block","Tools","Batch Plant Workshop",2,"7.5 Ton",null,"No",null,0,null,{"v":2351,"d":"2,351.00"},{"v":4702,"d":"4,702.00"}]
[770,"Snatch Block","Tools","Batch Plant Workshop",3,"10 Ton",null,"No",null,0,null,{"v":4231,"d":"4,231.00"},{"v":12693,"d":"12,693.00"}]
[771,"Snatch Block","Tools","Batch Plant Workshop",2,"32 Ton",null,"No",null,0,null,{"v":9545,"d":"9,545.00"},{"v":19090,"d":"19,090.00"}]
[772,"Snatch Block","Tools","Batch Plant Workshop",2,"32 Ton",null,"No",null,0,null,{"v":9545,"d":"9,545.00"},{"v":19090,"d":"19,090.00"}]
[773,"Socket set","Tools",null,6,"Manually operated 1/2\" sockets and accessories. Supplied in blue powder coated, D19 T- steel box. Dimensions: 435x170x50","GEDORE","No",null,0,null,{"v":2950,"d":"2,950.00"},{"v":17700,"d":"17,700.00"}]
[774,"Socket set - Allen Keys Metric Large","Tools",null,10,"5mm - 19mm, 1/2 in sqaure","GEDORE","No",null,0,null,{"v":699,"d":"699.00"},{"v":6990,"d":"6,990.00"}]
[775,"Socket set - Allen Keys Metric Large","Tools","Section 42 Workshop",6,"5mm - 19mm, 1/2 in sqaure",null,"No",null,0,null,{"v":699,"d":"699.00"},{"v":4194,"d":"4,194.00"}]
[776,"Socket set - Allen Keys Metric Large","Tools","Batch Plant Workshop",3,"5mm - 19mm, 1/2 in sqaure",null,"No",null,0,null,{"v":699,"d":"699.00"},{"v":2097,"d":"2,097.00"}]
[777,"Socket set large  10mm - 32 mm","Tools",null,6,"10mm - 32mm with extention bar(125mm), Sliding bar (250mm), Reversible ratchet handle (250mm), extention bar(250mm) & universal joint","GEDORE","No",null,0,null,{"v":1968,"d":"1,968.00"},{"v":11808,"d":"11,808.00"}]
[778,"Sockets & Allen Drives, Square Drive Predator series","Tools","Section 42 Workshop",1,"Max Torque 33496 Nm, 700bar",null,"No",null,0,null,null,0]
[779,"Sockets & Allen Drives, Square Drive Predator series","Tools","Section 42 Workshop",1,"Max Torque 33496 Nm, 700bar",null,"No",null,0,null,null,0]
[780,"Sockets & Allen Drives, Square Drive Predator series","Tools","Batch Plant Workshop",1,"Max Torque 33496 Nm, 700bar",null,"No",null,0,null,null,0]
[781,"Sockets & Allen Drives, Square Drive Predator series","Tools","Batch Plant Workshop",1,"Max Torque 33496 Nm, 700bar",null,"No",null,0,null,null,0]
[782,"soft face hammer 32mm face dia","Tools","Section 42 Workshop",4,null,null,"No",null,0,null,null,0]
[783,"soft face hammer 32mm face dia","Tools","Batch Plant Workshop",4,null,null,"No",null,0,null,null,0]
[784,"soldering Iron","Tools",null,10,"ESD Safe Manual Desoldering Tool, One hand operation with spring-loaded piston \nProvides ESD safe, solder removing vacuum ESD analog soldering station 350 - 850 deg F 50W\nFeatures self-cleaning non-clogging static-free replaceable tip, \n","HELLERMANN  TYTON","No",null,0,null,null,0]
[785,"Soldering iron ","Tools","Section 18 Auxiliary Bay Unit 1",1,"ESD analog soldering station 350 - 850 deg F 50W",null,"No",null,0,null,null,0]
[786,"Soldering iron / sucker","Tools","Section 18 Auxiliary Bay Unit 1",1,"WRS1002X desoldering station",null,"No",null,0,null,null,0]
[787,"spanners (24 to 42 mm)","Tools ","Section 18 Auxiliary Bay Unit 1",2,"Work shop spanners up to 36\"",null,"No",null,0,null,null,0]
[788,"Sparkfree - ADJUSTABLE WRENCH","Tools","Section 42 Workshop",2,"150mm Spark Resistant - ADJUSTABLE WRENCH, Aluminium -bronze",null,"No",null,0,null,{"v":210,"d":"210.00"},{"v":420,"d":"420.00"}]
[789,"Sparkfree - ADJUSTABLE WRENCH","Tools","Section 42 Workshop",2,"250mm Spark Resistant - ADJUSTABLE WENCH, Aluminium Bronze",null,"No",null,0,null,{"v":210,"d":"210.00"},{"v":420,"d":"420.00"}]
[790,"Sparkfree - ADJUSTABLE WRENCH","Tools","Batch Plant Workshop",1,"150mm Spark Resistant - ADJUSTABLE WRENCH, Aluminium -bronze",null,"No",null,0,null,null,{"$f":"L797*E797","v":0}]
[791,"Sparkfree - ADJUSTABLE WRENCH","Tools","Batch Plant Workshop",1,"250mm Spark Resistant - ADJUSTABLE WENCH, Aluminium Bronze",null,"No",null,0,null,null,0]
[792,"Sparkfree - HAMMER","Tools","Section 42 Workshop",2,"500gram Spark Resistant Ballpein Hammer wood Shaft",null,"No",null,0,null,null,0]
[793,"Sparkfree - HAMMER","Tools","Batch Plant Workshop",1,"500gram Spark Resistant Ballpein Hammer wood Shaft",null,"No",null,0,null,null,0]
[794,"Sparkfree - PINCERS / GROOVE JOINT PINCER","Tools","Section 42 Workshop",1,"250mm Spark Resistant - Groove Joint Plier, Aluminium Bronze",null,"No",null,0,null,null,0]
[795,"Sparkfree - PINCERS / GROOVE JOINT PINCER","Tools","Batch Plant Workshop",1,"250mm Spark Resistant - Groove Joint Plier, Aluminium Bronze",null,"No",null,0,null,null,0]
[796,"Sparkfree - PLIERS / COMBINATION ","Tools","Section 42 Workshop",1,"180mm Aluminium Bronze Spark Resistant combination Pliers",null,"No",null,0,null,null,0]
[797,"Sparkfree - PLIERS / COMBINATION ","Tools","Batch Plant Workshop",1,"180mm Aluminium Bronze Spark Resistant combination Pliers",null,"No",null,0,null,null,0]
[798,"Sparkfree - PLIERS / DIAGONAL CUTTING PLIERS","Tools","Section 42 Workshop",1,"160mm Aluminium Bronze Spark resistant Diagonal Cutting Pliers",null,"No",null,0,null,null,0]
[799,"Sparkfree - PLIERS / DIAGONAL CUTTING PLIERS","Tools","Batch Plant Workshop",1,"160mm Aluminium Bronze Spark resistant Diagonal Cutting Pliers",null,"No",null,0,null,null,0]
[800,"Sparkfree - PLIERS / FLAT NOSE","Tools","Section 42 Workshop",1,"160mm",null,"No",null,0,null,null,0]
[801,"Sparkfree - PLIERS / FLAT NOSE","Tools","Batch Plant Workshop",1,"160mm",null,"No",null,0,null,null,0]
[802,"Sparkfree - PLIERS / LONG NOSE","Tools","Section 42 Workshop",1,"160mm Aluminium Bronze Spark resistant Long Nose/ Pliers",null,"No",null,0,null,null,0]
[803,"Sparkfree - PLIERS / LONG NOSE","Tools","Batch Plant Workshop",1,"160mm Aluminium Bronze Spark resistant Long Nose/ Pliers",null,"No",null,0,null,null,0]
[804,"Sparkfree - PLIERS / ROUND NOSE","Tools","Section 42 Workshop",1,"160mm",null,"No",null,0,null,null,0]
[805,"Sparkfree - PLIERS / ROUND NOSE","Tools","Batch Plant Workshop",1,"160mm",null,"No",null,0,null,null,0]
[806,"Sparkfree - PLIERS / WIRESTRIPPER","Tools","Section 42 Workshop",1,"170mm",null,"No",null,0,null,null,0]
[807,"Sparkfree - PLIERS / WIRESTRIPPER","Tools","Batch Plant Workshop",1,"170mm",null,"No",null,0,null,null,0]
[808,"Sparkfree - SCREWDRIVERS - Flat","Tools","Section 42 Workshop",2,"3, 5,7 & 9mm Aluminium Bronze Spark Resistant Screwdrivers -Flat",{"$nulls":3},0,null,null,0]
[809,"Sparkfree - SCREWDRIVERS - Flat","Tools","Batch Plant Workshop",2,"3, 5,7 & 9mm Aluminium Bronze Spark Resistant Screwdrivers -Flat",null,"No",null,0,null,null,0]
[810,"Sparkfree - SCREWDRIVERS / PHILIPS","Tools","Section 42 Workshop",2,"PH-1 & PH3 Aluminium Bronze Spark Resistant Screwdriverws- Cross point/Philips",{"$nulls":3},0,null,null,0]
[811,"Sparkfree - SCREWDRIVERS / PHILIPS","Tools","Batch Plant Workshop",2,"PH-1 & PH3 Aluminium Bronze Spark Resistant Screwdriverws- Cross point/Philips",null,"No",null,0,null,null,0]
[812,"Sparkfree - Wrench Monkey","Tools","Section 42 Workshop",2,"12 inche(300mm) Alumininum bronze Spark Resistant heavy duty pipe wrenches",{"$nulls":3},0,null,null,0]
[813,"Sparkfree - Wrench Monkey","Tools","Batch Plant Workshop",2,"12 inche(300mm) Alumininum bronze Spark Resistant heavy duty pipe wrenches",null,"No",null,0,null,null,0]
[814,"Sparkfree - WRENCHES  / BALLPOINT HEXAGONAL KEYS","Tools","Section 42 Workshop",2,"3 to 12mm",{"$nulls":3},0,null,null,0]
[815,"Sparkfree - WRENCHES  / BALLPOINT HEXAGONAL KEYS","Tools","Batch Plant Workshop",2,"3 to 12mm",null,"No",null,0,null,null,0]
[816,"Sparkfree - WRENCHES  / COMBINATION WRENCH (MM) Ring / flat","Tools","Section 42 Workshop",2,"6mm to 32mm Aluminium Bronze Spark Resistant Combination Spanners",{"$nulls":3},0,null,null,0]
[817,"Sparkfree - WRENCHES  / COMBINATION WRENCH (MM) Ring / flat","Tools","Batch Plant Workshop",2,"6mm to 32mm Aluminium Bronze Spark Resistant Combination Spanners",null,"No",null,0,null,null,0]
[818,"Spot light 500W","Tools","Section 19 Auxilliary Bay Unit 2",10,null,null,"No",null,{"$f":"I825*E825","v":0},null,{"v":560.5,"d":"560.50"},{"v":5605,"d":"5,605.00"}]
[819,"Spot light 500W","Tools",null,5,null,null,"No",null,0,null,{"v":560.5,"d":"560.50"},{"v":2802.5,"d":"2,802.50"}]
[820,"Spreaders Hydraulic","Tools","Section 42 Workshop",5,"1.5 ton",{"$nulls":3},0,null,null,0]
[821,"Spreaders Hydraulic","Tools","Batch Plant Workshop",1,"1.5 ton",null,"No",null,0,null,null,0]
[822,"spring dividers set 3 piece","Tools","Section 42 Workshop",2,"3 piece to include: Internal, external and divider caliper\nsize: 6\"",{"$nulls":3},0,null,null,0]
[823,"spring dividers set 3 piece","Tools","Batch Plant Workshop",2,"3 piece to include: Internal, external and divider caliper\nsize: 6\"",null,"No",null,0,null,null,0]
[824,"square aluminium oxide sharpening stone fine 100 x 13","Tools","Section 42 Workshop",3,{"$nulls":4},0,null,null,0]
[825,"square aluminium oxide sharpening stone fine 100 x 13","Tools","Batch Plant Workshop",3,null,null,"No",null,0,null,null,0]
[826,"square head centre punch point dia 6.3mm x 100mm","Tools","Section 42 Workshop",4,{"$nulls":4},0,null,null,0]
[827,"square head centre punch point dia 6.3mm x 100mm","Tools","Batch Plant Workshop",4,null,null,"No",null,0,null,null,0]
[828,"standard vernier caliper 150mm","Tools","Section 42 Workshop",2,"With inside & outside measurement scale\nAccuracy +/- 0.10mm\nWith fine adjustment","Mitutoyo",null,null,0,null,{"$f":"900/1.15","v":{"v":782.608695652174,"d":"782.61"}},{"v":1565.217391304348,"d":"1,565.22"}]
[829,"standard vernier caliper 150mm","Tools","Batch Plant Workshop",1,"With inside & outside measurement scale\nAccuracy +/- 0.10mm\nWith fine adjustment","Mitutoyo","No",null,0,null,{"$f":"900/1.15","v":{"v":782.608695652174,"d":"782.61"}},{"v":782.608695652174,"d":"782.61"}]
[830,"standard vernier caliper 300mm","Tools","Section 42 Workshop",3,"With inside & outside measurement scale\nAccuracy +/- 0.10mm\nWith fine adjustment\n300mm, Jaw Depths inside 19mm , outside 63mm, Knife-edge contacts for both inside and outside measurements, Lock screw for holding the sliding jaw in position . ","Mitutoyo",null,null,0,null,null,0]
[831,"standard vernier caliper 300mm","Tools","Batch Plant Workshop",1,"With inside & outside measurement scale\nAccuracy +/- 0.10mm\nWith fine adjustment\n300mm, Jaw Depths inside 19mm , outside 63mm, Knife-edge contacts for both inside and outside measurements, Lock screw for holding the sliding jaw in position . ","Mitutoyo","No",null,0,null,null,0]
[832,"steel rule flexible blade 1000mm","Tools","Section 42 Workshop",2,{"$nulls":4},0,null,null,0]
[833,"steel rule flexible blade 1000mm","Tools","Batch Plant Workshop",2,null,null,"No",null,0,null,null,0]
[834,"Straight edge steel ruler","Tools",null,10,"Steel Straight Edge Ruler is our finest combination straight edge and ruler for woodworking. All four sides of this high quality steel blade are surface ground to perfection. One edge is then milled to a 30 degree angle which allows the machine engraved inch scale. \n","GEDORE","No",null,0,null,null,0]
[835,"Surface grinder","Tools","Section 42 Workshop",1,"Table AJ-750 H/HD\nWorking surface (mm) 737 x 254, Maximum Longitudinal Traverse (mm) 775, Longitudinal speed (m/min) 6.7-24.4, Maximum grinding length & width (mm) 762 x 305, Grinding Head - Grinding wheel size (mm) 355 x 32 x 127, Spindle speed (rpm) 145",{"$nulls":3},0,null,null,0]
[836,"Surface grinder","Tools","Batch Plant Workshop",1,"Table AJ-750 H/HD\nWorking surface (mm) 737 x 254, Maximum Longitudinal Traverse (mm) 775, Longitudinal speed (m/min) 6.7-24.4, Maximum grinding length & width (mm) 762 x 305, Grinding Head - Grinding wheel size (mm) 355 x 32 x 127, Spindle speed (rpm) 145",null,"No",null,0,null,null,0]
[837,"Swivel Hoist Rings","Tools","Section 42 Workshop",2,"16mm",{"$nulls":3},0,null,{"v":869,"d":"869.00"},{"v":1738,"d":"1,738.00"}]
[838,"Swivel Hoist Rings","Tools","Batch Plant Workshop",2,"16mm",null,"No",null,0,null,{"v":869,"d":"869.00"},{"v":1738,"d":"1,738.00"}]
[839,"Swivel Hoist rings ","Tools","Section 42 Workshop",2,"20mm",{"$nulls":3},0,null,{"v":1210,"d":"1,210.00"},{"v":2420,"d":"2,420.00"}]
[840,"Swivel Hoist rings ","Tools","Batch Plant Workshop",2,"20mm",null,"No",null,0,null,{"v":1210,"d":"1,210.00"},{"v":2420,"d":"2,420.00"}]
[841,"SWR Sling","Tools","Section 42 Workshop",8,"10Ton",{"$nulls":3},0,null,{"v":645,"d":"645.00"},{"v":5160,"d":"5,160.00"}]
[842,"SWR Sling","Tools","Batch Plant Workshop",8,"10Ton",null,"No",null,0,null,{"v":645,"d":"645.00"},{"v":5160,"d":"5,160.00"}]
[843,"SWR Sling 10mmx1m","Tools","Section 42 Workshop",10,"1 Ton",{"$nulls":3},0,null,{"v":48.5,"d":"48.50"},{"v":485,"d":"485.00"}]
[844,"SWR Sling 10mmx1m","Tools","Batch Plant Workshop",10,"1 Ton",null,"No",null,0,null,{"v":48.5,"d":"48.50"},{"v":485,"d":"485.00"}]
[845,"SWR Sling 10mmx2m","Tools","Section 42 Workshop",10,"1.15 Ton",{"$nulls":3},0,null,76.25,{"v":762.5,"d":"762.50"}]
[846,"SWR Sling 10mmx2m","Tools","Batch Plant Workshop",10,"1.15 Ton",null,"No",null,0,null,76.25,{"v":762.5,"d":"762.50"}]
[847,"SWR Sling 10mmx3m","Tools","Section 42 Workshop",10,"1.15 Ton",{"$nulls":3},0,null,{"v":103.9,"d":"103.90"},{"$f":"L854*E854","v":{"v":1039,"d":"1,039.00"}}]
[848,"SWR Sling 10mmx3m","Tools","Batch Plant Workshop",10,"1.15 Ton",null,"No",null,0,null,{"v":103.9,"d":"103.90"},{"v":1039,"d":"1,039.00"}]
[849,"SWR Sling 10mmx4m","Tools","Section 42 Workshop",6,"1 Ton",{"$nulls":3},0,null,{"v":119.6,"d":"119.60"},{"v":717.5999999999999,"d":"717.60"}]
[850,"SWR Sling 10mmx4m","Tools","Batch Plant Workshop",6,"1 Ton",null,"No",null,0,null,{"v":119.6,"d":"119.60"},{"v":717.5999999999999,"d":"717.60"}]
[851,"SWR Sling 10mmx500mm","Tools","Section 42 Workshop",8,"1 Ton",{"$nulls":3},0,null,{"v":35,"d":"35.00"},{"v":280,"d":"280.00"}]
[852,"SWR Sling 10mmx500mm","Tools","Batch Plant Workshop",8,"1 Ton",null,"No",null,0,null,{"v":35,"d":"35.00"},{"v":280,"d":"280.00"}]
[853,"SWR Sling 10mmx600mm","Tools","Section 42 Workshop",2,"1.15 Ton",{"$nulls":3},0,null,{"v":41.9,"d":"41.90"},{"v":83.8,"d":"83.80"}]
[854,"SWR Sling 10mmx600mm","Tools","Batch Plant Workshop",2,"1.15 Ton",null,"No",null,0,null,{"v":41.9,"d":"41.90"},{"v":83.8,"d":"83.80"}]
[855,"SWR Sling 10mmx6m","Tools","Section 42 Workshop",2,"1.15 Ton",{"$nulls":3},0,null,{"v":170,"d":"170.00"},{"v":340,"d":"340.00"}]
[856,"SWR Sling 10mmx6m","Tools","Batch Plant Workshop",2,"1.15 Ton",null,"No",null,0,null,{"v":170,"d":"170.00"},{"v":340,"d":"340.00"}]
[857,"SWR Sling 10mmx800mm","Tools","Section 42 Workshop",10,"1 Ton",{"$nulls":3},0,null,{"v":48.1,"d":"48.10"},{"v":481,"d":"481.00"}]
[858,"SWR Sling 10mmx800mm","Tools","Batch Plant Workshop",10,"1 Ton",null,"No",null,0,null,{"v":48.1,"d":"48.10"},{"v":481,"d":"481.00"}]
[859,"SWR Sling 12mmx1m","Tools","Section 42 Workshop",2,"1.5  ton",{"$nulls":3},0,null,{"v":71.7,"d":"71.70"},{"v":143.4,"d":"143.40"}]
[860,"SWR Sling 12mmx1m","Tools","Batch Plant Workshop",2,"1.5  ton",null,"No",null,0,null,{"v":71.7,"d":"71.70"},{"v":143.4,"d":"143.40"}]
[861,"SWR Sling 13mmx3m","Tools","Section 42 Workshop",10,"1.5 Ton",{"$nulls":3},0,null,{"v":121.5,"d":"121.50"},{"v":1215,"d":"1,215.00"}]
[862,"SWR Sling 13mmx3m","Tools","Batch Plant Workshop",10,"1.5 Ton",null,"No",null,0,null,{"v":121.5,"d":"121.50"},{"v":1215,"d":"1,215.00"}]
[863,"SWR Sling 13mmx8m","Tools","Section 42 Workshop",2,"1.5 Ton",{"$nulls":3},0,null,{"v":156.4,"d":"156.40"},{"v":312.8,"d":"312.80"}]
[864,"SWR Sling 13mmx8m","Tools","Batch Plant Workshop",2,"1.5 Ton",null,"No",null,0,null,{"v":156.4,"d":"156.40"},{"v":312.8,"d":"312.80"}]
[865,"SWR Sling 16mmx3m","Tools","Section 42 Workshop",10,"2 Ton",{"$nulls":3},0,null,{"v":283,"d":"283.00"},{"v":2830,"d":"2,830.00"}]
[866,"SWR Sling 16mmx3m","Tools","Section 42 Workshop",2,"2,5 Ton",{"$nulls":3},0,null,{"v":356,"d":"356.00"},{"v":712,"d":"712.00"}]
[867,"SWR Sling 16mmx3m","Tools","Batch Plant Workshop",10,"2 Ton",null,"No",null,0,null,{"v":283,"d":"283.00"},{"v":2830,"d":"2,830.00"}]
[868,"SWR Sling 16mmx3m","Tools","Batch Plant Workshop",2,"2,5 Ton",null,"No",null,0,null,{"v":356,"d":"356.00"},{"v":712,"d":"712.00"}]
[869,"SWR Sling 16mmx4m","Tools","Section 42 Workshop",4,"2.5 Ton",{"$nulls":3},0,null,{"v":416.3,"d":"416.30"},{"v":1665.2,"d":"1,665.20"}]
[870,"SWR Sling 16mmx4m","Tools","Batch Plant Workshop",4,"2.5 Ton",null,"No",null,0,null,{"v":416.3,"d":"416.30"},{"v":1665.2,"d":"1,665.20"}]
[871,"SWR Sling 16mmx6m","Tools","Section 42 Workshop",2,"2 Ton",{"$nulls":3},0,null,{"v":501.6,"d":"501.60"},{"v":1003.2,"d":"1,003.20"}]
[872,"SWR Sling 16mmx6m","Tools","Batch Plant Workshop",2,"2 Ton",null,"No",null,0,null,{"v":501.6,"d":"501.60"},{"v":1003.2,"d":"1,003.20"}]
[873,"SWR Sling 16mmx800mm","Tools","Section 42 Workshop",10,"2 Ton",{"$nulls":3},0,null,{"v":102.8,"d":"102.80"},{"v":1028,"d":"1,028.00"}]
[874,"SWR Sling 16mmx800mm","Tools","Batch Plant Workshop",10,"2 Ton",null,"No",null,0,null,{"v":102.8,"d":"102.80"},{"v":1028,"d":"1,028.00"}]
[875,"SWR Sling 16mmx8m","Tools","Section 42 Workshop",4,"2 Ton",{"$nulls":3},0,null,674.62,{"v":2698.48,"d":"2,698.48"}]
[876,"SWR Sling 16mmx8m","Tools","Batch Plant Workshop",4,"2 Ton",null,"No",null,0,null,674.62,{"v":2698.48,"d":"2,698.48"}]
[877,"SWR Sling 18mmx1.5m","Tools","Section 42 Workshop",10,"3 Ton",{"$nulls":3},0,null,{"v":284.8,"d":"284.80"},{"v":2848,"d":"2,848.00"}]
[878,"SWR Sling 18mmx1.5m","Tools","Batch Plant Workshop",10,"3 Ton",null,"No",null,0,null,{"v":284.8,"d":"284.80"},{"v":2848,"d":"2,848.00"}]
[879,"SWR Sling 18mmx2m","Tools","Section 42 Workshop",10,"3 Ton",{"$nulls":3},0,null,{"v":329,"d":"329.00"},{"v":3290,"d":"3,290.00"}]
[880,"SWR Sling 18mmx2m","Tools","Batch Plant Workshop",10,"3 Ton",null,"No",null,0,null,{"v":329,"d":"329.00"},{"v":3290,"d":"3,290.00"}]
[881,"SWR Sling 18mmx6m","Tools","Section 42 Workshop",10,"3 Ton",{"$nulls":3},0,null,{"v":419,"d":"419.00"},{"v":4190,"d":"4,190.00"}]
[882,"SWR Sling 18mmx6m","Tools","Batch Plant Workshop",10,"3 Ton",null,"No",null,{"$f":"I889*E889","v":0},null,{"v":419,"d":"419.00"},{"v":4190,"d":"4,190.00"}]
[883,"SWR Sling 18mmx8m","Tools","Section 42 Workshop",10,"3 Ton",{"$nulls":3},0,null,{"v":852,"d":"852.00"},{"v":8520,"d":"8,520.00"}]
[884,"SWR Sling 18mmx8m","Tools","Batch Plant Workshop",10,"3 Ton",null,"No",null,0,null,{"v":852,"d":"852.00"},{"v":8520,"d":"8,520.00"}]
[885,"SWR Sling 22mmx1.5m","Tools","Section 42 Workshop",5,"4.6Ton",{"$nulls":3},0,null,{"v":492,"d":"492.00"},{"v":2460,"d":"2,460.00"}]
[886,"SWR Sling 22mmx1.5m","Tools","Batch Plant Workshop",10,"4.6Ton",null,"No",null,0,null,{"v":492,"d":"492.00"},{"v":4920,"d":"4,920.00"}]
[887,"SWR Sling 22mmx3m","Tools","Section 42 Workshop",10,"4 Ton",{"$nulls":3},0,null,{"v":506.7,"d":"506.70"},{"v":5067,"d":"5,067.00"}]
[888,"SWR Sling 22mmx3m","Tools","Batch Plant Workshop",10,"4 Ton",null,"No",null,0,null,{"v":506.7,"d":"506.70"},{"v":5067,"d":"5,067.00"}]
[889,"SWR Sling 22mmx6m","Tools","Section 42 Workshop",2,"4 Ton",{"$nulls":3},0,null,{"v":845.1,"d":"845.10"},{"v":1690.2,"d":"1,690.20"}]
[890,"SWR Sling 22mmx6m","Tools","Batch Plant Workshop",2,"4 Ton",null,"No",null,0,null,{"v":845.1,"d":"845.10"},{"v":1690.2,"d":"1,690.20"}]
[891,"SWR Sling 22mmx8m","Tools","Section 42 Workshop",2,"4 Ton",{"$nulls":3},0,null,{"v":8963.5,"d":"8,963.50"},{"v":17927,"d":"17,927.00"}]
[892,"SWR Sling 22mmx8m","Tools","Batch Plant Workshop",2,"4 Ton",null,"No",null,0,null,{"v":8963.5,"d":"8,963.50"},{"v":17927,"d":"17,927.00"}]
[893,"SWR Sling 24mmx10m","Tools","Section 42 Workshop",8,"5 Ton",{"$nulls":3},0,null,{"v":1167,"d":"1,167.00"},{"v":9336,"d":"9,336.00"}]
[894,"SWR Sling 24mmx10m","Tools","Batch Plant Workshop",8,"5 Ton",null,"No",null,0,null,{"v":1167,"d":"1,167.00"},{"v":9336,"d":"9,336.00"}]
[895,"SWR Sling 24mmx4m","Tools","Section 42 Workshop",4,"5 Ton",{"$nulls":3},0,null,{"v":743.7,"d":"743.70"},{"v":2974.8,"d":"2,974.80"}]
[896,"SWR Sling 24mmx4m","Tools","Batch Plant Workshop",10,"5 Ton",null,"No",null,0,null,{"v":743.7,"d":"743.70"},{"v":7437,"d":"7,437.00"}]
[897,"SWR Sling 25mmx2m","Tools","Section 42 Workshop",2,"5 Ton",{"$nulls":3},0,null,509.01,{"v":1018.02,"d":"1,018.02"}]
[898,"SWR Sling 25mmx2m","Tools","Batch Plant Workshop",2,"5 Ton",null,"No",null,0,null,509.01,{"v":1018.02,"d":"1,018.02"}]
[899,"SWR Sling 26mmx1.5m","Tools","Section 42 Workshop",6,"6 Ton",{"$nulls":3},0,null,{"v":708.6,"d":"708.60"},{"v":4251.6,"d":"4,251.60"}]
[900,"SWR Sling 26mmx1.5m","Tools","Batch Plant Workshop",10,"6 Ton",null,"No",null,0,null,{"v":708.6,"d":"708.60"},{"v":7086,"d":"7,086.00"}]
[901,"SWR Sling 26mmx10m","Tools","Section 42 Workshop",6,"6 Ton",{"$nulls":3},0,null,{"v":1298.55,"d":"1,298.55"},{"v":7791.299999999999,"d":"7,791.30"}]
[902,"SWR Sling 26mmx10m","Tools","Batch Plant Workshop",10,"6 Ton",null,"No",null,0,null,{"v":1298.55,"d":"1,298.55"},{"v":12985.5,"d":"12,985.50"}]
[903,"SWR Sling 26mmx4m","Tools","Section 42 Workshop",10,"6 Ton",{"$nulls":3},0,null,{"v":516.2,"d":"516.20"},{"v":5162,"d":"5,162.00"}]
[904,"SWR Sling 26mmx4m","Tools","Section 42 Workshop",4,"7.8 Ton",{"$nulls":3},0,null,{"v":516.2,"d":"516.20"},{"v":2064.8,"d":"2,064.80"}]
[905,"SWR Sling 26mmx4m","Tools","Batch Plant Workshop",10,"6 Ton",null,"No",null,0,null,{"v":516.2,"d":"516.20"},{"v":5162,"d":"5,162.00"}]
[906,"SWR Sling 26mmx4m","Tools","Batch Plant Workshop",8,"7.8 Ton",null,"No",null,0,null,{"v":516.2,"d":"516.20"},{"v":4129.6,"d":"4,129.60"}]
[907,"SWR Sling 26mmx6m","Tools","Section 42 Workshop",8,"6 Ton",{"$nulls":3},0,null,{"v":845.1,"d":"845.10"},{"v":6760.8,"d":"6,760.80"}]
[908,"SWR Sling 26mmx6m","Tools","Batch Plant Workshop",10,"6 Ton",null,"No",null,0,null,{"v":845.1,"d":"845.10"},{"v":8451,"d":"8,451.00"}]
[909,"SWR Sling 26mmx8m","Tools","Section 42 Workshop",10,"6 Ton",{"$nulls":3},0,null,{"v":1099,"d":"1,099.00"},{"v":10990,"d":"10,990.00"}]
[910,"SWR Sling 26mmx8m","Tools","Batch Plant Workshop",10,"6 Ton",null,"No",null,0,null,{"v":1099,"d":"1,099.00"},{"v":10990,"d":"10,990.00"}]
[911,"SWR Sling 32mmx3m","Tools","Section 42 Workshop",4,"8.75 Ton",{"$nulls":3},0,null,{"v":1071.6,"d":"1,071.60"},{"$f":"L918*E918","v":{"v":4286.4,"d":"4,286.40"}}]
[912,"SWR Sling 32mmx3m","Tools","Batch Plant Workshop",4,"8.75 Ton",null,"No",null,0,null,{"v":1071.6,"d":"1,071.60"},{"v":4286.4,"d":"4,286.40"}]
[913,"SWR Sling 40mm x 2m","Tools","Section 42 Workshop",4,"18.6 Ton",{"$nulls":3},0,null,{"v":2177.8,"d":"2,177.80"},{"v":8711.2,"d":"8,711.20"}]
[914,"SWR Sling 40mm x 2m","Tools","Batch Plant Workshop",4,"18.6 Ton",null,"No",null,0,null,{"v":2177.8,"d":"2,177.80"},{"v":8711.2,"d":"8,711.20"}]
[915,"SWR Sling 58mmx4m","Tools","Section 42 Workshop",2,"33.7 Ton",{"$nulls":3},0,null,{"v":3099.53,"d":"3,099.53"},{"v":6199.06,"d":"6,199.06"}]
[916,"SWR Sling 58mmx4m","Tools","Batch Plant Workshop",2,"33.7 Ton",null,"No",null,0,null,{"v":3099.53,"d":"3,099.53"},{"v":6199.06,"d":"6,199.06"}]
[917,"SWR Sling 8mmx500mm","Tools","Section 42 Workshop",16,"600 kg",{"$nulls":3},0,null,{"v":36.4,"d":"36.40"},{"v":582.4,"d":"582.40"}]
[918,"SWR Sling 8mmx500mm","Tools","Batch Plant Workshop",4,"600 kg",null,"No",null,0,null,{"v":36.4,"d":"36.40"},{"v":145.6,"d":"145.60"}]
[919,"Temperature & Humidity recorder","Tools","Section 18 Auxiliary Bay Unit 1",2,"LCD Displays Measured Temperature and Humidity Readings, Programmable Alarms for Humidity and Temperature, Measurement Range of -35°C to 80°C (-31°F to 176°F) and 0 to 100% RH, Fast Sampling Rate of 10 Seconds Includes Software and Lithium Battery","MAJORTECH",null,null,0,null,{"v":1400,"d":"1,400.00"},{"v":2800,"d":"2,800.00"}]
[920,"Temperature gun","Tools","Section 18 Auxiliary Bay Unit 1",1,"Non infrared IR laser Digital Thermometer,high accuracy",{"$nulls":3},0,null,{"v":890.9,"d":"890.90"},{"v":890.9,"d":"890.90"}]
[921,"Temperature Non-Contact Thermometer","Tools","16 M Level Workshop",2,"TEMPERATURE RANGE -30°C~550°C / -22°F~1022°F \nRESOLUTION 0,5 /1°C (AUTO),1°F \nRESPONSE TIME 0,25 SECOND \nSPECTRAL RESPONSE 6 TO 14 µM NOMINAL \nEMISSIVITY ADJ. 0,1 TO 1 \nTEMPERATURE ± 0,2% OF READING OR \nCO-EFFICIENT ±0,2°C \n","MAJORTECH","No",null,0,null,{"v":550,"d":"550.00"},{"v":1100,"d":"1,100.00"}]
[922,"Temperature Non-Contact Thermometer","Tools",null,2,"TEMPERATURE RANGE -30°C~550°C / -22°F~1022°F \nRESOLUTION 0,5 /1°C (AUTO),1°F \nRESPONSE TIME 0,25 SECOND \nSPECTRAL RESPONSE 6 TO 14 µM NOMINAL \nEMISSIVITY ADJ. 0,1 TO 1 \nTEMPERATURE ± 0,2% OF READING OR \nCO-EFFICIENT ±0,2°C \n","Off the shelf ","No",null,0,null,{"v":550,"d":"550.00"},{"v":1100,"d":"1,100.00"}]
[923,"Temperature Non-Contact Thermometer","Tools","Section 18 Auxiliary Bay Unit 1",2,"TEMPERATURE RANGE -30°C~550°C / -22°F~1022°F \nRESOLUTION 0,5 /1°C (AUTO),1°F \nRESPONSE TIME 0,25 SECOND \nSPECTRAL RESPONSE 6 TO 14 µM NOMINAL \nEMISSIVITY ADJ. 0,1 TO 1 \nTEMPERATURE ± 0,2% OF READING OR \nCO-EFFICIENT ±0,2°C \n",{"$nulls":3},0,null,{"v":550,"d":"550.00"},{"v":1100,"d":"1,100.00"}]
[924,"Termi-point Tool ","Tools","Section 18 Auxiliary Bay Unit 1",1,"WIRE (AWG) SOLID OR STRANDED  (7 Strands) 20 and 24. INSULATION DIAMETER RANGE (mm [in.]) 1.17–1.65 [.046–.065] or 1.68–2.16 [.066–.085] or 1.40–1.65 [.055–.065], MANDREL AND CLIP COLOR CODE, Yellow and Red.",{"$nulls":3},0,null,{"v":6570,"d":"6,570.00"},{"v":6570,"d":"6,570.00"}]
[925,"Testing Trollleys","Tools","Section 19 Auxilliary Bay Unit 2",2,"Stabel design ,stainless steel square frame 40x40x1.25mm work top,50mm thick,sheet metal 2mm thick. Grit size 320-400.2 x castors with brakes,2x castors. Floor clearnce of 150mm, working height 850mm.",null,"No",null,0,null,null,0]
[926,"Testing Trollleys","Tools",null,2,"Stabel design ,stainless steel square frame 40x40x1.25mm work top,50mm thick,sheet metal 2mm thick. Grit size 320-400.2 x castors with brakes,2x castors. Floor clearnce of 150mm, working height 850mm.",null,"No",null,0,null,null,0]
[927,"Tirfor Rope","Tools","Section 42 Workshop",4,"4 Ton",null,"No",{"v":1890,"d":"1,890.00"},{"v":7560,"d":"7,560.00"},null,{"v":1890,"d":"1,890.00"},{"v":7560,"d":"7,560.00"}]
[928,"Tirfor Rope","Tools","Batch Plant Workshop",4,"4 Ton",null,"No",{"v":1890,"d":"1,890.00"},{"v":7560,"d":"7,560.00"},null,{"v":1890,"d":"1,890.00"},{"v":7560,"d":"7,560.00"}]
[929,"Toe Jacks","Tools","Section 42 Workshop",1,"27,5 ton",null,"No",null,0,null,null,0]
[930,"Toe Jacks","Tools","Batch Plant Workshop",1,"27,5 ton",null,"No",null,0,null,null,0]
[931,"Tools Carry Bag","Tools",null,20,"Brown genuine leather tool carry bag with dividers inside..",null,"No",null,0,null,null,0]
[null,"Torque testers ","Tools","Section 42 Workshop",2,"Electronic torque tester with integrated torque transducer.\nWith 10mm, 17mm & 36mm hexagonal sockets.\nWith fixed hexagon female drive 1/4\" or 1.1/2\" square drive adaptor. \nMeasurement accuracy: +/- 1% tolerance of reading, +/- 1 digit\nBreak-point-measurement \nFor torque wrenches.\n","GEDORE","No",{"v":52684,"d":"52,684.00"},{"v":105368,"d":"105,368.00"},null,null,0]
[933,"Torque testers","Tools","Batch Plant Workshop",2,"Electronic torque tester with integrated torque transducer.\nWith 10mm, 17mm & 36mm hexagonal sockets.\nWith fixed hexagon female drive 1/4\" or 1.1/2\" square drive adaptor. \nMeasurement accuracy: +/- 1% tolerance of reading, +/- 1 digit\nBreak-point-measurement \nFor torque wrenches.\n","GEDORE","No",{"v":52684,"d":"52,684.00"},{"v":105368,"d":"105,368.00"},null,null,0]
[934,"Torque wrench","Tools",null,4,"Torque Range 50 - 225 Nm,1/2 in sqaure drive.","GEDORE","No",{"v":11100,"d":"11,100.00"},{"v":44400,"d":"44,400.00"},null,{"v":4483.38,"d":"4,483.38"},{"v":17933.52,"d":"17,933.52"}]
[935,"Torque wrench","Tools",null,10,"Torque Range 12 - 68 Nm,1/2 in sqaure drive.","GEDORE","No",{"v":4368,"d":"4,368.00"},{"v":43680,"d":"43,680.00"},null,{"v":2682.8,"d":"2,682.80"},{"v":26828,"d":"26,828.00"}]
[936,"Torque Wrench, Square Drive Predator series","Tools","Section 42 Workshop",1,"Max Torque 33496 Nm, 700bar",null,"No",{"v":58000,"d":"58,000.00"},{"v":58000,"d":"58,000.00"},null,{"v":58000,"d":"58,000.00"},{"v":58000,"d":"58,000.00"}]
[937,"Torque Wrench, Square Drive Predator series","Tools","Section 42 Workshop",1,"Max Torque 33496 Nm, 700bar",null,"No",{"v":58000,"d":"58,000.00"},{"v":58000,"d":"58,000.00"},null,{"v":58000,"d":"58,000.00"},{"v":58000,"d":"58,000.00"}]
[938,"Torque Wrench, Square Drive Predator series","Tools","Batch Plant Workshop",1,"Max Torque 33496 Nm, 700bar",null,"No",{"v":58000,"d":"58,000.00"},{"v":58000,"d":"58,000.00"},null,{"v":58000,"d":"58,000.00"},{"v":58000,"d":"58,000.00"}]
[939,"Torque Wrench, Square Drive Predator series","Tools","Batch Plant Workshop",1,"Max Torque 33496 Nm, 700bar",null,"No",{"v":58000,"d":"58,000.00"},{"v":58000,"d":"58,000.00"},null,{"v":58000,"d":"58,000.00"},{"v":58000,"d":"58,000.00"}]
[940,"Torquemultiplier","Tools","Section 42 Workshop",1,"Output Capacity: 1356Nm\nInput Capacity: 451Nm\nOutput Sq Size: 19mm","GEDORE","No",{"v":31986,"d":"31,986.00"},{"v":31986,"d":"31,986.00"},null,null,0]
[941,"Torquemultiplier","Tools","Section 42 Workshop",1,"Output Capacity: 2712Nm\nInput Capacity: 775Nm\nOutput Sq Size: 26mm","GEDORE","No",{"v":52016,"d":"52,016.00"},{"v":52016,"d":"52,016.00"},null,null,0]
[942,"Torquemultiplier","Tools","Batch Plant Workshop",1,"Output Capacity: 1356Nm\nInput Capacity: 451Nm\nOutput Sq Size: 19mm","GEDORE","No",{"v":31986,"d":"31,986.00"},{"v":31986,"d":"31,986.00"},null,null,0]
[943,"Torquemultiplier","Tools","Batch Plant Workshop",1,"Output Capacity: 2712Nm\nInput Capacity: 775Nm\nOutput Sq Size: 26mm","GEDORE","No",{"v":52016,"d":"52,016.00"},{"v":52016,"d":"52,016.00"},null,null,0]
[944,"Torquewrench 100 - 500nm ","Tools","Section 42 Workshop",4,null,"GEDORE","No",{"v":1945,"d":"1,945.00"},{"v":7780,"d":"7,780.00"},null,null,0]
[945,"Torquewrench 100 - 500nm ","Tools","Batch Plant Workshop",2,null,"GEDORE","No",{"v":1945,"d":"1,945.00"},{"v":3890,"d":"3,890.00"},null,null,0]
[946,"Torquewrench 12 - 68nm ","Tools","Section 42 Workshop",4,null,"GEDORE","No",null,{"$f":"I953*E953","v":0},null,null,0]
[947,"Torquewrench 12 - 68nm norbar","Tools","Batch Plant Workshop",2,null,"GEDORE","No",null,0,null,null,0]
[948,"Torquewrench 150 - 700nm","Tools","Section 42 Workshop",4,null,"GEDORE","No",null,0,null,null,0]
[949,"Torquewrench 150 - 700nm","Tools","Batch Plant Workshop",2,null,"GEDORE","No",null,0,null,null,0]
[950,"Torquewrench 20 - 100nm","Tools","Section 42 Workshop",4,null,"GEDORE","No",{"v":1976,"d":"1,976.00"},{"v":7904,"d":"7,904.00"},null,null,0]
[951,"Torquewrench 20 - 100nm","Tools","Batch Plant Workshop",2,null,"GEDORE","No",null,0,null,null,0]
[952,"Torquewrench 300 - 1000nm","Tools","Section 42 Workshop",4,null,"GEDORE","No",null,0,null,null,0]
[953,"Torquewrench 300 - 1000nm","Tools","Batch Plant Workshop",2,null,"GEDORE","No",null,0,null,null,0]
[954,"Torquewrench 4 - 20nm ","Tools","Section 42 Workshop",4,null,"GEDORE","No",null,0,null,null,0]
[955,"Torquewrench 4 - 20nm ","Tools","Batch Plant Workshop",2,null,"GEDORE","No",null,0,null,null,0]
[956,"Torquewrench 40 - 200nm","Tools","Section 42 Workshop",4,null,"GEDORE","No",null,0,null,null,0]
[957,"Torquewrench 40 - 200nm","Tools","Batch Plant Workshop",2,null,"GEDORE","No",null,0,null,null,0]
["F","Torquewrench 60 - 330nm","Tools","Section 42 Workshop",4,null,"GEDORE","No",{"v":1472,"d":"1,472.00"},{"v":5888,"d":"5,888.00"},null,null,0]
[959,"Torquewrench 60 - 330nm","Tools","Batch Plant Workshop",2,null,"GEDORE","No",null,0,null,null,0]
[960,"Torquewrench 8 - 54nm","Tools","Section 42 Workshop",4,null,"GEDORE","No",null,0,null,null,0]
[961,"Torquewrench 8 - 54nm","Tools","Batch Plant Workshop",2,null,"GEDORE","No",null,0,null,null,0]
[962,"TRI BLOCS","Tools","Section 42 Workshop",4,"The TRI BLOCS contains 3 MM plates in one case roughing , finishing and superfinishing complete with hyprez diamond stick compound for each plate. Three diamond sticks hyprez MM 131, 141, 142. Reference no: 0903NL000",{"$nulls":3},0,null,null,0]
[963,"TRI BLOCS","Tools","Batch Plant Workshop",4,"The TRI BLOCS contains 3 MM plates in one case roughing , finishing and superfinishing complete with hyprez diamond stick compound for each plate. Three diamond sticks hyprez MM 131, 141, 142. Reference no: 0903NL000",null,"No",null,0,null,null,0]
[964,"universal 2 mag stand oxford","Tools","Section 42 Workshop",6,"Mounts: 1/\n4” I/D lug, stem/spigot\ndiameter:\n4mm, 8mm, 3/8” without bush. \nBase dimensions:\n60 x 50 x 55mm. \nColumn height x dia.:\n175 x 12mm.\nCrossbar length x dia.:\n165 x 10.0mm. \nClamp ring: 6.35mm. Magnetic pull: 50kg","Oxford",null,null,0,null,null,0]
[965,"universal 2 mag stand oxford","Tools","Batch Plant Workshop",0,"Mounts: 1/\n4” I/D lug, stem/spigot\ndiameter:\n4mm, 8mm, 3/8” without bush. \nBase dimensions:\n60 x 50 x 55mm. \nColumn height x dia.:\n175 x 12mm.\nCrossbar length x dia.:\n165 x 10.0mm. \nClamp ring: 6.35mm. Magnetic pull: 50kg","Oxford","No",null,0,null,null,0]
[966,"Utility knife","Tools",null,20,"Cutting tool used in various trades and crafts for a variety of purposes","GEDORE","No",{"v":42,"d":"42.00"},{"v":840,"d":"840.00"},null,null,0]
[967,"v belt alignment machine","Tools","Section 42 Workshop",4,"Type of laser: Green laser diode\nLaser: 1x Built-in class 2 laser, <1 mW, 532 nm \nLaser line length: 2 m at 2 m\nMeasurement accuracy angular: Better than 0,02° at 2 m\nMeasurement accuracy offset: Better than 0,5 mm\nMeasurement distance: 50 mm to 6 000 mm\nTransmitter unit: 169 x 51 x 37 mm \nReceiver unit: 169 x 51 x 37 mm\nReflector dimensions: 22 x 32 mm\nCalibration certificate: Required",{"$nulls":3},0,null,null,0]
[968,"v belt alignment machine","Tools","Batch Plant Workshop",2,"Type of laser: Green laser diode\nLaser: 1x Built-in class 2 laser, <1 mW, 532 nm \nLaser line length: 2 m at 2 m\nMeasurement accuracy angular: Better than 0,02° at 2 m\nMeasurement accuracy offset: Better than 0,5 mm\nMeasurement distance: 50 mm to 6 000 mm\nTransmitter unit: 169 x 51 x 37 mm \nReceiver unit: 169 x 51 x 37 mm\nReflector dimensions: 22 x 32 mm\nCalibration certificate: Required",null,"No",null,0,null,null,0]
[969,"Vacuum cleaner","Tools","16 M Level Workshop",1,"Wet dry type","Off the Shelf","No",null,0,null,{"$f":"1398/1.15","v":{"v":1215.6521739130435,"d":"1,215.65"}},{"v":1215.6521739130435,"d":"1,215.65"}]
[970,"Vacuum cleaner","Tools","Section 19 Auxilliary Bay Unit 2",1,"Wet dry type",null,"No",null,0,null,{"$f":"1398/1.15","v":{"v":1215.6521739130435,"d":"1,215.65"}},{"v":1215.6521739130435,"d":"1,215.65"}]
[971,"Vacuum cleaner","Tools","Section 42: Workshop and Stores building",1,"Wet dry type","WAP industrial vacuum cleaner recommended","No",null,0,null,{"$f":"1398/1.15","v":{"v":1215.6521739130435,"d":"1,215.65"}},{"v":1215.6521739130435,"d":"1,215.65"}]
[972,"Vacuum cleaner","Tools",null,1,"Wet dry type","WAP industrial vacuum cleaner recommended","No",null,0,null,{"$f":"1398/1.15","v":{"v":1215.6521739130435,"d":"1,215.65"}},{"v":1215.6521739130435,"d":"1,215.65"}]
[973,"Vacuum cleaner","Tools","Section 18 Auxiliary Bay Unit 1",1,"portable vacuum cleaner with shoulder strap back pack                                        Model NO.:   ZN1301-12L \nwith shoulder , PP + ABS ",{"$nulls":3},0,null,{"$f":"1398/1.15","v":{"v":1215.6521739130435,"d":"1,215.65"}},{"v":1215.6521739130435,"d":"1,215.65"}]
[974,"V-Belt tension gauge complete set","Tools","Section 42 Workshop",6,"V-belt tension tester/gauge c/w Deflection force scale, Span scale.",{"$nulls":3},0,null,null,0]
[975,"V-Belt tension gauge complete set","Tools","Batch Plant Workshop",4,"V-belt tension tester/gauge c/w Deflection force scale, Span scale.",null,"No",null,0,null,null,{"$f":"L982*E982","v":0}]
[976,"Vernier Caliper ","Tools",null,16,"300mm, Jaw Depths inside 19mm , outside 63mm, Knife-edge contacts for both inside and outside measurements, Lock screw for holding the sliding jaw in position . ","GEDORE","No",{"v":4196,"d":"4,196.00"},{"v":67136,"d":"67,136.00"},null,null,0]
[977,"Vernier Caliper ","Tools","ERI Turbo Gen Services (TGS) Workshop 20",1,"300mm, Jaw Depths inside 19mm , outside 63mm, Knife-edge contacts for both inside and outside measurements, Lock screw for holding the sliding jaw in position . ",null,"No",{"v":4196,"d":"4,196.00"},{"v":4196,"d":"4,196.00"},null,{"v":2623,"d":"2,623.00"},{"v":2623,"d":"2,623.00"}]
[978,"Vernier Caliper ","Tools","Section 42 Workshop",1,"300mm, Jaw Depths inside 19mm , outside 63mm, Knife-edge contacts for both inside and outside measurements, Lock screw for holding the sliding jaw in position . ",null,"No",{"v":4196,"d":"4,196.00"},{"v":4196,"d":"4,196.00"},null,{"v":2623,"d":"2,623.00"},{"v":2623,"d":"2,623.00"}]
[979,"Vernier Caliper ","Tools","Mill Maintenance Workshop",1,"300mm, Jaw Depths inside 19mm , outside 63mm, Knife-edge contacts for both inside and outside measurements, Lock screw for holding the sliding jaw in position . ",null,"No",{"v":4196,"d":"4,196.00"},{"v":4196,"d":"4,196.00"},null,{"v":2623,"d":"2,623.00"},{"v":2623,"d":"2,623.00"}]
[980,"Vernier Caliper ","Tools","Welding Workshop",1,"300mm, Jaw Depths inside 19mm , outside 63mm, Knife-edge contacts for both inside and outside measurements, Lock screw for holding the sliding jaw in position . ",null,"No",{"v":4196,"d":"4,196.00"},{"v":4196,"d":"4,196.00"},null,{"v":2623,"d":"2,623.00"},{"v":2623,"d":"2,623.00"}]
[981,"vernier height gauge 0 - 500mm","Tools","Section 42 Workshop",5,null,"Mitutoyo","No",{"v":4875,"d":"4,875.00"},{"v":24375,"d":"24,375.00"},null,{"$f":"4360/1.15","v":{"v":3791.3043478260875,"d":"3,791.30"}},{"v":18956.521739130436,"d":"18,956.52"}]
[982,"vernier height gauge 0 - 500mm","Tools","Batch Plant Workshop",1,null,"Mitutoyo","No",{"v":4875,"d":"4,875.00"},{"v":4875,"d":"4,875.00"},null,{"$f":"4360/1.15","v":{"v":3791.3043478260875,"d":"3,791.30"}},{"v":3791.3043478260875,"d":"3,791.30"}]
[983,"Webbing Sling 100mmx3m","Tools","Section 42 Workshop",2,"2 Ton",null,"No",{"v":96,"d":"96.00"},{"v":192,"d":"192.00"},null,{"v":96,"d":"96.00"},{"v":192,"d":"192.00"}]
[984,"Webbing Sling 100mmx3m","Tools","Batch Plant Workshop",2,"2 Ton",null,"No",{"v":96,"d":"96.00"},{"v":192,"d":"192.00"},null,{"v":96,"d":"96.00"},{"v":192,"d":"192.00"}]
[985,"Webbing Sling 100mmx4m","Tools","Section 42 Workshop",10,"4 Ton",null,"No",{"v":275,"d":"275.00"},{"v":2750,"d":"2,750.00"},null,{"v":275,"d":"275.00"},{"v":2750,"d":"2,750.00"}]
[986,"Webbing Sling 100mmx4m","Tools","Section 42 Workshop",2,"4 Ton",null,"No",{"v":275,"d":"275.00"},{"v":550,"d":"550.00"},null,{"v":275,"d":"275.00"},{"v":550,"d":"550.00"}]
[987,"Webbing Sling 100mmx4m","Tools","Batch Plant Workshop",5,"4 Ton",null,"No",{"v":275,"d":"275.00"},{"v":1375,"d":"1,375.00"},null,{"v":275,"d":"275.00"},{"v":1375,"d":"1,375.00"}]
[988,"Webbing Sling 100mmx4m","Tools","Batch Plant Workshop",2,"4 Ton",null,"No",{"v":275,"d":"275.00"},{"v":550,"d":"550.00"},null,{"v":275,"d":"275.00"},{"v":550,"d":"550.00"}]
[989,"Webbing Sling 100mmx6m","Tools","Section 42 Workshop",2,"4 Ton",null,"No",{"v":406,"d":"406.00"},{"v":812,"d":"812.00"},null,{"v":406,"d":"406.00"},{"v":812,"d":"812.00"}]
[990,"Webbing Sling 100mmx6m","Tools","Section 42 Workshop",4,"4 Ton",null,"No",{"v":406,"d":"406.00"},{"v":1624,"d":"1,624.00"},null,{"v":406,"d":"406.00"},{"v":1624,"d":"1,624.00"}]
[991,"Webbing Sling 100mmx6m","Tools","Batch Plant Workshop",2,"4 Ton",null,"No",{"v":406,"d":"406.00"},{"v":812,"d":"812.00"},null,{"v":406,"d":"406.00"},{"v":812,"d":"812.00"}]
[992,"Webbing Sling 100mmx6m","Tools","Batch Plant Workshop",4,"4 Ton",null,"No",{"v":406,"d":"406.00"},{"v":1624,"d":"1,624.00"},null,{"v":406,"d":"406.00"},{"v":1624,"d":"1,624.00"}]
[993,"Webbing Sling 200mm x 4m","Tools","Section 42 Workshop",2,"4 Ton",null,"No",{"v":900,"d":"900.00"},{"v":1800,"d":"1,800.00"},null,{"v":900,"d":"900.00"},{"v":1800,"d":"1,800.00"}]
[994,"Webbing Sling 200mm x 4m","Tools","Batch Plant Workshop",2,"4 Ton",null,"No",{"v":900,"d":"900.00"},{"v":1800,"d":"1,800.00"},null,{"v":900,"d":"900.00"},{"v":1800,"d":"1,800.00"}]
[995,"wedge spreader","Tools","Section 42 Workshop",4,"Mechanical wedge spreader\nMax. spreading force: 72KN\nTip clearance: 6 mm\nMax. Spread: 80 mm\nWeight: 6.5 Kg",null,"No",null,0,null,{"v":2147,"d":"2,147.00"},{"v":8588,"d":"8,588.00"}]
[996,"wedge spreader","Tools","Batch Plant Workshop",2,"Mechanical wedge spreader\nMax. spreading force: 72KN\nTip clearance: 6 mm\nMax. Spread: 80 mm\nWeight: 6.5 Kg",null,"No",null,0,null,{"v":2147,"d":"2,147.00"},{"v":4294,"d":"4,294.00"}]
[997,"wire scratch brush cast steel 4 rows","Tools","Section 42 Workshop",5,null,null,"No",{"v":32,"d":"32.00"},{"v":160,"d":"160.00"},null,{"v":32,"d":"32.00"},{"v":160,"d":"160.00"}]
[998,"wire scratch brush cast steel 4 rows","Tools","Batch Plant Workshop",5,null,null,"No",{"v":32,"d":"32.00"},{"v":160,"d":"160.00"},null,{"v":32,"d":"32.00"},{"v":160,"d":"160.00"}]
[999,"Wire stripper","Tools",null,14,"Self adjusting cutting and stripping tool for modern  elecrical installation and eguipment circuit","GEDORE","No",{"v":295,"d":"295.00"},{"v":4130,"d":"4,130.00"},null,{"$f":"115/1.15","v":{"v":100.00000000000001,"d":"100.00"}},{"v":1400.0000000000002,"d":"1,400.00"}]
[1000,"Work benches Heavy duty","Tools","Section 42 Workshop",24,"2000 L x 800 D x 890 H, Incl drawers:3 on one side and cabinet on the other side, metal top with rubber finish.",{"$nulls":3},0,null,{"v":12499,"d":"12,499.00"},{"v":299976,"d":"299,976.00"}]
[1001,"Work benches Heavy duty","Tools","ERI Turbo Gen Services (TGS) Workshop 6",3,"2000 L x 800 D x 890 H, Incl drawers:3 on one side and cabinet on the other side, metal top with rubber finish.",{"$nulls":3},0,null,{"v":12499,"d":"12,499.00"},{"v":37497,"d":"37,497.00"}]
[1002,"Work benches Heavy duty","Workshop furniture","ERI Turbo Gen Services (TGS) Workshop 18",2,"2000 L x 800 D x 890 H, Incl drawers:3 on one side and cabinet on the other side with solid wood top.",null,"Required",null,0,null,{"v":12499,"d":"12,499.00"},{"v":24998,"d":"24,998.00"}]
[1003,"Work benches Heavy duty","Workshop furniture","Section 42 Workshop",10,"2000 L x 800 D x 890 H, Incl drawers:3 on one side and cabinet on the other side with solid wood top.",{"$nulls":3},0,null,{"v":12499,"d":"12,499.00"},{"v":124990,"d":"124,990.00"}]
[1004,"Work benches Heavy duty","Workshop furniture","Section 42 Workshop",10,"2000 L x 800 D x 890 H, Incl drawers:3 on one side and cabinet on the other side with solid wood top.",{"$nulls":3},0,null,{"v":12499,"d":"12,499.00"},{"v":124990,"d":"124,990.00"}]
[1005,"Work benches Heavy duty","Tools","Mill Maintenance Workshop",2,"2000 L x 800 D x 890 H, Incl drawers:3 on one side and cabinet on the other side with solid wood top.",null,"Required",null,0,null,{"v":12499,"d":"12,499.00"},{"v":24998,"d":"24,998.00"}]
[1006,"Work benches Heavy duty","Tools","Units Workshop (Mills)",4,"2000 L x 800 D x 890 H, Incl drawers:3 on one side and cabinet on the other side with solid wood top.",null,"Required",null,0,null,{"v":12499,"d":"12,499.00"},{"v":49996,"d":"49,996.00"}]
[1007,"Work table Office standard","Workshop furniture","Section 18 Auxiliary Bay Unit 1",2,"2000 L x 800 D x 890 H, Incl drawers:3 on one side and cabinet on the other side with solid wood top.",null,"Installation Required",null,0,null,{"v":12499,"d":"12,499.00"},{"v":24998,"d":"24,998.00"}]
[1008,"Zeus or similar approved precision book","Tools","Section 42 Workshop",4,"With Data charts and reference tables for toolroom and workshops. Should contain data on  standard drill sizes and decimal equivalents, tapping drills and clearances for metric and imperial threads,\nBS4500 tolerances, hardness comparisons, jig boring co-ordinates for equally spaced holes, allowances for sheet metal bending and Morse tapers.","Zeus","No",{"v":200.8,"d":"200.80"},{"v":803.2,"d":"803.20"},null,{"v":200.8,"d":"200.80"},{"v":803.2,"d":"803.20"}]
[1009,"Zeus or similar approved precision book","Tools","Batch Plant Workshop",2,"With Data charts and reference tables for toolroom and workshops. Should contain data on  standard drill sizes and decimal equivalents, tapping drills and clearances for metric and imperial threads,\nBS4500 tolerances, hardness comparisons, jig boring co-ordinates for equally spaced holes, allowances for sheet metal bending and Morse tapers.","Zeus","No",{"v":200.8,"d":"200.80"},{"v":401.6,"d":"401.60"},null,{"v":200.8,"d":"200.80"},{"v":401.6,"d":"401.60"}]
[]
[{"$nulls":9},{"$f":"SUM(J8:J1016)","v":{"v":3696183.55,"d":"3,696,183.55"}},null,null,{"$f":"SUM(M8:M1016)","v":{"v":5204049.613913045,"d":"5,204,049.61"}}]
{"$rows_empty":13}
[{"$nulls":11},"Gedore, Electronic Torque Wrench Torcotronic Iii, 2648644"]
[]
[]
[{"$nulls":11},"45 663"]

{"sheet":"Sheet2","index":7,"n_rows":17,"n_cols":9,"rows_kept":17,"hidden":true}
{"$rows_empty":9}
[null,null,"Copper hammer","Tools",null,6,"5lb Copper Hammer, 2\" face, 14\" Supergrip Fiberglass handle.","THOR","No"]
[]
[]
[]
[]
[]
[]
[null,null,"Monkey Wrench ","Tools","ERI Turbo Gen Services (TGS) Workshop 16",2,"Size (In.) 18\"  Jaw Opening 4 3/8\""]